Workbook

Sheet Mega Millions Unbounded
A1: Index | B1: A | C1: B | D1: C | E1: D | F1: E | G1: MB
B2: 1 | C2: 2 | D2: 3 | E2: 4 | F2: 5 | G2: 6
B3: 1 | C3: 40 | D3: 42 | E3: 56 | F3: 62 | G3: 2 | I3: Enter Last Two Draws Here
B4: 6 | C4: 16 | D4: 17 | E4: 25 | F4: 36 | G4: 7 | I4: Enter Number of Selections Here | M4: 1500 | N4: (1 to 1500)
A5: =IF(M4>0,1,"") -> 1 | B5: =IF(ISNUMBER($A5),MMNexus(B$3,B$4,B$2),"") -> 56 | C5: =IF(ISNUMBER($A5),MMNexus(C$3,C$4,C$2),"") -> 17 | D5: =IF(ISNUMBER($A5),MMNexus(D$3,D$4,D$2),"") -> 61 | E5: =IF(ISNUMBER($A5),MMNexus(E$3,E$4,E$2),"") -> 52 | F5: =IF(ISNUMBER($A5),MMNexus(F$3,F$4,F$2),"") -> 63 | G5: =IF(ISNUMBER($A5),MMNexus(G$3,G$4,G$2),"") -> 12
A6: =IF(ISNUMBER(A5),IF(A5+1<=M$4,A5+1,""),"") -> 2 | B6: =IF(ISNUMBER($A6),MMNexus(B$3,B$4,B$2),"") -> 26 | C6: =IF(ISNUMBER($A6),MMNexus(C$3,C$4,C$2),"") -> 68 | D6: =IF(ISNUMBER($A6),MMNexus(D$3,D$4,D$2),"") -> 25 | E6: =IF(ISNUMBER($A6),MMNexus(E$3,E$4,E$2),"") -> 36 | F6: =IF(ISNUMBER($A6),MMNexus(F$3,F$4,F$2),"") -> 68 | G6: =IF(ISNUMBER($A6),MMNexus(G$3,G$4,G$2),"") -> 5 | I6: Mega Millions
A7: =IF(ISNUMBER(A6),IF(A6+1<=M$4,A6+1,""),"") -> 3 | B7: =IF(ISNUMBER($A7),MMNexus(B$3,B$4,B$2),"") -> 15 | C7: =IF(ISNUMBER($A7),MMNexus(C$3,C$4,C$2),"") -> 10 | D7: =IF(ISNUMBER($A7),MMNexus(D$3,D$4,D$2),"") -> 24 | E7: =IF(ISNUMBER($A7),MMNexus(E$3,E$4,E$2),"") -> 64 | F7: =IF(ISNUMBER($A7),MMNexus(F$3,F$4,F$2),"") -> 70 | G7: =IF(ISNUMBER($A7),MMNexus(G$3,G$4,G$2),"") -> 11 | I7: Max → | J7: =MAX(J10:J84) -> 46 | K7: =MAX(K10:K84) -> 44 | L7: 42 | M7: 59 | N7: 111 | O7: =MAX(O10:O24) -> 158
A8: 4 | B8: =IF(ISNUMBER($A8),MMNexus(B$3,B$4,B$2),"") -> 48 | C8: =IF(ISNUMBER($A8),MMNexus(C$3,C$4,C$2),"") -> 44 | D8: =IF(ISNUMBER($A8),MMNexus(D$3,D$4,D$2),"") -> 22 | E8: =IF(ISNUMBER($A8),MMNexus(E$3,E$4,E$2),"") -> 50 | F8: =IF(ISNUMBER($A8),MMNexus(F$3,F$4,F$2),"") -> 69 | G8: =IF(ISNUMBER($A8),MMNexus(G$3,G$4,G$2),"") -> 2 | I8: Number | J8: Pick 5 | O8: Pick 1
A9: 5 | B9: =IF(ISNUMBER($A9),MMNexus(B$3,B$4,B$2),"") -> 37 | C9: =IF(ISNUMBER($A9),MMNexus(C$3,C$4,C$2),"") -> 48 | D9: =IF(ISNUMBER($A9),MMNexus(D$3,D$4,D$2),"") -> 37 | E9: =IF(ISNUMBER($A9),MMNexus(E$3,E$4,E$2),"") -> 70 | F9: =IF(ISNUMBER($A9),MMNexus(F$3,F$4,F$2),"") -> 63 | G9: =IF(ISNUMBER($A9),MMNexus(G$3,G$4,G$2),"") -> 8 | J9: A | K9: B | L9: C | M9: D | N9: E | O9: MB
A10: 6 | B10: =IF(ISNUMBER($A10),MMNexus(B$3,B$4,B$2),"") -> 23 | C10: =IF(ISNUMBER($A10),MMNexus(C$3,C$4,C$2),"") -> 38 | D10: =IF(ISNUMBER($A10),MMNexus(D$3,D$4,D$2),"") -> 60 | E10: =IF(ISNUMBER($A10),MMNexus(E$3,E$4,E$2),"") -> 55 | F10: =IF(ISNUMBER($A10),MMNexus(F$3,F$4,F$2),"") -> 64 | G10: =IF(ISNUMBER($A10),MMNexus(G$3,G$4,G$2),"") -> 4 | I10: 1 | J10: =FrequencyCount(B$5:B$1504,$I10) -> 6 | K10: =FrequencyCount(C$5:C$1504,$I10) -> 0 | L10: =FrequencyCount(D$5:D$1504,$I10) -> 0 | M10: =FrequencyCount(E$5:E$1504,$I10) -> 0 | N10: =FrequencyCount(F$5:F$1504,$I10) -> 0 | O10: =FrequencyCount(G$5:G$1504,$I10) -> 33
A11: 7 | B11: =IF(ISNUMBER($A11),MMNexus(B$3,B$4,B$2),"") -> 52 | C11: =IF(ISNUMBER($A11),MMNexus(C$3,C$4,C$2),"") -> 28 | D11: =IF(ISNUMBER($A11),MMNexus(D$3,D$4,D$2),"") -> 51 | E11: =IF(ISNUMBER($A11),MMNexus(E$3,E$4,E$2),"") -> 74 | F11: =IF(ISNUMBER($A11),MMNexus(F$3,F$4,F$2),"") -> 72 | G11: =IF(ISNUMBER($A11),MMNexus(G$3,G$4,G$2),"") -> 12 | I11: 2 | J11: 7 | K11: 24 | L11: 0 | M11: 0 | N11: 0 | O11: 41
A12: 8 | B12: =IF(ISNUMBER($A12),MMNexus(B$3,B$4,B$2),"") -> 30 | C12: =IF(ISNUMBER($A12),MMNexus(C$3,C$4,C$2),"") -> 9 | D12: =IF(ISNUMBER($A12),MMNexus(D$3,D$4,D$2),"") -> 65 | E12: =IF(ISNUMBER($A12),MMNexus(E$3,E$4,E$2),"") -> 44 | F12: =IF(ISNUMBER($A12),MMNexus(F$3,F$4,F$2),"") -> 61 | G12: =IF(ISNUMBER($A12),MMNexus(G$3,G$4,G$2),"") -> 9 | I12: 3 | J12: 8 | K12: 27 | L12: 1 | M12: 0 | N12: 0 | O12: 56
A13: 9 | B13: =IF(ISNUMBER($A13),MMNexus(B$3,B$4,B$2),"") -> 17 | C13: =IF(ISNUMBER($A13),MMNexus(C$3,C$4,C$2),"") -> 34 | D13: =IF(ISNUMBER($A13),MMNexus(D$3,D$4,D$2),"") -> 30 | E13: =IF(ISNUMBER($A13),MMNexus(E$3,E$4,E$2),"") -> 70 | F13: =IF(ISNUMBER($A13),MMNexus(F$3,F$4,F$2),"") -> 64 | G13: =IF(ISNUMBER($A13),MMNexus(G$3,G$4,G$2),"") -> 7 | I13: 4 | J13: 13 | K13: 31 | L13: 4 | M13: 0 | N13: 0 | O13: 51
A14: 10 | B14: =IF(ISNUMBER($A14),MMNexus(B$3,B$4,B$2),"") -> 36 | C14: =IF(ISNUMBER($A14),MMNexus(C$3,C$4,C$2),"") -> 11 | D14: =IF(ISNUMBER($A14),MMNexus(D$3,D$4,D$2),"") -> 41 | E14: =IF(ISNUMBER($A14),MMNexus(E$3,E$4,E$2),"") -> 57 | F14: =IF(ISNUMBER($A14),MMNexus(F$3,F$4,F$2),"") -> 63 | G14: =IF(ISNUMBER($A14),MMNexus(G$3,G$4,G$2),"") -> 15 | I14: 5 | J14: 23 | K14: 26 | L14: 2 | M14: 2 | N14: 0 | O14: 74
A15: 11 | B15: =IF(ISNUMBER($A15),MMNexus(B$3,B$4,B$2),"") -> 28 | C15: =IF(ISNUMBER($A15),MMNexus(C$3,C$4,C$2),"") -> 46 | D15: =IF(ISNUMBER($A15),MMNexus(D$3,D$4,D$2),"") -> 51 | E15: =IF(ISNUMBER($A15),MMNexus(E$3,E$4,E$2),"") -> 44 | F15: =IF(ISNUMBER($A15),MMNexus(F$3,F$4,F$2),"") -> 53 | G15: =IF(ISNUMBER($A15),MMNexus(G$3,G$4,G$2),"") -> 13 | I15: 6 | J15: 23 | K15: 19 | L15: 4 | M15: 1 | N15: 0 | O15: 71
A16: 12 | B16: =IF(ISNUMBER($A16),MMNexus(B$3,B$4,B$2),"") -> 22 | C16: =IF(ISNUMBER($A16),MMNexus(C$3,C$4,C$2),"") -> 25 | D16: =IF(ISNUMBER($A16),MMNexus(D$3,D$4,D$2),"") -> 63 | E16: =IF(ISNUMBER($A16),MMNexus(E$3,E$4,E$2),"") -> 54 | F16: =IF(ISNUMBER($A16),MMNexus(F$3,F$4,F$2),"") -> 74 | G16: =IF(ISNUMBER($A16),MMNexus(G$3,G$4,G$2),"") -> 12 | I16: 7 | J16: 19 | K16: 28 | L16: 4 | M16: 2 | N16: 0 | O16: 91
A17: 13 | B17: =IF(ISNUMBER($A17),MMNexus(B$3,B$4,B$2),"") -> 27 | C17: =IF(ISNUMBER($A17),MMNexus(C$3,C$4,C$2),"") -> 4 | D17: =IF(ISNUMBER($A17),MMNexus(D$3,D$4,D$2),"") -> 48 | E17: =IF(ISNUMBER($A17),MMNexus(E$3,E$4,E$2),"") -> 62 | F17: =IF(ISNUMBER($A17),MMNexus(F$3,F$4,F$2),"") -> 51 | G17: =IF(ISNUMBER($A17),MMNexus(G$3,G$4,G$2),"") -> 11 | I17: 8 | J17: 16 | K17: 34 | L17: 6 | M17: 2 | N17: 0 | O17: 103
A18: 14 | B18: =IF(ISNUMBER($A18),MMNexus(B$3,B$4,B$2),"") -> 29 | C18: =IF(ISNUMBER($A18),MMNexus(C$3,C$4,C$2),"") -> 7 | D18: =IF(ISNUMBER($A18),MMNexus(D$3,D$4,D$2),"") -> 37 | E18: =IF(ISNUMBER($A18),MMNexus(E$3,E$4,E$2),"") -> 46 | F18: =IF(ISNUMBER($A18),MMNexus(F$3,F$4,F$2),"") -> 42 | G18: =IF(ISNUMBER($A18),MMNexus(G$3,G$4,G$2),"") -> 3 | I18: 9 | J18: 23 | K18: 23 | L18: 7 | M18: 1 | N18: 0 | O18: 126
A19: 15 | B19: =IF(ISNUMBER($A19),MMNexus(B$3,B$4,B$2),"") -> 18 | C19: =IF(ISNUMBER($A19),MMNexus(C$3,C$4,C$2),"") -> 15 | D19: =IF(ISNUMBER($A19),MMNexus(D$3,D$4,D$2),"") -> 65 | E19: =IF(ISNUMBER($A19),MMNexus(E$3,E$4,E$2),"") -> 68 | F19: =IF(ISNUMBER($A19),MMNexus(F$3,F$4,F$2),"") -> 65 | G19: =IF(ISNUMBER($A19),MMNexus(G$3,G$4,G$2),"") -> 9 | I19: 10 | J19: 26 | K19: 44 | L19: 6 | M19: 0 | N19: 1 | O19: 134
A20: 16 | B20: =IF(ISNUMBER($A20),MMNexus(B$3,B$4,B$2),"") -> 69 | C20: =IF(ISNUMBER($A20),MMNexus(C$3,C$4,C$2),"") -> 8 | D20: =IF(ISNUMBER($A20),MMNexus(D$3,D$4,D$2),"") -> 46 | E20: =IF(ISNUMBER($A20),MMNexus(E$3,E$4,E$2),"") -> 58 | F20: =IF(ISNUMBER($A20),MMNexus(F$3,F$4,F$2),"") -> 68 | G20: =IF(ISNUMBER($A20),MMNexus(G$3,G$4,G$2),"") -> 15 | I20: 11 | J20: 26 | K20: 34 | L20: 6 | M20: 2 | N20: 1 | O20: 120
A21: 17 | B21: =IF(ISNUMBER($A21),MMNexus(B$3,B$4,B$2),"") -> 14 | C21: =IF(ISNUMBER($A21),MMNexus(C$3,C$4,C$2),"") -> 18 | D21: =IF(ISNUMBER($A21),MMNexus(D$3,D$4,D$2),"") -> 45 | E21: =IF(ISNUMBER($A21),MMNexus(E$3,E$4,E$2),"") -> 48 | F21: =IF(ISNUMBER($A21),MMNexus(F$3,F$4,F$2),"") -> 56 | G21: =IF(ISNUMBER($A21),MMNexus(G$3,G$4,G$2),"") -> 15 | I21: 12 | J21: 19 | K21: 34 | L21: 7 | M21: 2 | N21: 0 | O21: 150
A22: 18 | B22: =IF(ISNUMBER($A22),MMNexus(B$3,B$4,B$2),"") -> 45 | C22: =IF(ISNUMBER($A22),MMNexus(C$3,C$4,C$2),"") -> 2 | D22: =IF(ISNUMBER($A22),MMNexus(D$3,D$4,D$2),"") -> 43 | E22: =IF(ISNUMBER($A22),MMNexus(E$3,E$4,E$2),"") -> 62 | F22: =IF(ISNUMBER($A22),MMNexus(F$3,F$4,F$2),"") -> 64 | G22: =IF(ISNUMBER($A22),MMNexus(G$3,G$4,G$2),"") -> 14 | I22: 13 | J22: 25 | K22: 37 | L22: 12 | M22: 5 | N22: 1 | O22: 145
A23: 19 | B23: =IF(ISNUMBER($A23),MMNexus(B$3,B$4,B$2),"") -> 38 | C23: =IF(ISNUMBER($A23),MMNexus(C$3,C$4,C$2),"") -> 34 | D23: =IF(ISNUMBER($A23),MMNexus(D$3,D$4,D$2),"") -> 14 | E23: =IF(ISNUMBER($A23),MMNexus(E$3,E$4,E$2),"") -> 45 | F23: =IF(ISNUMBER($A23),MMNexus(F$3,F$4,F$2),"") -> 68 | G23: =IF(ISNUMBER($A23),MMNexus(G$3,G$4,G$2),"") -> 9 | I23: 14 | J23: 27 | K23: 31 | L23: 5 | M23: 4 | N23: 0 | O23: 147
A24: 20 | B24: =IF(ISNUMBER($A24),MMNexus(B$3,B$4,B$2),"") -> 19 | C24: =IF(ISNUMBER($A24),MMNexus(C$3,C$4,C$2),"") -> 42 | D24: =IF(ISNUMBER($A24),MMNexus(D$3,D$4,D$2),"") -> 52 | E24: =IF(ISNUMBER($A24),MMNexus(E$3,E$4,E$2),"") -> 70 | F24: =IF(ISNUMBER($A24),MMNexus(F$3,F$4,F$2),"") -> 64 | G24: =IF(ISNUMBER($A24),MMNexus(G$3,G$4,G$2),"") -> 13 | I24: 15 | J24: 21 | K24: 41 | L24: 7 | M24: 1 | N24: 0 | O24: 158
A25: 21 | B25: =IF(ISNUMBER($A25),MMNexus(B$3,B$4,B$2),"") -> 15 | C25: =IF(ISNUMBER($A25),MMNexus(C$3,C$4,C$2),"") -> 17 | D25: =IF(ISNUMBER($A25),MMNexus(D$3,D$4,D$2),"") -> 50 | E25: =IF(ISNUMBER($A25),MMNexus(E$3,E$4,E$2),"") -> 70 | F25: =IF(ISNUMBER($A25),MMNexus(F$3,F$4,F$2),"") -> 60 | G25: =IF(ISNUMBER($A25),MMNexus(G$3,G$4,G$2),"") -> 12 | I25: 16 | J25: =FrequencyCount(B$5:B$1504,$I25) -> 33 | K25: =FrequencyCount(C$5:C$1504,$I25) -> 32 | L25: =FrequencyCount(D$5:D$1504,$I25) -> 6 | M25: =FrequencyCount(E$5:E$1504,$I25) -> 4 | N25: =FrequencyCount(F$5:F$1504,$I25) -> 0
A26: 22 | B26: =IF(ISNUMBER($A26),MMNexus(B$3,B$4,B$2),"") -> 68 | C26: =IF(ISNUMBER($A26),MMNexus(C$3,C$4,C$2),"") -> 11 | D26: =IF(ISNUMBER($A26),MMNexus(D$3,D$4,D$2),"") -> 53 | E26: =IF(ISNUMBER($A26),MMNexus(E$3,E$4,E$2),"") -> 50 | F26: =IF(ISNUMBER($A26),MMNexus(F$3,F$4,F$2),"") -> 72 | G26: =IF(ISNUMBER($A26),MMNexus(G$3,G$4,G$2),"") -> 10 | I26: 17 | J26: 46 | K26: 40 | L26: 8 | M26: 4 | N26: 1
A27: 23 | B27: =IF(ISNUMBER($A27),MMNexus(B$3,B$4,B$2),"") -> 43 | C27: =IF(ISNUMBER($A27),MMNexus(C$3,C$4,C$2),"") -> 50 | D27: =IF(ISNUMBER($A27),MMNexus(D$3,D$4,D$2),"") -> 29 | E27: =IF(ISNUMBER($A27),MMNexus(E$3,E$4,E$2),"") -> 66 | F27: =IF(ISNUMBER($A27),MMNexus(F$3,F$4,F$2),"") -> 67 | G27: =IF(ISNUMBER($A27),MMNexus(G$3,G$4,G$2),"") -> 2 | I27: 18 | J27: 29 | K27: 25 | L27: 12 | M27: 5 | N27: 2
A28: 24 | B28: =IF(ISNUMBER($A28),MMNexus(B$3,B$4,B$2),"") -> 21 | C28: =IF(ISNUMBER($A28),MMNexus(C$3,C$4,C$2),"") -> 67 | D28: =IF(ISNUMBER($A28),MMNexus(D$3,D$4,D$2),"") -> 55 | E28: =IF(ISNUMBER($A28),MMNexus(E$3,E$4,E$2),"") -> 37 | F28: =IF(ISNUMBER($A28),MMNexus(F$3,F$4,F$2),"") -> 60 | G28: =IF(ISNUMBER($A28),MMNexus(G$3,G$4,G$2),"") -> 4 | I28: 19 | J28: 30 | K28: 29 | L28: 9 | M28: 5 | N28: 0
A29: 25 | B29: =IF(ISNUMBER($A29),MMNexus(B$3,B$4,B$2),"") -> 9 | C29: =IF(ISNUMBER($A29),MMNexus(C$3,C$4,C$2),"") -> 8 | D29: =IF(ISNUMBER($A29),MMNexus(D$3,D$4,D$2),"") -> 57 | E29: =IF(ISNUMBER($A29),MMNexus(E$3,E$4,E$2),"") -> 68 | F29: =IF(ISNUMBER($A29),MMNexus(F$3,F$4,F$2),"") -> 57 | G29: =IF(ISNUMBER($A29),MMNexus(G$3,G$4,G$2),"") -> 7 | I29: 20 | J29: 29 | K29: 31 | L29: 7 | M29: 8 | N29: 0
A30: 26 | B30: =IF(ISNUMBER($A30),MMNexus(B$3,B$4,B$2),"") -> 34 | C30: =IF(ISNUMBER($A30),MMNexus(C$3,C$4,C$2),"") -> 13 | D30: =IF(ISNUMBER($A30),MMNexus(D$3,D$4,D$2),"") -> 38 | E30: =IF(ISNUMBER($A30),MMNexus(E$3,E$4,E$2),"") -> 66 | F30: =IF(ISNUMBER($A30),MMNexus(F$3,F$4,F$2),"") -> 65 | G30: =IF(ISNUMBER($A30),MMNexus(G$3,G$4,G$2),"") -> 12 | I30: 21 | J30: 45 | K30: 30 | L30: 18 | M30: 6 | N30: 0
A31: 27 | B31: =IF(ISNUMBER($A31),MMNexus(B$3,B$4,B$2),"") -> 41 | C31: =IF(ISNUMBER($A31),MMNexus(C$3,C$4,C$2),"") -> 35 | D31: =IF(ISNUMBER($A31),MMNexus(D$3,D$4,D$2),"") -> 73 | E31: =IF(ISNUMBER($A31),MMNexus(E$3,E$4,E$2),"") -> 58 | F31: =IF(ISNUMBER($A31),MMNexus(F$3,F$4,F$2),"") -> 65 | G31: =IF(ISNUMBER($A31),MMNexus(G$3,G$4,G$2),"") -> 15 | I31: 22 | J31: 39 | K31: 35 | L31: 19 | M31: 2 | N31: 0
A32: 28 | B32: =IF(ISNUMBER($A32),MMNexus(B$3,B$4,B$2),"") -> 44 | C32: =IF(ISNUMBER($A32),MMNexus(C$3,C$4,C$2),"") -> 19 | D32: =IF(ISNUMBER($A32),MMNexus(D$3,D$4,D$2),"") -> 60 | E32: =IF(ISNUMBER($A32),MMNexus(E$3,E$4,E$2),"") -> 44 | F32: =IF(ISNUMBER($A32),MMNexus(F$3,F$4,F$2),"") -> 73 | G32: =IF(ISNUMBER($A32),MMNexus(G$3,G$4,G$2),"") -> 13 | I32: 23 | J32: 35 | K32: 34 | L32: 12 | M32: 8 | N32: 1
A33: 29 | B33: =IF(ISNUMBER($A33),MMNexus(B$3,B$4,B$2),"") -> 29 | C33: =IF(ISNUMBER($A33),MMNexus(C$3,C$4,C$2),"") -> 13 | D33: =IF(ISNUMBER($A33),MMNexus(D$3,D$4,D$2),"") -> 68 | E33: =IF(ISNUMBER($A33),MMNexus(E$3,E$4,E$2),"") -> 35 | F33: =IF(ISNUMBER($A33),MMNexus(F$3,F$4,F$2),"") -> 73 | G33: =IF(ISNUMBER($A33),MMNexus(G$3,G$4,G$2),"") -> 5 | I33: 24 | J33: 40 | K33: 44 | L33: 14 | M33: 9 | N33: 1
A34: 30 | B34: =IF(ISNUMBER($A34),MMNexus(B$3,B$4,B$2),"") -> 10 | C34: =IF(ISNUMBER($A34),MMNexus(C$3,C$4,C$2),"") -> 49 | D34: =IF(ISNUMBER($A34),MMNexus(D$3,D$4,D$2),"") -> 56 | E34: =IF(ISNUMBER($A34),MMNexus(E$3,E$4,E$2),"") -> 42 | F34: =IF(ISNUMBER($A34),MMNexus(F$3,F$4,F$2),"") -> 52 | G34: =IF(ISNUMBER($A34),MMNexus(G$3,G$4,G$2),"") -> 2 | I34: 25 | J34: 36 | K34: 25 | L34: 14 | M34: 5 | N34: 1
A35: 31 | B35: =IF(ISNUMBER($A35),MMNexus(B$3,B$4,B$2),"") -> 43 | C35: =IF(ISNUMBER($A35),MMNexus(C$3,C$4,C$2),"") -> 9 | D35: =IF(ISNUMBER($A35),MMNexus(D$3,D$4,D$2),"") -> 12 | E35: =IF(ISNUMBER($A35),MMNexus(E$3,E$4,E$2),"") -> 23 | F35: =IF(ISNUMBER($A35),MMNexus(F$3,F$4,F$2),"") -> 52 | G35: =IF(ISNUMBER($A35),MMNexus(G$3,G$4,G$2),"") -> 3 | I35: 26 | J35: 39 | K35: 27 | L35: 15 | M35: 8 | N35: 4
A36: 32 | B36: =IF(ISNUMBER($A36),MMNexus(B$3,B$4,B$2),"") -> 30 | C36: =IF(ISNUMBER($A36),MMNexus(C$3,C$4,C$2),"") -> 24 | D36: =IF(ISNUMBER($A36),MMNexus(D$3,D$4,D$2),"") -> 35 | E36: =IF(ISNUMBER($A36),MMNexus(E$3,E$4,E$2),"") -> 70 | F36: =IF(ISNUMBER($A36),MMNexus(F$3,F$4,F$2),"") -> 61 | G36: =IF(ISNUMBER($A36),MMNexus(G$3,G$4,G$2),"") -> 15 | I36: 27 | J36: 40 | K36: 38 | L36: 12 | M36: 4 | N36: 0
A37: 33 | B37: =IF(ISNUMBER($A37),MMNexus(B$3,B$4,B$2),"") -> 63 | C37: =IF(ISNUMBER($A37),MMNexus(C$3,C$4,C$2),"") -> 25 | D37: =IF(ISNUMBER($A37),MMNexus(D$3,D$4,D$2),"") -> 35 | E37: =IF(ISNUMBER($A37),MMNexus(E$3,E$4,E$2),"") -> 68 | F37: =IF(ISNUMBER($A37),MMNexus(F$3,F$4,F$2),"") -> 63 | G37: =IF(ISNUMBER($A37),MMNexus(G$3,G$4,G$2),"") -> 15 | I37: 28 | J37: 25 | K37: 26 | L37: 16 | M37: 5 | N37: 6
A38: 34 | B38: =IF(ISNUMBER($A38),MMNexus(B$3,B$4,B$2),"") -> 21 | C38: =IF(ISNUMBER($A38),MMNexus(C$3,C$4,C$2),"") -> 9 | D38: =IF(ISNUMBER($A38),MMNexus(D$3,D$4,D$2),"") -> 34 | E38: =IF(ISNUMBER($A38),MMNexus(E$3,E$4,E$2),"") -> 36 | F38: =IF(ISNUMBER($A38),MMNexus(F$3,F$4,F$2),"") -> 74 | G38: =IF(ISNUMBER($A38),MMNexus(G$3,G$4,G$2),"") -> 11 | I38: 29 | J38: 36 | K38: 29 | L38: 18 | M38: 8 | N38: 2
A39: 35 | B39: =IF(ISNUMBER($A39),MMNexus(B$3,B$4,B$2),"") -> 16 | C39: =IF(ISNUMBER($A39),MMNexus(C$3,C$4,C$2),"") -> 19 | D39: =IF(ISNUMBER($A39),MMNexus(D$3,D$4,D$2),"") -> 26 | E39: =IF(ISNUMBER($A39),MMNexus(E$3,E$4,E$2),"") -> 67 | F39: =IF(ISNUMBER($A39),MMNexus(F$3,F$4,F$2),"") -> 67 | G39: =IF(ISNUMBER($A39),MMNexus(G$3,G$4,G$2),"") -> 4 | I39: 30 | J39: 40 | K39: 24 | L39: 17 | M39: 10 | N39: 1
A40: 36 | B40: =IF(ISNUMBER($A40),MMNexus(B$3,B$4,B$2),"") -> 23 | C40: =IF(ISNUMBER($A40),MMNexus(C$3,C$4,C$2),"") -> 20 | D40: =IF(ISNUMBER($A40),MMNexus(D$3,D$4,D$2),"") -> 47 | E40: =IF(ISNUMBER($A40),MMNexus(E$3,E$4,E$2),"") -> 29 | F40: =IF(ISNUMBER($A40),MMNexus(F$3,F$4,F$2),"") -> 60 | G40: =IF(ISNUMBER($A40),MMNexus(G$3,G$4,G$2),"") -> 14 | I40: 31 | J40: 39 | K40: 33 | L40: 20 | M40: 8 | N40: 0
A41: 37 | B41: =IF(ISNUMBER($A41),MMNexus(B$3,B$4,B$2),"") -> 47 | C41: =IF(ISNUMBER($A41),MMNexus(C$3,C$4,C$2),"") -> 40 | D41: =IF(ISNUMBER($A41),MMNexus(D$3,D$4,D$2),"") -> 71 | E41: =IF(ISNUMBER($A41),MMNexus(E$3,E$4,E$2),"") -> 67 | F41: =IF(ISNUMBER($A41),MMNexus(F$3,F$4,F$2),"") -> 26 | G41: =IF(ISNUMBER($A41),MMNexus(G$3,G$4,G$2),"") -> 12 | I41: 32 | J41: 38 | K41: 15 | L41: 16 | M41: 6 | N41: 2
A42: 38 | B42: =IF(ISNUMBER($A42),MMNexus(B$3,B$4,B$2),"") -> 47 | C42: =IF(ISNUMBER($A42),MMNexus(C$3,C$4,C$2),"") -> 25 | D42: =IF(ISNUMBER($A42),MMNexus(D$3,D$4,D$2),"") -> 58 | E42: =IF(ISNUMBER($A42),MMNexus(E$3,E$4,E$2),"") -> 54 | F42: =IF(ISNUMBER($A42),MMNexus(F$3,F$4,F$2),"") -> 73 | G42: =IF(ISNUMBER($A42),MMNexus(G$3,G$4,G$2),"") -> 8 | I42: 33 | J42: 29 | K42: 32 | L42: 17 | M42: 11 | N42: 3
A43: 39 | B43: =IF(ISNUMBER($A43),MMNexus(B$3,B$4,B$2),"") -> 38 | C43: =IF(ISNUMBER($A43),MMNexus(C$3,C$4,C$2),"") -> 56 | D43: =IF(ISNUMBER($A43),MMNexus(D$3,D$4,D$2),"") -> 60 | E43: =IF(ISNUMBER($A43),MMNexus(E$3,E$4,E$2),"") -> 65 | F43: =IF(ISNUMBER($A43),MMNexus(F$3,F$4,F$2),"") -> 73 | G43: =IF(ISNUMBER($A43),MMNexus(G$3,G$4,G$2),"") -> 8 | I43: 34 | J43: 33 | K43: 31 | L43: 23 | M43: 12 | N43: 3
A44: 40 | B44: =IF(ISNUMBER($A44),MMNexus(B$3,B$4,B$2),"") -> 40 | C44: =IF(ISNUMBER($A44),MMNexus(C$3,C$4,C$2),"") -> 22 | D44: =IF(ISNUMBER($A44),MMNexus(D$3,D$4,D$2),"") -> 53 | E44: =IF(ISNUMBER($A44),MMNexus(E$3,E$4,E$2),"") -> 71 | F44: =IF(ISNUMBER($A44),MMNexus(F$3,F$4,F$2),"") -> 72 | G44: =IF(ISNUMBER($A44),MMNexus(G$3,G$4,G$2),"") -> 10 | I44: 35 | J44: 25 | K44: 26 | L44: 17 | M44: 16 | N44: 2
A45: 41 | B45: =IF(ISNUMBER($A45),MMNexus(B$3,B$4,B$2),"") -> 38 | C45: =IF(ISNUMBER($A45),MMNexus(C$3,C$4,C$2),"") -> 45 | D45: =IF(ISNUMBER($A45),MMNexus(D$3,D$4,D$2),"") -> 22 | E45: =IF(ISNUMBER($A45),MMNexus(E$3,E$4,E$2),"") -> 37 | F45: =IF(ISNUMBER($A45),MMNexus(F$3,F$4,F$2),"") -> 56 | G45: =IF(ISNUMBER($A45),MMNexus(G$3,G$4,G$2),"") -> 8 | I45: 36 | J45: 39 | K45: 20 | L45: 31 | M45: 20 | N45: 5
A46: 42 | B46: =IF(ISNUMBER($A46),MMNexus(B$3,B$4,B$2),"") -> 29 | C46: =IF(ISNUMBER($A46),MMNexus(C$3,C$4,C$2),"") -> 21 | D46: =IF(ISNUMBER($A46),MMNexus(D$3,D$4,D$2),"") -> 50 | E46: =IF(ISNUMBER($A46),MMNexus(E$3,E$4,E$2),"") -> 46 | F46: =IF(ISNUMBER($A46),MMNexus(F$3,F$4,F$2),"") -> 48 | G46: =IF(ISNUMBER($A46),MMNexus(G$3,G$4,G$2),"") -> 15 | I46: 37 | J46: 32 | K46: 25 | L46: 28 | M46: 17 | N46: 6
A47: 43 | B47: =IF(ISNUMBER($A47),MMNexus(B$3,B$4,B$2),"") -> 35 | C47: =IF(ISNUMBER($A47),MMNexus(C$3,C$4,C$2),"") -> 35 | D47: =IF(ISNUMBER($A47),MMNexus(D$3,D$4,D$2),"") -> 73 | E47: =IF(ISNUMBER($A47),MMNexus(E$3,E$4,E$2),"") -> 68 | F47: =IF(ISNUMBER($A47),MMNexus(F$3,F$4,F$2),"") -> 69 | G47: =IF(ISNUMBER($A47),MMNexus(G$3,G$4,G$2),"") -> 6 | I47: 38 | J47: 27 | K47: 25 | L47: 26 | M47: 15 | N47: 7
A48: 44 | B48: =IF(ISNUMBER($A48),MMNexus(B$3,B$4,B$2),"") -> 24 | C48: =IF(ISNUMBER($A48),MMNexus(C$3,C$4,C$2),"") -> 67 | D48: =IF(ISNUMBER($A48),MMNexus(D$3,D$4,D$2),"") -> 55 | E48: =IF(ISNUMBER($A48),MMNexus(E$3,E$4,E$2),"") -> 72 | F48: =IF(ISNUMBER($A48),MMNexus(F$3,F$4,F$2),"") -> 71 | G48: =IF(ISNUMBER($A48),MMNexus(G$3,G$4,G$2),"") -> 15 | I48: 39 | J48: 23 | K48: 15 | L48: 21 | M48: 14 | N48: 3
A49: 45 | B49: =IF(ISNUMBER($A49),MMNexus(B$3,B$4,B$2),"") -> 13 | C49: =IF(ISNUMBER($A49),MMNexus(C$3,C$4,C$2),"") -> 55 | D49: =IF(ISNUMBER($A49),MMNexus(D$3,D$4,D$2),"") -> 56 | E49: =IF(ISNUMBER($A49),MMNexus(E$3,E$4,E$2),"") -> 39 | F49: =IF(ISNUMBER($A49),MMNexus(F$3,F$4,F$2),"") -> 65 | G49: =IF(ISNUMBER($A49),MMNexus(G$3,G$4,G$2),"") -> 15 | I49: 40 | J49: 28 | K49: 22 | L49: 33 | M49: 19 | N49: 4
A50: 46 | B50: =IF(ISNUMBER($A50),MMNexus(B$3,B$4,B$2),"") -> 54 | C50: =IF(ISNUMBER($A50),MMNexus(C$3,C$4,C$2),"") -> 30 | D50: =IF(ISNUMBER($A50),MMNexus(D$3,D$4,D$2),"") -> 58 | E50: =IF(ISNUMBER($A50),MMNexus(E$3,E$4,E$2),"") -> 68 | F50: =IF(ISNUMBER($A50),MMNexus(F$3,F$4,F$2),"") -> 70 | G50: =IF(ISNUMBER($A50),MMNexus(G$3,G$4,G$2),"") -> 15 | I50: 41 | J50: 24 | K50: 16 | L50: 27 | M50: 15 | N50: 5
A51: 47 | B51: =IF(ISNUMBER($A51),MMNexus(B$3,B$4,B$2),"") -> 14 | C51: =IF(ISNUMBER($A51),MMNexus(C$3,C$4,C$2),"") -> 7 | D51: =IF(ISNUMBER($A51),MMNexus(D$3,D$4,D$2),"") -> 51 | E51: =IF(ISNUMBER($A51),MMNexus(E$3,E$4,E$2),"") -> 67 | F51: =IF(ISNUMBER($A51),MMNexus(F$3,F$4,F$2),"") -> 72 | G51: =IF(ISNUMBER($A51),MMNexus(G$3,G$4,G$2),"") -> 12 | I51: 42 | J51: 23 | K51: 24 | L51: 31 | M51: 30 | N51: 11
A52: 48 | B52: =IF(ISNUMBER($A52),MMNexus(B$3,B$4,B$2),"") -> 21 | C52: =IF(ISNUMBER($A52),MMNexus(C$3,C$4,C$2),"") -> 54 | D52: =IF(ISNUMBER($A52),MMNexus(D$3,D$4,D$2),"") -> 39 | E52: =IF(ISNUMBER($A52),MMNexus(E$3,E$4,E$2),"") -> 52 | F52: =IF(ISNUMBER($A52),MMNexus(F$3,F$4,F$2),"") -> 69 | G52: =IF(ISNUMBER($A52),MMNexus(G$3,G$4,G$2),"") -> 8 | I52: 43 | J52: 28 | K52: 15 | L52: 35 | M52: 24 | N52: 15
A53: 49 | B53: =IF(ISNUMBER($A53),MMNexus(B$3,B$4,B$2),"") -> 16 | C53: =IF(ISNUMBER($A53),MMNexus(C$3,C$4,C$2),"") -> 38 | D53: =IF(ISNUMBER($A53),MMNexus(D$3,D$4,D$2),"") -> 40 | E53: =IF(ISNUMBER($A53),MMNexus(E$3,E$4,E$2),"") -> 68 | F53: =IF(ISNUMBER($A53),MMNexus(F$3,F$4,F$2),"") -> 65 | G53: =IF(ISNUMBER($A53),MMNexus(G$3,G$4,G$2),"") -> 15 | I53: 44 | J53: 15 | K53: 19 | L53: 26 | M53: 23 | N53: 10
A54: 50 | B54: =IF(ISNUMBER($A54),MMNexus(B$3,B$4,B$2),"") -> 6 | C54: =IF(ISNUMBER($A54),MMNexus(C$3,C$4,C$2),"") -> 23 | D54: =IF(ISNUMBER($A54),MMNexus(D$3,D$4,D$2),"") -> 23 | E54: =IF(ISNUMBER($A54),MMNexus(E$3,E$4,E$2),"") -> 54 | F54: =IF(ISNUMBER($A54),MMNexus(F$3,F$4,F$2),"") -> 67 | G54: =IF(ISNUMBER($A54),MMNexus(G$3,G$4,G$2),"") -> 11 | I54: 45 | J54: 20 | K54: 17 | L54: 30 | M54: 20 | N54: 15
A55: 51 | B55: =IF(ISNUMBER($A55),MMNexus(B$3,B$4,B$2),"") -> 7 | C55: =IF(ISNUMBER($A55),MMNexus(C$3,C$4,C$2),"") -> 44 | D55: =IF(ISNUMBER($A55),MMNexus(D$3,D$4,D$2),"") -> 48 | E55: =IF(ISNUMBER($A55),MMNexus(E$3,E$4,E$2),"") -> 24 | F55: =IF(ISNUMBER($A55),MMNexus(F$3,F$4,F$2),"") -> 71 | G55: =IF(ISNUMBER($A55),MMNexus(G$3,G$4,G$2),"") -> 14 | I55: 46 | J55: 16 | K55: 23 | L55: 31 | M55: 24 | N55: 11
A56: 52 | B56: =IF(ISNUMBER($A56),MMNexus(B$3,B$4,B$2),"") -> 23 | C56: =IF(ISNUMBER($A56),MMNexus(C$3,C$4,C$2),"") -> 7 | D56: =IF(ISNUMBER($A56),MMNexus(D$3,D$4,D$2),"") -> 48 | E56: =IF(ISNUMBER($A56),MMNexus(E$3,E$4,E$2),"") -> 60 | F56: =IF(ISNUMBER($A56),MMNexus(F$3,F$4,F$2),"") -> 67 | G56: =IF(ISNUMBER($A56),MMNexus(G$3,G$4,G$2),"") -> 13 | I56: 47 | J56: 19 | K56: 17 | L56: 30 | M56: 22 | N56: 15
A57: 53 | B57: =IF(ISNUMBER($A57),MMNexus(B$3,B$4,B$2),"") -> 58 | C57: =IF(ISNUMBER($A57),MMNexus(C$3,C$4,C$2),"") -> 16 | D57: =IF(ISNUMBER($A57),MMNexus(D$3,D$4,D$2),"") -> 63 | E57: =IF(ISNUMBER($A57),MMNexus(E$3,E$4,E$2),"") -> 73 | F57: =IF(ISNUMBER($A57),MMNexus(F$3,F$4,F$2),"") -> 67 | G57: =IF(ISNUMBER($A57),MMNexus(G$3,G$4,G$2),"") -> 1 | I57: 48 | J57: =FrequencyCount(B$5:B$1504,$I57) -> 15 | K57: =FrequencyCount(C$5:C$1504,$I57) -> 20 | L57: =FrequencyCount(D$5:D$1504,$I57) -> 34 | M57: =FrequencyCount(E$5:E$1504,$I57) -> 33 | N57: =FrequencyCount(F$5:F$1504,$I57) -> 9
A58: 54 | B58: =IF(ISNUMBER($A58),MMNexus(B$3,B$4,B$2),"") -> 5 | C58: =IF(ISNUMBER($A58),MMNexus(C$3,C$4,C$2),"") -> 47 | D58: =IF(ISNUMBER($A58),MMNexus(D$3,D$4,D$2),"") -> 70 | E58: =IF(ISNUMBER($A58),MMNexus(E$3,E$4,E$2),"") -> 36 | F58: =IF(ISNUMBER($A58),MMNexus(F$3,F$4,F$2),"") -> 61 | G58: =IF(ISNUMBER($A58),MMNexus(G$3,G$4,G$2),"") -> 14 | I58: 49 | J58: 16 | K58: 19 | L58: 29 | M58: 24 | N58: 15
A59: 55 | B59: =IF(ISNUMBER($A59),MMNexus(B$3,B$4,B$2),"") -> 70 | C59: =IF(ISNUMBER($A59),MMNexus(C$3,C$4,C$2),"") -> 27 | D59: =IF(ISNUMBER($A59),MMNexus(D$3,D$4,D$2),"") -> 70 | E59: =IF(ISNUMBER($A59),MMNexus(E$3,E$4,E$2),"") -> 72 | F59: =IF(ISNUMBER($A59),MMNexus(F$3,F$4,F$2),"") -> 75 | G59: =IF(ISNUMBER($A59),MMNexus(G$3,G$4,G$2),"") -> 12 | I59: 50 | J59: 15 | K59: 12 | L59: 42 | M59: 35 | N59: 22
A60: 56 | B60: =IF(ISNUMBER($A60),MMNexus(B$3,B$4,B$2),"") -> 17 | C60: =IF(ISNUMBER($A60),MMNexus(C$3,C$4,C$2),"") -> 23 | D60: =IF(ISNUMBER($A60),MMNexus(D$3,D$4,D$2),"") -> 55 | E60: =IF(ISNUMBER($A60),MMNexus(E$3,E$4,E$2),"") -> 42 | F60: =IF(ISNUMBER($A60),MMNexus(F$3,F$4,F$2),"") -> 38 | G60: =IF(ISNUMBER($A60),MMNexus(G$3,G$4,G$2),"") -> 10 | I60: 51 | J60: 16 | K60: 14 | L60: 38 | M60: 26 | N60: 20
A61: 57 | B61: =IF(ISNUMBER($A61),MMNexus(B$3,B$4,B$2),"") -> 24 | C61: =IF(ISNUMBER($A61),MMNexus(C$3,C$4,C$2),"") -> 45 | D61: =IF(ISNUMBER($A61),MMNexus(D$3,D$4,D$2),"") -> 52 | E61: =IF(ISNUMBER($A61),MMNexus(E$3,E$4,E$2),"") -> 63 | F61: =IF(ISNUMBER($A61),MMNexus(F$3,F$4,F$2),"") -> 51 | G61: =IF(ISNUMBER($A61),MMNexus(G$3,G$4,G$2),"") -> 5 | I61: 52 | J61: 11 | K61: 14 | L61: 31 | M61: 34 | N61: 24
A62: 58 | B62: =IF(ISNUMBER($A62),MMNexus(B$3,B$4,B$2),"") -> 61 | C62: =IF(ISNUMBER($A62),MMNexus(C$3,C$4,C$2),"") -> 8 | D62: =IF(ISNUMBER($A62),MMNexus(D$3,D$4,D$2),"") -> 41 | E62: =IF(ISNUMBER($A62),MMNexus(E$3,E$4,E$2),"") -> 40 | F62: =IF(ISNUMBER($A62),MMNexus(F$3,F$4,F$2),"") -> 47 | G62: =IF(ISNUMBER($A62),MMNexus(G$3,G$4,G$2),"") -> 6 | I62: 53 | J62: 11 | K62: 8 | L62: 37 | M62: 31 | N62: 20
A63: 59 | B63: =IF(ISNUMBER($A63),MMNexus(B$3,B$4,B$2),"") -> 25 | C63: =IF(ISNUMBER($A63),MMNexus(C$3,C$4,C$2),"") -> 17 | D63: =IF(ISNUMBER($A63),MMNexus(D$3,D$4,D$2),"") -> 20 | E63: =IF(ISNUMBER($A63),MMNexus(E$3,E$4,E$2),"") -> 60 | F63: =IF(ISNUMBER($A63),MMNexus(F$3,F$4,F$2),"") -> 69 | G63: =IF(ISNUMBER($A63),MMNexus(G$3,G$4,G$2),"") -> 14 | I63: 54 | J63: 12 | K63: 14 | L63: 30 | M63: 28 | N63: 21
A64: 60 | B64: =IF(ISNUMBER($A64),MMNexus(B$3,B$4,B$2),"") -> 29 | C64: =IF(ISNUMBER($A64),MMNexus(C$3,C$4,C$2),"") -> 9 | D64: =IF(ISNUMBER($A64),MMNexus(D$3,D$4,D$2),"") -> 62 | E64: =IF(ISNUMBER($A64),MMNexus(E$3,E$4,E$2),"") -> 61 | F64: =IF(ISNUMBER($A64),MMNexus(F$3,F$4,F$2),"") -> 62 | G64: =IF(ISNUMBER($A64),MMNexus(G$3,G$4,G$2),"") -> 9 | I64: 55 | J64: 8 | K64: 6 | L64: 33 | M64: 31 | N64: 26
A65: 61 | B65: =IF(ISNUMBER($A65),MMNexus(B$3,B$4,B$2),"") -> 24 | C65: =IF(ISNUMBER($A65),MMNexus(C$3,C$4,C$2),"") -> 20 | D65: =IF(ISNUMBER($A65),MMNexus(D$3,D$4,D$2),"") -> 27 | E65: =IF(ISNUMBER($A65),MMNexus(E$3,E$4,E$2),"") -> 68 | F65: =IF(ISNUMBER($A65),MMNexus(F$3,F$4,F$2),"") -> 70 | G65: =IF(ISNUMBER($A65),MMNexus(G$3,G$4,G$2),"") -> 15 | I65: 56 | J65: 13 | K65: 7 | L65: 33 | M65: 39 | N65: 27
A66: 62 | B66: =IF(ISNUMBER($A66),MMNexus(B$3,B$4,B$2),"") -> 24 | C66: =IF(ISNUMBER($A66),MMNexus(C$3,C$4,C$2),"") -> 35 | D66: =IF(ISNUMBER($A66),MMNexus(D$3,D$4,D$2),"") -> 51 | E66: =IF(ISNUMBER($A66),MMNexus(E$3,E$4,E$2),"") -> 59 | F66: =IF(ISNUMBER($A66),MMNexus(F$3,F$4,F$2),"") -> 70 | G66: =IF(ISNUMBER($A66),MMNexus(G$3,G$4,G$2),"") -> 2 | I66: 57 | J66: 7 | K66: 11 | L66: 39 | M66: 32 | N66: 30
A67: 63 | B67: =IF(ISNUMBER($A67),MMNexus(B$3,B$4,B$2),"") -> 52 | C67: =IF(ISNUMBER($A67),MMNexus(C$3,C$4,C$2),"") -> 24 | D67: =IF(ISNUMBER($A67),MMNexus(D$3,D$4,D$2),"") -> 71 | E67: =IF(ISNUMBER($A67),MMNexus(E$3,E$4,E$2),"") -> 71 | F67: =IF(ISNUMBER($A67),MMNexus(F$3,F$4,F$2),"") -> 52 | G67: =IF(ISNUMBER($A67),MMNexus(G$3,G$4,G$2),"") -> 3 | I67: 58 | J67: 8 | K67: 10 | L67: 38 | M67: 44 | N67: 38
A68: 64 | B68: =IF(ISNUMBER($A68),MMNexus(B$3,B$4,B$2),"") -> 34 | C68: =IF(ISNUMBER($A68),MMNexus(C$3,C$4,C$2),"") -> 35 | D68: =IF(ISNUMBER($A68),MMNexus(D$3,D$4,D$2),"") -> 57 | E68: =IF(ISNUMBER($A68),MMNexus(E$3,E$4,E$2),"") -> 35 | F68: =IF(ISNUMBER($A68),MMNexus(F$3,F$4,F$2),"") -> 74 | G68: =IF(ISNUMBER($A68),MMNexus(G$3,G$4,G$2),"") -> 15 | I68: 59 | J68: 10 | K68: 10 | L68: 36 | M68: 38 | N68: 25
A69: 65 | B69: =IF(ISNUMBER($A69),MMNexus(B$3,B$4,B$2),"") -> 19 | C69: =IF(ISNUMBER($A69),MMNexus(C$3,C$4,C$2),"") -> 17 | D69: =IF(ISNUMBER($A69),MMNexus(D$3,D$4,D$2),"") -> 18 | E69: =IF(ISNUMBER($A69),MMNexus(E$3,E$4,E$2),"") -> 73 | F69: =IF(ISNUMBER($A69),MMNexus(F$3,F$4,F$2),"") -> 61 | G69: =IF(ISNUMBER($A69),MMNexus(G$3,G$4,G$2),"") -> 12 | I69: 60 | J69: 9 | K69: 12 | L69: 34 | M69: 49 | N69: 41
A70: 66 | B70: =IF(ISNUMBER($A70),MMNexus(B$3,B$4,B$2),"") -> 17 | C70: =IF(ISNUMBER($A70),MMNexus(C$3,C$4,C$2),"") -> 67 | D70: =IF(ISNUMBER($A70),MMNexus(D$3,D$4,D$2),"") -> 51 | E70: =IF(ISNUMBER($A70),MMNexus(E$3,E$4,E$2),"") -> 72 | F70: =IF(ISNUMBER($A70),MMNexus(F$3,F$4,F$2),"") -> 73 | G70: =IF(ISNUMBER($A70),MMNexus(G$3,G$4,G$2),"") -> 13 | I70: 61 | J70: 11 | K70: 5 | L70: 29 | M70: 40 | N70: 50
A71: =IF(ISNUMBER(A70),IF(A70+1<=M$4,A70+1,""),"") -> 67 | B71: =IF(ISNUMBER($A71),MMNexus(B$3,B$4,B$2),"") -> 24 | C71: =IF(ISNUMBER($A71),MMNexus(C$3,C$4,C$2),"") -> 57 | D71: =IF(ISNUMBER($A71),MMNexus(D$3,D$4,D$2),"") -> 62 | E71: =IF(ISNUMBER($A71),MMNexus(E$3,E$4,E$2),"") -> 53 | F71: =IF(ISNUMBER($A71),MMNexus(F$3,F$4,F$2),"") -> 75 | G71: =IF(ISNUMBER($A71),MMNexus(G$3,G$4,G$2),"") -> 5 | I71: 62 | J71: 7 | K71: 7 | L71: 30 | M71: 40 | N71: 48
A72: 68 | B72: =IF(ISNUMBER($A72),MMNexus(B$3,B$4,B$2),"") -> 13 | C72: =IF(ISNUMBER($A72),MMNexus(C$3,C$4,C$2),"") -> 20 | D72: =IF(ISNUMBER($A72),MMNexus(D$3,D$4,D$2),"") -> 42 | E72: =IF(ISNUMBER($A72),MMNexus(E$3,E$4,E$2),"") -> 62 | F72: =IF(ISNUMBER($A72),MMNexus(F$3,F$4,F$2),"") -> 64 | G72: =IF(ISNUMBER($A72),MMNexus(G$3,G$4,G$2),"") -> 2 | I72: 63 | J72: 6 | K72: 9 | L72: 28 | M72: 57 | N72: 44
A73: 69 | B73: =IF(ISNUMBER($A73),MMNexus(B$3,B$4,B$2),"") -> 9 | C73: =IF(ISNUMBER($A73),MMNexus(C$3,C$4,C$2),"") -> 32 | D73: =IF(ISNUMBER($A73),MMNexus(D$3,D$4,D$2),"") -> 46 | E73: =IF(ISNUMBER($A73),MMNexus(E$3,E$4,E$2),"") -> 42 | F73: =IF(ISNUMBER($A73),MMNexus(F$3,F$4,F$2),"") -> 71 | G73: =IF(ISNUMBER($A73),MMNexus(G$3,G$4,G$2),"") -> 3 | I73: 64 | J73: 11 | K73: 8 | L73: 22 | M73: 50 | N73: 52
A74: 70 | B74: =IF(ISNUMBER($A74),MMNexus(B$3,B$4,B$2),"") -> 29 | C74: =IF(ISNUMBER($A74),MMNexus(C$3,C$4,C$2),"") -> 24 | D74: =IF(ISNUMBER($A74),MMNexus(D$3,D$4,D$2),"") -> 73 | E74: =IF(ISNUMBER($A74),MMNexus(E$3,E$4,E$2),"") -> 39 | F74: =IF(ISNUMBER($A74),MMNexus(F$3,F$4,F$2),"") -> 73 | G74: =IF(ISNUMBER($A74),MMNexus(G$3,G$4,G$2),"") -> 14 | I74: 65 | J74: 2 | K74: 4 | L74: 33 | M74: 37 | N74: 46
A75: 71 | B75: =IF(ISNUMBER($A75),MMNexus(B$3,B$4,B$2),"") -> 7 | C75: =IF(ISNUMBER($A75),MMNexus(C$3,C$4,C$2),"") -> 41 | D75: =IF(ISNUMBER($A75),MMNexus(D$3,D$4,D$2),"") -> 43 | E75: =IF(ISNUMBER($A75),MMNexus(E$3,E$4,E$2),"") -> 68 | F75: =IF(ISNUMBER($A75),MMNexus(F$3,F$4,F$2),"") -> 73 | G75: =IF(ISNUMBER($A75),MMNexus(G$3,G$4,G$2),"") -> 14 | I75: 66 | J75: 5 | K75: 8 | L75: 27 | M75: 45 | N75: 62
A76: 72 | B76: =IF(ISNUMBER($A76),MMNexus(B$3,B$4,B$2),"") -> 24 | C76: =IF(ISNUMBER($A76),MMNexus(C$3,C$4,C$2),"") -> 2 | D76: =IF(ISNUMBER($A76),MMNexus(D$3,D$4,D$2),"") -> 68 | E76: =IF(ISNUMBER($A76),MMNexus(E$3,E$4,E$2),"") -> 71 | F76: =IF(ISNUMBER($A76),MMNexus(F$3,F$4,F$2),"") -> 55 | G76: =IF(ISNUMBER($A76),MMNexus(G$3,G$4,G$2),"") -> 10 | I76: 67 | J76: 6 | K76: 9 | L76: 32 | M76: 59 | N76: 61
A77: 73 | B77: =IF(ISNUMBER($A77),MMNexus(B$3,B$4,B$2),"") -> 31 | C77: =IF(ISNUMBER($A77),MMNexus(C$3,C$4,C$2),"") -> 24 | D77: =IF(ISNUMBER($A77),MMNexus(D$3,D$4,D$2),"") -> 33 | E77: =IF(ISNUMBER($A77),MMNexus(E$3,E$4,E$2),"") -> 64 | F77: =IF(ISNUMBER($A77),MMNexus(F$3,F$4,F$2),"") -> 37 | G77: =IF(ISNUMBER($A77),MMNexus(G$3,G$4,G$2),"") -> 13 | I77: 68 | J77: 6 | K77: 6 | L77: 31 | M77: 53 | N77: 67
A78: 74 | B78: =IF(ISNUMBER($A78),MMNexus(B$3,B$4,B$2),"") -> 28 | C78: =IF(ISNUMBER($A78),MMNexus(C$3,C$4,C$2),"") -> 3 | D78: =IF(ISNUMBER($A78),MMNexus(D$3,D$4,D$2),"") -> 50 | E78: =IF(ISNUMBER($A78),MMNexus(E$3,E$4,E$2),"") -> 58 | F78: =IF(ISNUMBER($A78),MMNexus(F$3,F$4,F$2),"") -> 41 | G78: =IF(ISNUMBER($A78),MMNexus(G$3,G$4,G$2),"") -> 8 | I78: 69 | J78: 2 | K78: 4 | L78: 15 | M78: 44 | N78: 79
A79: 75 | B79: =IF(ISNUMBER($A79),MMNexus(B$3,B$4,B$2),"") -> 26 | C79: =IF(ISNUMBER($A79),MMNexus(C$3,C$4,C$2),"") -> 21 | D79: =IF(ISNUMBER($A79),MMNexus(D$3,D$4,D$2),"") -> 57 | E79: =IF(ISNUMBER($A79),MMNexus(E$3,E$4,E$2),"") -> 54 | F79: =IF(ISNUMBER($A79),MMNexus(F$3,F$4,F$2),"") -> 65 | G79: =IF(ISNUMBER($A79),MMNexus(G$3,G$4,G$2),"") -> 9 | I79: 70 | J79: 7 | K79: 1 | L79: 22 | M79: 55 | N79: 76
A80: 76 | B80: =IF(ISNUMBER($A80),MMNexus(B$3,B$4,B$2),"") -> 23 | C80: =IF(ISNUMBER($A80),MMNexus(C$3,C$4,C$2),"") -> 19 | D80: =IF(ISNUMBER($A80),MMNexus(D$3,D$4,D$2),"") -> 25 | E80: =IF(ISNUMBER($A80),MMNexus(E$3,E$4,E$2),"") -> 55 | F80: =IF(ISNUMBER($A80),MMNexus(F$3,F$4,F$2),"") -> 48 | G80: =IF(ISNUMBER($A80),MMNexus(G$3,G$4,G$2),"") -> 5 | I80: 71 | J80: 4 | K80: 4 | L80: 18 | M80: 34 | N80: 80
A81: 77 | B81: =IF(ISNUMBER($A81),MMNexus(B$3,B$4,B$2),"") -> 16 | C81: =IF(ISNUMBER($A81),MMNexus(C$3,C$4,C$2),"") -> 47 | D81: =IF(ISNUMBER($A81),MMNexus(D$3,D$4,D$2),"") -> 57 | E81: =IF(ISNUMBER($A81),MMNexus(E$3,E$4,E$2),"") -> 63 | F81: =IF(ISNUMBER($A81),MMNexus(F$3,F$4,F$2),"") -> 69 | G81: =IF(ISNUMBER($A81),MMNexus(G$3,G$4,G$2),"") -> 15 | I81: 72 | J81: 0 | K81: 1 | L81: 19 | M81: 52 | N81: 75
A82: 78 | B82: =IF(ISNUMBER($A82),MMNexus(B$3,B$4,B$2),"") -> 32 | C82: =IF(ISNUMBER($A82),MMNexus(C$3,C$4,C$2),"") -> 18 | D82: =IF(ISNUMBER($A82),MMNexus(D$3,D$4,D$2),"") -> 73 | E82: =IF(ISNUMBER($A82),MMNexus(E$3,E$4,E$2),"") -> 26 | F82: =IF(ISNUMBER($A82),MMNexus(F$3,F$4,F$2),"") -> 62 | G82: =IF(ISNUMBER($A82),MMNexus(G$3,G$4,G$2),"") -> 10 | I82: 73 | J82: 0 | K82: 0 | L82: 30 | M82: 34 | N82: 97
A83: 79 | B83: =IF(ISNUMBER($A83),MMNexus(B$3,B$4,B$2),"") -> 11 | C83: =IF(ISNUMBER($A83),MMNexus(C$3,C$4,C$2),"") -> 32 | D83: =IF(ISNUMBER($A83),MMNexus(D$3,D$4,D$2),"") -> 36 | E83: =IF(ISNUMBER($A83),MMNexus(E$3,E$4,E$2),"") -> 62 | F83: =IF(ISNUMBER($A83),MMNexus(F$3,F$4,F$2),"") -> 45 | G83: =IF(ISNUMBER($A83),MMNexus(G$3,G$4,G$2),"") -> 4 | I83: 74 | J83: 0 | K83: 0 | L83: 0 | M83: 47 | N83: 95
A84: 80 | B84: =IF(ISNUMBER($A84),MMNexus(B$3,B$4,B$2),"") -> 42 | C84: =IF(ISNUMBER($A84),MMNexus(C$3,C$4,C$2),"") -> 65 | D84: =IF(ISNUMBER($A84),MMNexus(D$3,D$4,D$2),"") -> 56 | E84: =IF(ISNUMBER($A84),MMNexus(E$3,E$4,E$2),"") -> 49 | F84: =IF(ISNUMBER($A84),MMNexus(F$3,F$4,F$2),"") -> 73 | G84: =IF(ISNUMBER($A84),MMNexus(G$3,G$4,G$2),"") -> 12 | I84: 75 | J84: 0 | K84: 0 | L84: 0 | M84: 0 | N84: 111
A85: 81 | B85: =IF(ISNUMBER($A85),MMNexus(B$3,B$4,B$2),"") -> 13 | C85: =IF(ISNUMBER($A85),MMNexus(C$3,C$4,C$2),"") -> 34 | D85: =IF(ISNUMBER($A85),MMNexus(D$3,D$4,D$2),"") -> 65 | E85: =IF(ISNUMBER($A85),MMNexus(E$3,E$4,E$2),"") -> 57 | F85: =IF(ISNUMBER($A85),MMNexus(F$3,F$4,F$2),"") -> 65 | G85: =IF(ISNUMBER($A85),MMNexus(G$3,G$4,G$2),"") -> 6
A86: 82 | B86: =IF(ISNUMBER($A86),MMNexus(B$3,B$4,B$2),"") -> 36 | C86: =IF(ISNUMBER($A86),MMNexus(C$3,C$4,C$2),"") -> 12 | D86: =IF(ISNUMBER($A86),MMNexus(D$3,D$4,D$2),"") -> 53 | E86: =IF(ISNUMBER($A86),MMNexus(E$3,E$4,E$2),"") -> 27 | F86: =IF(ISNUMBER($A86),MMNexus(F$3,F$4,F$2),"") -> 62 | G86: =IF(ISNUMBER($A86),MMNexus(G$3,G$4,G$2),"") -> 12
A87: 83 | B87: =IF(ISNUMBER($A87),MMNexus(B$3,B$4,B$2),"") -> 62 | C87: =IF(ISNUMBER($A87),MMNexus(C$3,C$4,C$2),"") -> 6 | D87: =IF(ISNUMBER($A87),MMNexus(D$3,D$4,D$2),"") -> 53 | E87: =IF(ISNUMBER($A87),MMNexus(E$3,E$4,E$2),"") -> 38 | F87: =IF(ISNUMBER($A87),MMNexus(F$3,F$4,F$2),"") -> 42 | G87: =IF(ISNUMBER($A87),MMNexus(G$3,G$4,G$2),"") -> 10
A88: 84 | B88: =IF(ISNUMBER($A88),MMNexus(B$3,B$4,B$2),"") -> 27 | C88: =IF(ISNUMBER($A88),MMNexus(C$3,C$4,C$2),"") -> 21 | D88: =IF(ISNUMBER($A88),MMNexus(D$3,D$4,D$2),"") -> 54 | E88: =IF(ISNUMBER($A88),MMNexus(E$3,E$4,E$2),"") -> 59 | F88: =IF(ISNUMBER($A88),MMNexus(F$3,F$4,F$2),"") -> 69 | G88: =IF(ISNUMBER($A88),MMNexus(G$3,G$4,G$2),"") -> 12
A89: 85 | B89: =IF(ISNUMBER($A89),MMNexus(B$3,B$4,B$2),"") -> 22 | C89: =IF(ISNUMBER($A89),MMNexus(C$3,C$4,C$2),"") -> 20 | D89: =IF(ISNUMBER($A89),MMNexus(D$3,D$4,D$2),"") -> 45 | E89: =IF(ISNUMBER($A89),MMNexus(E$3,E$4,E$2),"") -> 48 | F89: =IF(ISNUMBER($A89),MMNexus(F$3,F$4,F$2),"") -> 46 | G89: =IF(ISNUMBER($A89),MMNexus(G$3,G$4,G$2),"") -> 15
A90: 86 | B90: =IF(ISNUMBER($A90),MMNexus(B$3,B$4,B$2),"") -> 4 | C90: =IF(ISNUMBER($A90),MMNexus(C$3,C$4,C$2),"") -> 58 | D90: =IF(ISNUMBER($A90),MMNexus(D$3,D$4,D$2),"") -> 6 | E90: =IF(ISNUMBER($A90),MMNexus(E$3,E$4,E$2),"") -> 64 | F90: =IF(ISNUMBER($A90),MMNexus(F$3,F$4,F$2),"") -> 52 | G90: =IF(ISNUMBER($A90),MMNexus(G$3,G$4,G$2),"") -> 2
A91: 87 | B91: =IF(ISNUMBER($A91),MMNexus(B$3,B$4,B$2),"") -> 27 | C91: =IF(ISNUMBER($A91),MMNexus(C$3,C$4,C$2),"") -> 33 | D91: =IF(ISNUMBER($A91),MMNexus(D$3,D$4,D$2),"") -> 23 | E91: =IF(ISNUMBER($A91),MMNexus(E$3,E$4,E$2),"") -> 60 | F91: =IF(ISNUMBER($A91),MMNexus(F$3,F$4,F$2),"") -> 49 | G91: =IF(ISNUMBER($A91),MMNexus(G$3,G$4,G$2),"") -> 10
A92: 88 | B92: =IF(ISNUMBER($A92),MMNexus(B$3,B$4,B$2),"") -> 6 | C92: =IF(ISNUMBER($A92),MMNexus(C$3,C$4,C$2),"") -> 23 | D92: =IF(ISNUMBER($A92),MMNexus(D$3,D$4,D$2),"") -> 49 | E92: =IF(ISNUMBER($A92),MMNexus(E$3,E$4,E$2),"") -> 33 | F92: =IF(ISNUMBER($A92),MMNexus(F$3,F$4,F$2),"") -> 75 | G92: =IF(ISNUMBER($A92),MMNexus(G$3,G$4,G$2),"") -> 8
A93: 89 | B93: =IF(ISNUMBER($A93),MMNexus(B$3,B$4,B$2),"") -> 45 | C93: =IF(ISNUMBER($A93),MMNexus(C$3,C$4,C$2),"") -> 64 | D93: =IF(ISNUMBER($A93),MMNexus(D$3,D$4,D$2),"") -> 64 | E93: =IF(ISNUMBER($A93),MMNexus(E$3,E$4,E$2),"") -> 64 | F93: =IF(ISNUMBER($A93),MMNexus(F$3,F$4,F$2),"") -> 71 | G93: =IF(ISNUMBER($A93),MMNexus(G$3,G$4,G$2),"") -> 15
A94: 90 | B94: =IF(ISNUMBER($A94),MMNexus(B$3,B$4,B$2),"") -> 47 | C94: =IF(ISNUMBER($A94),MMNexus(C$3,C$4,C$2),"") -> 24 | D94: =IF(ISNUMBER($A94),MMNexus(D$3,D$4,D$2),"") -> 45 | E94: =IF(ISNUMBER($A94),MMNexus(E$3,E$4,E$2),"") -> 33 | F94: =IF(ISNUMBER($A94),MMNexus(F$3,F$4,F$2),"") -> 68 | G94: =IF(ISNUMBER($A94),MMNexus(G$3,G$4,G$2),"") -> 2
A95: 91 | B95: =IF(ISNUMBER($A95),MMNexus(B$3,B$4,B$2),"") -> 32 | C95: =IF(ISNUMBER($A95),MMNexus(C$3,C$4,C$2),"") -> 3 | D95: =IF(ISNUMBER($A95),MMNexus(D$3,D$4,D$2),"") -> 41 | E95: =IF(ISNUMBER($A95),MMNexus(E$3,E$4,E$2),"") -> 44 | F95: =IF(ISNUMBER($A95),MMNexus(F$3,F$4,F$2),"") -> 66 | G95: =IF(ISNUMBER($A95),MMNexus(G$3,G$4,G$2),"") -> 11
A96: 92 | B96: =IF(ISNUMBER($A96),MMNexus(B$3,B$4,B$2),"") -> 37 | C96: =IF(ISNUMBER($A96),MMNexus(C$3,C$4,C$2),"") -> 27 | D96: =IF(ISNUMBER($A96),MMNexus(D$3,D$4,D$2),"") -> 41 | E96: =IF(ISNUMBER($A96),MMNexus(E$3,E$4,E$2),"") -> 70 | F96: =IF(ISNUMBER($A96),MMNexus(F$3,F$4,F$2),"") -> 59 | G96: =IF(ISNUMBER($A96),MMNexus(G$3,G$4,G$2),"") -> 3
A97: 93 | B97: =IF(ISNUMBER($A97),MMNexus(B$3,B$4,B$2),"") -> 32 | C97: =IF(ISNUMBER($A97),MMNexus(C$3,C$4,C$2),"") -> 10 | D97: =IF(ISNUMBER($A97),MMNexus(D$3,D$4,D$2),"") -> 61 | E97: =IF(ISNUMBER($A97),MMNexus(E$3,E$4,E$2),"") -> 50 | F97: =IF(ISNUMBER($A97),MMNexus(F$3,F$4,F$2),"") -> 34 | G97: =IF(ISNUMBER($A97),MMNexus(G$3,G$4,G$2),"") -> 5
A98: 94 | B98: =IF(ISNUMBER($A98),MMNexus(B$3,B$4,B$2),"") -> 61 | C98: =IF(ISNUMBER($A98),MMNexus(C$3,C$4,C$2),"") -> 36 | D98: =IF(ISNUMBER($A98),MMNexus(D$3,D$4,D$2),"") -> 43 | E98: =IF(ISNUMBER($A98),MMNexus(E$3,E$4,E$2),"") -> 60 | F98: =IF(ISNUMBER($A98),MMNexus(F$3,F$4,F$2),"") -> 61 | G98: =IF(ISNUMBER($A98),MMNexus(G$3,G$4,G$2),"") -> 7
A99: 95 | B99: =IF(ISNUMBER($A99),MMNexus(B$3,B$4,B$2),"") -> 44 | C99: =IF(ISNUMBER($A99),MMNexus(C$3,C$4,C$2),"") -> 4 | D99: =IF(ISNUMBER($A99),MMNexus(D$3,D$4,D$2),"") -> 34 | E99: =IF(ISNUMBER($A99),MMNexus(E$3,E$4,E$2),"") -> 49 | F99: =IF(ISNUMBER($A99),MMNexus(F$3,F$4,F$2),"") -> 66 | G99: =IF(ISNUMBER($A99),MMNexus(G$3,G$4,G$2),"") -> 8
A100: 96 | B100: =IF(ISNUMBER($A100),MMNexus(B$3,B$4,B$2),"") -> 10 | C100: =IF(ISNUMBER($A100),MMNexus(C$3,C$4,C$2),"") -> 38 | D100: =IF(ISNUMBER($A100),MMNexus(D$3,D$4,D$2),"") -> 59 | E100: =IF(ISNUMBER($A100),MMNexus(E$3,E$4,E$2),"") -> 54 | F100: =IF(ISNUMBER($A100),MMNexus(F$3,F$4,F$2),"") -> 71 | G100: =IF(ISNUMBER($A100),MMNexus(G$3,G$4,G$2),"") -> 7
A101: 97 | B101: =IF(ISNUMBER($A101),MMNexus(B$3,B$4,B$2),"") -> 27 | C101: =IF(ISNUMBER($A101),MMNexus(C$3,C$4,C$2),"") -> 62 | D101: =IF(ISNUMBER($A101),MMNexus(D$3,D$4,D$2),"") -> 55 | E101: =IF(ISNUMBER($A101),MMNexus(E$3,E$4,E$2),"") -> 19 | F101: =IF(ISNUMBER($A101),MMNexus(F$3,F$4,F$2),"") -> 72 | G101: =IF(ISNUMBER($A101),MMNexus(G$3,G$4,G$2),"") -> 9
A102: 98 | B102: =IF(ISNUMBER($A102),MMNexus(B$3,B$4,B$2),"") -> 11 | C102: =IF(ISNUMBER($A102),MMNexus(C$3,C$4,C$2),"") -> 27 | D102: =IF(ISNUMBER($A102),MMNexus(D$3,D$4,D$2),"") -> 40 | E102: =IF(ISNUMBER($A102),MMNexus(E$3,E$4,E$2),"") -> 64 | F102: =IF(ISNUMBER($A102),MMNexus(F$3,F$4,F$2),"") -> 60 | G102: =IF(ISNUMBER($A102),MMNexus(G$3,G$4,G$2),"") -> 10
A103: 99 | B103: =IF(ISNUMBER($A103),MMNexus(B$3,B$4,B$2),"") -> 59 | C103: =IF(ISNUMBER($A103),MMNexus(C$3,C$4,C$2),"") -> 34 | D103: =IF(ISNUMBER($A103),MMNexus(D$3,D$4,D$2),"") -> 69 | E103: =IF(ISNUMBER($A103),MMNexus(E$3,E$4,E$2),"") -> 58 | F103: =IF(ISNUMBER($A103),MMNexus(F$3,F$4,F$2),"") -> 63 | G103: =IF(ISNUMBER($A103),MMNexus(G$3,G$4,G$2),"") -> 8
A104: 100 | B104: =IF(ISNUMBER($A104),MMNexus(B$3,B$4,B$2),"") -> 14 | C104: =IF(ISNUMBER($A104),MMNexus(C$3,C$4,C$2),"") -> 10 | D104: =IF(ISNUMBER($A104),MMNexus(D$3,D$4,D$2),"") -> 66 | E104: =IF(ISNUMBER($A104),MMNexus(E$3,E$4,E$2),"") -> 71 | F104: =IF(ISNUMBER($A104),MMNexus(F$3,F$4,F$2),"") -> 75 | G104: =IF(ISNUMBER($A104),MMNexus(G$3,G$4,G$2),"") -> 7
A105: 101 | B105: =IF(ISNUMBER($A105),MMNexus(B$3,B$4,B$2),"") -> 66 | C105: =IF(ISNUMBER($A105),MMNexus(C$3,C$4,C$2),"") -> 60 | D105: =IF(ISNUMBER($A105),MMNexus(D$3,D$4,D$2),"") -> 52 | E105: =IF(ISNUMBER($A105),MMNexus(E$3,E$4,E$2),"") -> 58 | F105: =IF(ISNUMBER($A105),MMNexus(F$3,F$4,F$2),"") -> 73 | G105: =IF(ISNUMBER($A105),MMNexus(G$3,G$4,G$2),"") -> 8
A106: 102 | B106: =IF(ISNUMBER($A106),MMNexus(B$3,B$4,B$2),"") -> 21 | C106: =IF(ISNUMBER($A106),MMNexus(C$3,C$4,C$2),"") -> 56 | D106: =IF(ISNUMBER($A106),MMNexus(D$3,D$4,D$2),"") -> 65 | E106: =IF(ISNUMBER($A106),MMNexus(E$3,E$4,E$2),"") -> 61 | F106: =IF(ISNUMBER($A106),MMNexus(F$3,F$4,F$2),"") -> 75 | G106: =IF(ISNUMBER($A106),MMNexus(G$3,G$4,G$2),"") -> 14
A107: 103 | B107: =IF(ISNUMBER($A107),MMNexus(B$3,B$4,B$2),"") -> 38 | C107: =IF(ISNUMBER($A107),MMNexus(C$3,C$4,C$2),"") -> 25 | D107: =IF(ISNUMBER($A107),MMNexus(D$3,D$4,D$2),"") -> 26 | E107: =IF(ISNUMBER($A107),MMNexus(E$3,E$4,E$2),"") -> 60 | F107: =IF(ISNUMBER($A107),MMNexus(F$3,F$4,F$2),"") -> 55 | G107: =IF(ISNUMBER($A107),MMNexus(G$3,G$4,G$2),"") -> 7
A108: 104 | B108: =IF(ISNUMBER($A108),MMNexus(B$3,B$4,B$2),"") -> 35 | C108: =IF(ISNUMBER($A108),MMNexus(C$3,C$4,C$2),"") -> 46 | D108: =IF(ISNUMBER($A108),MMNexus(D$3,D$4,D$2),"") -> 42 | E108: =IF(ISNUMBER($A108),MMNexus(E$3,E$4,E$2),"") -> 40 | F108: =IF(ISNUMBER($A108),MMNexus(F$3,F$4,F$2),"") -> 49 | G108: =IF(ISNUMBER($A108),MMNexus(G$3,G$4,G$2),"") -> 3
A109: 105 | B109: =IF(ISNUMBER($A109),MMNexus(B$3,B$4,B$2),"") -> 47 | C109: =IF(ISNUMBER($A109),MMNexus(C$3,C$4,C$2),"") -> 58 | D109: =IF(ISNUMBER($A109),MMNexus(D$3,D$4,D$2),"") -> 60 | E109: =IF(ISNUMBER($A109),MMNexus(E$3,E$4,E$2),"") -> 52 | F109: =IF(ISNUMBER($A109),MMNexus(F$3,F$4,F$2),"") -> 74 | G109: =IF(ISNUMBER($A109),MMNexus(G$3,G$4,G$2),"") -> 6
A110: 106 | B110: =IF(ISNUMBER($A110),MMNexus(B$3,B$4,B$2),"") -> 5 | C110: =IF(ISNUMBER($A110),MMNexus(C$3,C$4,C$2),"") -> 21 | D110: =IF(ISNUMBER($A110),MMNexus(D$3,D$4,D$2),"") -> 45 | E110: =IF(ISNUMBER($A110),MMNexus(E$3,E$4,E$2),"") -> 37 | F110: =IF(ISNUMBER($A110),MMNexus(F$3,F$4,F$2),"") -> 72 | G110: =IF(ISNUMBER($A110),MMNexus(G$3,G$4,G$2),"") -> 12
A111: 107 | B111: =IF(ISNUMBER($A111),MMNexus(B$3,B$4,B$2),"") -> 52 | C111: =IF(ISNUMBER($A111),MMNexus(C$3,C$4,C$2),"") -> 28 | D111: =IF(ISNUMBER($A111),MMNexus(D$3,D$4,D$2),"") -> 66 | E111: =IF(ISNUMBER($A111),MMNexus(E$3,E$4,E$2),"") -> 69 | F111: =IF(ISNUMBER($A111),MMNexus(F$3,F$4,F$2),"") -> 68 | G111: =IF(ISNUMBER($A111),MMNexus(G$3,G$4,G$2),"") -> 7
A112: 108 | B112: =IF(ISNUMBER($A112),MMNexus(B$3,B$4,B$2),"") -> 33 | C112: =IF(ISNUMBER($A112),MMNexus(C$3,C$4,C$2),"") -> 29 | D112: =IF(ISNUMBER($A112),MMNexus(D$3,D$4,D$2),"") -> 29 | E112: =IF(ISNUMBER($A112),MMNexus(E$3,E$4,E$2),"") -> 68 | F112: =IF(ISNUMBER($A112),MMNexus(F$3,F$4,F$2),"") -> 73 | G112: =IF(ISNUMBER($A112),MMNexus(G$3,G$4,G$2),"") -> 10
A113: 109 | B113: =IF(ISNUMBER($A113),MMNexus(B$3,B$4,B$2),"") -> 34 | C113: =IF(ISNUMBER($A113),MMNexus(C$3,C$4,C$2),"") -> 3 | D113: =IF(ISNUMBER($A113),MMNexus(D$3,D$4,D$2),"") -> 38 | E113: =IF(ISNUMBER($A113),MMNexus(E$3,E$4,E$2),"") -> 72 | F113: =IF(ISNUMBER($A113),MMNexus(F$3,F$4,F$2),"") -> 63 | G113: =IF(ISNUMBER($A113),MMNexus(G$3,G$4,G$2),"") -> 12
A114: 110 | B114: =IF(ISNUMBER($A114),MMNexus(B$3,B$4,B$2),"") -> 31 | C114: =IF(ISNUMBER($A114),MMNexus(C$3,C$4,C$2),"") -> 18 | D114: =IF(ISNUMBER($A114),MMNexus(D$3,D$4,D$2),"") -> 23 | E114: =IF(ISNUMBER($A114),MMNexus(E$3,E$4,E$2),"") -> 38 | F114: =IF(ISNUMBER($A114),MMNexus(F$3,F$4,F$2),"") -> 66 | G114: =IF(ISNUMBER($A114),MMNexus(G$3,G$4,G$2),"") -> 7
A115: 111 | B115: =IF(ISNUMBER($A115),MMNexus(B$3,B$4,B$2),"") -> 23 | C115: =IF(ISNUMBER($A115),MMNexus(C$3,C$4,C$2),"") -> 3 | D115: =IF(ISNUMBER($A115),MMNexus(D$3,D$4,D$2),"") -> 54 | E115: =IF(ISNUMBER($A115),MMNexus(E$3,E$4,E$2),"") -> 64 | F115: =IF(ISNUMBER($A115),MMNexus(F$3,F$4,F$2),"") -> 72 | G115: =IF(ISNUMBER($A115),MMNexus(G$3,G$4,G$2),"") -> 13
A116: 112 | B116: =IF(ISNUMBER($A116),MMNexus(B$3,B$4,B$2),"") -> 26 | C116: =IF(ISNUMBER($A116),MMNexus(C$3,C$4,C$2),"") -> 14 | D116: =IF(ISNUMBER($A116),MMNexus(D$3,D$4,D$2),"") -> 48 | E116: =IF(ISNUMBER($A116),MMNexus(E$3,E$4,E$2),"") -> 6 | F116: =IF(ISNUMBER($A116),MMNexus(F$3,F$4,F$2),"") -> 74 | G116: =IF(ISNUMBER($A116),MMNexus(G$3,G$4,G$2),"") -> 5
A117: 113 | B117: =IF(ISNUMBER($A117),MMNexus(B$3,B$4,B$2),"") -> 40 | C117: =IF(ISNUMBER($A117),MMNexus(C$3,C$4,C$2),"") -> 33 | D117: =IF(ISNUMBER($A117),MMNexus(D$3,D$4,D$2),"") -> 73 | E117: =IF(ISNUMBER($A117),MMNexus(E$3,E$4,E$2),"") -> 63 | F117: =IF(ISNUMBER($A117),MMNexus(F$3,F$4,F$2),"") -> 58 | G117: =IF(ISNUMBER($A117),MMNexus(G$3,G$4,G$2),"") -> 3
A118: 114 | B118: =IF(ISNUMBER($A118),MMNexus(B$3,B$4,B$2),"") -> 10 | C118: =IF(ISNUMBER($A118),MMNexus(C$3,C$4,C$2),"") -> 7 | D118: =IF(ISNUMBER($A118),MMNexus(D$3,D$4,D$2),"") -> 60 | E118: =IF(ISNUMBER($A118),MMNexus(E$3,E$4,E$2),"") -> 64 | F118: =IF(ISNUMBER($A118),MMNexus(F$3,F$4,F$2),"") -> 47 | G118: =IF(ISNUMBER($A118),MMNexus(G$3,G$4,G$2),"") -> 10
A119: 115 | B119: =IF(ISNUMBER($A119),MMNexus(B$3,B$4,B$2),"") -> 18 | C119: =IF(ISNUMBER($A119),MMNexus(C$3,C$4,C$2),"") -> 12 | D119: =IF(ISNUMBER($A119),MMNexus(D$3,D$4,D$2),"") -> 18 | E119: =IF(ISNUMBER($A119),MMNexus(E$3,E$4,E$2),"") -> 50 | F119: =IF(ISNUMBER($A119),MMNexus(F$3,F$4,F$2),"") -> 71 | G119: =IF(ISNUMBER($A119),MMNexus(G$3,G$4,G$2),"") -> 10
A120: 116 | B120: =IF(ISNUMBER($A120),MMNexus(B$3,B$4,B$2),"") -> 2 | C120: =IF(ISNUMBER($A120),MMNexus(C$3,C$4,C$2),"") -> 33 | D120: =IF(ISNUMBER($A120),MMNexus(D$3,D$4,D$2),"") -> 59 | E120: =IF(ISNUMBER($A120),MMNexus(E$3,E$4,E$2),"") -> 66 | F120: =IF(ISNUMBER($A120),MMNexus(F$3,F$4,F$2),"") -> 60 | G120: =IF(ISNUMBER($A120),MMNexus(G$3,G$4,G$2),"") -> 13
A121: 117 | B121: =IF(ISNUMBER($A121),MMNexus(B$3,B$4,B$2),"") -> 15 | C121: =IF(ISNUMBER($A121),MMNexus(C$3,C$4,C$2),"") -> 20 | D121: =IF(ISNUMBER($A121),MMNexus(D$3,D$4,D$2),"") -> 52 | E121: =IF(ISNUMBER($A121),MMNexus(E$3,E$4,E$2),"") -> 61 | F121: =IF(ISNUMBER($A121),MMNexus(F$3,F$4,F$2),"") -> 73 | G121: =IF(ISNUMBER($A121),MMNexus(G$3,G$4,G$2),"") -> 15
A122: 118 | B122: =IF(ISNUMBER($A122),MMNexus(B$3,B$4,B$2),"") -> 27 | C122: =IF(ISNUMBER($A122),MMNexus(C$3,C$4,C$2),"") -> 43 | D122: =IF(ISNUMBER($A122),MMNexus(D$3,D$4,D$2),"") -> 51 | E122: =IF(ISNUMBER($A122),MMNexus(E$3,E$4,E$2),"") -> 63 | F122: =IF(ISNUMBER($A122),MMNexus(F$3,F$4,F$2),"") -> 59 | G122: =IF(ISNUMBER($A122),MMNexus(G$3,G$4,G$2),"") -> 8
A123: 119 | B123: =IF(ISNUMBER($A123),MMNexus(B$3,B$4,B$2),"") -> 9 | C123: =IF(ISNUMBER($A123),MMNexus(C$3,C$4,C$2),"") -> 11 | D123: =IF(ISNUMBER($A123),MMNexus(D$3,D$4,D$2),"") -> 47 | E123: =IF(ISNUMBER($A123),MMNexus(E$3,E$4,E$2),"") -> 41 | F123: =IF(ISNUMBER($A123),MMNexus(F$3,F$4,F$2),"") -> 75 | G123: =IF(ISNUMBER($A123),MMNexus(G$3,G$4,G$2),"") -> 12
A124: 120 | B124: =IF(ISNUMBER($A124),MMNexus(B$3,B$4,B$2),"") -> 20 | C124: =IF(ISNUMBER($A124),MMNexus(C$3,C$4,C$2),"") -> 26 | D124: =IF(ISNUMBER($A124),MMNexus(D$3,D$4,D$2),"") -> 40 | E124: =IF(ISNUMBER($A124),MMNexus(E$3,E$4,E$2),"") -> 70 | F124: =IF(ISNUMBER($A124),MMNexus(F$3,F$4,F$2),"") -> 66 | G124: =IF(ISNUMBER($A124),MMNexus(G$3,G$4,G$2),"") -> 8
A125: 121 | B125: =IF(ISNUMBER($A125),MMNexus(B$3,B$4,B$2),"") -> 36 | C125: =IF(ISNUMBER($A125),MMNexus(C$3,C$4,C$2),"") -> 9 | D125: =IF(ISNUMBER($A125),MMNexus(D$3,D$4,D$2),"") -> 34 | E125: =IF(ISNUMBER($A125),MMNexus(E$3,E$4,E$2),"") -> 34 | F125: =IF(ISNUMBER($A125),MMNexus(F$3,F$4,F$2),"") -> 75 | G125: =IF(ISNUMBER($A125),MMNexus(G$3,G$4,G$2),"") -> 15
A126: 122 | B126: =IF(ISNUMBER($A126),MMNexus(B$3,B$4,B$2),"") -> 37 | C126: =IF(ISNUMBER($A126),MMNexus(C$3,C$4,C$2),"") -> 44 | D126: =IF(ISNUMBER($A126),MMNexus(D$3,D$4,D$2),"") -> 17 | E126: =IF(ISNUMBER($A126),MMNexus(E$3,E$4,E$2),"") -> 40 | F126: =IF(ISNUMBER($A126),MMNexus(F$3,F$4,F$2),"") -> 65 | G126: =IF(ISNUMBER($A126),MMNexus(G$3,G$4,G$2),"") -> 11
A127: 123 | B127: =IF(ISNUMBER($A127),MMNexus(B$3,B$4,B$2),"") -> 31 | C127: =IF(ISNUMBER($A127),MMNexus(C$3,C$4,C$2),"") -> 13 | D127: =IF(ISNUMBER($A127),MMNexus(D$3,D$4,D$2),"") -> 71 | E127: =IF(ISNUMBER($A127),MMNexus(E$3,E$4,E$2),"") -> 56 | F127: =IF(ISNUMBER($A127),MMNexus(F$3,F$4,F$2),"") -> 58 | G127: =IF(ISNUMBER($A127),MMNexus(G$3,G$4,G$2),"") -> 1
A128: 124 | B128: =IF(ISNUMBER($A128),MMNexus(B$3,B$4,B$2),"") -> 38 | C128: =IF(ISNUMBER($A128),MMNexus(C$3,C$4,C$2),"") -> 28 | D128: =IF(ISNUMBER($A128),MMNexus(D$3,D$4,D$2),"") -> 41 | E128: =IF(ISNUMBER($A128),MMNexus(E$3,E$4,E$2),"") -> 50 | F128: =IF(ISNUMBER($A128),MMNexus(F$3,F$4,F$2),"") -> 64 | G128: =IF(ISNUMBER($A128),MMNexus(G$3,G$4,G$2),"") -> 5
A129: 125 | B129: =IF(ISNUMBER($A129),MMNexus(B$3,B$4,B$2),"") -> 46 | C129: =IF(ISNUMBER($A129),MMNexus(C$3,C$4,C$2),"") -> 17 | D129: =IF(ISNUMBER($A129),MMNexus(D$3,D$4,D$2),"") -> 46 | E129: =IF(ISNUMBER($A129),MMNexus(E$3,E$4,E$2),"") -> 73 | F129: =IF(ISNUMBER($A129),MMNexus(F$3,F$4,F$2),"") -> 73 | G129: =IF(ISNUMBER($A129),MMNexus(G$3,G$4,G$2),"") -> 14
A130: 126 | B130: =IF(ISNUMBER($A130),MMNexus(B$3,B$4,B$2),"") -> 43 | C130: =IF(ISNUMBER($A130),MMNexus(C$3,C$4,C$2),"") -> 54 | D130: =IF(ISNUMBER($A130),MMNexus(D$3,D$4,D$2),"") -> 43 | E130: =IF(ISNUMBER($A130),MMNexus(E$3,E$4,E$2),"") -> 52 | F130: =IF(ISNUMBER($A130),MMNexus(F$3,F$4,F$2),"") -> 71 | G130: =IF(ISNUMBER($A130),MMNexus(G$3,G$4,G$2),"") -> 5
A131: 127 | B131: =IF(ISNUMBER($A131),MMNexus(B$3,B$4,B$2),"") -> 38 | C131: =IF(ISNUMBER($A131),MMNexus(C$3,C$4,C$2),"") -> 17 | D131: =IF(ISNUMBER($A131),MMNexus(D$3,D$4,D$2),"") -> 38 | E131: =IF(ISNUMBER($A131),MMNexus(E$3,E$4,E$2),"") -> 73 | F131: =IF(ISNUMBER($A131),MMNexus(F$3,F$4,F$2),"") -> 67 | G131: =IF(ISNUMBER($A131),MMNexus(G$3,G$4,G$2),"") -> 7
A132: 128 | B132: =IF(ISNUMBER($A132),MMNexus(B$3,B$4,B$2),"") -> 31 | C132: =IF(ISNUMBER($A132),MMNexus(C$3,C$4,C$2),"") -> 15 | D132: =IF(ISNUMBER($A132),MMNexus(D$3,D$4,D$2),"") -> 59 | E132: =IF(ISNUMBER($A132),MMNexus(E$3,E$4,E$2),"") -> 65 | F132: =IF(ISNUMBER($A132),MMNexus(F$3,F$4,F$2),"") -> 74 | G132: =IF(ISNUMBER($A132),MMNexus(G$3,G$4,G$2),"") -> 15
A133: 129 | B133: =IF(ISNUMBER($A133),MMNexus(B$3,B$4,B$2),"") -> 35 | C133: =IF(ISNUMBER($A133),MMNexus(C$3,C$4,C$2),"") -> 9 | D133: =IF(ISNUMBER($A133),MMNexus(D$3,D$4,D$2),"") -> 58 | E133: =IF(ISNUMBER($A133),MMNexus(E$3,E$4,E$2),"") -> 71 | F133: =IF(ISNUMBER($A133),MMNexus(F$3,F$4,F$2),"") -> 52 | G133: =IF(ISNUMBER($A133),MMNexus(G$3,G$4,G$2),"") -> 12
A134: 130 | B134: =IF(ISNUMBER($A134),MMNexus(B$3,B$4,B$2),"") -> 40 | C134: =IF(ISNUMBER($A134),MMNexus(C$3,C$4,C$2),"") -> 8 | D134: =IF(ISNUMBER($A134),MMNexus(D$3,D$4,D$2),"") -> 52 | E134: =IF(ISNUMBER($A134),MMNexus(E$3,E$4,E$2),"") -> 72 | F134: =IF(ISNUMBER($A134),MMNexus(F$3,F$4,F$2),"") -> 71 | G134: =IF(ISNUMBER($A134),MMNexus(G$3,G$4,G$2),"") -> 4
A135: =IF(ISNUMBER(A134),IF(A134+1<=M$4,A134+1,""),"") -> 131 | B135: =IF(ISNUMBER($A135),MMNexus(B$3,B$4,B$2),"") -> 26 | C135: =IF(ISNUMBER($A135),MMNexus(C$3,C$4,C$2),"") -> 24 | D135: =IF(ISNUMBER($A135),MMNexus(D$3,D$4,D$2),"") -> 37 | E135: =IF(ISNUMBER($A135),MMNexus(E$3,E$4,E$2),"") -> 53 | F135: =IF(ISNUMBER($A135),MMNexus(F$3,F$4,F$2),"") -> 63 | G135: =IF(ISNUMBER($A135),MMNexus(G$3,G$4,G$2),"") -> 2
A136: 132 | B136: =IF(ISNUMBER($A136),MMNexus(B$3,B$4,B$2),"") -> 44 | C136: =IF(ISNUMBER($A136),MMNexus(C$3,C$4,C$2),"") -> 41 | D136: =IF(ISNUMBER($A136),MMNexus(D$3,D$4,D$2),"") -> 56 | E136: =IF(ISNUMBER($A136),MMNexus(E$3,E$4,E$2),"") -> 67 | F136: =IF(ISNUMBER($A136),MMNexus(F$3,F$4,F$2),"") -> 44 | G136: =IF(ISNUMBER($A136),MMNexus(G$3,G$4,G$2),"") -> 9
A137: 133 | B137: =IF(ISNUMBER($A137),MMNexus(B$3,B$4,B$2),"") -> 70 | C137: =IF(ISNUMBER($A137),MMNexus(C$3,C$4,C$2),"") -> 40 | D137: =IF(ISNUMBER($A137),MMNexus(D$3,D$4,D$2),"") -> 59 | E137: =IF(ISNUMBER($A137),MMNexus(E$3,E$4,E$2),"") -> 14 | F137: =IF(ISNUMBER($A137),MMNexus(F$3,F$4,F$2),"") -> 57 | G137: =IF(ISNUMBER($A137),MMNexus(G$3,G$4,G$2),"") -> 1
A138: 134 | B138: =IF(ISNUMBER($A138),MMNexus(B$3,B$4,B$2),"") -> 42 | C138: =IF(ISNUMBER($A138),MMNexus(C$3,C$4,C$2),"") -> 27 | D138: =IF(ISNUMBER($A138),MMNexus(D$3,D$4,D$2),"") -> 37 | E138: =IF(ISNUMBER($A138),MMNexus(E$3,E$4,E$2),"") -> 18 | F138: =IF(ISNUMBER($A138),MMNexus(F$3,F$4,F$2),"") -> 66 | G138: =IF(ISNUMBER($A138),MMNexus(G$3,G$4,G$2),"") -> 9
A139: 135 | B139: =IF(ISNUMBER($A139),MMNexus(B$3,B$4,B$2),"") -> 25 | C139: =IF(ISNUMBER($A139),MMNexus(C$3,C$4,C$2),"") -> 50 | D139: =IF(ISNUMBER($A139),MMNexus(D$3,D$4,D$2),"") -> 46 | E139: =IF(ISNUMBER($A139),MMNexus(E$3,E$4,E$2),"") -> 66 | F139: =IF(ISNUMBER($A139),MMNexus(F$3,F$4,F$2),"") -> 32 | G139: =IF(ISNUMBER($A139),MMNexus(G$3,G$4,G$2),"") -> 10
A140: 136 | B140: =IF(ISNUMBER($A140),MMNexus(B$3,B$4,B$2),"") -> 30 | C140: =IF(ISNUMBER($A140),MMNexus(C$3,C$4,C$2),"") -> 2 | D140: =IF(ISNUMBER($A140),MMNexus(D$3,D$4,D$2),"") -> 26 | E140: =IF(ISNUMBER($A140),MMNexus(E$3,E$4,E$2),"") -> 28 | F140: =IF(ISNUMBER($A140),MMNexus(F$3,F$4,F$2),"") -> 63 | G140: =IF(ISNUMBER($A140),MMNexus(G$3,G$4,G$2),"") -> 13
A141: 137 | B141: =IF(ISNUMBER($A141),MMNexus(B$3,B$4,B$2),"") -> 28 | C141: =IF(ISNUMBER($A141),MMNexus(C$3,C$4,C$2),"") -> 41 | D141: =IF(ISNUMBER($A141),MMNexus(D$3,D$4,D$2),"") -> 59 | E141: =IF(ISNUMBER($A141),MMNexus(E$3,E$4,E$2),"") -> 60 | F141: =IF(ISNUMBER($A141),MMNexus(F$3,F$4,F$2),"") -> 70 | G141: =IF(ISNUMBER($A141),MMNexus(G$3,G$4,G$2),"") -> 12
A142: 138 | B142: =IF(ISNUMBER($A142),MMNexus(B$3,B$4,B$2),"") -> 36 | C142: =IF(ISNUMBER($A142),MMNexus(C$3,C$4,C$2),"") -> 8 | D142: =IF(ISNUMBER($A142),MMNexus(D$3,D$4,D$2),"") -> 44 | E142: =IF(ISNUMBER($A142),MMNexus(E$3,E$4,E$2),"") -> 51 | F142: =IF(ISNUMBER($A142),MMNexus(F$3,F$4,F$2),"") -> 71 | G142: =IF(ISNUMBER($A142),MMNexus(G$3,G$4,G$2),"") -> 14
A143: 139 | B143: =IF(ISNUMBER($A143),MMNexus(B$3,B$4,B$2),"") -> 22 | C143: =IF(ISNUMBER($A143),MMNexus(C$3,C$4,C$2),"") -> 6 | D143: =IF(ISNUMBER($A143),MMNexus(D$3,D$4,D$2),"") -> 46 | E143: =IF(ISNUMBER($A143),MMNexus(E$3,E$4,E$2),"") -> 69 | F143: =IF(ISNUMBER($A143),MMNexus(F$3,F$4,F$2),"") -> 75 | G143: =IF(ISNUMBER($A143),MMNexus(G$3,G$4,G$2),"") -> 12
A144: 140 | B144: =IF(ISNUMBER($A144),MMNexus(B$3,B$4,B$2),"") -> 26 | C144: =IF(ISNUMBER($A144),MMNexus(C$3,C$4,C$2),"") -> 17 | D144: =IF(ISNUMBER($A144),MMNexus(D$3,D$4,D$2),"") -> 14 | E144: =IF(ISNUMBER($A144),MMNexus(E$3,E$4,E$2),"") -> 42 | F144: =IF(ISNUMBER($A144),MMNexus(F$3,F$4,F$2),"") -> 69 | G144: =IF(ISNUMBER($A144),MMNexus(G$3,G$4,G$2),"") -> 15
A145: 141 | B145: =IF(ISNUMBER($A145),MMNexus(B$3,B$4,B$2),"") -> 50 | C145: =IF(ISNUMBER($A145),MMNexus(C$3,C$4,C$2),"") -> 32 | D145: =IF(ISNUMBER($A145),MMNexus(D$3,D$4,D$2),"") -> 68 | E145: =IF(ISNUMBER($A145),MMNexus(E$3,E$4,E$2),"") -> 65 | F145: =IF(ISNUMBER($A145),MMNexus(F$3,F$4,F$2),"") -> 44 | G145: =IF(ISNUMBER($A145),MMNexus(G$3,G$4,G$2),"") -> 14
A146: 142 | B146: =IF(ISNUMBER($A146),MMNexus(B$3,B$4,B$2),"") -> 41 | C146: =IF(ISNUMBER($A146),MMNexus(C$3,C$4,C$2),"") -> 14 | D146: =IF(ISNUMBER($A146),MMNexus(D$3,D$4,D$2),"") -> 48 | E146: =IF(ISNUMBER($A146),MMNexus(E$3,E$4,E$2),"") -> 39 | F146: =IF(ISNUMBER($A146),MMNexus(F$3,F$4,F$2),"") -> 66 | G146: =IF(ISNUMBER($A146),MMNexus(G$3,G$4,G$2),"") -> 10
A147: 143 | B147: =IF(ISNUMBER($A147),MMNexus(B$3,B$4,B$2),"") -> 36 | C147: =IF(ISNUMBER($A147),MMNexus(C$3,C$4,C$2),"") -> 66 | D147: =IF(ISNUMBER($A147),MMNexus(D$3,D$4,D$2),"") -> 55 | E147: =IF(ISNUMBER($A147),MMNexus(E$3,E$4,E$2),"") -> 63 | F147: =IF(ISNUMBER($A147),MMNexus(F$3,F$4,F$2),"") -> 59 | G147: =IF(ISNUMBER($A147),MMNexus(G$3,G$4,G$2),"") -> 5
A148: 144 | B148: =IF(ISNUMBER($A148),MMNexus(B$3,B$4,B$2),"") -> 67 | C148: =IF(ISNUMBER($A148),MMNexus(C$3,C$4,C$2),"") -> 20 | D148: =IF(ISNUMBER($A148),MMNexus(D$3,D$4,D$2),"") -> 66 | E148: =IF(ISNUMBER($A148),MMNexus(E$3,E$4,E$2),"") -> 68 | F148: =IF(ISNUMBER($A148),MMNexus(F$3,F$4,F$2),"") -> 18 | G148: =IF(ISNUMBER($A148),MMNexus(G$3,G$4,G$2),"") -> 13
A149: 145 | B149: =IF(ISNUMBER($A149),MMNexus(B$3,B$4,B$2),"") -> 41 | C149: =IF(ISNUMBER($A149),MMNexus(C$3,C$4,C$2),"") -> 37 | D149: =IF(ISNUMBER($A149),MMNexus(D$3,D$4,D$2),"") -> 54 | E149: =IF(ISNUMBER($A149),MMNexus(E$3,E$4,E$2),"") -> 34 | F149: =IF(ISNUMBER($A149),MMNexus(F$3,F$4,F$2),"") -> 57 | G149: =IF(ISNUMBER($A149),MMNexus(G$3,G$4,G$2),"") -> 12
A150: 146 | B150: =IF(ISNUMBER($A150),MMNexus(B$3,B$4,B$2),"") -> 50 | C150: =IF(ISNUMBER($A150),MMNexus(C$3,C$4,C$2),"") -> 21 | D150: =IF(ISNUMBER($A150),MMNexus(D$3,D$4,D$2),"") -> 67 | E150: =IF(ISNUMBER($A150),MMNexus(E$3,E$4,E$2),"") -> 57 | F150: =IF(ISNUMBER($A150),MMNexus(F$3,F$4,F$2),"") -> 74 | G150: =IF(ISNUMBER($A150),MMNexus(G$3,G$4,G$2),"") -> 11
A151: 147 | B151: =IF(ISNUMBER($A151),MMNexus(B$3,B$4,B$2),"") -> 38 | C151: =IF(ISNUMBER($A151),MMNexus(C$3,C$4,C$2),"") -> 10 | D151: =IF(ISNUMBER($A151),MMNexus(D$3,D$4,D$2),"") -> 70 | E151: =IF(ISNUMBER($A151),MMNexus(E$3,E$4,E$2),"") -> 59 | F151: =IF(ISNUMBER($A151),MMNexus(F$3,F$4,F$2),"") -> 71 | G151: =IF(ISNUMBER($A151),MMNexus(G$3,G$4,G$2),"") -> 10
A152: 148 | B152: =IF(ISNUMBER($A152),MMNexus(B$3,B$4,B$2),"") -> 23 | C152: =IF(ISNUMBER($A152),MMNexus(C$3,C$4,C$2),"") -> 11 | D152: =IF(ISNUMBER($A152),MMNexus(D$3,D$4,D$2),"") -> 40 | E152: =IF(ISNUMBER($A152),MMNexus(E$3,E$4,E$2),"") -> 74 | F152: =IF(ISNUMBER($A152),MMNexus(F$3,F$4,F$2),"") -> 74 | G152: =IF(ISNUMBER($A152),MMNexus(G$3,G$4,G$2),"") -> 14
A153: 149 | B153: =IF(ISNUMBER($A153),MMNexus(B$3,B$4,B$2),"") -> 36 | C153: =IF(ISNUMBER($A153),MMNexus(C$3,C$4,C$2),"") -> 64 | D153: =IF(ISNUMBER($A153),MMNexus(D$3,D$4,D$2),"") -> 47 | E153: =IF(ISNUMBER($A153),MMNexus(E$3,E$4,E$2),"") -> 67 | F153: =IF(ISNUMBER($A153),MMNexus(F$3,F$4,F$2),"") -> 66 | G153: =IF(ISNUMBER($A153),MMNexus(G$3,G$4,G$2),"") -> 8
A154: 150 | B154: =IF(ISNUMBER($A154),MMNexus(B$3,B$4,B$2),"") -> 40 | C154: =IF(ISNUMBER($A154),MMNexus(C$3,C$4,C$2),"") -> 40 | D154: =IF(ISNUMBER($A154),MMNexus(D$3,D$4,D$2),"") -> 69 | E154: =IF(ISNUMBER($A154),MMNexus(E$3,E$4,E$2),"") -> 70 | F154: =IF(ISNUMBER($A154),MMNexus(F$3,F$4,F$2),"") -> 68 | G154: =IF(ISNUMBER($A154),MMNexus(G$3,G$4,G$2),"") -> 4
A155: 151 | B155: =IF(ISNUMBER($A155),MMNexus(B$3,B$4,B$2),"") -> 29 | C155: =IF(ISNUMBER($A155),MMNexus(C$3,C$4,C$2),"") -> 5 | D155: =IF(ISNUMBER($A155),MMNexus(D$3,D$4,D$2),"") -> 50 | E155: =IF(ISNUMBER($A155),MMNexus(E$3,E$4,E$2),"") -> 48 | F155: =IF(ISNUMBER($A155),MMNexus(F$3,F$4,F$2),"") -> 74 | G155: =IF(ISNUMBER($A155),MMNexus(G$3,G$4,G$2),"") -> 6
A156: 152 | B156: =IF(ISNUMBER($A156),MMNexus(B$3,B$4,B$2),"") -> 13 | C156: =IF(ISNUMBER($A156),MMNexus(C$3,C$4,C$2),"") -> 17 | D156: =IF(ISNUMBER($A156),MMNexus(D$3,D$4,D$2),"") -> 56 | E156: =IF(ISNUMBER($A156),MMNexus(E$3,E$4,E$2),"") -> 26 | F156: =IF(ISNUMBER($A156),MMNexus(F$3,F$4,F$2),"") -> 52 | G156: =IF(ISNUMBER($A156),MMNexus(G$3,G$4,G$2),"") -> 12
A157: 153 | B157: =IF(ISNUMBER($A157),MMNexus(B$3,B$4,B$2),"") -> 65 | C157: =IF(ISNUMBER($A157),MMNexus(C$3,C$4,C$2),"") -> 39 | D157: =IF(ISNUMBER($A157),MMNexus(D$3,D$4,D$2),"") -> 40 | E157: =IF(ISNUMBER($A157),MMNexus(E$3,E$4,E$2),"") -> 34 | F157: =IF(ISNUMBER($A157),MMNexus(F$3,F$4,F$2),"") -> 54 | G157: =IF(ISNUMBER($A157),MMNexus(G$3,G$4,G$2),"") -> 12
A158: 154 | B158: =IF(ISNUMBER($A158),MMNexus(B$3,B$4,B$2),"") -> 20 | C158: =IF(ISNUMBER($A158),MMNexus(C$3,C$4,C$2),"") -> 35 | D158: =IF(ISNUMBER($A158),MMNexus(D$3,D$4,D$2),"") -> 49 | E158: =IF(ISNUMBER($A158),MMNexus(E$3,E$4,E$2),"") -> 51 | F158: =IF(ISNUMBER($A158),MMNexus(F$3,F$4,F$2),"") -> 75 | G158: =IF(ISNUMBER($A158),MMNexus(G$3,G$4,G$2),"") -> 2
A159: 155 | B159: =IF(ISNUMBER($A159),MMNexus(B$3,B$4,B$2),"") -> 60 | C159: =IF(ISNUMBER($A159),MMNexus(C$3,C$4,C$2),"") -> 12 | D159: =IF(ISNUMBER($A159),MMNexus(D$3,D$4,D$2),"") -> 42 | E159: =IF(ISNUMBER($A159),MMNexus(E$3,E$4,E$2),"") -> 72 | F159: =IF(ISNUMBER($A159),MMNexus(F$3,F$4,F$2),"") -> 38 | G159: =IF(ISNUMBER($A159),MMNexus(G$3,G$4,G$2),"") -> 5
A160: 156 | B160: =IF(ISNUMBER($A160),MMNexus(B$3,B$4,B$2),"") -> 60 | C160: =IF(ISNUMBER($A160),MMNexus(C$3,C$4,C$2),"") -> 17 | D160: =IF(ISNUMBER($A160),MMNexus(D$3,D$4,D$2),"") -> 51 | E160: =IF(ISNUMBER($A160),MMNexus(E$3,E$4,E$2),"") -> 63 | F160: =IF(ISNUMBER($A160),MMNexus(F$3,F$4,F$2),"") -> 55 | G160: =IF(ISNUMBER($A160),MMNexus(G$3,G$4,G$2),"") -> 13
A161: 157 | B161: =IF(ISNUMBER($A161),MMNexus(B$3,B$4,B$2),"") -> 10 | C161: =IF(ISNUMBER($A161),MMNexus(C$3,C$4,C$2),"") -> 18 | D161: =IF(ISNUMBER($A161),MMNexus(D$3,D$4,D$2),"") -> 58 | E161: =IF(ISNUMBER($A161),MMNexus(E$3,E$4,E$2),"") -> 58 | F161: =IF(ISNUMBER($A161),MMNexus(F$3,F$4,F$2),"") -> 66 | G161: =IF(ISNUMBER($A161),MMNexus(G$3,G$4,G$2),"") -> 5
A162: 158 | B162: =IF(ISNUMBER($A162),MMNexus(B$3,B$4,B$2),"") -> 26 | C162: =IF(ISNUMBER($A162),MMNexus(C$3,C$4,C$2),"") -> 22 | D162: =IF(ISNUMBER($A162),MMNexus(D$3,D$4,D$2),"") -> 47 | E162: =IF(ISNUMBER($A162),MMNexus(E$3,E$4,E$2),"") -> 69 | F162: =IF(ISNUMBER($A162),MMNexus(F$3,F$4,F$2),"") -> 75 | G162: =IF(ISNUMBER($A162),MMNexus(G$3,G$4,G$2),"") -> 13
A163: 159 | B163: =IF(ISNUMBER($A163),MMNexus(B$3,B$4,B$2),"") -> 7 | C163: =IF(ISNUMBER($A163),MMNexus(C$3,C$4,C$2),"") -> 17 | D163: =IF(ISNUMBER($A163),MMNexus(D$3,D$4,D$2),"") -> 43 | E163: =IF(ISNUMBER($A163),MMNexus(E$3,E$4,E$2),"") -> 58 | F163: =IF(ISNUMBER($A163),MMNexus(F$3,F$4,F$2),"") -> 42 | G163: =IF(ISNUMBER($A163),MMNexus(G$3,G$4,G$2),"") -> 6
A164: 160 | B164: =IF(ISNUMBER($A164),MMNexus(B$3,B$4,B$2),"") -> 27 | C164: =IF(ISNUMBER($A164),MMNexus(C$3,C$4,C$2),"") -> 42 | D164: =IF(ISNUMBER($A164),MMNexus(D$3,D$4,D$2),"") -> 41 | E164: =IF(ISNUMBER($A164),MMNexus(E$3,E$4,E$2),"") -> 35 | F164: =IF(ISNUMBER($A164),MMNexus(F$3,F$4,F$2),"") -> 73 | G164: =IF(ISNUMBER($A164),MMNexus(G$3,G$4,G$2),"") -> 15
A165: 161 | B165: =IF(ISNUMBER($A165),MMNexus(B$3,B$4,B$2),"") -> 29 | C165: =IF(ISNUMBER($A165),MMNexus(C$3,C$4,C$2),"") -> 16 | D165: =IF(ISNUMBER($A165),MMNexus(D$3,D$4,D$2),"") -> 49 | E165: =IF(ISNUMBER($A165),MMNexus(E$3,E$4,E$2),"") -> 73 | F165: =IF(ISNUMBER($A165),MMNexus(F$3,F$4,F$2),"") -> 40 | G165: =IF(ISNUMBER($A165),MMNexus(G$3,G$4,G$2),"") -> 10
A166: 162 | B166: =IF(ISNUMBER($A166),MMNexus(B$3,B$4,B$2),"") -> 23 | C166: =IF(ISNUMBER($A166),MMNexus(C$3,C$4,C$2),"") -> 22 | D166: =IF(ISNUMBER($A166),MMNexus(D$3,D$4,D$2),"") -> 68 | E166: =IF(ISNUMBER($A166),MMNexus(E$3,E$4,E$2),"") -> 69 | F166: =IF(ISNUMBER($A166),MMNexus(F$3,F$4,F$2),"") -> 72 | G166: =IF(ISNUMBER($A166),MMNexus(G$3,G$4,G$2),"") -> 15
A167: 163 | B167: =IF(ISNUMBER($A167),MMNexus(B$3,B$4,B$2),"") -> 58 | C167: =IF(ISNUMBER($A167),MMNexus(C$3,C$4,C$2),"") -> 18 | D167: =IF(ISNUMBER($A167),MMNexus(D$3,D$4,D$2),"") -> 32 | E167: =IF(ISNUMBER($A167),MMNexus(E$3,E$4,E$2),"") -> 35 | F167: =IF(ISNUMBER($A167),MMNexus(F$3,F$4,F$2),"") -> 72 | G167: =IF(ISNUMBER($A167),MMNexus(G$3,G$4,G$2),"") -> 8
A168: 164 | B168: =IF(ISNUMBER($A168),MMNexus(B$3,B$4,B$2),"") -> 17 | C168: =IF(ISNUMBER($A168),MMNexus(C$3,C$4,C$2),"") -> 3 | D168: =IF(ISNUMBER($A168),MMNexus(D$3,D$4,D$2),"") -> 9 | E168: =IF(ISNUMBER($A168),MMNexus(E$3,E$4,E$2),"") -> 63 | F168: =IF(ISNUMBER($A168),MMNexus(F$3,F$4,F$2),"") -> 67 | G168: =IF(ISNUMBER($A168),MMNexus(G$3,G$4,G$2),"") -> 14
A169: 165 | B169: =IF(ISNUMBER($A169),MMNexus(B$3,B$4,B$2),"") -> 24 | C169: =IF(ISNUMBER($A169),MMNexus(C$3,C$4,C$2),"") -> 5 | D169: =IF(ISNUMBER($A169),MMNexus(D$3,D$4,D$2),"") -> 65 | E169: =IF(ISNUMBER($A169),MMNexus(E$3,E$4,E$2),"") -> 36 | F169: =IF(ISNUMBER($A169),MMNexus(F$3,F$4,F$2),"") -> 73 | G169: =IF(ISNUMBER($A169),MMNexus(G$3,G$4,G$2),"") -> 5
A170: 166 | B170: =IF(ISNUMBER($A170),MMNexus(B$3,B$4,B$2),"") -> 30 | C170: =IF(ISNUMBER($A170),MMNexus(C$3,C$4,C$2),"") -> 57 | D170: =IF(ISNUMBER($A170),MMNexus(D$3,D$4,D$2),"") -> 49 | E170: =IF(ISNUMBER($A170),MMNexus(E$3,E$4,E$2),"") -> 74 | F170: =IF(ISNUMBER($A170),MMNexus(F$3,F$4,F$2),"") -> 75 | G170: =IF(ISNUMBER($A170),MMNexus(G$3,G$4,G$2),"") -> 12
A171: 167 | B171: =IF(ISNUMBER($A171),MMNexus(B$3,B$4,B$2),"") -> 40 | C171: =IF(ISNUMBER($A171),MMNexus(C$3,C$4,C$2),"") -> 9 | D171: =IF(ISNUMBER($A171),MMNexus(D$3,D$4,D$2),"") -> 59 | E171: =IF(ISNUMBER($A171),MMNexus(E$3,E$4,E$2),"") -> 51 | F171: =IF(ISNUMBER($A171),MMNexus(F$3,F$4,F$2),"") -> 63 | G171: =IF(ISNUMBER($A171),MMNexus(G$3,G$4,G$2),"") -> 10
A172: 168 | B172: =IF(ISNUMBER($A172),MMNexus(B$3,B$4,B$2),"") -> 57 | C172: =IF(ISNUMBER($A172),MMNexus(C$3,C$4,C$2),"") -> 61 | D172: =IF(ISNUMBER($A172),MMNexus(D$3,D$4,D$2),"") -> 65 | E172: =IF(ISNUMBER($A172),MMNexus(E$3,E$4,E$2),"") -> 14 | F172: =IF(ISNUMBER($A172),MMNexus(F$3,F$4,F$2),"") -> 47 | G172: =IF(ISNUMBER($A172),MMNexus(G$3,G$4,G$2),"") -> 8
A173: 169 | B173: =IF(ISNUMBER($A173),MMNexus(B$3,B$4,B$2),"") -> 19 | C173: =IF(ISNUMBER($A173),MMNexus(C$3,C$4,C$2),"") -> 19 | D173: =IF(ISNUMBER($A173),MMNexus(D$3,D$4,D$2),"") -> 64 | E173: =IF(ISNUMBER($A173),MMNexus(E$3,E$4,E$2),"") -> 27 | F173: =IF(ISNUMBER($A173),MMNexus(F$3,F$4,F$2),"") -> 58 | G173: =IF(ISNUMBER($A173),MMNexus(G$3,G$4,G$2),"") -> 15
A174: 170 | B174: =IF(ISNUMBER($A174),MMNexus(B$3,B$4,B$2),"") -> 19 | C174: =IF(ISNUMBER($A174),MMNexus(C$3,C$4,C$2),"") -> 20 | D174: =IF(ISNUMBER($A174),MMNexus(D$3,D$4,D$2),"") -> 55 | E174: =IF(ISNUMBER($A174),MMNexus(E$3,E$4,E$2),"") -> 44 | F174: =IF(ISNUMBER($A174),MMNexus(F$3,F$4,F$2),"") -> 62 | G174: =IF(ISNUMBER($A174),MMNexus(G$3,G$4,G$2),"") -> 9
A175: 171 | B175: =IF(ISNUMBER($A175),MMNexus(B$3,B$4,B$2),"") -> 10 | C175: =IF(ISNUMBER($A175),MMNexus(C$3,C$4,C$2),"") -> 33 | D175: =IF(ISNUMBER($A175),MMNexus(D$3,D$4,D$2),"") -> 40 | E175: =IF(ISNUMBER($A175),MMNexus(E$3,E$4,E$2),"") -> 35 | F175: =IF(ISNUMBER($A175),MMNexus(F$3,F$4,F$2),"") -> 73 | G175: =IF(ISNUMBER($A175),MMNexus(G$3,G$4,G$2),"") -> 12
A176: 172 | B176: =IF(ISNUMBER($A176),MMNexus(B$3,B$4,B$2),"") -> 4 | C176: =IF(ISNUMBER($A176),MMNexus(C$3,C$4,C$2),"") -> 72 | D176: =IF(ISNUMBER($A176),MMNexus(D$3,D$4,D$2),"") -> 42 | E176: =IF(ISNUMBER($A176),MMNexus(E$3,E$4,E$2),"") -> 66 | F176: =IF(ISNUMBER($A176),MMNexus(F$3,F$4,F$2),"") -> 75 | G176: =IF(ISNUMBER($A176),MMNexus(G$3,G$4,G$2),"") -> 14
A177: 173 | B177: =IF(ISNUMBER($A177),MMNexus(B$3,B$4,B$2),"") -> 17 | C177: =IF(ISNUMBER($A177),MMNexus(C$3,C$4,C$2),"") -> 42 | D177: =IF(ISNUMBER($A177),MMNexus(D$3,D$4,D$2),"") -> 57 | E177: =IF(ISNUMBER($A177),MMNexus(E$3,E$4,E$2),"") -> 67 | F177: =IF(ISNUMBER($A177),MMNexus(F$3,F$4,F$2),"") -> 58 | G177: =IF(ISNUMBER($A177),MMNexus(G$3,G$4,G$2),"") -> 10
A178: 174 | B178: =IF(ISNUMBER($A178),MMNexus(B$3,B$4,B$2),"") -> 41 | C178: =IF(ISNUMBER($A178),MMNexus(C$3,C$4,C$2),"") -> 50 | D178: =IF(ISNUMBER($A178),MMNexus(D$3,D$4,D$2),"") -> 37 | E178: =IF(ISNUMBER($A178),MMNexus(E$3,E$4,E$2),"") -> 53 | F178: =IF(ISNUMBER($A178),MMNexus(F$3,F$4,F$2),"") -> 46 | G178: =IF(ISNUMBER($A178),MMNexus(G$3,G$4,G$2),"") -> 10
A179: 175 | B179: =IF(ISNUMBER($A179),MMNexus(B$3,B$4,B$2),"") -> 58 | C179: =IF(ISNUMBER($A179),MMNexus(C$3,C$4,C$2),"") -> 71 | D179: =IF(ISNUMBER($A179),MMNexus(D$3,D$4,D$2),"") -> 50 | E179: =IF(ISNUMBER($A179),MMNexus(E$3,E$4,E$2),"") -> 61 | F179: =IF(ISNUMBER($A179),MMNexus(F$3,F$4,F$2),"") -> 64 | G179: =IF(ISNUMBER($A179),MMNexus(G$3,G$4,G$2),"") -> 8
A180: 176 | B180: =IF(ISNUMBER($A180),MMNexus(B$3,B$4,B$2),"") -> 9 | C180: =IF(ISNUMBER($A180),MMNexus(C$3,C$4,C$2),"") -> 38 | D180: =IF(ISNUMBER($A180),MMNexus(D$3,D$4,D$2),"") -> 65 | E180: =IF(ISNUMBER($A180),MMNexus(E$3,E$4,E$2),"") -> 28 | F180: =IF(ISNUMBER($A180),MMNexus(F$3,F$4,F$2),"") -> 73 | G180: =IF(ISNUMBER($A180),MMNexus(G$3,G$4,G$2),"") -> 8
A181: 177 | B181: =IF(ISNUMBER($A181),MMNexus(B$3,B$4,B$2),"") -> 36 | C181: =IF(ISNUMBER($A181),MMNexus(C$3,C$4,C$2),"") -> 26 | D181: =IF(ISNUMBER($A181),MMNexus(D$3,D$4,D$2),"") -> 11 | E181: =IF(ISNUMBER($A181),MMNexus(E$3,E$4,E$2),"") -> 54 | F181: =IF(ISNUMBER($A181),MMNexus(F$3,F$4,F$2),"") -> 72 | G181: =IF(ISNUMBER($A181),MMNexus(G$3,G$4,G$2),"") -> 11
A182: 178 | B182: =IF(ISNUMBER($A182),MMNexus(B$3,B$4,B$2),"") -> 27 | C182: =IF(ISNUMBER($A182),MMNexus(C$3,C$4,C$2),"") -> 4 | D182: =IF(ISNUMBER($A182),MMNexus(D$3,D$4,D$2),"") -> 25 | E182: =IF(ISNUMBER($A182),MMNexus(E$3,E$4,E$2),"") -> 54 | F182: =IF(ISNUMBER($A182),MMNexus(F$3,F$4,F$2),"") -> 61 | G182: =IF(ISNUMBER($A182),MMNexus(G$3,G$4,G$2),"") -> 13
A183: 179 | B183: =IF(ISNUMBER($A183),MMNexus(B$3,B$4,B$2),"") -> 49 | C183: =IF(ISNUMBER($A183),MMNexus(C$3,C$4,C$2),"") -> 42 | D183: =IF(ISNUMBER($A183),MMNexus(D$3,D$4,D$2),"") -> 62 | E183: =IF(ISNUMBER($A183),MMNexus(E$3,E$4,E$2),"") -> 58 | F183: =IF(ISNUMBER($A183),MMNexus(F$3,F$4,F$2),"") -> 59 | G183: =IF(ISNUMBER($A183),MMNexus(G$3,G$4,G$2),"") -> 13
A184: 180 | B184: =IF(ISNUMBER($A184),MMNexus(B$3,B$4,B$2),"") -> 26 | C184: =IF(ISNUMBER($A184),MMNexus(C$3,C$4,C$2),"") -> 38 | D184: =IF(ISNUMBER($A184),MMNexus(D$3,D$4,D$2),"") -> 61 | E184: =IF(ISNUMBER($A184),MMNexus(E$3,E$4,E$2),"") -> 24 | F184: =IF(ISNUMBER($A184),MMNexus(F$3,F$4,F$2),"") -> 40 | G184: =IF(ISNUMBER($A184),MMNexus(G$3,G$4,G$2),"") -> 10
A185: 181 | B185: =IF(ISNUMBER($A185),MMNexus(B$3,B$4,B$2),"") -> 23 | C185: =IF(ISNUMBER($A185),MMNexus(C$3,C$4,C$2),"") -> 11 | D185: =IF(ISNUMBER($A185),MMNexus(D$3,D$4,D$2),"") -> 37 | E185: =IF(ISNUMBER($A185),MMNexus(E$3,E$4,E$2),"") -> 70 | F185: =IF(ISNUMBER($A185),MMNexus(F$3,F$4,F$2),"") -> 28 | G185: =IF(ISNUMBER($A185),MMNexus(G$3,G$4,G$2),"") -> 14
A186: 182 | B186: =IF(ISNUMBER($A186),MMNexus(B$3,B$4,B$2),"") -> 14 | C186: =IF(ISNUMBER($A186),MMNexus(C$3,C$4,C$2),"") -> 10 | D186: =IF(ISNUMBER($A186),MMNexus(D$3,D$4,D$2),"") -> 47 | E186: =IF(ISNUMBER($A186),MMNexus(E$3,E$4,E$2),"") -> 61 | F186: =IF(ISNUMBER($A186),MMNexus(F$3,F$4,F$2),"") -> 58 | G186: =IF(ISNUMBER($A186),MMNexus(G$3,G$4,G$2),"") -> 10
A187: 183 | B187: =IF(ISNUMBER($A187),MMNexus(B$3,B$4,B$2),"") -> 11 | C187: =IF(ISNUMBER($A187),MMNexus(C$3,C$4,C$2),"") -> 10 | D187: =IF(ISNUMBER($A187),MMNexus(D$3,D$4,D$2),"") -> 55 | E187: =IF(ISNUMBER($A187),MMNexus(E$3,E$4,E$2),"") -> 47 | F187: =IF(ISNUMBER($A187),MMNexus(F$3,F$4,F$2),"") -> 54 | G187: =IF(ISNUMBER($A187),MMNexus(G$3,G$4,G$2),"") -> 13
A188: 184 | B188: =IF(ISNUMBER($A188),MMNexus(B$3,B$4,B$2),"") -> 20 | C188: =IF(ISNUMBER($A188),MMNexus(C$3,C$4,C$2),"") -> 16 | D188: =IF(ISNUMBER($A188),MMNexus(D$3,D$4,D$2),"") -> 22 | E188: =IF(ISNUMBER($A188),MMNexus(E$3,E$4,E$2),"") -> 44 | F188: =IF(ISNUMBER($A188),MMNexus(F$3,F$4,F$2),"") -> 74 | G188: =IF(ISNUMBER($A188),MMNexus(G$3,G$4,G$2),"") -> 10
A189: 185 | B189: =IF(ISNUMBER($A189),MMNexus(B$3,B$4,B$2),"") -> 17 | C189: =IF(ISNUMBER($A189),MMNexus(C$3,C$4,C$2),"") -> 11 | D189: =IF(ISNUMBER($A189),MMNexus(D$3,D$4,D$2),"") -> 36 | E189: =IF(ISNUMBER($A189),MMNexus(E$3,E$4,E$2),"") -> 69 | F189: =IF(ISNUMBER($A189),MMNexus(F$3,F$4,F$2),"") -> 70 | G189: =IF(ISNUMBER($A189),MMNexus(G$3,G$4,G$2),"") -> 10
A190: 186 | B190: =IF(ISNUMBER($A190),MMNexus(B$3,B$4,B$2),"") -> 52 | C190: =IF(ISNUMBER($A190),MMNexus(C$3,C$4,C$2),"") -> 48 | D190: =IF(ISNUMBER($A190),MMNexus(D$3,D$4,D$2),"") -> 52 | E190: =IF(ISNUMBER($A190),MMNexus(E$3,E$4,E$2),"") -> 72 | F190: =IF(ISNUMBER($A190),MMNexus(F$3,F$4,F$2),"") -> 69 | G190: =IF(ISNUMBER($A190),MMNexus(G$3,G$4,G$2),"") -> 1
A191: 187 | B191: =IF(ISNUMBER($A191),MMNexus(B$3,B$4,B$2),"") -> 52 | C191: =IF(ISNUMBER($A191),MMNexus(C$3,C$4,C$2),"") -> 22 | D191: =IF(ISNUMBER($A191),MMNexus(D$3,D$4,D$2),"") -> 25 | E191: =IF(ISNUMBER($A191),MMNexus(E$3,E$4,E$2),"") -> 51 | F191: =IF(ISNUMBER($A191),MMNexus(F$3,F$4,F$2),"") -> 70 | G191: =IF(ISNUMBER($A191),MMNexus(G$3,G$4,G$2),"") -> 8
A192: 188 | B192: =IF(ISNUMBER($A192),MMNexus(B$3,B$4,B$2),"") -> 12 | C192: =IF(ISNUMBER($A192),MMNexus(C$3,C$4,C$2),"") -> 33 | D192: =IF(ISNUMBER($A192),MMNexus(D$3,D$4,D$2),"") -> 54 | E192: =IF(ISNUMBER($A192),MMNexus(E$3,E$4,E$2),"") -> 50 | F192: =IF(ISNUMBER($A192),MMNexus(F$3,F$4,F$2),"") -> 73 | G192: =IF(ISNUMBER($A192),MMNexus(G$3,G$4,G$2),"") -> 10
A193: 189 | B193: =IF(ISNUMBER($A193),MMNexus(B$3,B$4,B$2),"") -> 17 | C193: =IF(ISNUMBER($A193),MMNexus(C$3,C$4,C$2),"") -> 27 | D193: =IF(ISNUMBER($A193),MMNexus(D$3,D$4,D$2),"") -> 52 | E193: =IF(ISNUMBER($A193),MMNexus(E$3,E$4,E$2),"") -> 64 | F193: =IF(ISNUMBER($A193),MMNexus(F$3,F$4,F$2),"") -> 50 | G193: =IF(ISNUMBER($A193),MMNexus(G$3,G$4,G$2),"") -> 12
A194: 190 | B194: =IF(ISNUMBER($A194),MMNexus(B$3,B$4,B$2),"") -> 9 | C194: =IF(ISNUMBER($A194),MMNexus(C$3,C$4,C$2),"") -> 23 | D194: =IF(ISNUMBER($A194),MMNexus(D$3,D$4,D$2),"") -> 67 | E194: =IF(ISNUMBER($A194),MMNexus(E$3,E$4,E$2),"") -> 68 | F194: =IF(ISNUMBER($A194),MMNexus(F$3,F$4,F$2),"") -> 67 | G194: =IF(ISNUMBER($A194),MMNexus(G$3,G$4,G$2),"") -> 12
A195: 191 | B195: =IF(ISNUMBER($A195),MMNexus(B$3,B$4,B$2),"") -> 32 | C195: =IF(ISNUMBER($A195),MMNexus(C$3,C$4,C$2),"") -> 13 | D195: =IF(ISNUMBER($A195),MMNexus(D$3,D$4,D$2),"") -> 69 | E195: =IF(ISNUMBER($A195),MMNexus(E$3,E$4,E$2),"") -> 43 | F195: =IF(ISNUMBER($A195),MMNexus(F$3,F$4,F$2),"") -> 69 | G195: =IF(ISNUMBER($A195),MMNexus(G$3,G$4,G$2),"") -> 7
A196: 192 | B196: =IF(ISNUMBER($A196),MMNexus(B$3,B$4,B$2),"") -> 49 | C196: =IF(ISNUMBER($A196),MMNexus(C$3,C$4,C$2),"") -> 32 | D196: =IF(ISNUMBER($A196),MMNexus(D$3,D$4,D$2),"") -> 27 | E196: =IF(ISNUMBER($A196),MMNexus(E$3,E$4,E$2),"") -> 31 | F196: =IF(ISNUMBER($A196),MMNexus(F$3,F$4,F$2),"") -> 55 | G196: =IF(ISNUMBER($A196),MMNexus(G$3,G$4,G$2),"") -> 15
A197: 193 | B197: =IF(ISNUMBER($A197),MMNexus(B$3,B$4,B$2),"") -> 36 | C197: =IF(ISNUMBER($A197),MMNexus(C$3,C$4,C$2),"") -> 33 | D197: =IF(ISNUMBER($A197),MMNexus(D$3,D$4,D$2),"") -> 30 | E197: =IF(ISNUMBER($A197),MMNexus(E$3,E$4,E$2),"") -> 54 | F197: =IF(ISNUMBER($A197),MMNexus(F$3,F$4,F$2),"") -> 52 | G197: =IF(ISNUMBER($A197),MMNexus(G$3,G$4,G$2),"") -> 10
A198: 194 | B198: =IF(ISNUMBER($A198),MMNexus(B$3,B$4,B$2),"") -> 34 | C198: =IF(ISNUMBER($A198),MMNexus(C$3,C$4,C$2),"") -> 27 | D198: =IF(ISNUMBER($A198),MMNexus(D$3,D$4,D$2),"") -> 46 | E198: =IF(ISNUMBER($A198),MMNexus(E$3,E$4,E$2),"") -> 50 | F198: =IF(ISNUMBER($A198),MMNexus(F$3,F$4,F$2),"") -> 61 | G198: =IF(ISNUMBER($A198),MMNexus(G$3,G$4,G$2),"") -> 6
A199: =IF(ISNUMBER(A198),IF(A198+1<=M$4,A198+1,""),"") -> 195 | B199: =IF(ISNUMBER($A199),MMNexus(B$3,B$4,B$2),"") -> 47 | C199: =IF(ISNUMBER($A199),MMNexus(C$3,C$4,C$2),"") -> 35 | D199: =IF(ISNUMBER($A199),MMNexus(D$3,D$4,D$2),"") -> 49 | E199: =IF(ISNUMBER($A199),MMNexus(E$3,E$4,E$2),"") -> 23 | F199: =IF(ISNUMBER($A199),MMNexus(F$3,F$4,F$2),"") -> 72 | G199: =IF(ISNUMBER($A199),MMNexus(G$3,G$4,G$2),"") -> 4
A200: 196 | B200: =IF(ISNUMBER($A200),MMNexus(B$3,B$4,B$2),"") -> 17 | C200: =IF(ISNUMBER($A200),MMNexus(C$3,C$4,C$2),"") -> 20 | D200: =IF(ISNUMBER($A200),MMNexus(D$3,D$4,D$2),"") -> 63 | E200: =IF(ISNUMBER($A200),MMNexus(E$3,E$4,E$2),"") -> 57 | F200: =IF(ISNUMBER($A200),MMNexus(F$3,F$4,F$2),"") -> 61 | G200: =IF(ISNUMBER($A200),MMNexus(G$3,G$4,G$2),"") -> 11
... 1304 more rows

Sheet Powerball Unbounded
A1: Index | B1: A | C1: B | D1: C | E1: D | F1: E | G1: PB
B2: 1 | C2: 2 | D2: 3 | E2: 4 | F2: 5 | G2: 6
B3: 29 | C3: 41 | D3: 48 | E3: 52 | F3: 54 | G3: 29 | I3: Enter Last Two Draws Here
B4: 31 | C4: 32 | D4: 48 | E4: 49 | F4: 53 | G4: 25 | I4: Enter Number of Selections Here | M4: 1500 | N4: (1 to 1500)
A5: =IF(M4>0,1,"") -> 1 | B5: =IF(ISNUMBER($A5),PBNexus(B$3,B$4,B$2),"") -> 18 | C5: =IF(ISNUMBER($A5),PBNexus(C$3,C$4,C$2),"") -> 6 | D5: =IF(ISNUMBER($A5),PBNexus(D$3,D$4,D$2),"") -> 10 | E5: =IF(ISNUMBER($A5),PBNexus(E$3,E$4,E$2),"") -> 23 | F5: =IF(ISNUMBER($A5),PBNexus(F$3,F$4,F$2),"") -> 54 | G5: =IF(ISNUMBER($A5),PBNexus(G$3,G$4,G$2),"") -> 10
A6: =IF(ISNUMBER(A5),IF(A5+1<=M$4,A5+1,""),"") -> 2 | B6: =IF(ISNUMBER($A6),PBNexus(B$3,B$4,B$2),"") -> 3 | C6: =IF(ISNUMBER($A6),PBNexus(C$3,C$4,C$2),"") -> 5 | D6: =IF(ISNUMBER($A6),PBNexus(D$3,D$4,D$2),"") -> 4 | E6: =IF(ISNUMBER($A6),PBNexus(E$3,E$4,E$2),"") -> 9 | F6: =IF(ISNUMBER($A6),PBNexus(F$3,F$4,F$2),"") -> 36 | G6: =IF(ISNUMBER($A6),PBNexus(G$3,G$4,G$2),"") -> 5 | I6: Powerball
A7: =IF(ISNUMBER(A6),IF(A6+1<=M$4,A6+1,""),"") -> 3 | B7: =IF(ISNUMBER($A7),PBNexus(B$3,B$4,B$2),"") -> 3 | C7: =IF(ISNUMBER($A7),PBNexus(C$3,C$4,C$2),"") -> 29 | D7: =IF(ISNUMBER($A7),PBNexus(D$3,D$4,D$2),"") -> 36 | E7: =IF(ISNUMBER($A7),PBNexus(E$3,E$4,E$2),"") -> 42 | F7: =IF(ISNUMBER($A7),PBNexus(F$3,F$4,F$2),"") -> 51 | G7: =IF(ISNUMBER($A7),PBNexus(G$3,G$4,G$2),"") -> 1 | I7: Max → | J7: =MAX(J10:J68) -> 180 | K7: =MAX(K10:K68) -> 118 | L7: 91 | M7: 56 | N7: 62 | O7: =MAX(O10:O44) -> 85
A8: 4 | B8: =IF(ISNUMBER($A8),PBNexus(B$3,B$4,B$2),"") -> 11 | C8: =IF(ISNUMBER($A8),PBNexus(C$3,C$4,C$2),"") -> 13 | D8: =IF(ISNUMBER($A8),PBNexus(D$3,D$4,D$2),"") -> 5 | E8: =IF(ISNUMBER($A8),PBNexus(E$3,E$4,E$2),"") -> 15 | F8: =IF(ISNUMBER($A8),PBNexus(F$3,F$4,F$2),"") -> 30 | G8: =IF(ISNUMBER($A8),PBNexus(G$3,G$4,G$2),"") -> 15 | I8: Number | J8: Pick 5 | O8: Pick 1
A9: 5 | B9: =IF(ISNUMBER($A9),PBNexus(B$3,B$4,B$2),"") -> 11 | C9: =IF(ISNUMBER($A9),PBNexus(C$3,C$4,C$2),"") -> 16 | D9: =IF(ISNUMBER($A9),PBNexus(D$3,D$4,D$2),"") -> 16 | E9: =IF(ISNUMBER($A9),PBNexus(E$3,E$4,E$2),"") -> 28 | F9: =IF(ISNUMBER($A9),PBNexus(F$3,F$4,F$2),"") -> 46 | G9: =IF(ISNUMBER($A9),PBNexus(G$3,G$4,G$2),"") -> 14 | J9: A | K9: B | L9: C | M9: D | N9: E | O9: PB
A10: 6 | B10: =IF(ISNUMBER($A10),PBNexus(B$3,B$4,B$2),"") -> 12 | C10: =IF(ISNUMBER($A10),PBNexus(C$3,C$4,C$2),"") -> 16 | D10: =IF(ISNUMBER($A10),PBNexus(D$3,D$4,D$2),"") -> 11 | E10: =IF(ISNUMBER($A10),PBNexus(E$3,E$4,E$2),"") -> 40 | F10: =IF(ISNUMBER($A10),PBNexus(F$3,F$4,F$2),"") -> 52 | G10: =IF(ISNUMBER($A10),PBNexus(G$3,G$4,G$2),"") -> 1 | I10: 1 | J10: =FrequencyCount(B$5:B$1504,$I10) -> 164 | K10: =FrequencyCount(C$5:C$1504,$I10) -> 0 | L10: =FrequencyCount(D$5:D$1504,$I10) -> 0 | M10: =FrequencyCount(E$5:E$1504,$I10) -> 0 | N10: =FrequencyCount(F$5:F$1504,$I10) -> 0 | O10: =FrequencyCount(G$5:G$1504,$I10) -> 85
A11: 7 | B11: =IF(ISNUMBER($A11),PBNexus(B$3,B$4,B$2),"") -> 9 | C11: =IF(ISNUMBER($A11),PBNexus(C$3,C$4,C$2),"") -> 29 | D11: =IF(ISNUMBER($A11),PBNexus(D$3,D$4,D$2),"") -> 11 | E11: =IF(ISNUMBER($A11),PBNexus(E$3,E$4,E$2),"") -> 32 | F11: =IF(ISNUMBER($A11),PBNexus(F$3,F$4,F$2),"") -> 49 | G11: =IF(ISNUMBER($A11),PBNexus(G$3,G$4,G$2),"") -> 10 | I11: 2 | J11: 180 | K11: 118 | L11: 0 | M11: 0 | N11: 0 | O11: 79
A12: 8 | B12: =IF(ISNUMBER($A12),PBNexus(B$3,B$4,B$2),"") -> 3 | C12: =IF(ISNUMBER($A12),PBNexus(C$3,C$4,C$2),"") -> 3 | D12: =IF(ISNUMBER($A12),PBNexus(D$3,D$4,D$2),"") -> 6 | E12: =IF(ISNUMBER($A12),PBNexus(E$3,E$4,E$2),"") -> 28 | F12: =IF(ISNUMBER($A12),PBNexus(F$3,F$4,F$2),"") -> 31 | G12: =IF(ISNUMBER($A12),PBNexus(G$3,G$4,G$2),"") -> 9 | I12: 3 | J12: 133 | K12: 92 | L12: 80 | M12: 0 | N12: 0 | O12: 60
A13: 9 | B13: =IF(ISNUMBER($A13),PBNexus(B$3,B$4,B$2),"") -> 13 | C13: =IF(ISNUMBER($A13),PBNexus(C$3,C$4,C$2),"") -> 6 | D13: =IF(ISNUMBER($A13),PBNexus(D$3,D$4,D$2),"") -> 12 | E13: =IF(ISNUMBER($A13),PBNexus(E$3,E$4,E$2),"") -> 7 | F13: =IF(ISNUMBER($A13),PBNexus(F$3,F$4,F$2),"") -> 23 | G13: =IF(ISNUMBER($A13),PBNexus(G$3,G$4,G$2),"") -> 16 | I13: 4 | J13: 138 | K13: 98 | L13: 85 | M13: 17 | N13: 0 | O13: 67
A14: 10 | B14: =IF(ISNUMBER($A14),PBNexus(B$3,B$4,B$2),"") -> 8 | C14: =IF(ISNUMBER($A14),PBNexus(C$3,C$4,C$2),"") -> 6 | D14: =IF(ISNUMBER($A14),PBNexus(D$3,D$4,D$2),"") -> 6 | E14: =IF(ISNUMBER($A14),PBNexus(E$3,E$4,E$2),"") -> 37 | F14: =IF(ISNUMBER($A14),PBNexus(F$3,F$4,F$2),"") -> 32 | G14: =IF(ISNUMBER($A14),PBNexus(G$3,G$4,G$2),"") -> 29 | I14: 5 | J14: 111 | K14: 86 | L14: 77 | M14: 22 | N14: 3 | O14: 64
A15: 11 | B15: =IF(ISNUMBER($A15),PBNexus(B$3,B$4,B$2),"") -> 8 | C15: =IF(ISNUMBER($A15),PBNexus(C$3,C$4,C$2),"") -> 7 | D15: =IF(ISNUMBER($A15),PBNexus(D$3,D$4,D$2),"") -> 20 | E15: =IF(ISNUMBER($A15),PBNexus(E$3,E$4,E$2),"") -> 29 | F15: =IF(ISNUMBER($A15),PBNexus(F$3,F$4,F$2),"") -> 42 | G15: =IF(ISNUMBER($A15),PBNexus(G$3,G$4,G$2),"") -> 6 | I15: 6 | J15: 82 | K15: 69 | L15: 85 | M15: 24 | N15: 4 | O15: 69
A16: 12 | B16: =IF(ISNUMBER($A16),PBNexus(B$3,B$4,B$2),"") -> 29 | C16: =IF(ISNUMBER($A16),PBNexus(C$3,C$4,C$2),"") -> 8 | D16: =IF(ISNUMBER($A16),PBNexus(D$3,D$4,D$2),"") -> 19 | E16: =IF(ISNUMBER($A16),PBNexus(E$3,E$4,E$2),"") -> 55 | F16: =IF(ISNUMBER($A16),PBNexus(F$3,F$4,F$2),"") -> 45 | G16: =IF(ISNUMBER($A16),PBNexus(G$3,G$4,G$2),"") -> 6 | I16: 7 | J16: 78 | K16: 88 | L16: 63 | M16: 30 | N16: 5 | O16: 67
A17: 13 | B17: =IF(ISNUMBER($A17),PBNexus(B$3,B$4,B$2),"") -> 11 | C17: =IF(ISNUMBER($A17),PBNexus(C$3,C$4,C$2),"") -> 22 | D17: =IF(ISNUMBER($A17),PBNexus(D$3,D$4,D$2),"") -> 14 | E17: =IF(ISNUMBER($A17),PBNexus(E$3,E$4,E$2),"") -> 10 | F17: =IF(ISNUMBER($A17),PBNexus(F$3,F$4,F$2),"") -> 52 | G17: =IF(ISNUMBER($A17),PBNexus(G$3,G$4,G$2),"") -> 16 | I17: 8 | J17: 76 | K17: 78 | L17: 60 | M17: 39 | N17: 3 | O17: 64
A18: 14 | B18: =IF(ISNUMBER($A18),PBNexus(B$3,B$4,B$2),"") -> 1 | C18: =IF(ISNUMBER($A18),PBNexus(C$3,C$4,C$2),"") -> 28 | D18: =IF(ISNUMBER($A18),PBNexus(D$3,D$4,D$2),"") -> 10 | E18: =IF(ISNUMBER($A18),PBNexus(E$3,E$4,E$2),"") -> 35 | F18: =IF(ISNUMBER($A18),PBNexus(F$3,F$4,F$2),"") -> 46 | G18: =IF(ISNUMBER($A18),PBNexus(G$3,G$4,G$2),"") -> 24 | I18: 9 | J18: 62 | K18: 76 | L18: 63 | M18: 39 | N18: 0 | O18: 62
A19: 15 | B19: =IF(ISNUMBER($A19),PBNexus(B$3,B$4,B$2),"") -> 12 | C19: =IF(ISNUMBER($A19),PBNexus(C$3,C$4,C$2),"") -> 3 | D19: =IF(ISNUMBER($A19),PBNexus(D$3,D$4,D$2),"") -> 17 | E19: =IF(ISNUMBER($A19),PBNexus(E$3,E$4,E$2),"") -> 12 | F19: =IF(ISNUMBER($A19),PBNexus(F$3,F$4,F$2),"") -> 46 | G19: =IF(ISNUMBER($A19),PBNexus(G$3,G$4,G$2),"") -> 16 | I19: 10 | J19: 53 | K19: 68 | L19: 91 | M19: 31 | N19: 5 | O19: 61
A20: 16 | B20: =IF(ISNUMBER($A20),PBNexus(B$3,B$4,B$2),"") -> 1 | C20: =IF(ISNUMBER($A20),PBNexus(C$3,C$4,C$2),"") -> 19 | D20: =IF(ISNUMBER($A20),PBNexus(D$3,D$4,D$2),"") -> 14 | E20: =IF(ISNUMBER($A20),PBNexus(E$3,E$4,E$2),"") -> 13 | F20: =IF(ISNUMBER($A20),PBNexus(F$3,F$4,F$2),"") -> 55 | G20: =IF(ISNUMBER($A20),PBNexus(G$3,G$4,G$2),"") -> 26 | I20: 11 | J20: 49 | K20: 75 | L20: 73 | M20: 33 | N20: 1 | O20: 49
A21: 17 | B21: =IF(ISNUMBER($A21),PBNexus(B$3,B$4,B$2),"") -> 6 | C21: =IF(ISNUMBER($A21),PBNexus(C$3,C$4,C$2),"") -> 9 | D21: =IF(ISNUMBER($A21),PBNexus(D$3,D$4,D$2),"") -> 38 | E21: =IF(ISNUMBER($A21),PBNexus(E$3,E$4,E$2),"") -> 36 | F21: =IF(ISNUMBER($A21),PBNexus(F$3,F$4,F$2),"") -> 59 | G21: =IF(ISNUMBER($A21),PBNexus(G$3,G$4,G$2),"") -> 13 | I21: 12 | J21: 50 | K21: 66 | L21: 68 | M21: 41 | N21: 6 | O21: 54
A22: 18 | B22: =IF(ISNUMBER($A22),PBNexus(B$3,B$4,B$2),"") -> 2 | C22: =IF(ISNUMBER($A22),PBNexus(C$3,C$4,C$2),"") -> 18 | D22: =IF(ISNUMBER($A22),PBNexus(D$3,D$4,D$2),"") -> 4 | E22: =IF(ISNUMBER($A22),PBNexus(E$3,E$4,E$2),"") -> 33 | F22: =IF(ISNUMBER($A22),PBNexus(F$3,F$4,F$2),"") -> 44 | G22: =IF(ISNUMBER($A22),PBNexus(G$3,G$4,G$2),"") -> 10 | I22: 13 | J22: 55 | K22: 54 | L22: 61 | M22: 33 | N22: 3 | O22: 51
A23: 19 | B23: =IF(ISNUMBER($A23),PBNexus(B$3,B$4,B$2),"") -> 3 | C23: =IF(ISNUMBER($A23),PBNexus(C$3,C$4,C$2),"") -> 11 | D23: =IF(ISNUMBER($A23),PBNexus(D$3,D$4,D$2),"") -> 12 | E23: =IF(ISNUMBER($A23),PBNexus(E$3,E$4,E$2),"") -> 36 | F23: =IF(ISNUMBER($A23),PBNexus(F$3,F$4,F$2),"") -> 59 | G23: =IF(ISNUMBER($A23),PBNexus(G$3,G$4,G$2),"") -> 12 | I23: 14 | J23: 36 | K23: 52 | L23: 58 | M23: 50 | N23: 5 | O23: 68
A24: 20 | B24: =IF(ISNUMBER($A24),PBNexus(B$3,B$4,B$2),"") -> 15 | C24: =IF(ISNUMBER($A24),PBNexus(C$3,C$4,C$2),"") -> 16 | D24: =IF(ISNUMBER($A24),PBNexus(D$3,D$4,D$2),"") -> 19 | E24: =IF(ISNUMBER($A24),PBNexus(E$3,E$4,E$2),"") -> 32 | F24: =IF(ISNUMBER($A24),PBNexus(F$3,F$4,F$2),"") -> 27 | G24: =IF(ISNUMBER($A24),PBNexus(G$3,G$4,G$2),"") -> 21 | I24: 15 | J24: 52 | K24: 46 | L24: 53 | M24: 37 | N24: 5 | O24: 41
A25: 21 | B25: =IF(ISNUMBER($A25),PBNexus(B$3,B$4,B$2),"") -> 8 | C25: =IF(ISNUMBER($A25),PBNexus(C$3,C$4,C$2),"") -> 7 | D25: =IF(ISNUMBER($A25),PBNexus(D$3,D$4,D$2),"") -> 26 | E25: =IF(ISNUMBER($A25),PBNexus(E$3,E$4,E$2),"") -> 31 | F25: =IF(ISNUMBER($A25),PBNexus(F$3,F$4,F$2),"") -> 59 | G25: =IF(ISNUMBER($A25),PBNexus(G$3,G$4,G$2),"") -> 7 | I25: 16 | J25: 27 | K25: 48 | L25: 45 | M25: 35 | N25: 7 | O25: 51
A26: 22 | B26: =IF(ISNUMBER($A26),PBNexus(B$3,B$4,B$2),"") -> 5 | C26: =IF(ISNUMBER($A26),PBNexus(C$3,C$4,C$2),"") -> 28 | D26: =IF(ISNUMBER($A26),PBNexus(D$3,D$4,D$2),"") -> 20 | E26: =IF(ISNUMBER($A26),PBNexus(E$3,E$4,E$2),"") -> 44 | F26: =IF(ISNUMBER($A26),PBNexus(F$3,F$4,F$2),"") -> 41 | G26: =IF(ISNUMBER($A26),PBNexus(G$3,G$4,G$2),"") -> 1 | I26: 17 | J26: 12 | K26: 47 | L26: 47 | M26: 38 | N26: 7 | O26: 39
A27: 23 | B27: =IF(ISNUMBER($A27),PBNexus(B$3,B$4,B$2),"") -> 5 | C27: =IF(ISNUMBER($A27),PBNexus(C$3,C$4,C$2),"") -> 2 | D27: =IF(ISNUMBER($A27),PBNexus(D$3,D$4,D$2),"") -> 4 | E27: =IF(ISNUMBER($A27),PBNexus(E$3,E$4,E$2),"") -> 44 | F27: =IF(ISNUMBER($A27),PBNexus(F$3,F$4,F$2),"") -> 32 | G27: =IF(ISNUMBER($A27),PBNexus(G$3,G$4,G$2),"") -> 29 | I27: 18 | J27: 18 | K27: 38 | L27: 35 | M27: 50 | N27: 8 | O27: 38
A28: 24 | B28: =IF(ISNUMBER($A28),PBNexus(B$3,B$4,B$2),"") -> 3 | C28: =IF(ISNUMBER($A28),PBNexus(C$3,C$4,C$2),"") -> 8 | D28: =IF(ISNUMBER($A28),PBNexus(D$3,D$4,D$2),"") -> 6 | E28: =IF(ISNUMBER($A28),PBNexus(E$3,E$4,E$2),"") -> 26 | F28: =IF(ISNUMBER($A28),PBNexus(F$3,F$4,F$2),"") -> 53 | G28: =IF(ISNUMBER($A28),PBNexus(G$3,G$4,G$2),"") -> 27 | I28: 19 | J28: 17 | K28: 21 | L28: 41 | M28: 43 | N28: 11 | O28: 40
A29: 25 | B29: =IF(ISNUMBER($A29),PBNexus(B$3,B$4,B$2),"") -> 6 | C29: =IF(ISNUMBER($A29),PBNexus(C$3,C$4,C$2),"") -> 6 | D29: =IF(ISNUMBER($A29),PBNexus(D$3,D$4,D$2),"") -> 7 | E29: =IF(ISNUMBER($A29),PBNexus(E$3,E$4,E$2),"") -> 17 | F29: =IF(ISNUMBER($A29),PBNexus(F$3,F$4,F$2),"") -> 36 | G29: =IF(ISNUMBER($A29),PBNexus(G$3,G$4,G$2),"") -> 17 | I29: 20 | J29: 10 | K29: 23 | L29: 42 | M29: 35 | N29: 8 | O29: 35
A30: 26 | B30: =IF(ISNUMBER($A30),PBNexus(B$3,B$4,B$2),"") -> 8 | C30: =IF(ISNUMBER($A30),PBNexus(C$3,C$4,C$2),"") -> 11 | D30: =IF(ISNUMBER($A30),PBNexus(D$3,D$4,D$2),"") -> 15 | E30: =IF(ISNUMBER($A30),PBNexus(E$3,E$4,E$2),"") -> 13 | F30: =IF(ISNUMBER($A30),PBNexus(F$3,F$4,F$2),"") -> 54 | G30: =IF(ISNUMBER($A30),PBNexus(G$3,G$4,G$2),"") -> 25 | I30: 21 | J30: 11 | K30: 31 | L30: 30 | M30: 52 | N30: 16 | O30: 32
A31: 27 | B31: =IF(ISNUMBER($A31),PBNexus(B$3,B$4,B$2),"") -> 3 | C31: =IF(ISNUMBER($A31),PBNexus(C$3,C$4,C$2),"") -> 14 | D31: =IF(ISNUMBER($A31),PBNexus(D$3,D$4,D$2),"") -> 7 | E31: =IF(ISNUMBER($A31),PBNexus(E$3,E$4,E$2),"") -> 15 | F31: =IF(ISNUMBER($A31),PBNexus(F$3,F$4,F$2),"") -> 27 | G31: =IF(ISNUMBER($A31),PBNexus(G$3,G$4,G$2),"") -> 6 | I31: 22 | J31: 17 | K31: 28 | L31: 41 | M31: 43 | N31: 14 | O31: 33
A32: 28 | B32: =IF(ISNUMBER($A32),PBNexus(B$3,B$4,B$2),"") -> 3 | C32: =IF(ISNUMBER($A32),PBNexus(C$3,C$4,C$2),"") -> 9 | D32: =IF(ISNUMBER($A32),PBNexus(D$3,D$4,D$2),"") -> 21 | E32: =IF(ISNUMBER($A32),PBNexus(E$3,E$4,E$2),"") -> 28 | F32: =IF(ISNUMBER($A32),PBNexus(F$3,F$4,F$2),"") -> 59 | G32: =IF(ISNUMBER($A32),PBNexus(G$3,G$4,G$2),"") -> 33 | I32: 23 | J32: 13 | K32: 18 | L32: 31 | M32: 47 | N32: 19 | O32: 26
A33: 29 | B33: =IF(ISNUMBER($A33),PBNexus(B$3,B$4,B$2),"") -> 21 | C33: =IF(ISNUMBER($A33),PBNexus(C$3,C$4,C$2),"") -> 5 | D33: =IF(ISNUMBER($A33),PBNexus(D$3,D$4,D$2),"") -> 3 | E33: =IF(ISNUMBER($A33),PBNexus(E$3,E$4,E$2),"") -> 6 | F33: =IF(ISNUMBER($A33),PBNexus(F$3,F$4,F$2),"") -> 28 | G33: =IF(ISNUMBER($A33),PBNexus(G$3,G$4,G$2),"") -> 9 | I33: 24 | J33: 10 | K33: 14 | L33: 29 | M33: 33 | N33: 11 | O33: 19
A34: 30 | B34: =IF(ISNUMBER($A34),PBNexus(B$3,B$4,B$2),"") -> 6 | C34: =IF(ISNUMBER($A34),PBNexus(C$3,C$4,C$2),"") -> 7 | D34: =IF(ISNUMBER($A34),PBNexus(D$3,D$4,D$2),"") -> 18 | E34: =IF(ISNUMBER($A34),PBNexus(E$3,E$4,E$2),"") -> 6 | F34: =IF(ISNUMBER($A34),PBNexus(F$3,F$4,F$2),"") -> 43 | G34: =IF(ISNUMBER($A34),PBNexus(G$3,G$4,G$2),"") -> 1 | I34: 25 | J34: 5 | K34: 23 | L34: 19 | M34: 30 | N34: 15 | O34: 30
A35: 31 | B35: =IF(ISNUMBER($A35),PBNexus(B$3,B$4,B$2),"") -> 5 | C35: =IF(ISNUMBER($A35),PBNexus(C$3,C$4,C$2),"") -> 6 | D35: =IF(ISNUMBER($A35),PBNexus(D$3,D$4,D$2),"") -> 15 | E35: =IF(ISNUMBER($A35),PBNexus(E$3,E$4,E$2),"") -> 36 | F35: =IF(ISNUMBER($A35),PBNexus(F$3,F$4,F$2),"") -> 43 | G35: =IF(ISNUMBER($A35),PBNexus(G$3,G$4,G$2),"") -> 14 | I35: 26 | J35: 5 | K35: 16 | L35: 33 | M35: 41 | N35: 17 | O35: 31
A36: 32 | B36: =IF(ISNUMBER($A36),PBNexus(B$3,B$4,B$2),"") -> 22 | C36: =IF(ISNUMBER($A36),PBNexus(C$3,C$4,C$2),"") -> 27 | D36: =IF(ISNUMBER($A36),PBNexus(D$3,D$4,D$2),"") -> 4 | E36: =IF(ISNUMBER($A36),PBNexus(E$3,E$4,E$2),"") -> 35 | F36: =IF(ISNUMBER($A36),PBNexus(F$3,F$4,F$2),"") -> 30 | G36: =IF(ISNUMBER($A36),PBNexus(G$3,G$4,G$2),"") -> 16 | I36: 27 | J36: 4 | K36: 15 | L36: 19 | M36: 38 | N36: 28 | O36: 32
A37: 33 | B37: =IF(ISNUMBER($A37),PBNexus(B$3,B$4,B$2),"") -> 10 | C37: =IF(ISNUMBER($A37),PBNexus(C$3,C$4,C$2),"") -> 11 | D37: =IF(ISNUMBER($A37),PBNexus(D$3,D$4,D$2),"") -> 22 | E37: =IF(ISNUMBER($A37),PBNexus(E$3,E$4,E$2),"") -> 23 | F37: =IF(ISNUMBER($A37),PBNexus(F$3,F$4,F$2),"") -> 57 | G37: =IF(ISNUMBER($A37),PBNexus(G$3,G$4,G$2),"") -> 5 | I37: 28 | J37: 5 | K37: 15 | L37: 13 | M37: 41 | N37: 17 | O37: 23
A38: 34 | B38: =IF(ISNUMBER($A38),PBNexus(B$3,B$4,B$2),"") -> 11 | C38: =IF(ISNUMBER($A38),PBNexus(C$3,C$4,C$2),"") -> 27 | D38: =IF(ISNUMBER($A38),PBNexus(D$3,D$4,D$2),"") -> 14 | E38: =IF(ISNUMBER($A38),PBNexus(E$3,E$4,E$2),"") -> 21 | F38: =IF(ISNUMBER($A38),PBNexus(F$3,F$4,F$2),"") -> 41 | G38: =IF(ISNUMBER($A38),PBNexus(G$3,G$4,G$2),"") -> 20 | I38: 29 | J38: 5 | K38: 14 | L38: 26 | M38: 41 | N38: 19 | O38: 31
A39: 35 | B39: =IF(ISNUMBER($A39),PBNexus(B$3,B$4,B$2),"") -> 4 | C39: =IF(ISNUMBER($A39),PBNexus(C$3,C$4,C$2),"") -> 14 | D39: =IF(ISNUMBER($A39),PBNexus(D$3,D$4,D$2),"") -> 14 | E39: =IF(ISNUMBER($A39),PBNexus(E$3,E$4,E$2),"") -> 36 | F39: =IF(ISNUMBER($A39),PBNexus(F$3,F$4,F$2),"") -> 26 | G39: =IF(ISNUMBER($A39),PBNexus(G$3,G$4,G$2),"") -> 4 | I39: 30 | J39: 3 | K39: 8 | L39: 22 | M39: 30 | N39: 32 | O39: 25
A40: 36 | B40: =IF(ISNUMBER($A40),PBNexus(B$3,B$4,B$2),"") -> 4 | C40: =IF(ISNUMBER($A40),PBNexus(C$3,C$4,C$2),"") -> 4 | D40: =IF(ISNUMBER($A40),PBNexus(D$3,D$4,D$2),"") -> 5 | E40: =IF(ISNUMBER($A40),PBNexus(E$3,E$4,E$2),"") -> 22 | F40: =IF(ISNUMBER($A40),PBNexus(F$3,F$4,F$2),"") -> 50 | G40: =IF(ISNUMBER($A40),PBNexus(G$3,G$4,G$2),"") -> 4 | I40: 31 | J40: 4 | K40: 15 | L40: 17 | M40: 39 | N40: 27 | O40: 20
A41: 37 | B41: =IF(ISNUMBER($A41),PBNexus(B$3,B$4,B$2),"") -> 4 | C41: =IF(ISNUMBER($A41),PBNexus(C$3,C$4,C$2),"") -> 28 | D41: =IF(ISNUMBER($A41),PBNexus(D$3,D$4,D$2),"") -> 7 | E41: =IF(ISNUMBER($A41),PBNexus(E$3,E$4,E$2),"") -> 26 | F41: =IF(ISNUMBER($A41),PBNexus(F$3,F$4,F$2),"") -> 58 | G41: =IF(ISNUMBER($A41),PBNexus(G$3,G$4,G$2),"") -> 9 | I41: 32 | J41: 1 | K41: 8 | L41: 16 | M41: 33 | N41: 28 | O41: 14
A42: 38 | B42: =IF(ISNUMBER($A42),PBNexus(B$3,B$4,B$2),"") -> 1 | C42: =IF(ISNUMBER($A42),PBNexus(C$3,C$4,C$2),"") -> 17 | D42: =IF(ISNUMBER($A42),PBNexus(D$3,D$4,D$2),"") -> 18 | E42: =IF(ISNUMBER($A42),PBNexus(E$3,E$4,E$2),"") -> 14 | F42: =IF(ISNUMBER($A42),PBNexus(F$3,F$4,F$2),"") -> 47 | G42: =IF(ISNUMBER($A42),PBNexus(G$3,G$4,G$2),"") -> 3 | I42: 33 | J42: 2 | K42: 6 | L42: 10 | M42: 35 | N42: 29 | O42: 20
A43: 39 | B43: =IF(ISNUMBER($A43),PBNexus(B$3,B$4,B$2),"") -> 12 | C43: =IF(ISNUMBER($A43),PBNexus(C$3,C$4,C$2),"") -> 3 | D43: =IF(ISNUMBER($A43),PBNexus(D$3,D$4,D$2),"") -> 20 | E43: =IF(ISNUMBER($A43),PBNexus(E$3,E$4,E$2),"") -> 18 | F43: =IF(ISNUMBER($A43),PBNexus(F$3,F$4,F$2),"") -> 36 | G43: =IF(ISNUMBER($A43),PBNexus(G$3,G$4,G$2),"") -> 15 | I43: 34 | J43: 0 | K43: 4 | L43: 8 | M43: 30 | N43: 28 | O43: 11
A44: 40 | B44: =IF(ISNUMBER($A44),PBNexus(B$3,B$4,B$2),"") -> 5 | C44: =IF(ISNUMBER($A44),PBNexus(C$3,C$4,C$2),"") -> 19 | D44: =IF(ISNUMBER($A44),PBNexus(D$3,D$4,D$2),"") -> 14 | E44: =IF(ISNUMBER($A44),PBNexus(E$3,E$4,E$2),"") -> 7 | F44: =IF(ISNUMBER($A44),PBNexus(F$3,F$4,F$2),"") -> 51 | G44: =IF(ISNUMBER($A44),PBNexus(G$3,G$4,G$2),"") -> 3 | I44: 35 | J44: 2 | K44: 4 | L44: 9 | M44: 29 | N44: 32 | O44: 9
A45: 41 | B45: =IF(ISNUMBER($A45),PBNexus(B$3,B$4,B$2),"") -> 3 | C45: =IF(ISNUMBER($A45),PBNexus(C$3,C$4,C$2),"") -> 16 | D45: =IF(ISNUMBER($A45),PBNexus(D$3,D$4,D$2),"") -> 13 | E45: =IF(ISNUMBER($A45),PBNexus(E$3,E$4,E$2),"") -> 19 | F45: =IF(ISNUMBER($A45),PBNexus(F$3,F$4,F$2),"") -> 44 | G45: =IF(ISNUMBER($A45),PBNexus(G$3,G$4,G$2),"") -> 14 | I45: 36 | J45: =FrequencyCount(B$5:B$1504,$I45) -> 1 | K45: =FrequencyCount(C$5:C$1504,$I45) -> 7 | L45: =FrequencyCount(D$5:D$1504,$I45) -> 10 | M45: =FrequencyCount(E$5:E$1504,$I45) -> 56 | N45: =FrequencyCount(F$5:F$1504,$I45) -> 32
A46: 42 | B46: =IF(ISNUMBER($A46),PBNexus(B$3,B$4,B$2),"") -> 12 | C46: =IF(ISNUMBER($A46),PBNexus(C$3,C$4,C$2),"") -> 8 | D46: =IF(ISNUMBER($A46),PBNexus(D$3,D$4,D$2),"") -> 3 | E46: =IF(ISNUMBER($A46),PBNexus(E$3,E$4,E$2),"") -> 12 | F46: =IF(ISNUMBER($A46),PBNexus(F$3,F$4,F$2),"") -> 56 | G46: =IF(ISNUMBER($A46),PBNexus(G$3,G$4,G$2),"") -> 22 | I46: 37 | J46: 2 | K46: 5 | L46: 6 | M46: 30 | N46: 38
A47: 43 | B47: =IF(ISNUMBER($A47),PBNexus(B$3,B$4,B$2),"") -> 9 | C47: =IF(ISNUMBER($A47),PBNexus(C$3,C$4,C$2),"") -> 18 | D47: =IF(ISNUMBER($A47),PBNexus(D$3,D$4,D$2),"") -> 13 | E47: =IF(ISNUMBER($A47),PBNexus(E$3,E$4,E$2),"") -> 36 | F47: =IF(ISNUMBER($A47),PBNexus(F$3,F$4,F$2),"") -> 46 | G47: =IF(ISNUMBER($A47),PBNexus(G$3,G$4,G$2),"") -> 27 | I47: 38 | J47: 3 | K47: 6 | L47: 6 | M47: 23 | N47: 42
A48: 44 | B48: =IF(ISNUMBER($A48),PBNexus(B$3,B$4,B$2),"") -> 2 | C48: =IF(ISNUMBER($A48),PBNexus(C$3,C$4,C$2),"") -> 3 | D48: =IF(ISNUMBER($A48),PBNexus(D$3,D$4,D$2),"") -> 19 | E48: =IF(ISNUMBER($A48),PBNexus(E$3,E$4,E$2),"") -> 39 | F48: =IF(ISNUMBER($A48),PBNexus(F$3,F$4,F$2),"") -> 54 | G48: =IF(ISNUMBER($A48),PBNexus(G$3,G$4,G$2),"") -> 6 | I48: 39 | J48: 0 | K48: 2 | L48: 7 | M48: 25 | N48: 31
A49: 45 | B49: =IF(ISNUMBER($A49),PBNexus(B$3,B$4,B$2),"") -> 5 | C49: =IF(ISNUMBER($A49),PBNexus(C$3,C$4,C$2),"") -> 15 | D49: =IF(ISNUMBER($A49),PBNexus(D$3,D$4,D$2),"") -> 15 | E49: =IF(ISNUMBER($A49),PBNexus(E$3,E$4,E$2),"") -> 11 | F49: =IF(ISNUMBER($A49),PBNexus(F$3,F$4,F$2),"") -> 35 | G49: =IF(ISNUMBER($A49),PBNexus(G$3,G$4,G$2),"") -> 2 | I49: 40 | J49: 1 | K49: 1 | L49: 4 | M49: 17 | N49: 42
A50: 46 | B50: =IF(ISNUMBER($A50),PBNexus(B$3,B$4,B$2),"") -> 3 | C50: =IF(ISNUMBER($A50),PBNexus(C$3,C$4,C$2),"") -> 9 | D50: =IF(ISNUMBER($A50),PBNexus(D$3,D$4,D$2),"") -> 13 | E50: =IF(ISNUMBER($A50),PBNexus(E$3,E$4,E$2),"") -> 20 | F50: =IF(ISNUMBER($A50),PBNexus(F$3,F$4,F$2),"") -> 40 | G50: =IF(ISNUMBER($A50),PBNexus(G$3,G$4,G$2),"") -> 7 | I50: 41 | J50: 0 | K50: 2 | L50: 3 | M50: 21 | N50: 30
A51: 47 | B51: =IF(ISNUMBER($A51),PBNexus(B$3,B$4,B$2),"") -> 7 | C51: =IF(ISNUMBER($A51),PBNexus(C$3,C$4,C$2),"") -> 27 | D51: =IF(ISNUMBER($A51),PBNexus(D$3,D$4,D$2),"") -> 10 | E51: =IF(ISNUMBER($A51),PBNexus(E$3,E$4,E$2),"") -> 10 | F51: =IF(ISNUMBER($A51),PBNexus(F$3,F$4,F$2),"") -> 55 | G51: =IF(ISNUMBER($A51),PBNexus(G$3,G$4,G$2),"") -> 25 | I51: 42 | J51: 0 | K51: 1 | L51: 1 | M51: 20 | N51: 49
A52: 48 | B52: =IF(ISNUMBER($A52),PBNexus(B$3,B$4,B$2),"") -> 5 | C52: =IF(ISNUMBER($A52),PBNexus(C$3,C$4,C$2),"") -> 14 | D52: =IF(ISNUMBER($A52),PBNexus(D$3,D$4,D$2),"") -> 3 | E52: =IF(ISNUMBER($A52),PBNexus(E$3,E$4,E$2),"") -> 37 | F52: =IF(ISNUMBER($A52),PBNexus(F$3,F$4,F$2),"") -> 40 | G52: =IF(ISNUMBER($A52),PBNexus(G$3,G$4,G$2),"") -> 16 | I52: 43 | J52: 0 | K52: 3 | L52: 1 | M52: 20 | N52: 50
A53: 49 | B53: =IF(ISNUMBER($A53),PBNexus(B$3,B$4,B$2),"") -> 2 | C53: =IF(ISNUMBER($A53),PBNexus(C$3,C$4,C$2),"") -> 3 | D53: =IF(ISNUMBER($A53),PBNexus(D$3,D$4,D$2),"") -> 31 | E53: =IF(ISNUMBER($A53),PBNexus(E$3,E$4,E$2),"") -> 34 | F53: =IF(ISNUMBER($A53),PBNexus(F$3,F$4,F$2),"") -> 35 | G53: =IF(ISNUMBER($A53),PBNexus(G$3,G$4,G$2),"") -> 18 | I53: 44 | J53: 0 | K53: 3 | L53: 2 | M53: 24 | N53: 43
A54: 50 | B54: =IF(ISNUMBER($A54),PBNexus(B$3,B$4,B$2),"") -> 11 | C54: =IF(ISNUMBER($A54),PBNexus(C$3,C$4,C$2),"") -> 20 | D54: =IF(ISNUMBER($A54),PBNexus(D$3,D$4,D$2),"") -> 11 | E54: =IF(ISNUMBER($A54),PBNexus(E$3,E$4,E$2),"") -> 36 | F54: =IF(ISNUMBER($A54),PBNexus(F$3,F$4,F$2),"") -> 43 | G54: =IF(ISNUMBER($A54),PBNexus(G$3,G$4,G$2),"") -> 9 | I54: 45 | J54: 0 | K54: 0 | L54: 3 | M54: 12 | N54: 46
A55: 51 | B55: =IF(ISNUMBER($A55),PBNexus(B$3,B$4,B$2),"") -> 12 | C55: =IF(ISNUMBER($A55),PBNexus(C$3,C$4,C$2),"") -> 15 | D55: =IF(ISNUMBER($A55),PBNexus(D$3,D$4,D$2),"") -> 6 | E55: =IF(ISNUMBER($A55),PBNexus(E$3,E$4,E$2),"") -> 50 | F55: =IF(ISNUMBER($A55),PBNexus(F$3,F$4,F$2),"") -> 12 | G55: =IF(ISNUMBER($A55),PBNexus(G$3,G$4,G$2),"") -> 9 | I55: 46 | J55: 2 | K55: 1 | L55: 3 | M55: 13 | N55: 61
A56: 52 | B56: =IF(ISNUMBER($A56),PBNexus(B$3,B$4,B$2),"") -> 2 | C56: =IF(ISNUMBER($A56),PBNexus(C$3,C$4,C$2),"") -> 32 | D56: =IF(ISNUMBER($A56),PBNexus(D$3,D$4,D$2),"") -> 3 | E56: =IF(ISNUMBER($A56),PBNexus(E$3,E$4,E$2),"") -> 45 | F56: =IF(ISNUMBER($A56),PBNexus(F$3,F$4,F$2),"") -> 42 | G56: =IF(ISNUMBER($A56),PBNexus(G$3,G$4,G$2),"") -> 19 | I56: 47 | J56: 1 | K56: 3 | L56: 1 | M56: 12 | N56: 51
A57: 53 | B57: =IF(ISNUMBER($A57),PBNexus(B$3,B$4,B$2),"") -> 6 | C57: =IF(ISNUMBER($A57),PBNexus(C$3,C$4,C$2),"") -> 4 | D57: =IF(ISNUMBER($A57),PBNexus(D$3,D$4,D$2),"") -> 29 | E57: =IF(ISNUMBER($A57),PBNexus(E$3,E$4,E$2),"") -> 34 | F57: =IF(ISNUMBER($A57),PBNexus(F$3,F$4,F$2),"") -> 57 | G57: =IF(ISNUMBER($A57),PBNexus(G$3,G$4,G$2),"") -> 3 | I57: 48 | J57: 0 | K57: 0 | L57: 1 | M57: 16 | N57: 35
A58: 54 | B58: =IF(ISNUMBER($A58),PBNexus(B$3,B$4,B$2),"") -> 8 | C58: =IF(ISNUMBER($A58),PBNexus(C$3,C$4,C$2),"") -> 18 | D58: =IF(ISNUMBER($A58),PBNexus(D$3,D$4,D$2),"") -> 15 | E58: =IF(ISNUMBER($A58),PBNexus(E$3,E$4,E$2),"") -> 5 | F58: =IF(ISNUMBER($A58),PBNexus(F$3,F$4,F$2),"") -> 38 | G58: =IF(ISNUMBER($A58),PBNexus(G$3,G$4,G$2),"") -> 2 | I58: 49 | J58: 0 | K58: 0 | L58: 1 | M58: 8 | N58: 62
A59: 55 | B59: =IF(ISNUMBER($A59),PBNexus(B$3,B$4,B$2),"") -> 2 | C59: =IF(ISNUMBER($A59),PBNexus(C$3,C$4,C$2),"") -> 23 | D59: =IF(ISNUMBER($A59),PBNexus(D$3,D$4,D$2),"") -> 26 | E59: =IF(ISNUMBER($A59),PBNexus(E$3,E$4,E$2),"") -> 37 | F59: =IF(ISNUMBER($A59),PBNexus(F$3,F$4,F$2),"") -> 38 | G59: =IF(ISNUMBER($A59),PBNexus(G$3,G$4,G$2),"") -> 19 | I59: 50 | J59: 0 | K59: 0 | L59: 0 | M59: 4 | N59: 53
A60: 56 | B60: =IF(ISNUMBER($A60),PBNexus(B$3,B$4,B$2),"") -> 4 | C60: =IF(ISNUMBER($A60),PBNexus(C$3,C$4,C$2),"") -> 12 | D60: =IF(ISNUMBER($A60),PBNexus(D$3,D$4,D$2),"") -> 14 | E60: =IF(ISNUMBER($A60),PBNexus(E$3,E$4,E$2),"") -> 22 | F60: =IF(ISNUMBER($A60),PBNexus(F$3,F$4,F$2),"") -> 51 | G60: =IF(ISNUMBER($A60),PBNexus(G$3,G$4,G$2),"") -> 10 | I60: 51 | J60: 0 | K60: 1 | L60: 1 | M60: 10 | N60: 50
A61: 57 | B61: =IF(ISNUMBER($A61),PBNexus(B$3,B$4,B$2),"") -> 14 | C61: =IF(ISNUMBER($A61),PBNexus(C$3,C$4,C$2),"") -> 18 | D61: =IF(ISNUMBER($A61),PBNexus(D$3,D$4,D$2),"") -> 21 | E61: =IF(ISNUMBER($A61),PBNexus(E$3,E$4,E$2),"") -> 13 | F61: =IF(ISNUMBER($A61),PBNexus(F$3,F$4,F$2),"") -> 57 | G61: =IF(ISNUMBER($A61),PBNexus(G$3,G$4,G$2),"") -> 29 | I61: 52 | J61: 0 | K61: 1 | L61: 0 | M61: 5 | N61: 57
A62: 58 | B62: =IF(ISNUMBER($A62),PBNexus(B$3,B$4,B$2),"") -> 18 | C62: =IF(ISNUMBER($A62),PBNexus(C$3,C$4,C$2),"") -> 22 | D62: =IF(ISNUMBER($A62),PBNexus(D$3,D$4,D$2),"") -> 11 | E62: =IF(ISNUMBER($A62),PBNexus(E$3,E$4,E$2),"") -> 27 | F62: =IF(ISNUMBER($A62),PBNexus(F$3,F$4,F$2),"") -> 23 | G62: =IF(ISNUMBER($A62),PBNexus(G$3,G$4,G$2),"") -> 10 | I62: 53 | J62: 0 | K62: 1 | L62: 0 | M62: 6 | N62: 56
A63: 59 | B63: =IF(ISNUMBER($A63),PBNexus(B$3,B$4,B$2),"") -> 6 | C63: =IF(ISNUMBER($A63),PBNexus(C$3,C$4,C$2),"") -> 30 | D63: =IF(ISNUMBER($A63),PBNexus(D$3,D$4,D$2),"") -> 12 | E63: =IF(ISNUMBER($A63),PBNexus(E$3,E$4,E$2),"") -> 37 | F63: =IF(ISNUMBER($A63),PBNexus(F$3,F$4,F$2),"") -> 50 | G63: =IF(ISNUMBER($A63),PBNexus(G$3,G$4,G$2),"") -> 1 | I63: 54 | J63: 0 | K63: 0 | L63: 0 | M63: 8 | N63: 49
A64: 60 | B64: =IF(ISNUMBER($A64),PBNexus(B$3,B$4,B$2),"") -> 4 | C64: =IF(ISNUMBER($A64),PBNexus(C$3,C$4,C$2),"") -> 21 | D64: =IF(ISNUMBER($A64),PBNexus(D$3,D$4,D$2),"") -> 9 | E64: =IF(ISNUMBER($A64),PBNexus(E$3,E$4,E$2),"") -> 19 | F64: =IF(ISNUMBER($A64),PBNexus(F$3,F$4,F$2),"") -> 50 | G64: =IF(ISNUMBER($A64),PBNexus(G$3,G$4,G$2),"") -> 22 | I64: 55 | J64: 0 | K64: 1 | L64: 0 | M64: 4 | N64: 37
A65: 61 | B65: =IF(ISNUMBER($A65),PBNexus(B$3,B$4,B$2),"") -> 14 | C65: =IF(ISNUMBER($A65),PBNexus(C$3,C$4,C$2),"") -> 3 | D65: =IF(ISNUMBER($A65),PBNexus(D$3,D$4,D$2),"") -> 8 | E65: =IF(ISNUMBER($A65),PBNexus(E$3,E$4,E$2),"") -> 51 | F65: =IF(ISNUMBER($A65),PBNexus(F$3,F$4,F$2),"") -> 46 | G65: =IF(ISNUMBER($A65),PBNexus(G$3,G$4,G$2),"") -> 29 | I65: 56 | J65: 0 | K65: 0 | L65: 0 | M65: 5 | N65: 46
A66: 62 | B66: =IF(ISNUMBER($A66),PBNexus(B$3,B$4,B$2),"") -> 5 | C66: =IF(ISNUMBER($A66),PBNexus(C$3,C$4,C$2),"") -> 13 | D66: =IF(ISNUMBER($A66),PBNexus(D$3,D$4,D$2),"") -> 4 | E66: =IF(ISNUMBER($A66),PBNexus(E$3,E$4,E$2),"") -> 32 | F66: =IF(ISNUMBER($A66),PBNexus(F$3,F$4,F$2),"") -> 28 | G66: =IF(ISNUMBER($A66),PBNexus(G$3,G$4,G$2),"") -> 30 | I66: 57 | J66: 0 | K66: 0 | L66: 0 | M66: 2 | N66: 36
A67: 63 | B67: =IF(ISNUMBER($A67),PBNexus(B$3,B$4,B$2),"") -> 1 | C67: =IF(ISNUMBER($A67),PBNexus(C$3,C$4,C$2),"") -> 5 | D67: =IF(ISNUMBER($A67),PBNexus(D$3,D$4,D$2),"") -> 45 | E67: =IF(ISNUMBER($A67),PBNexus(E$3,E$4,E$2),"") -> 30 | F67: =IF(ISNUMBER($A67),PBNexus(F$3,F$4,F$2),"") -> 33 | G67: =IF(ISNUMBER($A67),PBNexus(G$3,G$4,G$2),"") -> 20 | I67: 58 | J67: 0 | K67: 0 | L67: 0 | M67: 0 | N67: 52
A68: 64 | B68: =IF(ISNUMBER($A68),PBNexus(B$3,B$4,B$2),"") -> 2 | C68: =IF(ISNUMBER($A68),PBNexus(C$3,C$4,C$2),"") -> 32 | D68: =IF(ISNUMBER($A68),PBNexus(D$3,D$4,D$2),"") -> 16 | E68: =IF(ISNUMBER($A68),PBNexus(E$3,E$4,E$2),"") -> 36 | F68: =IF(ISNUMBER($A68),PBNexus(F$3,F$4,F$2),"") -> 47 | G68: =IF(ISNUMBER($A68),PBNexus(G$3,G$4,G$2),"") -> 10 | I68: 59 | J68: 0 | K68: 0 | L68: 0 | M68: 0 | N68: 39
A69: 65 | B69: =IF(ISNUMBER($A69),PBNexus(B$3,B$4,B$2),"") -> 3 | C69: =IF(ISNUMBER($A69),PBNexus(C$3,C$4,C$2),"") -> 5 | D69: =IF(ISNUMBER($A69),PBNexus(D$3,D$4,D$2),"") -> 11 | E69: =IF(ISNUMBER($A69),PBNexus(E$3,E$4,E$2),"") -> 4 | F69: =IF(ISNUMBER($A69),PBNexus(F$3,F$4,F$2),"") -> 57 | G69: =IF(ISNUMBER($A69),PBNexus(G$3,G$4,G$2),"") -> 8
A70: 66 | B70: =IF(ISNUMBER($A70),PBNexus(B$3,B$4,B$2),"") -> 3 | C70: =IF(ISNUMBER($A70),PBNexus(C$3,C$4,C$2),"") -> 3 | D70: =IF(ISNUMBER($A70),PBNexus(D$3,D$4,D$2),"") -> 9 | E70: =IF(ISNUMBER($A70),PBNexus(E$3,E$4,E$2),"") -> 36 | F70: =IF(ISNUMBER($A70),PBNexus(F$3,F$4,F$2),"") -> 38 | G70: =IF(ISNUMBER($A70),PBNexus(G$3,G$4,G$2),"") -> 14
A71: =IF(ISNUMBER(A70),IF(A70+1<=M$4,A70+1,""),"") -> 67 | B71: =IF(ISNUMBER($A71),PBNexus(B$3,B$4,B$2),"") -> 10 | C71: =IF(ISNUMBER($A71),PBNexus(C$3,C$4,C$2),"") -> 4 | D71: =IF(ISNUMBER($A71),PBNexus(D$3,D$4,D$2),"") -> 20 | E71: =IF(ISNUMBER($A71),PBNexus(E$3,E$4,E$2),"") -> 21 | F71: =IF(ISNUMBER($A71),PBNexus(F$3,F$4,F$2),"") -> 54 | G71: =IF(ISNUMBER($A71),PBNexus(G$3,G$4,G$2),"") -> 3
A72: 68 | B72: =IF(ISNUMBER($A72),PBNexus(B$3,B$4,B$2),"") -> 11 | C72: =IF(ISNUMBER($A72),PBNexus(C$3,C$4,C$2),"") -> 13 | D72: =IF(ISNUMBER($A72),PBNexus(D$3,D$4,D$2),"") -> 3 | E72: =IF(ISNUMBER($A72),PBNexus(E$3,E$4,E$2),"") -> 30 | F72: =IF(ISNUMBER($A72),PBNexus(F$3,F$4,F$2),"") -> 38 | G72: =IF(ISNUMBER($A72),PBNexus(G$3,G$4,G$2),"") -> 10
A73: 69 | B73: =IF(ISNUMBER($A73),PBNexus(B$3,B$4,B$2),"") -> 1 | C73: =IF(ISNUMBER($A73),PBNexus(C$3,C$4,C$2),"") -> 5 | D73: =IF(ISNUMBER($A73),PBNexus(D$3,D$4,D$2),"") -> 26 | E73: =IF(ISNUMBER($A73),PBNexus(E$3,E$4,E$2),"") -> 46 | F73: =IF(ISNUMBER($A73),PBNexus(F$3,F$4,F$2),"") -> 55 | G73: =IF(ISNUMBER($A73),PBNexus(G$3,G$4,G$2),"") -> 10
A74: 70 | B74: =IF(ISNUMBER($A74),PBNexus(B$3,B$4,B$2),"") -> 20 | C74: =IF(ISNUMBER($A74),PBNexus(C$3,C$4,C$2),"") -> 12 | D74: =IF(ISNUMBER($A74),PBNexus(D$3,D$4,D$2),"") -> 3 | E74: =IF(ISNUMBER($A74),PBNexus(E$3,E$4,E$2),"") -> 27 | F74: =IF(ISNUMBER($A74),PBNexus(F$3,F$4,F$2),"") -> 47 | G74: =IF(ISNUMBER($A74),PBNexus(G$3,G$4,G$2),"") -> 29
A75: 71 | B75: =IF(ISNUMBER($A75),PBNexus(B$3,B$4,B$2),"") -> 1 | C75: =IF(ISNUMBER($A75),PBNexus(C$3,C$4,C$2),"") -> 14 | D75: =IF(ISNUMBER($A75),PBNexus(D$3,D$4,D$2),"") -> 8 | E75: =IF(ISNUMBER($A75),PBNexus(E$3,E$4,E$2),"") -> 31 | F75: =IF(ISNUMBER($A75),PBNexus(F$3,F$4,F$2),"") -> 51 | G75: =IF(ISNUMBER($A75),PBNexus(G$3,G$4,G$2),"") -> 14
A76: 72 | B76: =IF(ISNUMBER($A76),PBNexus(B$3,B$4,B$2),"") -> 21 | C76: =IF(ISNUMBER($A76),PBNexus(C$3,C$4,C$2),"") -> 2 | D76: =IF(ISNUMBER($A76),PBNexus(D$3,D$4,D$2),"") -> 11 | E76: =IF(ISNUMBER($A76),PBNexus(E$3,E$4,E$2),"") -> 22 | F76: =IF(ISNUMBER($A76),PBNexus(F$3,F$4,F$2),"") -> 37 | G76: =IF(ISNUMBER($A76),PBNexus(G$3,G$4,G$2),"") -> 16
A77: 73 | B77: =IF(ISNUMBER($A77),PBNexus(B$3,B$4,B$2),"") -> 4 | C77: =IF(ISNUMBER($A77),PBNexus(C$3,C$4,C$2),"") -> 12 | D77: =IF(ISNUMBER($A77),PBNexus(D$3,D$4,D$2),"") -> 25 | E77: =IF(ISNUMBER($A77),PBNexus(E$3,E$4,E$2),"") -> 7 | F77: =IF(ISNUMBER($A77),PBNexus(F$3,F$4,F$2),"") -> 37 | G77: =IF(ISNUMBER($A77),PBNexus(G$3,G$4,G$2),"") -> 18
A78: 74 | B78: =IF(ISNUMBER($A78),PBNexus(B$3,B$4,B$2),"") -> 1 | C78: =IF(ISNUMBER($A78),PBNexus(C$3,C$4,C$2),"") -> 15 | D78: =IF(ISNUMBER($A78),PBNexus(D$3,D$4,D$2),"") -> 12 | E78: =IF(ISNUMBER($A78),PBNexus(E$3,E$4,E$2),"") -> 11 | F78: =IF(ISNUMBER($A78),PBNexus(F$3,F$4,F$2),"") -> 53 | G78: =IF(ISNUMBER($A78),PBNexus(G$3,G$4,G$2),"") -> 2
A79: 75 | B79: =IF(ISNUMBER($A79),PBNexus(B$3,B$4,B$2),"") -> 12 | C79: =IF(ISNUMBER($A79),PBNexus(C$3,C$4,C$2),"") -> 31 | D79: =IF(ISNUMBER($A79),PBNexus(D$3,D$4,D$2),"") -> 13 | E79: =IF(ISNUMBER($A79),PBNexus(E$3,E$4,E$2),"") -> 35 | F79: =IF(ISNUMBER($A79),PBNexus(F$3,F$4,F$2),"") -> 54 | G79: =IF(ISNUMBER($A79),PBNexus(G$3,G$4,G$2),"") -> 6
A80: 76 | B80: =IF(ISNUMBER($A80),PBNexus(B$3,B$4,B$2),"") -> 3 | C80: =IF(ISNUMBER($A80),PBNexus(C$3,C$4,C$2),"") -> 6 | D80: =IF(ISNUMBER($A80),PBNexus(D$3,D$4,D$2),"") -> 13 | E80: =IF(ISNUMBER($A80),PBNexus(E$3,E$4,E$2),"") -> 17 | F80: =IF(ISNUMBER($A80),PBNexus(F$3,F$4,F$2),"") -> 49 | G80: =IF(ISNUMBER($A80),PBNexus(G$3,G$4,G$2),"") -> 10
A81: 77 | B81: =IF(ISNUMBER($A81),PBNexus(B$3,B$4,B$2),"") -> 9 | C81: =IF(ISNUMBER($A81),PBNexus(C$3,C$4,C$2),"") -> 8 | D81: =IF(ISNUMBER($A81),PBNexus(D$3,D$4,D$2),"") -> 34 | E81: =IF(ISNUMBER($A81),PBNexus(E$3,E$4,E$2),"") -> 24 | F81: =IF(ISNUMBER($A81),PBNexus(F$3,F$4,F$2),"") -> 47 | G81: =IF(ISNUMBER($A81),PBNexus(G$3,G$4,G$2),"") -> 3
A82: 78 | B82: =IF(ISNUMBER($A82),PBNexus(B$3,B$4,B$2),"") -> 5 | C82: =IF(ISNUMBER($A82),PBNexus(C$3,C$4,C$2),"") -> 11 | D82: =IF(ISNUMBER($A82),PBNexus(D$3,D$4,D$2),"") -> 24 | E82: =IF(ISNUMBER($A82),PBNexus(E$3,E$4,E$2),"") -> 36 | F82: =IF(ISNUMBER($A82),PBNexus(F$3,F$4,F$2),"") -> 39 | G82: =IF(ISNUMBER($A82),PBNexus(G$3,G$4,G$2),"") -> 21
A83: 79 | B83: =IF(ISNUMBER($A83),PBNexus(B$3,B$4,B$2),"") -> 1 | C83: =IF(ISNUMBER($A83),PBNexus(C$3,C$4,C$2),"") -> 10 | D83: =IF(ISNUMBER($A83),PBNexus(D$3,D$4,D$2),"") -> 41 | E83: =IF(ISNUMBER($A83),PBNexus(E$3,E$4,E$2),"") -> 12 | F83: =IF(ISNUMBER($A83),PBNexus(F$3,F$4,F$2),"") -> 57 | G83: =IF(ISNUMBER($A83),PBNexus(G$3,G$4,G$2),"") -> 7
A84: 80 | B84: =IF(ISNUMBER($A84),PBNexus(B$3,B$4,B$2),"") -> 5 | C84: =IF(ISNUMBER($A84),PBNexus(C$3,C$4,C$2),"") -> 6 | D84: =IF(ISNUMBER($A84),PBNexus(D$3,D$4,D$2),"") -> 15 | E84: =IF(ISNUMBER($A84),PBNexus(E$3,E$4,E$2),"") -> 46 | F84: =IF(ISNUMBER($A84),PBNexus(F$3,F$4,F$2),"") -> 36 | G84: =IF(ISNUMBER($A84),PBNexus(G$3,G$4,G$2),"") -> 29
A85: 81 | B85: =IF(ISNUMBER($A85),PBNexus(B$3,B$4,B$2),"") -> 15 | C85: =IF(ISNUMBER($A85),PBNexus(C$3,C$4,C$2),"") -> 21 | D85: =IF(ISNUMBER($A85),PBNexus(D$3,D$4,D$2),"") -> 21 | E85: =IF(ISNUMBER($A85),PBNexus(E$3,E$4,E$2),"") -> 57 | F85: =IF(ISNUMBER($A85),PBNexus(F$3,F$4,F$2),"") -> 44 | G85: =IF(ISNUMBER($A85),PBNexus(G$3,G$4,G$2),"") -> 6
A86: 82 | B86: =IF(ISNUMBER($A86),PBNexus(B$3,B$4,B$2),"") -> 5 | C86: =IF(ISNUMBER($A86),PBNexus(C$3,C$4,C$2),"") -> 14 | D86: =IF(ISNUMBER($A86),PBNexus(D$3,D$4,D$2),"") -> 10 | E86: =IF(ISNUMBER($A86),PBNexus(E$3,E$4,E$2),"") -> 51 | F86: =IF(ISNUMBER($A86),PBNexus(F$3,F$4,F$2),"") -> 49 | G86: =IF(ISNUMBER($A86),PBNexus(G$3,G$4,G$2),"") -> 10
A87: 83 | B87: =IF(ISNUMBER($A87),PBNexus(B$3,B$4,B$2),"") -> 2 | C87: =IF(ISNUMBER($A87),PBNexus(C$3,C$4,C$2),"") -> 3 | D87: =IF(ISNUMBER($A87),PBNexus(D$3,D$4,D$2),"") -> 12 | E87: =IF(ISNUMBER($A87),PBNexus(E$3,E$4,E$2),"") -> 24 | F87: =IF(ISNUMBER($A87),PBNexus(F$3,F$4,F$2),"") -> 40 | G87: =IF(ISNUMBER($A87),PBNexus(G$3,G$4,G$2),"") -> 3
A88: 84 | B88: =IF(ISNUMBER($A88),PBNexus(B$3,B$4,B$2),"") -> 2 | C88: =IF(ISNUMBER($A88),PBNexus(C$3,C$4,C$2),"") -> 22 | D88: =IF(ISNUMBER($A88),PBNexus(D$3,D$4,D$2),"") -> 6 | E88: =IF(ISNUMBER($A88),PBNexus(E$3,E$4,E$2),"") -> 29 | F88: =IF(ISNUMBER($A88),PBNexus(F$3,F$4,F$2),"") -> 58 | G88: =IF(ISNUMBER($A88),PBNexus(G$3,G$4,G$2),"") -> 9
A89: 85 | B89: =IF(ISNUMBER($A89),PBNexus(B$3,B$4,B$2),"") -> 13 | C89: =IF(ISNUMBER($A89),PBNexus(C$3,C$4,C$2),"") -> 11 | D89: =IF(ISNUMBER($A89),PBNexus(D$3,D$4,D$2),"") -> 3 | E89: =IF(ISNUMBER($A89),PBNexus(E$3,E$4,E$2),"") -> 31 | F89: =IF(ISNUMBER($A89),PBNexus(F$3,F$4,F$2),"") -> 28 | G89: =IF(ISNUMBER($A89),PBNexus(G$3,G$4,G$2),"") -> 18
A90: 86 | B90: =IF(ISNUMBER($A90),PBNexus(B$3,B$4,B$2),"") -> 10 | C90: =IF(ISNUMBER($A90),PBNexus(C$3,C$4,C$2),"") -> 6 | D90: =IF(ISNUMBER($A90),PBNexus(D$3,D$4,D$2),"") -> 4 | E90: =IF(ISNUMBER($A90),PBNexus(E$3,E$4,E$2),"") -> 43 | F90: =IF(ISNUMBER($A90),PBNexus(F$3,F$4,F$2),"") -> 43 | G90: =IF(ISNUMBER($A90),PBNexus(G$3,G$4,G$2),"") -> 8
A91: 87 | B91: =IF(ISNUMBER($A91),PBNexus(B$3,B$4,B$2),"") -> 8 | C91: =IF(ISNUMBER($A91),PBNexus(C$3,C$4,C$2),"") -> 20 | D91: =IF(ISNUMBER($A91),PBNexus(D$3,D$4,D$2),"") -> 13 | E91: =IF(ISNUMBER($A91),PBNexus(E$3,E$4,E$2),"") -> 43 | F91: =IF(ISNUMBER($A91),PBNexus(F$3,F$4,F$2),"") -> 52 | G91: =IF(ISNUMBER($A91),PBNexus(G$3,G$4,G$2),"") -> 25
A92: 88 | B92: =IF(ISNUMBER($A92),PBNexus(B$3,B$4,B$2),"") -> 2 | C92: =IF(ISNUMBER($A92),PBNexus(C$3,C$4,C$2),"") -> 20 | D92: =IF(ISNUMBER($A92),PBNexus(D$3,D$4,D$2),"") -> 14 | E92: =IF(ISNUMBER($A92),PBNexus(E$3,E$4,E$2),"") -> 53 | F92: =IF(ISNUMBER($A92),PBNexus(F$3,F$4,F$2),"") -> 40 | G92: =IF(ISNUMBER($A92),PBNexus(G$3,G$4,G$2),"") -> 9
A93: 89 | B93: =IF(ISNUMBER($A93),PBNexus(B$3,B$4,B$2),"") -> 4 | C93: =IF(ISNUMBER($A93),PBNexus(C$3,C$4,C$2),"") -> 10 | D93: =IF(ISNUMBER($A93),PBNexus(D$3,D$4,D$2),"") -> 10 | E93: =IF(ISNUMBER($A93),PBNexus(E$3,E$4,E$2),"") -> 8 | F93: =IF(ISNUMBER($A93),PBNexus(F$3,F$4,F$2),"") -> 29 | G93: =IF(ISNUMBER($A93),PBNexus(G$3,G$4,G$2),"") -> 31
A94: 90 | B94: =IF(ISNUMBER($A94),PBNexus(B$3,B$4,B$2),"") -> 1 | C94: =IF(ISNUMBER($A94),PBNexus(C$3,C$4,C$2),"") -> 3 | D94: =IF(ISNUMBER($A94),PBNexus(D$3,D$4,D$2),"") -> 11 | E94: =IF(ISNUMBER($A94),PBNexus(E$3,E$4,E$2),"") -> 45 | F94: =IF(ISNUMBER($A94),PBNexus(F$3,F$4,F$2),"") -> 49 | G94: =IF(ISNUMBER($A94),PBNexus(G$3,G$4,G$2),"") -> 7
A95: 91 | B95: =IF(ISNUMBER($A95),PBNexus(B$3,B$4,B$2),"") -> 3 | C95: =IF(ISNUMBER($A95),PBNexus(C$3,C$4,C$2),"") -> 8 | D95: =IF(ISNUMBER($A95),PBNexus(D$3,D$4,D$2),"") -> 18 | E95: =IF(ISNUMBER($A95),PBNexus(E$3,E$4,E$2),"") -> 27 | F95: =IF(ISNUMBER($A95),PBNexus(F$3,F$4,F$2),"") -> 55 | G95: =IF(ISNUMBER($A95),PBNexus(G$3,G$4,G$2),"") -> 5
A96: 92 | B96: =IF(ISNUMBER($A96),PBNexus(B$3,B$4,B$2),"") -> 5 | C96: =IF(ISNUMBER($A96),PBNexus(C$3,C$4,C$2),"") -> 17 | D96: =IF(ISNUMBER($A96),PBNexus(D$3,D$4,D$2),"") -> 10 | E96: =IF(ISNUMBER($A96),PBNexus(E$3,E$4,E$2),"") -> 20 | F96: =IF(ISNUMBER($A96),PBNexus(F$3,F$4,F$2),"") -> 36 | G96: =IF(ISNUMBER($A96),PBNexus(G$3,G$4,G$2),"") -> 6
A97: 93 | B97: =IF(ISNUMBER($A97),PBNexus(B$3,B$4,B$2),"") -> 23 | C97: =IF(ISNUMBER($A97),PBNexus(C$3,C$4,C$2),"") -> 17 | D97: =IF(ISNUMBER($A97),PBNexus(D$3,D$4,D$2),"") -> 4 | E97: =IF(ISNUMBER($A97),PBNexus(E$3,E$4,E$2),"") -> 27 | F97: =IF(ISNUMBER($A97),PBNexus(F$3,F$4,F$2),"") -> 57 | G97: =IF(ISNUMBER($A97),PBNexus(G$3,G$4,G$2),"") -> 6
A98: 94 | B98: =IF(ISNUMBER($A98),PBNexus(B$3,B$4,B$2),"") -> 1 | C98: =IF(ISNUMBER($A98),PBNexus(C$3,C$4,C$2),"") -> 13 | D98: =IF(ISNUMBER($A98),PBNexus(D$3,D$4,D$2),"") -> 26 | E98: =IF(ISNUMBER($A98),PBNexus(E$3,E$4,E$2),"") -> 26 | F98: =IF(ISNUMBER($A98),PBNexus(F$3,F$4,F$2),"") -> 35 | G98: =IF(ISNUMBER($A98),PBNexus(G$3,G$4,G$2),"") -> 8
A99: 95 | B99: =IF(ISNUMBER($A99),PBNexus(B$3,B$4,B$2),"") -> 9 | C99: =IF(ISNUMBER($A99),PBNexus(C$3,C$4,C$2),"") -> 4 | D99: =IF(ISNUMBER($A99),PBNexus(D$3,D$4,D$2),"") -> 10 | E99: =IF(ISNUMBER($A99),PBNexus(E$3,E$4,E$2),"") -> 27 | F99: =IF(ISNUMBER($A99),PBNexus(F$3,F$4,F$2),"") -> 18 | G99: =IF(ISNUMBER($A99),PBNexus(G$3,G$4,G$2),"") -> 16
A100: 96 | B100: =IF(ISNUMBER($A100),PBNexus(B$3,B$4,B$2),"") -> 12 | C100: =IF(ISNUMBER($A100),PBNexus(C$3,C$4,C$2),"") -> 13 | D100: =IF(ISNUMBER($A100),PBNexus(D$3,D$4,D$2),"") -> 4 | E100: =IF(ISNUMBER($A100),PBNexus(E$3,E$4,E$2),"") -> 27 | F100: =IF(ISNUMBER($A100),PBNexus(F$3,F$4,F$2),"") -> 45 | G100: =IF(ISNUMBER($A100),PBNexus(G$3,G$4,G$2),"") -> 26
A101: 97 | B101: =IF(ISNUMBER($A101),PBNexus(B$3,B$4,B$2),"") -> 1 | C101: =IF(ISNUMBER($A101),PBNexus(C$3,C$4,C$2),"") -> 2 | D101: =IF(ISNUMBER($A101),PBNexus(D$3,D$4,D$2),"") -> 27 | E101: =IF(ISNUMBER($A101),PBNexus(E$3,E$4,E$2),"") -> 10 | F101: =IF(ISNUMBER($A101),PBNexus(F$3,F$4,F$2),"") -> 43 | G101: =IF(ISNUMBER($A101),PBNexus(G$3,G$4,G$2),"") -> 1
A102: 98 | B102: =IF(ISNUMBER($A102),PBNexus(B$3,B$4,B$2),"") -> 14 | C102: =IF(ISNUMBER($A102),PBNexus(C$3,C$4,C$2),"") -> 15 | D102: =IF(ISNUMBER($A102),PBNexus(D$3,D$4,D$2),"") -> 18 | E102: =IF(ISNUMBER($A102),PBNexus(E$3,E$4,E$2),"") -> 21 | F102: =IF(ISNUMBER($A102),PBNexus(F$3,F$4,F$2),"") -> 36 | G102: =IF(ISNUMBER($A102),PBNexus(G$3,G$4,G$2),"") -> 4
A103: 99 | B103: =IF(ISNUMBER($A103),PBNexus(B$3,B$4,B$2),"") -> 6 | C103: =IF(ISNUMBER($A103),PBNexus(C$3,C$4,C$2),"") -> 7 | D103: =IF(ISNUMBER($A103),PBNexus(D$3,D$4,D$2),"") -> 7 | E103: =IF(ISNUMBER($A103),PBNexus(E$3,E$4,E$2),"") -> 6 | F103: =IF(ISNUMBER($A103),PBNexus(F$3,F$4,F$2),"") -> 59 | G103: =IF(ISNUMBER($A103),PBNexus(G$3,G$4,G$2),"") -> 10
A104: 100 | B104: =IF(ISNUMBER($A104),PBNexus(B$3,B$4,B$2),"") -> 10 | C104: =IF(ISNUMBER($A104),PBNexus(C$3,C$4,C$2),"") -> 19 | D104: =IF(ISNUMBER($A104),PBNexus(D$3,D$4,D$2),"") -> 15 | E104: =IF(ISNUMBER($A104),PBNexus(E$3,E$4,E$2),"") -> 7 | F104: =IF(ISNUMBER($A104),PBNexus(F$3,F$4,F$2),"") -> 5 | G104: =IF(ISNUMBER($A104),PBNexus(G$3,G$4,G$2),"") -> 16
A105: 101 | B105: =IF(ISNUMBER($A105),PBNexus(B$3,B$4,B$2),"") -> 13 | C105: =IF(ISNUMBER($A105),PBNexus(C$3,C$4,C$2),"") -> 2 | D105: =IF(ISNUMBER($A105),PBNexus(D$3,D$4,D$2),"") -> 23 | E105: =IF(ISNUMBER($A105),PBNexus(E$3,E$4,E$2),"") -> 29 | F105: =IF(ISNUMBER($A105),PBNexus(F$3,F$4,F$2),"") -> 29 | G105: =IF(ISNUMBER($A105),PBNexus(G$3,G$4,G$2),"") -> 22
A106: 102 | B106: =IF(ISNUMBER($A106),PBNexus(B$3,B$4,B$2),"") -> 1 | C106: =IF(ISNUMBER($A106),PBNexus(C$3,C$4,C$2),"") -> 13 | D106: =IF(ISNUMBER($A106),PBNexus(D$3,D$4,D$2),"") -> 26 | E106: =IF(ISNUMBER($A106),PBNexus(E$3,E$4,E$2),"") -> 11 | F106: =IF(ISNUMBER($A106),PBNexus(F$3,F$4,F$2),"") -> 30 | G106: =IF(ISNUMBER($A106),PBNexus(G$3,G$4,G$2),"") -> 9
A107: 103 | B107: =IF(ISNUMBER($A107),PBNexus(B$3,B$4,B$2),"") -> 1 | C107: =IF(ISNUMBER($A107),PBNexus(C$3,C$4,C$2),"") -> 6 | D107: =IF(ISNUMBER($A107),PBNexus(D$3,D$4,D$2),"") -> 9 | E107: =IF(ISNUMBER($A107),PBNexus(E$3,E$4,E$2),"") -> 8 | F107: =IF(ISNUMBER($A107),PBNexus(F$3,F$4,F$2),"") -> 29 | G107: =IF(ISNUMBER($A107),PBNexus(G$3,G$4,G$2),"") -> 3
A108: 104 | B108: =IF(ISNUMBER($A108),PBNexus(B$3,B$4,B$2),"") -> 3 | C108: =IF(ISNUMBER($A108),PBNexus(C$3,C$4,C$2),"") -> 30 | D108: =IF(ISNUMBER($A108),PBNexus(D$3,D$4,D$2),"") -> 14 | E108: =IF(ISNUMBER($A108),PBNexus(E$3,E$4,E$2),"") -> 26 | F108: =IF(ISNUMBER($A108),PBNexus(F$3,F$4,F$2),"") -> 39 | G108: =IF(ISNUMBER($A108),PBNexus(G$3,G$4,G$2),"") -> 7
A109: 105 | B109: =IF(ISNUMBER($A109),PBNexus(B$3,B$4,B$2),"") -> 11 | C109: =IF(ISNUMBER($A109),PBNexus(C$3,C$4,C$2),"") -> 38 | D109: =IF(ISNUMBER($A109),PBNexus(D$3,D$4,D$2),"") -> 12 | E109: =IF(ISNUMBER($A109),PBNexus(E$3,E$4,E$2),"") -> 37 | F109: =IF(ISNUMBER($A109),PBNexus(F$3,F$4,F$2),"") -> 58 | G109: =IF(ISNUMBER($A109),PBNexus(G$3,G$4,G$2),"") -> 19
A110: 106 | B110: =IF(ISNUMBER($A110),PBNexus(B$3,B$4,B$2),"") -> 3 | C110: =IF(ISNUMBER($A110),PBNexus(C$3,C$4,C$2),"") -> 10 | D110: =IF(ISNUMBER($A110),PBNexus(D$3,D$4,D$2),"") -> 8 | E110: =IF(ISNUMBER($A110),PBNexus(E$3,E$4,E$2),"") -> 55 | F110: =IF(ISNUMBER($A110),PBNexus(F$3,F$4,F$2),"") -> 26 | G110: =IF(ISNUMBER($A110),PBNexus(G$3,G$4,G$2),"") -> 4
A111: 107 | B111: =IF(ISNUMBER($A111),PBNexus(B$3,B$4,B$2),"") -> 7 | C111: =IF(ISNUMBER($A111),PBNexus(C$3,C$4,C$2),"") -> 11 | D111: =IF(ISNUMBER($A111),PBNexus(D$3,D$4,D$2),"") -> 3 | E111: =IF(ISNUMBER($A111),PBNexus(E$3,E$4,E$2),"") -> 16 | F111: =IF(ISNUMBER($A111),PBNexus(F$3,F$4,F$2),"") -> 47 | G111: =IF(ISNUMBER($A111),PBNexus(G$3,G$4,G$2),"") -> 6
A112: 108 | B112: =IF(ISNUMBER($A112),PBNexus(B$3,B$4,B$2),"") -> 15 | C112: =IF(ISNUMBER($A112),PBNexus(C$3,C$4,C$2),"") -> 7 | D112: =IF(ISNUMBER($A112),PBNexus(D$3,D$4,D$2),"") -> 14 | E112: =IF(ISNUMBER($A112),PBNexus(E$3,E$4,E$2),"") -> 45 | F112: =IF(ISNUMBER($A112),PBNexus(F$3,F$4,F$2),"") -> 28 | G112: =IF(ISNUMBER($A112),PBNexus(G$3,G$4,G$2),"") -> 20
A113: 109 | B113: =IF(ISNUMBER($A113),PBNexus(B$3,B$4,B$2),"") -> 7 | C113: =IF(ISNUMBER($A113),PBNexus(C$3,C$4,C$2),"") -> 10 | D113: =IF(ISNUMBER($A113),PBNexus(D$3,D$4,D$2),"") -> 16 | E113: =IF(ISNUMBER($A113),PBNexus(E$3,E$4,E$2),"") -> 8 | F113: =IF(ISNUMBER($A113),PBNexus(F$3,F$4,F$2),"") -> 50 | G113: =IF(ISNUMBER($A113),PBNexus(G$3,G$4,G$2),"") -> 2
A114: 110 | B114: =IF(ISNUMBER($A114),PBNexus(B$3,B$4,B$2),"") -> 15 | C114: =IF(ISNUMBER($A114),PBNexus(C$3,C$4,C$2),"") -> 20 | D114: =IF(ISNUMBER($A114),PBNexus(D$3,D$4,D$2),"") -> 3 | E114: =IF(ISNUMBER($A114),PBNexus(E$3,E$4,E$2),"") -> 14 | F114: =IF(ISNUMBER($A114),PBNexus(F$3,F$4,F$2),"") -> 37 | G114: =IF(ISNUMBER($A114),PBNexus(G$3,G$4,G$2),"") -> 28
A115: 111 | B115: =IF(ISNUMBER($A115),PBNexus(B$3,B$4,B$2),"") -> 3 | C115: =IF(ISNUMBER($A115),PBNexus(C$3,C$4,C$2),"") -> 16 | D115: =IF(ISNUMBER($A115),PBNexus(D$3,D$4,D$2),"") -> 6 | E115: =IF(ISNUMBER($A115),PBNexus(E$3,E$4,E$2),"") -> 31 | F115: =IF(ISNUMBER($A115),PBNexus(F$3,F$4,F$2),"") -> 53 | G115: =IF(ISNUMBER($A115),PBNexus(G$3,G$4,G$2),"") -> 10
A116: 112 | B116: =IF(ISNUMBER($A116),PBNexus(B$3,B$4,B$2),"") -> 28 | C116: =IF(ISNUMBER($A116),PBNexus(C$3,C$4,C$2),"") -> 35 | D116: =IF(ISNUMBER($A116),PBNexus(D$3,D$4,D$2),"") -> 6 | E116: =IF(ISNUMBER($A116),PBNexus(E$3,E$4,E$2),"") -> 40 | F116: =IF(ISNUMBER($A116),PBNexus(F$3,F$4,F$2),"") -> 43 | G116: =IF(ISNUMBER($A116),PBNexus(G$3,G$4,G$2),"") -> 6
A117: 113 | B117: =IF(ISNUMBER($A117),PBNexus(B$3,B$4,B$2),"") -> 12 | C117: =IF(ISNUMBER($A117),PBNexus(C$3,C$4,C$2),"") -> 44 | D117: =IF(ISNUMBER($A117),PBNexus(D$3,D$4,D$2),"") -> 28 | E117: =IF(ISNUMBER($A117),PBNexus(E$3,E$4,E$2),"") -> 38 | F117: =IF(ISNUMBER($A117),PBNexus(F$3,F$4,F$2),"") -> 23 | G117: =IF(ISNUMBER($A117),PBNexus(G$3,G$4,G$2),"") -> 6
A118: 114 | B118: =IF(ISNUMBER($A118),PBNexus(B$3,B$4,B$2),"") -> 2 | C118: =IF(ISNUMBER($A118),PBNexus(C$3,C$4,C$2),"") -> 16 | D118: =IF(ISNUMBER($A118),PBNexus(D$3,D$4,D$2),"") -> 11 | E118: =IF(ISNUMBER($A118),PBNexus(E$3,E$4,E$2),"") -> 10 | F118: =IF(ISNUMBER($A118),PBNexus(F$3,F$4,F$2),"") -> 40 | G118: =IF(ISNUMBER($A118),PBNexus(G$3,G$4,G$2),"") -> 2
A119: 115 | B119: =IF(ISNUMBER($A119),PBNexus(B$3,B$4,B$2),"") -> 1 | C119: =IF(ISNUMBER($A119),PBNexus(C$3,C$4,C$2),"") -> 3 | D119: =IF(ISNUMBER($A119),PBNexus(D$3,D$4,D$2),"") -> 35 | E119: =IF(ISNUMBER($A119),PBNexus(E$3,E$4,E$2),"") -> 45 | F119: =IF(ISNUMBER($A119),PBNexus(F$3,F$4,F$2),"") -> 37 | G119: =IF(ISNUMBER($A119),PBNexus(G$3,G$4,G$2),"") -> 10
A120: 116 | B120: =IF(ISNUMBER($A120),PBNexus(B$3,B$4,B$2),"") -> 15 | C120: =IF(ISNUMBER($A120),PBNexus(C$3,C$4,C$2),"") -> 8 | D120: =IF(ISNUMBER($A120),PBNexus(D$3,D$4,D$2),"") -> 38 | E120: =IF(ISNUMBER($A120),PBNexus(E$3,E$4,E$2),"") -> 36 | F120: =IF(ISNUMBER($A120),PBNexus(F$3,F$4,F$2),"") -> 46 | G120: =IF(ISNUMBER($A120),PBNexus(G$3,G$4,G$2),"") -> 15
A121: 117 | B121: =IF(ISNUMBER($A121),PBNexus(B$3,B$4,B$2),"") -> 9 | C121: =IF(ISNUMBER($A121),PBNexus(C$3,C$4,C$2),"") -> 5 | D121: =IF(ISNUMBER($A121),PBNexus(D$3,D$4,D$2),"") -> 21 | E121: =IF(ISNUMBER($A121),PBNexus(E$3,E$4,E$2),"") -> 9 | F121: =IF(ISNUMBER($A121),PBNexus(F$3,F$4,F$2),"") -> 45 | G121: =IF(ISNUMBER($A121),PBNexus(G$3,G$4,G$2),"") -> 8
A122: 118 | B122: =IF(ISNUMBER($A122),PBNexus(B$3,B$4,B$2),"") -> 9 | C122: =IF(ISNUMBER($A122),PBNexus(C$3,C$4,C$2),"") -> 19 | D122: =IF(ISNUMBER($A122),PBNexus(D$3,D$4,D$2),"") -> 17 | E122: =IF(ISNUMBER($A122),PBNexus(E$3,E$4,E$2),"") -> 5 | F122: =IF(ISNUMBER($A122),PBNexus(F$3,F$4,F$2),"") -> 45 | G122: =IF(ISNUMBER($A122),PBNexus(G$3,G$4,G$2),"") -> 19
A123: 119 | B123: =IF(ISNUMBER($A123),PBNexus(B$3,B$4,B$2),"") -> 8 | C123: =IF(ISNUMBER($A123),PBNexus(C$3,C$4,C$2),"") -> 15 | D123: =IF(ISNUMBER($A123),PBNexus(D$3,D$4,D$2),"") -> 3 | E123: =IF(ISNUMBER($A123),PBNexus(E$3,E$4,E$2),"") -> 31 | F123: =IF(ISNUMBER($A123),PBNexus(F$3,F$4,F$2),"") -> 39 | G123: =IF(ISNUMBER($A123),PBNexus(G$3,G$4,G$2),"") -> 16
A124: 120 | B124: =IF(ISNUMBER($A124),PBNexus(B$3,B$4,B$2),"") -> 2 | C124: =IF(ISNUMBER($A124),PBNexus(C$3,C$4,C$2),"") -> 12 | D124: =IF(ISNUMBER($A124),PBNexus(D$3,D$4,D$2),"") -> 27 | E124: =IF(ISNUMBER($A124),PBNexus(E$3,E$4,E$2),"") -> 16 | F124: =IF(ISNUMBER($A124),PBNexus(F$3,F$4,F$2),"") -> 30 | G124: =IF(ISNUMBER($A124),PBNexus(G$3,G$4,G$2),"") -> 14
A125: 121 | B125: =IF(ISNUMBER($A125),PBNexus(B$3,B$4,B$2),"") -> 2 | C125: =IF(ISNUMBER($A125),PBNexus(C$3,C$4,C$2),"") -> 32 | D125: =IF(ISNUMBER($A125),PBNexus(D$3,D$4,D$2),"") -> 3 | E125: =IF(ISNUMBER($A125),PBNexus(E$3,E$4,E$2),"") -> 27 | F125: =IF(ISNUMBER($A125),PBNexus(F$3,F$4,F$2),"") -> 48 | G125: =IF(ISNUMBER($A125),PBNexus(G$3,G$4,G$2),"") -> 5
A126: 122 | B126: =IF(ISNUMBER($A126),PBNexus(B$3,B$4,B$2),"") -> 1 | C126: =IF(ISNUMBER($A126),PBNexus(C$3,C$4,C$2),"") -> 12 | D126: =IF(ISNUMBER($A126),PBNexus(D$3,D$4,D$2),"") -> 13 | E126: =IF(ISNUMBER($A126),PBNexus(E$3,E$4,E$2),"") -> 23 | F126: =IF(ISNUMBER($A126),PBNexus(F$3,F$4,F$2),"") -> 47 | G126: =IF(ISNUMBER($A126),PBNexus(G$3,G$4,G$2),"") -> 6
A127: 123 | B127: =IF(ISNUMBER($A127),PBNexus(B$3,B$4,B$2),"") -> 18 | C127: =IF(ISNUMBER($A127),PBNexus(C$3,C$4,C$2),"") -> 2 | D127: =IF(ISNUMBER($A127),PBNexus(D$3,D$4,D$2),"") -> 18 | E127: =IF(ISNUMBER($A127),PBNexus(E$3,E$4,E$2),"") -> 55 | F127: =IF(ISNUMBER($A127),PBNexus(F$3,F$4,F$2),"") -> 57 | G127: =IF(ISNUMBER($A127),PBNexus(G$3,G$4,G$2),"") -> 5
A128: 124 | B128: =IF(ISNUMBER($A128),PBNexus(B$3,B$4,B$2),"") -> 7 | C128: =IF(ISNUMBER($A128),PBNexus(C$3,C$4,C$2),"") -> 10 | D128: =IF(ISNUMBER($A128),PBNexus(D$3,D$4,D$2),"") -> 23 | E128: =IF(ISNUMBER($A128),PBNexus(E$3,E$4,E$2),"") -> 36 | F128: =IF(ISNUMBER($A128),PBNexus(F$3,F$4,F$2),"") -> 46 | G128: =IF(ISNUMBER($A128),PBNexus(G$3,G$4,G$2),"") -> 6
A129: 125 | B129: =IF(ISNUMBER($A129),PBNexus(B$3,B$4,B$2),"") -> 4 | C129: =IF(ISNUMBER($A129),PBNexus(C$3,C$4,C$2),"") -> 24 | D129: =IF(ISNUMBER($A129),PBNexus(D$3,D$4,D$2),"") -> 10 | E129: =IF(ISNUMBER($A129),PBNexus(E$3,E$4,E$2),"") -> 19 | F129: =IF(ISNUMBER($A129),PBNexus(F$3,F$4,F$2),"") -> 55 | G129: =IF(ISNUMBER($A129),PBNexus(G$3,G$4,G$2),"") -> 27
A130: 126 | B130: =IF(ISNUMBER($A130),PBNexus(B$3,B$4,B$2),"") -> 13 | C130: =IF(ISNUMBER($A130),PBNexus(C$3,C$4,C$2),"") -> 44 | D130: =IF(ISNUMBER($A130),PBNexus(D$3,D$4,D$2),"") -> 10 | E130: =IF(ISNUMBER($A130),PBNexus(E$3,E$4,E$2),"") -> 9 | F130: =IF(ISNUMBER($A130),PBNexus(F$3,F$4,F$2),"") -> 34 | G130: =IF(ISNUMBER($A130),PBNexus(G$3,G$4,G$2),"") -> 27
A131: 127 | B131: =IF(ISNUMBER($A131),PBNexus(B$3,B$4,B$2),"") -> 3 | C131: =IF(ISNUMBER($A131),PBNexus(C$3,C$4,C$2),"") -> 3 | D131: =IF(ISNUMBER($A131),PBNexus(D$3,D$4,D$2),"") -> 21 | E131: =IF(ISNUMBER($A131),PBNexus(E$3,E$4,E$2),"") -> 18 | F131: =IF(ISNUMBER($A131),PBNexus(F$3,F$4,F$2),"") -> 35 | G131: =IF(ISNUMBER($A131),PBNexus(G$3,G$4,G$2),"") -> 12
A132: 128 | B132: =IF(ISNUMBER($A132),PBNexus(B$3,B$4,B$2),"") -> 1 | C132: =IF(ISNUMBER($A132),PBNexus(C$3,C$4,C$2),"") -> 7 | D132: =IF(ISNUMBER($A132),PBNexus(D$3,D$4,D$2),"") -> 18 | E132: =IF(ISNUMBER($A132),PBNexus(E$3,E$4,E$2),"") -> 27 | F132: =IF(ISNUMBER($A132),PBNexus(F$3,F$4,F$2),"") -> 51 | G132: =IF(ISNUMBER($A132),PBNexus(G$3,G$4,G$2),"") -> 4
A133: 129 | B133: =IF(ISNUMBER($A133),PBNexus(B$3,B$4,B$2),"") -> 9 | C133: =IF(ISNUMBER($A133),PBNexus(C$3,C$4,C$2),"") -> 21 | D133: =IF(ISNUMBER($A133),PBNexus(D$3,D$4,D$2),"") -> 13 | E133: =IF(ISNUMBER($A133),PBNexus(E$3,E$4,E$2),"") -> 43 | F133: =IF(ISNUMBER($A133),PBNexus(F$3,F$4,F$2),"") -> 45 | G133: =IF(ISNUMBER($A133),PBNexus(G$3,G$4,G$2),"") -> 34
A134: 130 | B134: =IF(ISNUMBER($A134),PBNexus(B$3,B$4,B$2),"") -> 1 | C134: =IF(ISNUMBER($A134),PBNexus(C$3,C$4,C$2),"") -> 20 | D134: =IF(ISNUMBER($A134),PBNexus(D$3,D$4,D$2),"") -> 27 | E134: =IF(ISNUMBER($A134),PBNexus(E$3,E$4,E$2),"") -> 28 | F134: =IF(ISNUMBER($A134),PBNexus(F$3,F$4,F$2),"") -> 43 | G134: =IF(ISNUMBER($A134),PBNexus(G$3,G$4,G$2),"") -> 1
A135: =IF(ISNUMBER(A134),IF(A134+1<=M$4,A134+1,""),"") -> 131 | B135: =IF(ISNUMBER($A135),PBNexus(B$3,B$4,B$2),"") -> 3 | C135: =IF(ISNUMBER($A135),PBNexus(C$3,C$4,C$2),"") -> 18 | D135: =IF(ISNUMBER($A135),PBNexus(D$3,D$4,D$2),"") -> 13 | E135: =IF(ISNUMBER($A135),PBNexus(E$3,E$4,E$2),"") -> 21 | F135: =IF(ISNUMBER($A135),PBNexus(F$3,F$4,F$2),"") -> 5 | G135: =IF(ISNUMBER($A135),PBNexus(G$3,G$4,G$2),"") -> 21
A136: 132 | B136: =IF(ISNUMBER($A136),PBNexus(B$3,B$4,B$2),"") -> 10 | C136: =IF(ISNUMBER($A136),PBNexus(C$3,C$4,C$2),"") -> 8 | D136: =IF(ISNUMBER($A136),PBNexus(D$3,D$4,D$2),"") -> 29 | E136: =IF(ISNUMBER($A136),PBNexus(E$3,E$4,E$2),"") -> 32 | F136: =IF(ISNUMBER($A136),PBNexus(F$3,F$4,F$2),"") -> 57 | G136: =IF(ISNUMBER($A136),PBNexus(G$3,G$4,G$2),"") -> 8
A137: 133 | B137: =IF(ISNUMBER($A137),PBNexus(B$3,B$4,B$2),"") -> 4 | C137: =IF(ISNUMBER($A137),PBNexus(C$3,C$4,C$2),"") -> 11 | D137: =IF(ISNUMBER($A137),PBNexus(D$3,D$4,D$2),"") -> 4 | E137: =IF(ISNUMBER($A137),PBNexus(E$3,E$4,E$2),"") -> 8 | F137: =IF(ISNUMBER($A137),PBNexus(F$3,F$4,F$2),"") -> 34 | G137: =IF(ISNUMBER($A137),PBNexus(G$3,G$4,G$2),"") -> 5
A138: 134 | B138: =IF(ISNUMBER($A138),PBNexus(B$3,B$4,B$2),"") -> 5 | C138: =IF(ISNUMBER($A138),PBNexus(C$3,C$4,C$2),"") -> 2 | D138: =IF(ISNUMBER($A138),PBNexus(D$3,D$4,D$2),"") -> 10 | E138: =IF(ISNUMBER($A138),PBNexus(E$3,E$4,E$2),"") -> 46 | F138: =IF(ISNUMBER($A138),PBNexus(F$3,F$4,F$2),"") -> 57 | G138: =IF(ISNUMBER($A138),PBNexus(G$3,G$4,G$2),"") -> 8
A139: 135 | B139: =IF(ISNUMBER($A139),PBNexus(B$3,B$4,B$2),"") -> 4 | C139: =IF(ISNUMBER($A139),PBNexus(C$3,C$4,C$2),"") -> 6 | D139: =IF(ISNUMBER($A139),PBNexus(D$3,D$4,D$2),"") -> 12 | E139: =IF(ISNUMBER($A139),PBNexus(E$3,E$4,E$2),"") -> 6 | F139: =IF(ISNUMBER($A139),PBNexus(F$3,F$4,F$2),"") -> 41 | G139: =IF(ISNUMBER($A139),PBNexus(G$3,G$4,G$2),"") -> 5
A140: 136 | B140: =IF(ISNUMBER($A140),PBNexus(B$3,B$4,B$2),"") -> 13 | C140: =IF(ISNUMBER($A140),PBNexus(C$3,C$4,C$2),"") -> 9 | D140: =IF(ISNUMBER($A140),PBNexus(D$3,D$4,D$2),"") -> 7 | E140: =IF(ISNUMBER($A140),PBNexus(E$3,E$4,E$2),"") -> 19 | F140: =IF(ISNUMBER($A140),PBNexus(F$3,F$4,F$2),"") -> 41 | G140: =IF(ISNUMBER($A140),PBNexus(G$3,G$4,G$2),"") -> 27
A141: 137 | B141: =IF(ISNUMBER($A141),PBNexus(B$3,B$4,B$2),"") -> 1 | C141: =IF(ISNUMBER($A141),PBNexus(C$3,C$4,C$2),"") -> 6 | D141: =IF(ISNUMBER($A141),PBNexus(D$3,D$4,D$2),"") -> 14 | E141: =IF(ISNUMBER($A141),PBNexus(E$3,E$4,E$2),"") -> 6 | F141: =IF(ISNUMBER($A141),PBNexus(F$3,F$4,F$2),"") -> 46 | G141: =IF(ISNUMBER($A141),PBNexus(G$3,G$4,G$2),"") -> 10
A142: 138 | B142: =IF(ISNUMBER($A142),PBNexus(B$3,B$4,B$2),"") -> 3 | C142: =IF(ISNUMBER($A142),PBNexus(C$3,C$4,C$2),"") -> 6 | D142: =IF(ISNUMBER($A142),PBNexus(D$3,D$4,D$2),"") -> 9 | E142: =IF(ISNUMBER($A142),PBNexus(E$3,E$4,E$2),"") -> 41 | F142: =IF(ISNUMBER($A142),PBNexus(F$3,F$4,F$2),"") -> 34 | G142: =IF(ISNUMBER($A142),PBNexus(G$3,G$4,G$2),"") -> 20
A143: 139 | B143: =IF(ISNUMBER($A143),PBNexus(B$3,B$4,B$2),"") -> 21 | C143: =IF(ISNUMBER($A143),PBNexus(C$3,C$4,C$2),"") -> 7 | D143: =IF(ISNUMBER($A143),PBNexus(D$3,D$4,D$2),"") -> 21 | E143: =IF(ISNUMBER($A143),PBNexus(E$3,E$4,E$2),"") -> 11 | F143: =IF(ISNUMBER($A143),PBNexus(F$3,F$4,F$2),"") -> 27 | G143: =IF(ISNUMBER($A143),PBNexus(G$3,G$4,G$2),"") -> 5
A144: 140 | B144: =IF(ISNUMBER($A144),PBNexus(B$3,B$4,B$2),"") -> 6 | C144: =IF(ISNUMBER($A144),PBNexus(C$3,C$4,C$2),"") -> 9 | D144: =IF(ISNUMBER($A144),PBNexus(D$3,D$4,D$2),"") -> 19 | E144: =IF(ISNUMBER($A144),PBNexus(E$3,E$4,E$2),"") -> 19 | F144: =IF(ISNUMBER($A144),PBNexus(F$3,F$4,F$2),"") -> 47 | G144: =IF(ISNUMBER($A144),PBNexus(G$3,G$4,G$2),"") -> 21
A145: 141 | B145: =IF(ISNUMBER($A145),PBNexus(B$3,B$4,B$2),"") -> 1 | C145: =IF(ISNUMBER($A145),PBNexus(C$3,C$4,C$2),"") -> 17 | D145: =IF(ISNUMBER($A145),PBNexus(D$3,D$4,D$2),"") -> 9 | E145: =IF(ISNUMBER($A145),PBNexus(E$3,E$4,E$2),"") -> 22 | F145: =IF(ISNUMBER($A145),PBNexus(F$3,F$4,F$2),"") -> 46 | G145: =IF(ISNUMBER($A145),PBNexus(G$3,G$4,G$2),"") -> 10
A146: 142 | B146: =IF(ISNUMBER($A146),PBNexus(B$3,B$4,B$2),"") -> 3 | C146: =IF(ISNUMBER($A146),PBNexus(C$3,C$4,C$2),"") -> 3 | D146: =IF(ISNUMBER($A146),PBNexus(D$3,D$4,D$2),"") -> 10 | E146: =IF(ISNUMBER($A146),PBNexus(E$3,E$4,E$2),"") -> 26 | F146: =IF(ISNUMBER($A146),PBNexus(F$3,F$4,F$2),"") -> 14 | G146: =IF(ISNUMBER($A146),PBNexus(G$3,G$4,G$2),"") -> 12
A147: 143 | B147: =IF(ISNUMBER($A147),PBNexus(B$3,B$4,B$2),"") -> 12 | C147: =IF(ISNUMBER($A147),PBNexus(C$3,C$4,C$2),"") -> 12 | D147: =IF(ISNUMBER($A147),PBNexus(D$3,D$4,D$2),"") -> 11 | E147: =IF(ISNUMBER($A147),PBNexus(E$3,E$4,E$2),"") -> 31 | F147: =IF(ISNUMBER($A147),PBNexus(F$3,F$4,F$2),"") -> 28 | G147: =IF(ISNUMBER($A147),PBNexus(G$3,G$4,G$2),"") -> 17
A148: 144 | B148: =IF(ISNUMBER($A148),PBNexus(B$3,B$4,B$2),"") -> 1 | C148: =IF(ISNUMBER($A148),PBNexus(C$3,C$4,C$2),"") -> 4 | D148: =IF(ISNUMBER($A148),PBNexus(D$3,D$4,D$2),"") -> 19 | E148: =IF(ISNUMBER($A148),PBNexus(E$3,E$4,E$2),"") -> 24 | F148: =IF(ISNUMBER($A148),PBNexus(F$3,F$4,F$2),"") -> 28 | G148: =IF(ISNUMBER($A148),PBNexus(G$3,G$4,G$2),"") -> 23
A149: 145 | B149: =IF(ISNUMBER($A149),PBNexus(B$3,B$4,B$2),"") -> 11 | C149: =IF(ISNUMBER($A149),PBNexus(C$3,C$4,C$2),"") -> 9 | D149: =IF(ISNUMBER($A149),PBNexus(D$3,D$4,D$2),"") -> 28 | E149: =IF(ISNUMBER($A149),PBNexus(E$3,E$4,E$2),"") -> 21 | F149: =IF(ISNUMBER($A149),PBNexus(F$3,F$4,F$2),"") -> 55 | G149: =IF(ISNUMBER($A149),PBNexus(G$3,G$4,G$2),"") -> 5
A150: 146 | B150: =IF(ISNUMBER($A150),PBNexus(B$3,B$4,B$2),"") -> 1 | C150: =IF(ISNUMBER($A150),PBNexus(C$3,C$4,C$2),"") -> 2 | D150: =IF(ISNUMBER($A150),PBNexus(D$3,D$4,D$2),"") -> 17 | E150: =IF(ISNUMBER($A150),PBNexus(E$3,E$4,E$2),"") -> 15 | F150: =IF(ISNUMBER($A150),PBNexus(F$3,F$4,F$2),"") -> 40 | G150: =IF(ISNUMBER($A150),PBNexus(G$3,G$4,G$2),"") -> 15
A151: 147 | B151: =IF(ISNUMBER($A151),PBNexus(B$3,B$4,B$2),"") -> 19 | C151: =IF(ISNUMBER($A151),PBNexus(C$3,C$4,C$2),"") -> 6 | D151: =IF(ISNUMBER($A151),PBNexus(D$3,D$4,D$2),"") -> 46 | E151: =IF(ISNUMBER($A151),PBNexus(E$3,E$4,E$2),"") -> 35 | F151: =IF(ISNUMBER($A151),PBNexus(F$3,F$4,F$2),"") -> 47 | G151: =IF(ISNUMBER($A151),PBNexus(G$3,G$4,G$2),"") -> 10
A152: 148 | B152: =IF(ISNUMBER($A152),PBNexus(B$3,B$4,B$2),"") -> 2 | C152: =IF(ISNUMBER($A152),PBNexus(C$3,C$4,C$2),"") -> 13 | D152: =IF(ISNUMBER($A152),PBNexus(D$3,D$4,D$2),"") -> 22 | E152: =IF(ISNUMBER($A152),PBNexus(E$3,E$4,E$2),"") -> 32 | F152: =IF(ISNUMBER($A152),PBNexus(F$3,F$4,F$2),"") -> 58 | G152: =IF(ISNUMBER($A152),PBNexus(G$3,G$4,G$2),"") -> 22
A153: 149 | B153: =IF(ISNUMBER($A153),PBNexus(B$3,B$4,B$2),"") -> 10 | C153: =IF(ISNUMBER($A153),PBNexus(C$3,C$4,C$2),"") -> 4 | D153: =IF(ISNUMBER($A153),PBNexus(D$3,D$4,D$2),"") -> 19 | E153: =IF(ISNUMBER($A153),PBNexus(E$3,E$4,E$2),"") -> 18 | F153: =IF(ISNUMBER($A153),PBNexus(F$3,F$4,F$2),"") -> 25 | G153: =IF(ISNUMBER($A153),PBNexus(G$3,G$4,G$2),"") -> 2
A154: 150 | B154: =IF(ISNUMBER($A154),PBNexus(B$3,B$4,B$2),"") -> 3 | C154: =IF(ISNUMBER($A154),PBNexus(C$3,C$4,C$2),"") -> 13 | D154: =IF(ISNUMBER($A154),PBNexus(D$3,D$4,D$2),"") -> 3 | E154: =IF(ISNUMBER($A154),PBNexus(E$3,E$4,E$2),"") -> 13 | F154: =IF(ISNUMBER($A154),PBNexus(F$3,F$4,F$2),"") -> 51 | G154: =IF(ISNUMBER($A154),PBNexus(G$3,G$4,G$2),"") -> 10
A155: 151 | B155: =IF(ISNUMBER($A155),PBNexus(B$3,B$4,B$2),"") -> 2 | C155: =IF(ISNUMBER($A155),PBNexus(C$3,C$4,C$2),"") -> 3 | D155: =IF(ISNUMBER($A155),PBNexus(D$3,D$4,D$2),"") -> 20 | E155: =IF(ISNUMBER($A155),PBNexus(E$3,E$4,E$2),"") -> 29 | F155: =IF(ISNUMBER($A155),PBNexus(F$3,F$4,F$2),"") -> 19 | G155: =IF(ISNUMBER($A155),PBNexus(G$3,G$4,G$2),"") -> 26
A156: 152 | B156: =IF(ISNUMBER($A156),PBNexus(B$3,B$4,B$2),"") -> 5 | C156: =IF(ISNUMBER($A156),PBNexus(C$3,C$4,C$2),"") -> 13 | D156: =IF(ISNUMBER($A156),PBNexus(D$3,D$4,D$2),"") -> 9 | E156: =IF(ISNUMBER($A156),PBNexus(E$3,E$4,E$2),"") -> 15 | F156: =IF(ISNUMBER($A156),PBNexus(F$3,F$4,F$2),"") -> 41 | G156: =IF(ISNUMBER($A156),PBNexus(G$3,G$4,G$2),"") -> 4
A157: 153 | B157: =IF(ISNUMBER($A157),PBNexus(B$3,B$4,B$2),"") -> 10 | C157: =IF(ISNUMBER($A157),PBNexus(C$3,C$4,C$2),"") -> 6 | D157: =IF(ISNUMBER($A157),PBNexus(D$3,D$4,D$2),"") -> 23 | E157: =IF(ISNUMBER($A157),PBNexus(E$3,E$4,E$2),"") -> 24 | F157: =IF(ISNUMBER($A157),PBNexus(F$3,F$4,F$2),"") -> 45 | G157: =IF(ISNUMBER($A157),PBNexus(G$3,G$4,G$2),"") -> 20
A158: 154 | B158: =IF(ISNUMBER($A158),PBNexus(B$3,B$4,B$2),"") -> 6 | C158: =IF(ISNUMBER($A158),PBNexus(C$3,C$4,C$2),"") -> 26 | D158: =IF(ISNUMBER($A158),PBNexus(D$3,D$4,D$2),"") -> 11 | E158: =IF(ISNUMBER($A158),PBNexus(E$3,E$4,E$2),"") -> 35 | F158: =IF(ISNUMBER($A158),PBNexus(F$3,F$4,F$2),"") -> 24 | G158: =IF(ISNUMBER($A158),PBNexus(G$3,G$4,G$2),"") -> 3
A159: 155 | B159: =IF(ISNUMBER($A159),PBNexus(B$3,B$4,B$2),"") -> 2 | C159: =IF(ISNUMBER($A159),PBNexus(C$3,C$4,C$2),"") -> 4 | D159: =IF(ISNUMBER($A159),PBNexus(D$3,D$4,D$2),"") -> 4 | E159: =IF(ISNUMBER($A159),PBNexus(E$3,E$4,E$2),"") -> 46 | F159: =IF(ISNUMBER($A159),PBNexus(F$3,F$4,F$2),"") -> 29 | G159: =IF(ISNUMBER($A159),PBNexus(G$3,G$4,G$2),"") -> 21
A160: 156 | B160: =IF(ISNUMBER($A160),PBNexus(B$3,B$4,B$2),"") -> 4 | C160: =IF(ISNUMBER($A160),PBNexus(C$3,C$4,C$2),"") -> 5 | D160: =IF(ISNUMBER($A160),PBNexus(D$3,D$4,D$2),"") -> 8 | E160: =IF(ISNUMBER($A160),PBNexus(E$3,E$4,E$2),"") -> 46 | F160: =IF(ISNUMBER($A160),PBNexus(F$3,F$4,F$2),"") -> 10 | G160: =IF(ISNUMBER($A160),PBNexus(G$3,G$4,G$2),"") -> 12
A161: 157 | B161: =IF(ISNUMBER($A161),PBNexus(B$3,B$4,B$2),"") -> 12 | C161: =IF(ISNUMBER($A161),PBNexus(C$3,C$4,C$2),"") -> 36 | D161: =IF(ISNUMBER($A161),PBNexus(D$3,D$4,D$2),"") -> 15 | E161: =IF(ISNUMBER($A161),PBNexus(E$3,E$4,E$2),"") -> 29 | F161: =IF(ISNUMBER($A161),PBNexus(F$3,F$4,F$2),"") -> 44 | G161: =IF(ISNUMBER($A161),PBNexus(G$3,G$4,G$2),"") -> 28
A162: 158 | B162: =IF(ISNUMBER($A162),PBNexus(B$3,B$4,B$2),"") -> 27 | C162: =IF(ISNUMBER($A162),PBNexus(C$3,C$4,C$2),"") -> 16 | D162: =IF(ISNUMBER($A162),PBNexus(D$3,D$4,D$2),"") -> 29 | E162: =IF(ISNUMBER($A162),PBNexus(E$3,E$4,E$2),"") -> 21 | F162: =IF(ISNUMBER($A162),PBNexus(F$3,F$4,F$2),"") -> 39 | G162: =IF(ISNUMBER($A162),PBNexus(G$3,G$4,G$2),"") -> 17
A163: 159 | B163: =IF(ISNUMBER($A163),PBNexus(B$3,B$4,B$2),"") -> 31 | C163: =IF(ISNUMBER($A163),PBNexus(C$3,C$4,C$2),"") -> 8 | D163: =IF(ISNUMBER($A163),PBNexus(D$3,D$4,D$2),"") -> 14 | E163: =IF(ISNUMBER($A163),PBNexus(E$3,E$4,E$2),"") -> 11 | F163: =IF(ISNUMBER($A163),PBNexus(F$3,F$4,F$2),"") -> 56 | G163: =IF(ISNUMBER($A163),PBNexus(G$3,G$4,G$2),"") -> 23
A164: 160 | B164: =IF(ISNUMBER($A164),PBNexus(B$3,B$4,B$2),"") -> 1 | C164: =IF(ISNUMBER($A164),PBNexus(C$3,C$4,C$2),"") -> 6 | D164: =IF(ISNUMBER($A164),PBNexus(D$3,D$4,D$2),"") -> 15 | E164: =IF(ISNUMBER($A164),PBNexus(E$3,E$4,E$2),"") -> 14 | F164: =IF(ISNUMBER($A164),PBNexus(F$3,F$4,F$2),"") -> 43 | G164: =IF(ISNUMBER($A164),PBNexus(G$3,G$4,G$2),"") -> 13
A165: 161 | B165: =IF(ISNUMBER($A165),PBNexus(B$3,B$4,B$2),"") -> 1 | C165: =IF(ISNUMBER($A165),PBNexus(C$3,C$4,C$2),"") -> 12 | D165: =IF(ISNUMBER($A165),PBNexus(D$3,D$4,D$2),"") -> 5 | E165: =IF(ISNUMBER($A165),PBNexus(E$3,E$4,E$2),"") -> 42 | F165: =IF(ISNUMBER($A165),PBNexus(F$3,F$4,F$2),"") -> 42 | G165: =IF(ISNUMBER($A165),PBNexus(G$3,G$4,G$2),"") -> 1
A166: 162 | B166: =IF(ISNUMBER($A166),PBNexus(B$3,B$4,B$2),"") -> 1 | C166: =IF(ISNUMBER($A166),PBNexus(C$3,C$4,C$2),"") -> 26 | D166: =IF(ISNUMBER($A166),PBNexus(D$3,D$4,D$2),"") -> 9 | E166: =IF(ISNUMBER($A166),PBNexus(E$3,E$4,E$2),"") -> 18 | F166: =IF(ISNUMBER($A166),PBNexus(F$3,F$4,F$2),"") -> 58 | G166: =IF(ISNUMBER($A166),PBNexus(G$3,G$4,G$2),"") -> 34
A167: 163 | B167: =IF(ISNUMBER($A167),PBNexus(B$3,B$4,B$2),"") -> 1 | C167: =IF(ISNUMBER($A167),PBNexus(C$3,C$4,C$2),"") -> 29 | D167: =IF(ISNUMBER($A167),PBNexus(D$3,D$4,D$2),"") -> 14 | E167: =IF(ISNUMBER($A167),PBNexus(E$3,E$4,E$2),"") -> 44 | F167: =IF(ISNUMBER($A167),PBNexus(F$3,F$4,F$2),"") -> 57 | G167: =IF(ISNUMBER($A167),PBNexus(G$3,G$4,G$2),"") -> 13
A168: 164 | B168: =IF(ISNUMBER($A168),PBNexus(B$3,B$4,B$2),"") -> 3 | C168: =IF(ISNUMBER($A168),PBNexus(C$3,C$4,C$2),"") -> 9 | D168: =IF(ISNUMBER($A168),PBNexus(D$3,D$4,D$2),"") -> 4 | E168: =IF(ISNUMBER($A168),PBNexus(E$3,E$4,E$2),"") -> 8 | F168: =IF(ISNUMBER($A168),PBNexus(F$3,F$4,F$2),"") -> 51 | G168: =IF(ISNUMBER($A168),PBNexus(G$3,G$4,G$2),"") -> 2
A169: 165 | B169: =IF(ISNUMBER($A169),PBNexus(B$3,B$4,B$2),"") -> 6 | C169: =IF(ISNUMBER($A169),PBNexus(C$3,C$4,C$2),"") -> 11 | D169: =IF(ISNUMBER($A169),PBNexus(D$3,D$4,D$2),"") -> 32 | E169: =IF(ISNUMBER($A169),PBNexus(E$3,E$4,E$2),"") -> 35 | F169: =IF(ISNUMBER($A169),PBNexus(F$3,F$4,F$2),"") -> 59 | G169: =IF(ISNUMBER($A169),PBNexus(G$3,G$4,G$2),"") -> 24
A170: 166 | B170: =IF(ISNUMBER($A170),PBNexus(B$3,B$4,B$2),"") -> 6 | C170: =IF(ISNUMBER($A170),PBNexus(C$3,C$4,C$2),"") -> 5 | D170: =IF(ISNUMBER($A170),PBNexus(D$3,D$4,D$2),"") -> 18 | E170: =IF(ISNUMBER($A170),PBNexus(E$3,E$4,E$2),"") -> 17 | F170: =IF(ISNUMBER($A170),PBNexus(F$3,F$4,F$2),"") -> 56 | G170: =IF(ISNUMBER($A170),PBNexus(G$3,G$4,G$2),"") -> 7
A171: 167 | B171: =IF(ISNUMBER($A171),PBNexus(B$3,B$4,B$2),"") -> 5 | C171: =IF(ISNUMBER($A171),PBNexus(C$3,C$4,C$2),"") -> 8 | D171: =IF(ISNUMBER($A171),PBNexus(D$3,D$4,D$2),"") -> 8 | E171: =IF(ISNUMBER($A171),PBNexus(E$3,E$4,E$2),"") -> 41 | F171: =IF(ISNUMBER($A171),PBNexus(F$3,F$4,F$2),"") -> 43 | G171: =IF(ISNUMBER($A171),PBNexus(G$3,G$4,G$2),"") -> 8
A172: 168 | B172: =IF(ISNUMBER($A172),PBNexus(B$3,B$4,B$2),"") -> 4 | C172: =IF(ISNUMBER($A172),PBNexus(C$3,C$4,C$2),"") -> 16 | D172: =IF(ISNUMBER($A172),PBNexus(D$3,D$4,D$2),"") -> 22 | E172: =IF(ISNUMBER($A172),PBNexus(E$3,E$4,E$2),"") -> 20 | F172: =IF(ISNUMBER($A172),PBNexus(F$3,F$4,F$2),"") -> 55 | G172: =IF(ISNUMBER($A172),PBNexus(G$3,G$4,G$2),"") -> 16
A173: 169 | B173: =IF(ISNUMBER($A173),PBNexus(B$3,B$4,B$2),"") -> 2 | C173: =IF(ISNUMBER($A173),PBNexus(C$3,C$4,C$2),"") -> 9 | D173: =IF(ISNUMBER($A173),PBNexus(D$3,D$4,D$2),"") -> 30 | E173: =IF(ISNUMBER($A173),PBNexus(E$3,E$4,E$2),"") -> 24 | F173: =IF(ISNUMBER($A173),PBNexus(F$3,F$4,F$2),"") -> 25 | G173: =IF(ISNUMBER($A173),PBNexus(G$3,G$4,G$2),"") -> 7
A174: 170 | B174: =IF(ISNUMBER($A174),PBNexus(B$3,B$4,B$2),"") -> 2 | C174: =IF(ISNUMBER($A174),PBNexus(C$3,C$4,C$2),"") -> 6 | D174: =IF(ISNUMBER($A174),PBNexus(D$3,D$4,D$2),"") -> 26 | E174: =IF(ISNUMBER($A174),PBNexus(E$3,E$4,E$2),"") -> 14 | F174: =IF(ISNUMBER($A174),PBNexus(F$3,F$4,F$2),"") -> 50 | G174: =IF(ISNUMBER($A174),PBNexus(G$3,G$4,G$2),"") -> 7
A175: 171 | B175: =IF(ISNUMBER($A175),PBNexus(B$3,B$4,B$2),"") -> 4 | C175: =IF(ISNUMBER($A175),PBNexus(C$3,C$4,C$2),"") -> 32 | D175: =IF(ISNUMBER($A175),PBNexus(D$3,D$4,D$2),"") -> 7 | E175: =IF(ISNUMBER($A175),PBNexus(E$3,E$4,E$2),"") -> 28 | F175: =IF(ISNUMBER($A175),PBNexus(F$3,F$4,F$2),"") -> 59 | G175: =IF(ISNUMBER($A175),PBNexus(G$3,G$4,G$2),"") -> 17
A176: 172 | B176: =IF(ISNUMBER($A176),PBNexus(B$3,B$4,B$2),"") -> 5 | C176: =IF(ISNUMBER($A176),PBNexus(C$3,C$4,C$2),"") -> 10 | D176: =IF(ISNUMBER($A176),PBNexus(D$3,D$4,D$2),"") -> 3 | E176: =IF(ISNUMBER($A176),PBNexus(E$3,E$4,E$2),"") -> 37 | F176: =IF(ISNUMBER($A176),PBNexus(F$3,F$4,F$2),"") -> 49 | G176: =IF(ISNUMBER($A176),PBNexus(G$3,G$4,G$2),"") -> 31
A177: 173 | B177: =IF(ISNUMBER($A177),PBNexus(B$3,B$4,B$2),"") -> 16 | C177: =IF(ISNUMBER($A177),PBNexus(C$3,C$4,C$2),"") -> 10 | D177: =IF(ISNUMBER($A177),PBNexus(D$3,D$4,D$2),"") -> 24 | E177: =IF(ISNUMBER($A177),PBNexus(E$3,E$4,E$2),"") -> 29 | F177: =IF(ISNUMBER($A177),PBNexus(F$3,F$4,F$2),"") -> 35 | G177: =IF(ISNUMBER($A177),PBNexus(G$3,G$4,G$2),"") -> 16
A178: 174 | B178: =IF(ISNUMBER($A178),PBNexus(B$3,B$4,B$2),"") -> 2 | C178: =IF(ISNUMBER($A178),PBNexus(C$3,C$4,C$2),"") -> 15 | D178: =IF(ISNUMBER($A178),PBNexus(D$3,D$4,D$2),"") -> 5 | E178: =IF(ISNUMBER($A178),PBNexus(E$3,E$4,E$2),"") -> 29 | F178: =IF(ISNUMBER($A178),PBNexus(F$3,F$4,F$2),"") -> 38 | G178: =IF(ISNUMBER($A178),PBNexus(G$3,G$4,G$2),"") -> 18
A179: 175 | B179: =IF(ISNUMBER($A179),PBNexus(B$3,B$4,B$2),"") -> 15 | C179: =IF(ISNUMBER($A179),PBNexus(C$3,C$4,C$2),"") -> 2 | D179: =IF(ISNUMBER($A179),PBNexus(D$3,D$4,D$2),"") -> 16 | E179: =IF(ISNUMBER($A179),PBNexus(E$3,E$4,E$2),"") -> 5 | F179: =IF(ISNUMBER($A179),PBNexus(F$3,F$4,F$2),"") -> 18 | G179: =IF(ISNUMBER($A179),PBNexus(G$3,G$4,G$2),"") -> 5
A180: 176 | B180: =IF(ISNUMBER($A180),PBNexus(B$3,B$4,B$2),"") -> 19 | C180: =IF(ISNUMBER($A180),PBNexus(C$3,C$4,C$2),"") -> 21 | D180: =IF(ISNUMBER($A180),PBNexus(D$3,D$4,D$2),"") -> 14 | E180: =IF(ISNUMBER($A180),PBNexus(E$3,E$4,E$2),"") -> 44 | F180: =IF(ISNUMBER($A180),PBNexus(F$3,F$4,F$2),"") -> 51 | G180: =IF(ISNUMBER($A180),PBNexus(G$3,G$4,G$2),"") -> 4
A181: 177 | B181: =IF(ISNUMBER($A181),PBNexus(B$3,B$4,B$2),"") -> 13 | C181: =IF(ISNUMBER($A181),PBNexus(C$3,C$4,C$2),"") -> 6 | D181: =IF(ISNUMBER($A181),PBNexus(D$3,D$4,D$2),"") -> 32 | E181: =IF(ISNUMBER($A181),PBNexus(E$3,E$4,E$2),"") -> 15 | F181: =IF(ISNUMBER($A181),PBNexus(F$3,F$4,F$2),"") -> 49 | G181: =IF(ISNUMBER($A181),PBNexus(G$3,G$4,G$2),"") -> 27
A182: 178 | B182: =IF(ISNUMBER($A182),PBNexus(B$3,B$4,B$2),"") -> 23 | C182: =IF(ISNUMBER($A182),PBNexus(C$3,C$4,C$2),"") -> 4 | D182: =IF(ISNUMBER($A182),PBNexus(D$3,D$4,D$2),"") -> 46 | E182: =IF(ISNUMBER($A182),PBNexus(E$3,E$4,E$2),"") -> 20 | F182: =IF(ISNUMBER($A182),PBNexus(F$3,F$4,F$2),"") -> 41 | G182: =IF(ISNUMBER($A182),PBNexus(G$3,G$4,G$2),"") -> 7
A183: 179 | B183: =IF(ISNUMBER($A183),PBNexus(B$3,B$4,B$2),"") -> 5 | C183: =IF(ISNUMBER($A183),PBNexus(C$3,C$4,C$2),"") -> 2 | D183: =IF(ISNUMBER($A183),PBNexus(D$3,D$4,D$2),"") -> 10 | E183: =IF(ISNUMBER($A183),PBNexus(E$3,E$4,E$2),"") -> 22 | F183: =IF(ISNUMBER($A183),PBNexus(F$3,F$4,F$2),"") -> 29 | G183: =IF(ISNUMBER($A183),PBNexus(G$3,G$4,G$2),"") -> 13
A184: 180 | B184: =IF(ISNUMBER($A184),PBNexus(B$3,B$4,B$2),"") -> 21 | C184: =IF(ISNUMBER($A184),PBNexus(C$3,C$4,C$2),"") -> 3 | D184: =IF(ISNUMBER($A184),PBNexus(D$3,D$4,D$2),"") -> 14 | E184: =IF(ISNUMBER($A184),PBNexus(E$3,E$4,E$2),"") -> 9 | F184: =IF(ISNUMBER($A184),PBNexus(F$3,F$4,F$2),"") -> 52 | G184: =IF(ISNUMBER($A184),PBNexus(G$3,G$4,G$2),"") -> 4
A185: 181 | B185: =IF(ISNUMBER($A185),PBNexus(B$3,B$4,B$2),"") -> 9 | C185: =IF(ISNUMBER($A185),PBNexus(C$3,C$4,C$2),"") -> 13 | D185: =IF(ISNUMBER($A185),PBNexus(D$3,D$4,D$2),"") -> 4 | E185: =IF(ISNUMBER($A185),PBNexus(E$3,E$4,E$2),"") -> 37 | F185: =IF(ISNUMBER($A185),PBNexus(F$3,F$4,F$2),"") -> 11 | G185: =IF(ISNUMBER($A185),PBNexus(G$3,G$4,G$2),"") -> 9
A186: 182 | B186: =IF(ISNUMBER($A186),PBNexus(B$3,B$4,B$2),"") -> 3 | C186: =IF(ISNUMBER($A186),PBNexus(C$3,C$4,C$2),"") -> 12 | D186: =IF(ISNUMBER($A186),PBNexus(D$3,D$4,D$2),"") -> 11 | E186: =IF(ISNUMBER($A186),PBNexus(E$3,E$4,E$2),"") -> 38 | F186: =IF(ISNUMBER($A186),PBNexus(F$3,F$4,F$2),"") -> 54 | G186: =IF(ISNUMBER($A186),PBNexus(G$3,G$4,G$2),"") -> 27
A187: 183 | B187: =IF(ISNUMBER($A187),PBNexus(B$3,B$4,B$2),"") -> 27 | C187: =IF(ISNUMBER($A187),PBNexus(C$3,C$4,C$2),"") -> 30 | D187: =IF(ISNUMBER($A187),PBNexus(D$3,D$4,D$2),"") -> 12 | E187: =IF(ISNUMBER($A187),PBNexus(E$3,E$4,E$2),"") -> 17 | F187: =IF(ISNUMBER($A187),PBNexus(F$3,F$4,F$2),"") -> 52 | G187: =IF(ISNUMBER($A187),PBNexus(G$3,G$4,G$2),"") -> 25
A188: 184 | B188: =IF(ISNUMBER($A188),PBNexus(B$3,B$4,B$2),"") -> 15 | C188: =IF(ISNUMBER($A188),PBNexus(C$3,C$4,C$2),"") -> 5 | D188: =IF(ISNUMBER($A188),PBNexus(D$3,D$4,D$2),"") -> 4 | E188: =IF(ISNUMBER($A188),PBNexus(E$3,E$4,E$2),"") -> 18 | F188: =IF(ISNUMBER($A188),PBNexus(F$3,F$4,F$2),"") -> 52 | G188: =IF(ISNUMBER($A188),PBNexus(G$3,G$4,G$2),"") -> 8
A189: 185 | B189: =IF(ISNUMBER($A189),PBNexus(B$3,B$4,B$2),"") -> 12 | C189: =IF(ISNUMBER($A189),PBNexus(C$3,C$4,C$2),"") -> 25 | D189: =IF(ISNUMBER($A189),PBNexus(D$3,D$4,D$2),"") -> 23 | E189: =IF(ISNUMBER($A189),PBNexus(E$3,E$4,E$2),"") -> 29 | F189: =IF(ISNUMBER($A189),PBNexus(F$3,F$4,F$2),"") -> 40 | G189: =IF(ISNUMBER($A189),PBNexus(G$3,G$4,G$2),"") -> 15
A190: 186 | B190: =IF(ISNUMBER($A190),PBNexus(B$3,B$4,B$2),"") -> 5 | C190: =IF(ISNUMBER($A190),PBNexus(C$3,C$4,C$2),"") -> 10 | D190: =IF(ISNUMBER($A190),PBNexus(D$3,D$4,D$2),"") -> 5 | E190: =IF(ISNUMBER($A190),PBNexus(E$3,E$4,E$2),"") -> 28 | F190: =IF(ISNUMBER($A190),PBNexus(F$3,F$4,F$2),"") -> 42 | G190: =IF(ISNUMBER($A190),PBNexus(G$3,G$4,G$2),"") -> 11
A191: 187 | B191: =IF(ISNUMBER($A191),PBNexus(B$3,B$4,B$2),"") -> 1 | C191: =IF(ISNUMBER($A191),PBNexus(C$3,C$4,C$2),"") -> 16 | D191: =IF(ISNUMBER($A191),PBNexus(D$3,D$4,D$2),"") -> 18 | E191: =IF(ISNUMBER($A191),PBNexus(E$3,E$4,E$2),"") -> 19 | F191: =IF(ISNUMBER($A191),PBNexus(F$3,F$4,F$2),"") -> 56 | G191: =IF(ISNUMBER($A191),PBNexus(G$3,G$4,G$2),"") -> 14
A192: 188 | B192: =IF(ISNUMBER($A192),PBNexus(B$3,B$4,B$2),"") -> 19 | C192: =IF(ISNUMBER($A192),PBNexus(C$3,C$4,C$2),"") -> 23 | D192: =IF(ISNUMBER($A192),PBNexus(D$3,D$4,D$2),"") -> 32 | E192: =IF(ISNUMBER($A192),PBNexus(E$3,E$4,E$2),"") -> 15 | F192: =IF(ISNUMBER($A192),PBNexus(F$3,F$4,F$2),"") -> 47 | G192: =IF(ISNUMBER($A192),PBNexus(G$3,G$4,G$2),"") -> 4
A193: 189 | B193: =IF(ISNUMBER($A193),PBNexus(B$3,B$4,B$2),"") -> 4 | C193: =IF(ISNUMBER($A193),PBNexus(C$3,C$4,C$2),"") -> 15 | D193: =IF(ISNUMBER($A193),PBNexus(D$3,D$4,D$2),"") -> 21 | E193: =IF(ISNUMBER($A193),PBNexus(E$3,E$4,E$2),"") -> 14 | F193: =IF(ISNUMBER($A193),PBNexus(F$3,F$4,F$2),"") -> 54 | G193: =IF(ISNUMBER($A193),PBNexus(G$3,G$4,G$2),"") -> 10
A194: 190 | B194: =IF(ISNUMBER($A194),PBNexus(B$3,B$4,B$2),"") -> 4 | C194: =IF(ISNUMBER($A194),PBNexus(C$3,C$4,C$2),"") -> 13 | D194: =IF(ISNUMBER($A194),PBNexus(D$3,D$4,D$2),"") -> 4 | E194: =IF(ISNUMBER($A194),PBNexus(E$3,E$4,E$2),"") -> 23 | F194: =IF(ISNUMBER($A194),PBNexus(F$3,F$4,F$2),"") -> 46 | G194: =IF(ISNUMBER($A194),PBNexus(G$3,G$4,G$2),"") -> 1
A195: 191 | B195: =IF(ISNUMBER($A195),PBNexus(B$3,B$4,B$2),"") -> 10 | C195: =IF(ISNUMBER($A195),PBNexus(C$3,C$4,C$2),"") -> 3 | D195: =IF(ISNUMBER($A195),PBNexus(D$3,D$4,D$2),"") -> 10 | E195: =IF(ISNUMBER($A195),PBNexus(E$3,E$4,E$2),"") -> 29 | F195: =IF(ISNUMBER($A195),PBNexus(F$3,F$4,F$2),"") -> 26 | G195: =IF(ISNUMBER($A195),PBNexus(G$3,G$4,G$2),"") -> 21
A196: 192 | B196: =IF(ISNUMBER($A196),PBNexus(B$3,B$4,B$2),"") -> 3 | C196: =IF(ISNUMBER($A196),PBNexus(C$3,C$4,C$2),"") -> 4 | D196: =IF(ISNUMBER($A196),PBNexus(D$3,D$4,D$2),"") -> 6 | E196: =IF(ISNUMBER($A196),PBNexus(E$3,E$4,E$2),"") -> 20 | F196: =IF(ISNUMBER($A196),PBNexus(F$3,F$4,F$2),"") -> 48 | G196: =IF(ISNUMBER($A196),PBNexus(G$3,G$4,G$2),"") -> 5
A197: 193 | B197: =IF(ISNUMBER($A197),PBNexus(B$3,B$4,B$2),"") -> 4 | C197: =IF(ISNUMBER($A197),PBNexus(C$3,C$4,C$2),"") -> 17 | D197: =IF(ISNUMBER($A197),PBNexus(D$3,D$4,D$2),"") -> 26 | E197: =IF(ISNUMBER($A197),PBNexus(E$3,E$4,E$2),"") -> 37 | F197: =IF(ISNUMBER($A197),PBNexus(F$3,F$4,F$2),"") -> 55 | G197: =IF(ISNUMBER($A197),PBNexus(G$3,G$4,G$2),"") -> 31
A198: 194 | B198: =IF(ISNUMBER($A198),PBNexus(B$3,B$4,B$2),"") -> 8 | C198: =IF(ISNUMBER($A198),PBNexus(C$3,C$4,C$2),"") -> 21 | D198: =IF(ISNUMBER($A198),PBNexus(D$3,D$4,D$2),"") -> 15 | E198: =IF(ISNUMBER($A198),PBNexus(E$3,E$4,E$2),"") -> 49 | F198: =IF(ISNUMBER($A198),PBNexus(F$3,F$4,F$2),"") -> 23 | G198: =IF(ISNUMBER($A198),PBNexus(G$3,G$4,G$2),"") -> 15
A199: =IF(ISNUMBER(A198),IF(A198+1<=M$4,A198+1,""),"") -> 195 | B199: =IF(ISNUMBER($A199),PBNexus(B$3,B$4,B$2),"") -> 10 | C199: =IF(ISNUMBER($A199),PBNexus(C$3,C$4,C$2),"") -> 9 | D199: =IF(ISNUMBER($A199),PBNexus(D$3,D$4,D$2),"") -> 19 | E199: =IF(ISNUMBER($A199),PBNexus(E$3,E$4,E$2),"") -> 47 | F199: =IF(ISNUMBER($A199),PBNexus(F$3,F$4,F$2),"") -> 30 | G199: =IF(ISNUMBER($A199),PBNexus(G$3,G$4,G$2),"") -> 24
A200: 196 | B200: =IF(ISNUMBER($A200),PBNexus(B$3,B$4,B$2),"") -> 8 | C200: =IF(ISNUMBER($A200),PBNexus(C$3,C$4,C$2),"") -> 18 | D200: =IF(ISNUMBER($A200),PBNexus(D$3,D$4,D$2),"") -> 29 | E200: =IF(ISNUMBER($A200),PBNexus(E$3,E$4,E$2),"") -> 12 | F200: =IF(ISNUMBER($A200),PBNexus(F$3,F$4,F$2),"") -> 41 | G200: =IF(ISNUMBER($A200),PBNexus(G$3,G$4,G$2),"") -> 11
... 1304 more rows

Sheet Hot Lotto Unbounded
A1: Index | B1: A | C1: B | D1: C | E1: D | F1: E | G1: HB
B2: 1 | C2: 2 | D2: 3 | E2: 4 | F2: 5 | G2: 6
B3: 3 | C3: 4 | D3: 14 | E3: 26 | F3: 38 | G3: 17 | I3: Enter Last Two Draws Here
B4: 9 | C4: 19 | D4: 25 | E4: 34 | F4: 45 | G4: 9 | I4: Enter Number of Selections Here | M4: 1500 | N4: (1 to 1500)
A5: =IF(M4>0,1,"") -> 1 | B5: =IF(ISNUMBER($A5),HLNexus(B$3,B$4,B$2),"") -> 11 | C5: =IF(ISNUMBER($A5),HLNexus(C$3,C$4,C$2),"") -> 31 | D5: =IF(ISNUMBER($A5),HLNexus(D$3,D$4,D$2),"") -> 4 | E5: =IF(ISNUMBER($A5),HLNexus(E$3,E$4,E$2),"") -> 43 | F5: =IF(ISNUMBER($A5),HLNexus(F$3,F$4,F$2),"") -> 39 | G5: =IF(ISNUMBER($A5),HLNexus(G$3,G$4,G$2),"") -> 17
A6: =IF(ISNUMBER(A5),IF(A5+1<=M$4,A5+1,""),"") -> 2 | B6: =IF(ISNUMBER($A6),HLNexus(B$3,B$4,B$2),"") -> 2 | C6: =IF(ISNUMBER($A6),HLNexus(C$3,C$4,C$2),"") -> 27 | D6: =IF(ISNUMBER($A6),HLNexus(D$3,D$4,D$2),"") -> 35 | E6: =IF(ISNUMBER($A6),HLNexus(E$3,E$4,E$2),"") -> 37 | F6: =IF(ISNUMBER($A6),HLNexus(F$3,F$4,F$2),"") -> 39 | G6: =IF(ISNUMBER($A6),HLNexus(G$3,G$4,G$2),"") -> 9 | I6: Hot Lotto
A7: =IF(ISNUMBER(A6),IF(A6+1<=M$4,A6+1,""),"") -> 3 | B7: =IF(ISNUMBER($A7),HLNexus(B$3,B$4,B$2),"") -> 17 | C7: =IF(ISNUMBER($A7),HLNexus(C$3,C$4,C$2),"") -> 20 | D7: =IF(ISNUMBER($A7),HLNexus(D$3,D$4,D$2),"") -> 26 | E7: =IF(ISNUMBER($A7),HLNexus(E$3,E$4,E$2),"") -> 45 | F7: =IF(ISNUMBER($A7),HLNexus(F$3,F$4,F$2),"") -> 36 | G7: =IF(ISNUMBER($A7),HLNexus(G$3,G$4,G$2),"") -> 10 | I7: Max → | J7: =MAX(J10:J56) -> 82 | K7: =MAX(K10:K56) -> 57 | L7: 68 | M7: 71 | N7: 86 | O7: =MAX(O10:O28) -> 128
A8: 4 | B8: =IF(ISNUMBER($A8),HLNexus(B$3,B$4,B$2),"") -> 10 | C8: =IF(ISNUMBER($A8),HLNexus(C$3,C$4,C$2),"") -> 20 | D8: =IF(ISNUMBER($A8),HLNexus(D$3,D$4,D$2),"") -> 6 | E8: =IF(ISNUMBER($A8),HLNexus(E$3,E$4,E$2),"") -> 24 | F8: =IF(ISNUMBER($A8),HLNexus(F$3,F$4,F$2),"") -> 9 | G8: =IF(ISNUMBER($A8),HLNexus(G$3,G$4,G$2),"") -> 14 | I8: Number | J8: Pick 5 | O8: Pick 1
A9: 5 | B9: =IF(ISNUMBER($A9),HLNexus(B$3,B$4,B$2),"") -> 18 | C9: =IF(ISNUMBER($A9),HLNexus(C$3,C$4,C$2),"") -> 21 | D9: =IF(ISNUMBER($A9),HLNexus(D$3,D$4,D$2),"") -> 17 | E9: =IF(ISNUMBER($A9),HLNexus(E$3,E$4,E$2),"") -> 30 | F9: =IF(ISNUMBER($A9),HLNexus(F$3,F$4,F$2),"") -> 39 | G9: =IF(ISNUMBER($A9),HLNexus(G$3,G$4,G$2),"") -> 11 | J9: A | K9: B | L9: C | M9: D | N9: E | O9: HB
A10: 6 | B10: =IF(ISNUMBER($A10),HLNexus(B$3,B$4,B$2),"") -> 4 | C10: =IF(ISNUMBER($A10),HLNexus(C$3,C$4,C$2),"") -> 3 | D10: =IF(ISNUMBER($A10),HLNexus(D$3,D$4,D$2),"") -> 26 | E10: =IF(ISNUMBER($A10),HLNexus(E$3,E$4,E$2),"") -> 7 | F10: =IF(ISNUMBER($A10),HLNexus(F$3,F$4,F$2),"") -> 36 | G10: =IF(ISNUMBER($A10),HLNexus(G$3,G$4,G$2),"") -> 2 | I10: 1 | J10: =FrequencyCount(B$5:B$1504,$I10) -> 52 | K10: =FrequencyCount(C$5:C$1504,$I10) -> 0 | L10: =FrequencyCount(D$5:D$1504,$I10) -> 0 | M10: =FrequencyCount(E$5:E$1504,$I10) -> 0 | N10: =FrequencyCount(F$5:F$1504,$I10) -> 0 | O10: =FrequencyCount(G$5:G$1504,$I10) -> 83
A11: 7 | B11: =IF(ISNUMBER($A11),HLNexus(B$3,B$4,B$2),"") -> 7 | C11: =IF(ISNUMBER($A11),HLNexus(C$3,C$4,C$2),"") -> 7 | D11: =IF(ISNUMBER($A11),HLNexus(D$3,D$4,D$2),"") -> 30 | E11: =IF(ISNUMBER($A11),HLNexus(E$3,E$4,E$2),"") -> 33 | F11: =IF(ISNUMBER($A11),HLNexus(F$3,F$4,F$2),"") -> 40 | G11: =IF(ISNUMBER($A11),HLNexus(G$3,G$4,G$2),"") -> 15 | I11: 2 | J11: 48 | K11: 7 | L11: 0 | M11: 0 | N11: 0 | O11: 100
A12: 8 | B12: =IF(ISNUMBER($A12),HLNexus(B$3,B$4,B$2),"") -> 8 | C12: =IF(ISNUMBER($A12),HLNexus(C$3,C$4,C$2),"") -> 7 | D12: =IF(ISNUMBER($A12),HLNexus(D$3,D$4,D$2),"") -> 40 | E12: =IF(ISNUMBER($A12),HLNexus(E$3,E$4,E$2),"") -> 30 | F12: =IF(ISNUMBER($A12),HLNexus(F$3,F$4,F$2),"") -> 9 | G12: =IF(ISNUMBER($A12),HLNexus(G$3,G$4,G$2),"") -> 11 | I12: 3 | J12: 40 | K12: 16 | L12: 9 | M12: 0 | N12: 0 | O12: 128
A13: 9 | B13: =IF(ISNUMBER($A13),HLNexus(B$3,B$4,B$2),"") -> 10 | C13: =IF(ISNUMBER($A13),HLNexus(C$3,C$4,C$2),"") -> 19 | D13: =IF(ISNUMBER($A13),HLNexus(D$3,D$4,D$2),"") -> 20 | E13: =IF(ISNUMBER($A13),HLNexus(E$3,E$4,E$2),"") -> 44 | F13: =IF(ISNUMBER($A13),HLNexus(F$3,F$4,F$2),"") -> 33 | G13: =IF(ISNUMBER($A13),HLNexus(G$3,G$4,G$2),"") -> 2 | I13: 4 | J13: 68 | K13: 19 | L13: 9 | M13: 5 | N13: 0 | O13: 94
A14: 10 | B14: =IF(ISNUMBER($A14),HLNexus(B$3,B$4,B$2),"") -> 8 | C14: =IF(ISNUMBER($A14),HLNexus(C$3,C$4,C$2),"") -> 14 | D14: =IF(ISNUMBER($A14),HLNexus(D$3,D$4,D$2),"") -> 32 | E14: =IF(ISNUMBER($A14),HLNexus(E$3,E$4,E$2),"") -> 27 | F14: =IF(ISNUMBER($A14),HLNexus(F$3,F$4,F$2),"") -> 43 | G14: =IF(ISNUMBER($A14),HLNexus(G$3,G$4,G$2),"") -> 12 | I14: 5 | J14: 73 | K14: 10 | L14: 7 | M14: 6 | N14: 2 | O14: 109
A15: 11 | B15: =IF(ISNUMBER($A15),HLNexus(B$3,B$4,B$2),"") -> 24 | C15: =IF(ISNUMBER($A15),HLNexus(C$3,C$4,C$2),"") -> 8 | D15: =IF(ISNUMBER($A15),HLNexus(D$3,D$4,D$2),"") -> 33 | E15: =IF(ISNUMBER($A15),HLNexus(E$3,E$4,E$2),"") -> 40 | F15: =IF(ISNUMBER($A15),HLNexus(F$3,F$4,F$2),"") -> 38 | G15: =IF(ISNUMBER($A15),HLNexus(G$3,G$4,G$2),"") -> 1 | I15: 6 | J15: 54 | K15: 20 | L15: 13 | M15: 4 | N15: 5 | O15: 90
A16: 12 | B16: =IF(ISNUMBER($A16),HLNexus(B$3,B$4,B$2),"") -> 23 | C16: =IF(ISNUMBER($A16),HLNexus(C$3,C$4,C$2),"") -> 32 | D16: =IF(ISNUMBER($A16),HLNexus(D$3,D$4,D$2),"") -> 24 | E16: =IF(ISNUMBER($A16),HLNexus(E$3,E$4,E$2),"") -> 44 | F16: =IF(ISNUMBER($A16),HLNexus(F$3,F$4,F$2),"") -> 39 | G16: =IF(ISNUMBER($A16),HLNexus(G$3,G$4,G$2),"") -> 9 | I16: 7 | J16: 67 | K16: 25 | L16: 8 | M16: 9 | N16: 1 | O16: 106
A17: 13 | B17: =IF(ISNUMBER($A17),HLNexus(B$3,B$4,B$2),"") -> 13 | C17: =IF(ISNUMBER($A17),HLNexus(C$3,C$4,C$2),"") -> 21 | D17: =IF(ISNUMBER($A17),HLNexus(D$3,D$4,D$2),"") -> 21 | E17: =IF(ISNUMBER($A17),HLNexus(E$3,E$4,E$2),"") -> 28 | F17: =IF(ISNUMBER($A17),HLNexus(F$3,F$4,F$2),"") -> 22 | G17: =IF(ISNUMBER($A17),HLNexus(G$3,G$4,G$2),"") -> 14 | I17: 8 | J17: 71 | K17: 22 | L17: 13 | M17: 17 | N17: 2 | O17: 98
A18: 14 | B18: =IF(ISNUMBER($A18),HLNexus(B$3,B$4,B$2),"") -> 2 | C18: =IF(ISNUMBER($A18),HLNexus(C$3,C$4,C$2),"") -> 12 | D18: =IF(ISNUMBER($A18),HLNexus(D$3,D$4,D$2),"") -> 43 | E18: =IF(ISNUMBER($A18),HLNexus(E$3,E$4,E$2),"") -> 25 | F18: =IF(ISNUMBER($A18),HLNexus(F$3,F$4,F$2),"") -> 35 | G18: =IF(ISNUMBER($A18),HLNexus(G$3,G$4,G$2),"") -> 16 | I18: 9 | J18: 53 | K18: 33 | L18: 17 | M18: 12 | N18: 8 | O18: 97
A19: 15 | B19: =IF(ISNUMBER($A19),HLNexus(B$3,B$4,B$2),"") -> 19 | C19: =IF(ISNUMBER($A19),HLNexus(C$3,C$4,C$2),"") -> 35 | D19: =IF(ISNUMBER($A19),HLNexus(D$3,D$4,D$2),"") -> 9 | E19: =IF(ISNUMBER($A19),HLNexus(E$3,E$4,E$2),"") -> 20 | F19: =IF(ISNUMBER($A19),HLNexus(F$3,F$4,F$2),"") -> 40 | G19: =IF(ISNUMBER($A19),HLNexus(G$3,G$4,G$2),"") -> 3 | I19: 10 | J19: 82 | K19: 34 | L19: 18 | M19: 8 | N19: 10 | O19: 75
A20: 16 | B20: =IF(ISNUMBER($A20),HLNexus(B$3,B$4,B$2),"") -> 4 | C20: =IF(ISNUMBER($A20),HLNexus(C$3,C$4,C$2),"") -> 25 | D20: =IF(ISNUMBER($A20),HLNexus(D$3,D$4,D$2),"") -> 15 | E20: =IF(ISNUMBER($A20),HLNexus(E$3,E$4,E$2),"") -> 19 | F20: =IF(ISNUMBER($A20),HLNexus(F$3,F$4,F$2),"") -> 44 | G20: =IF(ISNUMBER($A20),HLNexus(G$3,G$4,G$2),"") -> 5 | I20: 11 | J20: 60 | K20: 34 | L20: 27 | M20: 13 | N20: 6 | O20: 75
A21: 17 | B21: =IF(ISNUMBER($A21),HLNexus(B$3,B$4,B$2),"") -> 15 | C21: =IF(ISNUMBER($A21),HLNexus(C$3,C$4,C$2),"") -> 24 | D21: =IF(ISNUMBER($A21),HLNexus(D$3,D$4,D$2),"") -> 32 | E21: =IF(ISNUMBER($A21),HLNexus(E$3,E$4,E$2),"") -> 39 | F21: =IF(ISNUMBER($A21),HLNexus(F$3,F$4,F$2),"") -> 38 | G21: =IF(ISNUMBER($A21),HLNexus(G$3,G$4,G$2),"") -> 1 | I21: 12 | J21: 48 | K21: 44 | L21: 20 | M21: 20 | N21: 5 | O21: 71
A22: 18 | B22: =IF(ISNUMBER($A22),HLNexus(B$3,B$4,B$2),"") -> 7 | C22: =IF(ISNUMBER($A22),HLNexus(C$3,C$4,C$2),"") -> 14 | D22: =IF(ISNUMBER($A22),HLNexus(D$3,D$4,D$2),"") -> 41 | E22: =IF(ISNUMBER($A22),HLNexus(E$3,E$4,E$2),"") -> 34 | F22: =IF(ISNUMBER($A22),HLNexus(F$3,F$4,F$2),"") -> 16 | G22: =IF(ISNUMBER($A22),HLNexus(G$3,G$4,G$2),"") -> 10 | I22: 13 | J22: 59 | K22: 30 | L22: 25 | M22: 18 | N22: 6 | O22: 66
A23: 19 | B23: =IF(ISNUMBER($A23),HLNexus(B$3,B$4,B$2),"") -> 3 | C23: =IF(ISNUMBER($A23),HLNexus(C$3,C$4,C$2),"") -> 18 | D23: =IF(ISNUMBER($A23),HLNexus(D$3,D$4,D$2),"") -> 13 | E23: =IF(ISNUMBER($A23),HLNexus(E$3,E$4,E$2),"") -> 40 | F23: =IF(ISNUMBER($A23),HLNexus(F$3,F$4,F$2),"") -> 37 | G23: =IF(ISNUMBER($A23),HLNexus(G$3,G$4,G$2),"") -> 4 | I23: 14 | J23: 60 | K23: 41 | L23: 20 | M23: 11 | N23: 8 | O23: 56
A24: 20 | B24: =IF(ISNUMBER($A24),HLNexus(B$3,B$4,B$2),"") -> 8 | C24: =IF(ISNUMBER($A24),HLNexus(C$3,C$4,C$2),"") -> 12 | D24: =IF(ISNUMBER($A24),HLNexus(D$3,D$4,D$2),"") -> 45 | E24: =IF(ISNUMBER($A24),HLNexus(E$3,E$4,E$2),"") -> 42 | F24: =IF(ISNUMBER($A24),HLNexus(F$3,F$4,F$2),"") -> 43 | G24: =IF(ISNUMBER($A24),HLNexus(G$3,G$4,G$2),"") -> 17 | I24: 15 | J24: 50 | K24: 34 | L24: 25 | M24: 14 | N24: 11 | O24: 63
A25: 21 | B25: =IF(ISNUMBER($A25),HLNexus(B$3,B$4,B$2),"") -> 5 | C25: =IF(ISNUMBER($A25),HLNexus(C$3,C$4,C$2),"") -> 25 | D25: =IF(ISNUMBER($A25),HLNexus(D$3,D$4,D$2),"") -> 21 | E25: =IF(ISNUMBER($A25),HLNexus(E$3,E$4,E$2),"") -> 44 | F25: =IF(ISNUMBER($A25),HLNexus(F$3,F$4,F$2),"") -> 46 | G25: =IF(ISNUMBER($A25),HLNexus(G$3,G$4,G$2),"") -> 13 | I25: 16 | J25: 54 | K25: 55 | L25: 33 | M25: 21 | N25: 11 | O25: 47
A26: 22 | B26: =IF(ISNUMBER($A26),HLNexus(B$3,B$4,B$2),"") -> 23 | C26: =IF(ISNUMBER($A26),HLNexus(C$3,C$4,C$2),"") -> 12 | D26: =IF(ISNUMBER($A26),HLNexus(D$3,D$4,D$2),"") -> 23 | E26: =IF(ISNUMBER($A26),HLNexus(E$3,E$4,E$2),"") -> 35 | F26: =IF(ISNUMBER($A26),HLNexus(F$3,F$4,F$2),"") -> 24 | G26: =IF(ISNUMBER($A26),HLNexus(G$3,G$4,G$2),"") -> 14 | I26: 17 | J26: 43 | K26: 45 | L26: 23 | M26: 13 | N26: 7 | O26: 46
A27: 23 | B27: =IF(ISNUMBER($A27),HLNexus(B$3,B$4,B$2),"") -> 7 | C27: =IF(ISNUMBER($A27),HLNexus(C$3,C$4,C$2),"") -> 29 | D27: =IF(ISNUMBER($A27),HLNexus(D$3,D$4,D$2),"") -> 25 | E27: =IF(ISNUMBER($A27),HLNexus(E$3,E$4,E$2),"") -> 10 | F27: =IF(ISNUMBER($A27),HLNexus(F$3,F$4,F$2),"") -> 37 | G27: =IF(ISNUMBER($A27),HLNexus(G$3,G$4,G$2),"") -> 4 | I27: 18 | J27: 39 | K27: 48 | L27: 39 | M27: 29 | N27: 11 | O27: 52
A28: 24 | B28: =IF(ISNUMBER($A28),HLNexus(B$3,B$4,B$2),"") -> 21 | C28: =IF(ISNUMBER($A28),HLNexus(C$3,C$4,C$2),"") -> 9 | D28: =IF(ISNUMBER($A28),HLNexus(D$3,D$4,D$2),"") -> 44 | E28: =IF(ISNUMBER($A28),HLNexus(E$3,E$4,E$2),"") -> 18 | F28: =IF(ISNUMBER($A28),HLNexus(F$3,F$4,F$2),"") -> 32 | G28: =IF(ISNUMBER($A28),HLNexus(G$3,G$4,G$2),"") -> 12 | I28: 19 | J28: 50 | K28: 46 | L28: 37 | M28: 30 | N28: 12 | O28: 44
A29: 25 | B29: =IF(ISNUMBER($A29),HLNexus(B$3,B$4,B$2),"") -> 19 | C29: =IF(ISNUMBER($A29),HLNexus(C$3,C$4,C$2),"") -> 40 | D29: =IF(ISNUMBER($A29),HLNexus(D$3,D$4,D$2),"") -> 10 | E29: =IF(ISNUMBER($A29),HLNexus(E$3,E$4,E$2),"") -> 33 | F29: =IF(ISNUMBER($A29),HLNexus(F$3,F$4,F$2),"") -> 42 | G29: =IF(ISNUMBER($A29),HLNexus(G$3,G$4,G$2),"") -> 17 | I29: 20 | J29: =FrequencyCount(B$5:B$1504,$I29) -> 44 | K29: =FrequencyCount(C$5:C$1504,$I29) -> 54 | L29: =FrequencyCount(D$5:D$1504,$I29) -> 41 | M29: =FrequencyCount(E$5:E$1504,$I29) -> 30 | N29: =FrequencyCount(F$5:F$1504,$I29) -> 27
A30: 26 | B30: =IF(ISNUMBER($A30),HLNexus(B$3,B$4,B$2),"") -> 7 | C30: =IF(ISNUMBER($A30),HLNexus(C$3,C$4,C$2),"") -> 44 | D30: =IF(ISNUMBER($A30),HLNexus(D$3,D$4,D$2),"") -> 21 | E30: =IF(ISNUMBER($A30),HLNexus(E$3,E$4,E$2),"") -> 31 | F30: =IF(ISNUMBER($A30),HLNexus(F$3,F$4,F$2),"") -> 47 | G30: =IF(ISNUMBER($A30),HLNexus(G$3,G$4,G$2),"") -> 9 | I30: 21 | J30: 44 | K30: 40 | L30: 33 | M30: 21 | N30: 19
A31: 27 | B31: =IF(ISNUMBER($A31),HLNexus(B$3,B$4,B$2),"") -> 2 | C31: =IF(ISNUMBER($A31),HLNexus(C$3,C$4,C$2),"") -> 35 | D31: =IF(ISNUMBER($A31),HLNexus(D$3,D$4,D$2),"") -> 30 | E31: =IF(ISNUMBER($A31),HLNexus(E$3,E$4,E$2),"") -> 36 | F31: =IF(ISNUMBER($A31),HLNexus(F$3,F$4,F$2),"") -> 15 | G31: =IF(ISNUMBER($A31),HLNexus(G$3,G$4,G$2),"") -> 3 | I31: 22 | J31: 35 | K31: 49 | L31: 41 | M31: 23 | N31: 28
A32: 28 | B32: =IF(ISNUMBER($A32),HLNexus(B$3,B$4,B$2),"") -> 14 | C32: =IF(ISNUMBER($A32),HLNexus(C$3,C$4,C$2),"") -> 29 | D32: =IF(ISNUMBER($A32),HLNexus(D$3,D$4,D$2),"") -> 8 | E32: =IF(ISNUMBER($A32),HLNexus(E$3,E$4,E$2),"") -> 28 | F32: =IF(ISNUMBER($A32),HLNexus(F$3,F$4,F$2),"") -> 43 | G32: =IF(ISNUMBER($A32),HLNexus(G$3,G$4,G$2),"") -> 8 | I32: 23 | J32: 38 | K32: 40 | L32: 52 | M32: 34 | N32: 38
A33: 29 | B33: =IF(ISNUMBER($A33),HLNexus(B$3,B$4,B$2),"") -> 3 | C33: =IF(ISNUMBER($A33),HLNexus(C$3,C$4,C$2),"") -> 13 | D33: =IF(ISNUMBER($A33),HLNexus(D$3,D$4,D$2),"") -> 3 | E33: =IF(ISNUMBER($A33),HLNexus(E$3,E$4,E$2),"") -> 46 | F33: =IF(ISNUMBER($A33),HLNexus(F$3,F$4,F$2),"") -> 28 | G33: =IF(ISNUMBER($A33),HLNexus(G$3,G$4,G$2),"") -> 3 | I33: 24 | J33: 24 | K33: 56 | L33: 48 | M33: 42 | N33: 31
A34: 30 | B34: =IF(ISNUMBER($A34),HLNexus(B$3,B$4,B$2),"") -> 27 | C34: =IF(ISNUMBER($A34),HLNexus(C$3,C$4,C$2),"") -> 10 | D34: =IF(ISNUMBER($A34),HLNexus(D$3,D$4,D$2),"") -> 35 | E34: =IF(ISNUMBER($A34),HLNexus(E$3,E$4,E$2),"") -> 42 | F34: =IF(ISNUMBER($A34),HLNexus(F$3,F$4,F$2),"") -> 21 | G34: =IF(ISNUMBER($A34),HLNexus(G$3,G$4,G$2),"") -> 1 | I34: 25 | J34: 23 | K34: 43 | L34: 42 | M34: 38 | N34: 36
A35: 31 | B35: =IF(ISNUMBER($A35),HLNexus(B$3,B$4,B$2),"") -> 9 | C35: =IF(ISNUMBER($A35),HLNexus(C$3,C$4,C$2),"") -> 20 | D35: =IF(ISNUMBER($A35),HLNexus(D$3,D$4,D$2),"") -> 25 | E35: =IF(ISNUMBER($A35),HLNexus(E$3,E$4,E$2),"") -> 41 | F35: =IF(ISNUMBER($A35),HLNexus(F$3,F$4,F$2),"") -> 29 | G35: =IF(ISNUMBER($A35),HLNexus(G$3,G$4,G$2),"") -> 8 | I35: 26 | J35: 25 | K35: 45 | L35: 49 | M35: 42 | N35: 32
A36: 32 | B36: =IF(ISNUMBER($A36),HLNexus(B$3,B$4,B$2),"") -> 21 | C36: =IF(ISNUMBER($A36),HLNexus(C$3,C$4,C$2),"") -> 10 | D36: =IF(ISNUMBER($A36),HLNexus(D$3,D$4,D$2),"") -> 37 | E36: =IF(ISNUMBER($A36),HLNexus(E$3,E$4,E$2),"") -> 45 | F36: =IF(ISNUMBER($A36),HLNexus(F$3,F$4,F$2),"") -> 25 | G36: =IF(ISNUMBER($A36),HLNexus(G$3,G$4,G$2),"") -> 13 | I36: 27 | J36: 28 | K36: 57 | L36: 40 | M36: 41 | N36: 33
A37: 33 | B37: =IF(ISNUMBER($A37),HLNexus(B$3,B$4,B$2),"") -> 5 | C37: =IF(ISNUMBER($A37),HLNexus(C$3,C$4,C$2),"") -> 19 | D37: =IF(ISNUMBER($A37),HLNexus(D$3,D$4,D$2),"") -> 44 | E37: =IF(ISNUMBER($A37),HLNexus(E$3,E$4,E$2),"") -> 20 | F37: =IF(ISNUMBER($A37),HLNexus(F$3,F$4,F$2),"") -> 46 | G37: =IF(ISNUMBER($A37),HLNexus(G$3,G$4,G$2),"") -> 5 | I37: 28 | J37: 25 | K37: 44 | L37: 42 | M37: 55 | N37: 29
A38: 34 | B38: =IF(ISNUMBER($A38),HLNexus(B$3,B$4,B$2),"") -> 5 | C38: =IF(ISNUMBER($A38),HLNexus(C$3,C$4,C$2),"") -> 9 | D38: =IF(ISNUMBER($A38),HLNexus(D$3,D$4,D$2),"") -> 24 | E38: =IF(ISNUMBER($A38),HLNexus(E$3,E$4,E$2),"") -> 45 | F38: =IF(ISNUMBER($A38),HLNexus(F$3,F$4,F$2),"") -> 6 | G38: =IF(ISNUMBER($A38),HLNexus(G$3,G$4,G$2),"") -> 8 | I38: 29 | J38: 19 | K38: 52 | L38: 47 | M38: 48 | N38: 32
A39: 35 | B39: =IF(ISNUMBER($A39),HLNexus(B$3,B$4,B$2),"") -> 11 | C39: =IF(ISNUMBER($A39),HLNexus(C$3,C$4,C$2),"") -> 40 | D39: =IF(ISNUMBER($A39),HLNexus(D$3,D$4,D$2),"") -> 43 | E39: =IF(ISNUMBER($A39),HLNexus(E$3,E$4,E$2),"") -> 23 | F39: =IF(ISNUMBER($A39),HLNexus(F$3,F$4,F$2),"") -> 23 | G39: =IF(ISNUMBER($A39),HLNexus(G$3,G$4,G$2),"") -> 1 | I39: 30 | J39: 22 | K39: 44 | L39: 46 | M39: 46 | N39: 51
A40: 36 | B40: =IF(ISNUMBER($A40),HLNexus(B$3,B$4,B$2),"") -> 20 | C40: =IF(ISNUMBER($A40),HLNexus(C$3,C$4,C$2),"") -> 18 | D40: =IF(ISNUMBER($A40),HLNexus(D$3,D$4,D$2),"") -> 28 | E40: =IF(ISNUMBER($A40),HLNexus(E$3,E$4,E$2),"") -> 39 | F40: =IF(ISNUMBER($A40),HLNexus(F$3,F$4,F$2),"") -> 41 | G40: =IF(ISNUMBER($A40),HLNexus(G$3,G$4,G$2),"") -> 7 | I40: 31 | J40: 6 | K40: 39 | L40: 42 | M40: 59 | N40: 39
A41: 37 | B41: =IF(ISNUMBER($A41),HLNexus(B$3,B$4,B$2),"") -> 16 | C41: =IF(ISNUMBER($A41),HLNexus(C$3,C$4,C$2),"") -> 12 | D41: =IF(ISNUMBER($A41),HLNexus(D$3,D$4,D$2),"") -> 16 | E41: =IF(ISNUMBER($A41),HLNexus(E$3,E$4,E$2),"") -> 39 | F41: =IF(ISNUMBER($A41),HLNexus(F$3,F$4,F$2),"") -> 13 | G41: =IF(ISNUMBER($A41),HLNexus(G$3,G$4,G$2),"") -> 4 | I41: 32 | J41: 18 | K41: 44 | L41: 59 | M41: 50 | N41: 58
A42: 38 | B42: =IF(ISNUMBER($A42),HLNexus(B$3,B$4,B$2),"") -> 10 | C42: =IF(ISNUMBER($A42),HLNexus(C$3,C$4,C$2),"") -> 28 | D42: =IF(ISNUMBER($A42),HLNexus(D$3,D$4,D$2),"") -> 32 | E42: =IF(ISNUMBER($A42),HLNexus(E$3,E$4,E$2),"") -> 28 | F42: =IF(ISNUMBER($A42),HLNexus(F$3,F$4,F$2),"") -> 46 | G42: =IF(ISNUMBER($A42),HLNexus(G$3,G$4,G$2),"") -> 4 | I42: 33 | J42: 19 | K42: 34 | L42: 68 | M42: 50 | N42: 53
A43: 39 | B43: =IF(ISNUMBER($A43),HLNexus(B$3,B$4,B$2),"") -> 6 | C43: =IF(ISNUMBER($A43),HLNexus(C$3,C$4,C$2),"") -> 22 | D43: =IF(ISNUMBER($A43),HLNexus(D$3,D$4,D$2),"") -> 33 | E43: =IF(ISNUMBER($A43),HLNexus(E$3,E$4,E$2),"") -> 21 | F43: =IF(ISNUMBER($A43),HLNexus(F$3,F$4,F$2),"") -> 30 | G43: =IF(ISNUMBER($A43),HLNexus(G$3,G$4,G$2),"") -> 18 | I43: 34 | J43: 8 | K43: 35 | L43: 57 | M43: 48 | N43: 54
A44: 40 | B44: =IF(ISNUMBER($A44),HLNexus(B$3,B$4,B$2),"") -> 24 | C44: =IF(ISNUMBER($A44),HLNexus(C$3,C$4,C$2),"") -> 43 | D44: =IF(ISNUMBER($A44),HLNexus(D$3,D$4,D$2),"") -> 36 | E44: =IF(ISNUMBER($A44),HLNexus(E$3,E$4,E$2),"") -> 40 | F44: =IF(ISNUMBER($A44),HLNexus(F$3,F$4,F$2),"") -> 42 | G44: =IF(ISNUMBER($A44),HLNexus(G$3,G$4,G$2),"") -> 4 | I44: 35 | J44: 12 | K44: 42 | L44: 49 | M44: 45 | N44: 52
A45: 41 | B45: =IF(ISNUMBER($A45),HLNexus(B$3,B$4,B$2),"") -> 19 | C45: =IF(ISNUMBER($A45),HLNexus(C$3,C$4,C$2),"") -> 30 | D45: =IF(ISNUMBER($A45),HLNexus(D$3,D$4,D$2),"") -> 37 | E45: =IF(ISNUMBER($A45),HLNexus(E$3,E$4,E$2),"") -> 22 | F45: =IF(ISNUMBER($A45),HLNexus(F$3,F$4,F$2),"") -> 43 | G45: =IF(ISNUMBER($A45),HLNexus(G$3,G$4,G$2),"") -> 5 | I45: 36 | J45: 5 | K45: 33 | L45: 33 | M45: 59 | N45: 72
A46: 42 | B46: =IF(ISNUMBER($A46),HLNexus(B$3,B$4,B$2),"") -> 13 | C46: =IF(ISNUMBER($A46),HLNexus(C$3,C$4,C$2),"") -> 30 | D46: =IF(ISNUMBER($A46),HLNexus(D$3,D$4,D$2),"") -> 36 | E46: =IF(ISNUMBER($A46),HLNexus(E$3,E$4,E$2),"") -> 37 | F46: =IF(ISNUMBER($A46),HLNexus(F$3,F$4,F$2),"") -> 30 | G46: =IF(ISNUMBER($A46),HLNexus(G$3,G$4,G$2),"") -> 11 | I46: 37 | J46: 7 | K46: 21 | L46: 48 | M46: 68 | N46: 72
A47: 43 | B47: =IF(ISNUMBER($A47),HLNexus(B$3,B$4,B$2),"") -> 35 | C47: =IF(ISNUMBER($A47),HLNexus(C$3,C$4,C$2),"") -> 18 | D47: =IF(ISNUMBER($A47),HLNexus(D$3,D$4,D$2),"") -> 16 | E47: =IF(ISNUMBER($A47),HLNexus(E$3,E$4,E$2),"") -> 42 | F47: =IF(ISNUMBER($A47),HLNexus(F$3,F$4,F$2),"") -> 20 | G47: =IF(ISNUMBER($A47),HLNexus(G$3,G$4,G$2),"") -> 13 | I47: 38 | J47: 5 | K47: 33 | L47: 44 | M47: 52 | N47: 64
A48: 44 | B48: =IF(ISNUMBER($A48),HLNexus(B$3,B$4,B$2),"") -> 16 | C48: =IF(ISNUMBER($A48),HLNexus(C$3,C$4,C$2),"") -> 10 | D48: =IF(ISNUMBER($A48),HLNexus(D$3,D$4,D$2),"") -> 29 | E48: =IF(ISNUMBER($A48),HLNexus(E$3,E$4,E$2),"") -> 29 | F48: =IF(ISNUMBER($A48),HLNexus(F$3,F$4,F$2),"") -> 36 | G48: =IF(ISNUMBER($A48),HLNexus(G$3,G$4,G$2),"") -> 2 | I48: 39 | J48: 4 | K48: 26 | L48: 55 | M48: 53 | N48: 60
A49: 45 | B49: =IF(ISNUMBER($A49),HLNexus(B$3,B$4,B$2),"") -> 32 | C49: =IF(ISNUMBER($A49),HLNexus(C$3,C$4,C$2),"") -> 19 | D49: =IF(ISNUMBER($A49),HLNexus(D$3,D$4,D$2),"") -> 12 | E49: =IF(ISNUMBER($A49),HLNexus(E$3,E$4,E$2),"") -> 41 | F49: =IF(ISNUMBER($A49),HLNexus(F$3,F$4,F$2),"") -> 39 | G49: =IF(ISNUMBER($A49),HLNexus(G$3,G$4,G$2),"") -> 1 | I49: 40 | J49: 7 | K49: 26 | L49: 39 | M49: 56 | N49: 76
A50: 46 | B50: =IF(ISNUMBER($A50),HLNexus(B$3,B$4,B$2),"") -> 23 | C50: =IF(ISNUMBER($A50),HLNexus(C$3,C$4,C$2),"") -> 28 | D50: =IF(ISNUMBER($A50),HLNexus(D$3,D$4,D$2),"") -> 23 | E50: =IF(ISNUMBER($A50),HLNexus(E$3,E$4,E$2),"") -> 31 | F50: =IF(ISNUMBER($A50),HLNexus(F$3,F$4,F$2),"") -> 46 | G50: =IF(ISNUMBER($A50),HLNexus(G$3,G$4,G$2),"") -> 11 | I50: 41 | J50: 7 | K50: 19 | L50: 47 | M50: 60 | N50: 52
A51: 47 | B51: =IF(ISNUMBER($A51),HLNexus(B$3,B$4,B$2),"") -> 2 | C51: =IF(ISNUMBER($A51),HLNexus(C$3,C$4,C$2),"") -> 31 | D51: =IF(ISNUMBER($A51),HLNexus(D$3,D$4,D$2),"") -> 39 | E51: =IF(ISNUMBER($A51),HLNexus(E$3,E$4,E$2),"") -> 32 | F51: =IF(ISNUMBER($A51),HLNexus(F$3,F$4,F$2),"") -> 20 | G51: =IF(ISNUMBER($A51),HLNexus(G$3,G$4,G$2),"") -> 6 | I51: 42 | J51: 2 | K51: 16 | L51: 37 | M51: 71 | N51: 70
A52: 48 | B52: =IF(ISNUMBER($A52),HLNexus(B$3,B$4,B$2),"") -> 8 | C52: =IF(ISNUMBER($A52),HLNexus(C$3,C$4,C$2),"") -> 15 | D52: =IF(ISNUMBER($A52),HLNexus(D$3,D$4,D$2),"") -> 26 | E52: =IF(ISNUMBER($A52),HLNexus(E$3,E$4,E$2),"") -> 18 | F52: =IF(ISNUMBER($A52),HLNexus(F$3,F$4,F$2),"") -> 22 | G52: =IF(ISNUMBER($A52),HLNexus(G$3,G$4,G$2),"") -> 13 | I52: 43 | J52: 2 | K52: 25 | L52: 42 | M52: 52 | N52: 86
A53: 49 | B53: =IF(ISNUMBER($A53),HLNexus(B$3,B$4,B$2),"") -> 8 | C53: =IF(ISNUMBER($A53),HLNexus(C$3,C$4,C$2),"") -> 15 | D53: =IF(ISNUMBER($A53),HLNexus(D$3,D$4,D$2),"") -> 37 | E53: =IF(ISNUMBER($A53),HLNexus(E$3,E$4,E$2),"") -> 46 | F53: =IF(ISNUMBER($A53),HLNexus(F$3,F$4,F$2),"") -> 42 | G53: =IF(ISNUMBER($A53),HLNexus(G$3,G$4,G$2),"") -> 2 | I53: 44 | J53: 0 | K53: 20 | L53: 28 | M53: 50 | N53: 70
A54: 50 | B54: =IF(ISNUMBER($A54),HLNexus(B$3,B$4,B$2),"") -> 11 | C54: =IF(ISNUMBER($A54),HLNexus(C$3,C$4,C$2),"") -> 10 | D54: =IF(ISNUMBER($A54),HLNexus(D$3,D$4,D$2),"") -> 23 | E54: =IF(ISNUMBER($A54),HLNexus(E$3,E$4,E$2),"") -> 39 | F54: =IF(ISNUMBER($A54),HLNexus(F$3,F$4,F$2),"") -> 38 | G54: =IF(ISNUMBER($A54),HLNexus(G$3,G$4,G$2),"") -> 14 | I54: 45 | J54: 0 | K54: 0 | L54: 28 | M54: 43 | N54: 44
A55: 51 | B55: =IF(ISNUMBER($A55),HLNexus(B$3,B$4,B$2),"") -> 5 | C55: =IF(ISNUMBER($A55),HLNexus(C$3,C$4,C$2),"") -> 17 | D55: =IF(ISNUMBER($A55),HLNexus(D$3,D$4,D$2),"") -> 14 | E55: =IF(ISNUMBER($A55),HLNexus(E$3,E$4,E$2),"") -> 46 | F55: =IF(ISNUMBER($A55),HLNexus(F$3,F$4,F$2),"") -> 33 | G55: =IF(ISNUMBER($A55),HLNexus(G$3,G$4,G$2),"") -> 17 | I55: 46 | J55: 0 | K55: 0 | L55: 0 | M55: 34 | N55: 62
A56: 52 | B56: =IF(ISNUMBER($A56),HLNexus(B$3,B$4,B$2),"") -> 24 | C56: =IF(ISNUMBER($A56),HLNexus(C$3,C$4,C$2),"") -> 27 | D56: =IF(ISNUMBER($A56),HLNexus(D$3,D$4,D$2),"") -> 33 | E56: =IF(ISNUMBER($A56),HLNexus(E$3,E$4,E$2),"") -> 37 | F56: =IF(ISNUMBER($A56),HLNexus(F$3,F$4,F$2),"") -> 36 | G56: =IF(ISNUMBER($A56),HLNexus(G$3,G$4,G$2),"") -> 11 | I56: 47 | J56: 0 | K56: 0 | L56: 0 | M56: 0 | N56: 55
A57: 53 | B57: =IF(ISNUMBER($A57),HLNexus(B$3,B$4,B$2),"") -> 11 | C57: =IF(ISNUMBER($A57),HLNexus(C$3,C$4,C$2),"") -> 28 | D57: =IF(ISNUMBER($A57),HLNexus(D$3,D$4,D$2),"") -> 30 | E57: =IF(ISNUMBER($A57),HLNexus(E$3,E$4,E$2),"") -> 24 | F57: =IF(ISNUMBER($A57),HLNexus(F$3,F$4,F$2),"") -> 44 | G57: =IF(ISNUMBER($A57),HLNexus(G$3,G$4,G$2),"") -> 15
A58: 54 | B58: =IF(ISNUMBER($A58),HLNexus(B$3,B$4,B$2),"") -> 11 | C58: =IF(ISNUMBER($A58),HLNexus(C$3,C$4,C$2),"") -> 36 | D58: =IF(ISNUMBER($A58),HLNexus(D$3,D$4,D$2),"") -> 24 | E58: =IF(ISNUMBER($A58),HLNexus(E$3,E$4,E$2),"") -> 37 | F58: =IF(ISNUMBER($A58),HLNexus(F$3,F$4,F$2),"") -> 25 | G58: =IF(ISNUMBER($A58),HLNexus(G$3,G$4,G$2),"") -> 11
A59: 55 | B59: =IF(ISNUMBER($A59),HLNexus(B$3,B$4,B$2),"") -> 10 | C59: =IF(ISNUMBER($A59),HLNexus(C$3,C$4,C$2),"") -> 9 | D59: =IF(ISNUMBER($A59),HLNexus(D$3,D$4,D$2),"") -> 36 | E59: =IF(ISNUMBER($A59),HLNexus(E$3,E$4,E$2),"") -> 42 | F59: =IF(ISNUMBER($A59),HLNexus(F$3,F$4,F$2),"") -> 32 | G59: =IF(ISNUMBER($A59),HLNexus(G$3,G$4,G$2),"") -> 8
A60: 56 | B60: =IF(ISNUMBER($A60),HLNexus(B$3,B$4,B$2),"") -> 20 | C60: =IF(ISNUMBER($A60),HLNexus(C$3,C$4,C$2),"") -> 14 | D60: =IF(ISNUMBER($A60),HLNexus(D$3,D$4,D$2),"") -> 16 | E60: =IF(ISNUMBER($A60),HLNexus(E$3,E$4,E$2),"") -> 40 | F60: =IF(ISNUMBER($A60),HLNexus(F$3,F$4,F$2),"") -> 47 | G60: =IF(ISNUMBER($A60),HLNexus(G$3,G$4,G$2),"") -> 3
A61: 57 | B61: =IF(ISNUMBER($A61),HLNexus(B$3,B$4,B$2),"") -> 10 | C61: =IF(ISNUMBER($A61),HLNexus(C$3,C$4,C$2),"") -> 39 | D61: =IF(ISNUMBER($A61),HLNexus(D$3,D$4,D$2),"") -> 33 | E61: =IF(ISNUMBER($A61),HLNexus(E$3,E$4,E$2),"") -> 26 | F61: =IF(ISNUMBER($A61),HLNexus(F$3,F$4,F$2),"") -> 35 | G61: =IF(ISNUMBER($A61),HLNexus(G$3,G$4,G$2),"") -> 6
A62: 58 | B62: =IF(ISNUMBER($A62),HLNexus(B$3,B$4,B$2),"") -> 17 | C62: =IF(ISNUMBER($A62),HLNexus(C$3,C$4,C$2),"") -> 25 | D62: =IF(ISNUMBER($A62),HLNexus(D$3,D$4,D$2),"") -> 45 | E62: =IF(ISNUMBER($A62),HLNexus(E$3,E$4,E$2),"") -> 46 | F62: =IF(ISNUMBER($A62),HLNexus(F$3,F$4,F$2),"") -> 22 | G62: =IF(ISNUMBER($A62),HLNexus(G$3,G$4,G$2),"") -> 10
A63: 59 | B63: =IF(ISNUMBER($A63),HLNexus(B$3,B$4,B$2),"") -> 27 | C63: =IF(ISNUMBER($A63),HLNexus(C$3,C$4,C$2),"") -> 27 | D63: =IF(ISNUMBER($A63),HLNexus(D$3,D$4,D$2),"") -> 34 | E63: =IF(ISNUMBER($A63),HLNexus(E$3,E$4,E$2),"") -> 34 | F63: =IF(ISNUMBER($A63),HLNexus(F$3,F$4,F$2),"") -> 46 | G63: =IF(ISNUMBER($A63),HLNexus(G$3,G$4,G$2),"") -> 12
A64: 60 | B64: =IF(ISNUMBER($A64),HLNexus(B$3,B$4,B$2),"") -> 5 | C64: =IF(ISNUMBER($A64),HLNexus(C$3,C$4,C$2),"") -> 23 | D64: =IF(ISNUMBER($A64),HLNexus(D$3,D$4,D$2),"") -> 29 | E64: =IF(ISNUMBER($A64),HLNexus(E$3,E$4,E$2),"") -> 29 | F64: =IF(ISNUMBER($A64),HLNexus(F$3,F$4,F$2),"") -> 31 | G64: =IF(ISNUMBER($A64),HLNexus(G$3,G$4,G$2),"") -> 5
A65: 61 | B65: =IF(ISNUMBER($A65),HLNexus(B$3,B$4,B$2),"") -> 20 | C65: =IF(ISNUMBER($A65),HLNexus(C$3,C$4,C$2),"") -> 13 | D65: =IF(ISNUMBER($A65),HLNexus(D$3,D$4,D$2),"") -> 18 | E65: =IF(ISNUMBER($A65),HLNexus(E$3,E$4,E$2),"") -> 38 | F65: =IF(ISNUMBER($A65),HLNexus(F$3,F$4,F$2),"") -> 40 | G65: =IF(ISNUMBER($A65),HLNexus(G$3,G$4,G$2),"") -> 7
A66: 62 | B66: =IF(ISNUMBER($A66),HLNexus(B$3,B$4,B$2),"") -> 14 | C66: =IF(ISNUMBER($A66),HLNexus(C$3,C$4,C$2),"") -> 22 | D66: =IF(ISNUMBER($A66),HLNexus(D$3,D$4,D$2),"") -> 24 | E66: =IF(ISNUMBER($A66),HLNexus(E$3,E$4,E$2),"") -> 41 | F66: =IF(ISNUMBER($A66),HLNexus(F$3,F$4,F$2),"") -> 40 | G66: =IF(ISNUMBER($A66),HLNexus(G$3,G$4,G$2),"") -> 11
A67: 63 | B67: =IF(ISNUMBER($A67),HLNexus(B$3,B$4,B$2),"") -> 3 | C67: =IF(ISNUMBER($A67),HLNexus(C$3,C$4,C$2),"") -> 16 | D67: =IF(ISNUMBER($A67),HLNexus(D$3,D$4,D$2),"") -> 42 | E67: =IF(ISNUMBER($A67),HLNexus(E$3,E$4,E$2),"") -> 36 | F67: =IF(ISNUMBER($A67),HLNexus(F$3,F$4,F$2),"") -> 17 | G67: =IF(ISNUMBER($A67),HLNexus(G$3,G$4,G$2),"") -> 13
A68: 64 | B68: =IF(ISNUMBER($A68),HLNexus(B$3,B$4,B$2),"") -> 4 | C68: =IF(ISNUMBER($A68),HLNexus(C$3,C$4,C$2),"") -> 19 | D68: =IF(ISNUMBER($A68),HLNexus(D$3,D$4,D$2),"") -> 39 | E68: =IF(ISNUMBER($A68),HLNexus(E$3,E$4,E$2),"") -> 9 | F68: =IF(ISNUMBER($A68),HLNexus(F$3,F$4,F$2),"") -> 23 | G68: =IF(ISNUMBER($A68),HLNexus(G$3,G$4,G$2),"") -> 9
A69: 65 | B69: =IF(ISNUMBER($A69),HLNexus(B$3,B$4,B$2),"") -> 3 | C69: =IF(ISNUMBER($A69),HLNexus(C$3,C$4,C$2),"") -> 20 | D69: =IF(ISNUMBER($A69),HLNexus(D$3,D$4,D$2),"") -> 30 | E69: =IF(ISNUMBER($A69),HLNexus(E$3,E$4,E$2),"") -> 43 | F69: =IF(ISNUMBER($A69),HLNexus(F$3,F$4,F$2),"") -> 32 | G69: =IF(ISNUMBER($A69),HLNexus(G$3,G$4,G$2),"") -> 3
A70: 66 | B70: =IF(ISNUMBER($A70),HLNexus(B$3,B$4,B$2),"") -> 2 | C70: =IF(ISNUMBER($A70),HLNexus(C$3,C$4,C$2),"") -> 29 | D70: =IF(ISNUMBER($A70),HLNexus(D$3,D$4,D$2),"") -> 29 | E70: =IF(ISNUMBER($A70),HLNexus(E$3,E$4,E$2),"") -> 32 | F70: =IF(ISNUMBER($A70),HLNexus(F$3,F$4,F$2),"") -> 21 | G70: =IF(ISNUMBER($A70),HLNexus(G$3,G$4,G$2),"") -> 18
A71: =IF(ISNUMBER(A70),IF(A70+1<=M$4,A70+1,""),"") -> 67 | B71: =IF(ISNUMBER($A71),HLNexus(B$3,B$4,B$2),"") -> 9 | C71: =IF(ISNUMBER($A71),HLNexus(C$3,C$4,C$2),"") -> 27 | D71: =IF(ISNUMBER($A71),HLNexus(D$3,D$4,D$2),"") -> 10 | E71: =IF(ISNUMBER($A71),HLNexus(E$3,E$4,E$2),"") -> 37 | F71: =IF(ISNUMBER($A71),HLNexus(F$3,F$4,F$2),"") -> 45 | G71: =IF(ISNUMBER($A71),HLNexus(G$3,G$4,G$2),"") -> 13
A72: 68 | B72: =IF(ISNUMBER($A72),HLNexus(B$3,B$4,B$2),"") -> 21 | C72: =IF(ISNUMBER($A72),HLNexus(C$3,C$4,C$2),"") -> 44 | D72: =IF(ISNUMBER($A72),HLNexus(D$3,D$4,D$2),"") -> 41 | E72: =IF(ISNUMBER($A72),HLNexus(E$3,E$4,E$2),"") -> 43 | F72: =IF(ISNUMBER($A72),HLNexus(F$3,F$4,F$2),"") -> 42 | G72: =IF(ISNUMBER($A72),HLNexus(G$3,G$4,G$2),"") -> 17
A73: 69 | B73: =IF(ISNUMBER($A73),HLNexus(B$3,B$4,B$2),"") -> 23 | C73: =IF(ISNUMBER($A73),HLNexus(C$3,C$4,C$2),"") -> 23 | D73: =IF(ISNUMBER($A73),HLNexus(D$3,D$4,D$2),"") -> 9 | E73: =IF(ISNUMBER($A73),HLNexus(E$3,E$4,E$2),"") -> 28 | F73: =IF(ISNUMBER($A73),HLNexus(F$3,F$4,F$2),"") -> 27 | G73: =IF(ISNUMBER($A73),HLNexus(G$3,G$4,G$2),"") -> 11
A74: 70 | B74: =IF(ISNUMBER($A74),HLNexus(B$3,B$4,B$2),"") -> 2 | C74: =IF(ISNUMBER($A74),HLNexus(C$3,C$4,C$2),"") -> 35 | D74: =IF(ISNUMBER($A74),HLNexus(D$3,D$4,D$2),"") -> 7 | E74: =IF(ISNUMBER($A74),HLNexus(E$3,E$4,E$2),"") -> 14 | F74: =IF(ISNUMBER($A74),HLNexus(F$3,F$4,F$2),"") -> 44 | G74: =IF(ISNUMBER($A74),HLNexus(G$3,G$4,G$2),"") -> 11
A75: 71 | B75: =IF(ISNUMBER($A75),HLNexus(B$3,B$4,B$2),"") -> 42 | C75: =IF(ISNUMBER($A75),HLNexus(C$3,C$4,C$2),"") -> 20 | D75: =IF(ISNUMBER($A75),HLNexus(D$3,D$4,D$2),"") -> 37 | E75: =IF(ISNUMBER($A75),HLNexus(E$3,E$4,E$2),"") -> 37 | F75: =IF(ISNUMBER($A75),HLNexus(F$3,F$4,F$2),"") -> 24 | G75: =IF(ISNUMBER($A75),HLNexus(G$3,G$4,G$2),"") -> 9
A76: 72 | B76: =IF(ISNUMBER($A76),HLNexus(B$3,B$4,B$2),"") -> 21 | C76: =IF(ISNUMBER($A76),HLNexus(C$3,C$4,C$2),"") -> 17 | D76: =IF(ISNUMBER($A76),HLNexus(D$3,D$4,D$2),"") -> 22 | E76: =IF(ISNUMBER($A76),HLNexus(E$3,E$4,E$2),"") -> 27 | F76: =IF(ISNUMBER($A76),HLNexus(F$3,F$4,F$2),"") -> 46 | G76: =IF(ISNUMBER($A76),HLNexus(G$3,G$4,G$2),"") -> 3
A77: 73 | B77: =IF(ISNUMBER($A77),HLNexus(B$3,B$4,B$2),"") -> 1 | C77: =IF(ISNUMBER($A77),HLNexus(C$3,C$4,C$2),"") -> 23 | D77: =IF(ISNUMBER($A77),HLNexus(D$3,D$4,D$2),"") -> 27 | E77: =IF(ISNUMBER($A77),HLNexus(E$3,E$4,E$2),"") -> 31 | F77: =IF(ISNUMBER($A77),HLNexus(F$3,F$4,F$2),"") -> 22 | G77: =IF(ISNUMBER($A77),HLNexus(G$3,G$4,G$2),"") -> 11
A78: 74 | B78: =IF(ISNUMBER($A78),HLNexus(B$3,B$4,B$2),"") -> 12 | C78: =IF(ISNUMBER($A78),HLNexus(C$3,C$4,C$2),"") -> 28 | D78: =IF(ISNUMBER($A78),HLNexus(D$3,D$4,D$2),"") -> 29 | E78: =IF(ISNUMBER($A78),HLNexus(E$3,E$4,E$2),"") -> 24 | F78: =IF(ISNUMBER($A78),HLNexus(F$3,F$4,F$2),"") -> 35 | G78: =IF(ISNUMBER($A78),HLNexus(G$3,G$4,G$2),"") -> 18
A79: 75 | B79: =IF(ISNUMBER($A79),HLNexus(B$3,B$4,B$2),"") -> 10 | C79: =IF(ISNUMBER($A79),HLNexus(C$3,C$4,C$2),"") -> 17 | D79: =IF(ISNUMBER($A79),HLNexus(D$3,D$4,D$2),"") -> 45 | E79: =IF(ISNUMBER($A79),HLNexus(E$3,E$4,E$2),"") -> 30 | F79: =IF(ISNUMBER($A79),HLNexus(F$3,F$4,F$2),"") -> 21 | G79: =IF(ISNUMBER($A79),HLNexus(G$3,G$4,G$2),"") -> 15
A80: 76 | B80: =IF(ISNUMBER($A80),HLNexus(B$3,B$4,B$2),"") -> 12 | C80: =IF(ISNUMBER($A80),HLNexus(C$3,C$4,C$2),"") -> 9 | D80: =IF(ISNUMBER($A80),HLNexus(D$3,D$4,D$2),"") -> 31 | E80: =IF(ISNUMBER($A80),HLNexus(E$3,E$4,E$2),"") -> 39 | F80: =IF(ISNUMBER($A80),HLNexus(F$3,F$4,F$2),"") -> 30 | G80: =IF(ISNUMBER($A80),HLNexus(G$3,G$4,G$2),"") -> 4
A81: 77 | B81: =IF(ISNUMBER($A81),HLNexus(B$3,B$4,B$2),"") -> 37 | C81: =IF(ISNUMBER($A81),HLNexus(C$3,C$4,C$2),"") -> 44 | D81: =IF(ISNUMBER($A81),HLNexus(D$3,D$4,D$2),"") -> 20 | E81: =IF(ISNUMBER($A81),HLNexus(E$3,E$4,E$2),"") -> 8 | F81: =IF(ISNUMBER($A81),HLNexus(F$3,F$4,F$2),"") -> 37 | G81: =IF(ISNUMBER($A81),HLNexus(G$3,G$4,G$2),"") -> 8
A82: 78 | B82: =IF(ISNUMBER($A82),HLNexus(B$3,B$4,B$2),"") -> 14 | C82: =IF(ISNUMBER($A82),HLNexus(C$3,C$4,C$2),"") -> 28 | D82: =IF(ISNUMBER($A82),HLNexus(D$3,D$4,D$2),"") -> 11 | E82: =IF(ISNUMBER($A82),HLNexus(E$3,E$4,E$2),"") -> 42 | F82: =IF(ISNUMBER($A82),HLNexus(F$3,F$4,F$2),"") -> 34 | G82: =IF(ISNUMBER($A82),HLNexus(G$3,G$4,G$2),"") -> 12
A83: 79 | B83: =IF(ISNUMBER($A83),HLNexus(B$3,B$4,B$2),"") -> 4 | C83: =IF(ISNUMBER($A83),HLNexus(C$3,C$4,C$2),"") -> 26 | D83: =IF(ISNUMBER($A83),HLNexus(D$3,D$4,D$2),"") -> 34 | E83: =IF(ISNUMBER($A83),HLNexus(E$3,E$4,E$2),"") -> 24 | F83: =IF(ISNUMBER($A83),HLNexus(F$3,F$4,F$2),"") -> 25 | G83: =IF(ISNUMBER($A83),HLNexus(G$3,G$4,G$2),"") -> 3
A84: 80 | B84: =IF(ISNUMBER($A84),HLNexus(B$3,B$4,B$2),"") -> 35 | C84: =IF(ISNUMBER($A84),HLNexus(C$3,C$4,C$2),"") -> 11 | D84: =IF(ISNUMBER($A84),HLNexus(D$3,D$4,D$2),"") -> 33 | E84: =IF(ISNUMBER($A84),HLNexus(E$3,E$4,E$2),"") -> 7 | F84: =IF(ISNUMBER($A84),HLNexus(F$3,F$4,F$2),"") -> 30 | G84: =IF(ISNUMBER($A84),HLNexus(G$3,G$4,G$2),"") -> 12
A85: 81 | B85: =IF(ISNUMBER($A85),HLNexus(B$3,B$4,B$2),"") -> 14 | C85: =IF(ISNUMBER($A85),HLNexus(C$3,C$4,C$2),"") -> 23 | D85: =IF(ISNUMBER($A85),HLNexus(D$3,D$4,D$2),"") -> 45 | E85: =IF(ISNUMBER($A85),HLNexus(E$3,E$4,E$2),"") -> 45 | F85: =IF(ISNUMBER($A85),HLNexus(F$3,F$4,F$2),"") -> 40 | G85: =IF(ISNUMBER($A85),HLNexus(G$3,G$4,G$2),"") -> 11
A86: 82 | B86: =IF(ISNUMBER($A86),HLNexus(B$3,B$4,B$2),"") -> 18 | C86: =IF(ISNUMBER($A86),HLNexus(C$3,C$4,C$2),"") -> 38 | D86: =IF(ISNUMBER($A86),HLNexus(D$3,D$4,D$2),"") -> 40 | E86: =IF(ISNUMBER($A86),HLNexus(E$3,E$4,E$2),"") -> 19 | F86: =IF(ISNUMBER($A86),HLNexus(F$3,F$4,F$2),"") -> 40 | G86: =IF(ISNUMBER($A86),HLNexus(G$3,G$4,G$2),"") -> 9
A87: 83 | B87: =IF(ISNUMBER($A87),HLNexus(B$3,B$4,B$2),"") -> 8 | C87: =IF(ISNUMBER($A87),HLNexus(C$3,C$4,C$2),"") -> 7 | D87: =IF(ISNUMBER($A87),HLNexus(D$3,D$4,D$2),"") -> 23 | E87: =IF(ISNUMBER($A87),HLNexus(E$3,E$4,E$2),"") -> 46 | F87: =IF(ISNUMBER($A87),HLNexus(F$3,F$4,F$2),"") -> 40 | G87: =IF(ISNUMBER($A87),HLNexus(G$3,G$4,G$2),"") -> 3
A88: 84 | B88: =IF(ISNUMBER($A88),HLNexus(B$3,B$4,B$2),"") -> 11 | C88: =IF(ISNUMBER($A88),HLNexus(C$3,C$4,C$2),"") -> 31 | D88: =IF(ISNUMBER($A88),HLNexus(D$3,D$4,D$2),"") -> 26 | E88: =IF(ISNUMBER($A88),HLNexus(E$3,E$4,E$2),"") -> 31 | F88: =IF(ISNUMBER($A88),HLNexus(F$3,F$4,F$2),"") -> 30 | G88: =IF(ISNUMBER($A88),HLNexus(G$3,G$4,G$2),"") -> 18
A89: 85 | B89: =IF(ISNUMBER($A89),HLNexus(B$3,B$4,B$2),"") -> 14 | C89: =IF(ISNUMBER($A89),HLNexus(C$3,C$4,C$2),"") -> 17 | D89: =IF(ISNUMBER($A89),HLNexus(D$3,D$4,D$2),"") -> 42 | E89: =IF(ISNUMBER($A89),HLNexus(E$3,E$4,E$2),"") -> 8 | F89: =IF(ISNUMBER($A89),HLNexus(F$3,F$4,F$2),"") -> 24 | G89: =IF(ISNUMBER($A89),HLNexus(G$3,G$4,G$2),"") -> 7
A90: 86 | B90: =IF(ISNUMBER($A90),HLNexus(B$3,B$4,B$2),"") -> 6 | C90: =IF(ISNUMBER($A90),HLNexus(C$3,C$4,C$2),"") -> 34 | D90: =IF(ISNUMBER($A90),HLNexus(D$3,D$4,D$2),"") -> 43 | E90: =IF(ISNUMBER($A90),HLNexus(E$3,E$4,E$2),"") -> 31 | F90: =IF(ISNUMBER($A90),HLNexus(F$3,F$4,F$2),"") -> 47 | G90: =IF(ISNUMBER($A90),HLNexus(G$3,G$4,G$2),"") -> 16
A91: 87 | B91: =IF(ISNUMBER($A91),HLNexus(B$3,B$4,B$2),"") -> 16 | C91: =IF(ISNUMBER($A91),HLNexus(C$3,C$4,C$2),"") -> 24 | D91: =IF(ISNUMBER($A91),HLNexus(D$3,D$4,D$2),"") -> 26 | E91: =IF(ISNUMBER($A91),HLNexus(E$3,E$4,E$2),"") -> 27 | F91: =IF(ISNUMBER($A91),HLNexus(F$3,F$4,F$2),"") -> 25 | G91: =IF(ISNUMBER($A91),HLNexus(G$3,G$4,G$2),"") -> 3
A92: 88 | B92: =IF(ISNUMBER($A92),HLNexus(B$3,B$4,B$2),"") -> 12 | C92: =IF(ISNUMBER($A92),HLNexus(C$3,C$4,C$2),"") -> 37 | D92: =IF(ISNUMBER($A92),HLNexus(D$3,D$4,D$2),"") -> 39 | E92: =IF(ISNUMBER($A92),HLNexus(E$3,E$4,E$2),"") -> 35 | F92: =IF(ISNUMBER($A92),HLNexus(F$3,F$4,F$2),"") -> 29 | G92: =IF(ISNUMBER($A92),HLNexus(G$3,G$4,G$2),"") -> 7
A93: 89 | B93: =IF(ISNUMBER($A93),HLNexus(B$3,B$4,B$2),"") -> 16 | C93: =IF(ISNUMBER($A93),HLNexus(C$3,C$4,C$2),"") -> 19 | D93: =IF(ISNUMBER($A93),HLNexus(D$3,D$4,D$2),"") -> 20 | E93: =IF(ISNUMBER($A93),HLNexus(E$3,E$4,E$2),"") -> 41 | F93: =IF(ISNUMBER($A93),HLNexus(F$3,F$4,F$2),"") -> 22 | G93: =IF(ISNUMBER($A93),HLNexus(G$3,G$4,G$2),"") -> 9
A94: 90 | B94: =IF(ISNUMBER($A94),HLNexus(B$3,B$4,B$2),"") -> 8 | C94: =IF(ISNUMBER($A94),HLNexus(C$3,C$4,C$2),"") -> 27 | D94: =IF(ISNUMBER($A94),HLNexus(D$3,D$4,D$2),"") -> 34 | E94: =IF(ISNUMBER($A94),HLNexus(E$3,E$4,E$2),"") -> 40 | F94: =IF(ISNUMBER($A94),HLNexus(F$3,F$4,F$2),"") -> 40 | G94: =IF(ISNUMBER($A94),HLNexus(G$3,G$4,G$2),"") -> 9
A95: 91 | B95: =IF(ISNUMBER($A95),HLNexus(B$3,B$4,B$2),"") -> 2 | C95: =IF(ISNUMBER($A95),HLNexus(C$3,C$4,C$2),"") -> 6 | D95: =IF(ISNUMBER($A95),HLNexus(D$3,D$4,D$2),"") -> 16 | E95: =IF(ISNUMBER($A95),HLNexus(E$3,E$4,E$2),"") -> 43 | F95: =IF(ISNUMBER($A95),HLNexus(F$3,F$4,F$2),"") -> 30 | G95: =IF(ISNUMBER($A95),HLNexus(G$3,G$4,G$2),"") -> 11
A96: 92 | B96: =IF(ISNUMBER($A96),HLNexus(B$3,B$4,B$2),"") -> 27 | C96: =IF(ISNUMBER($A96),HLNexus(C$3,C$4,C$2),"") -> 23 | D96: =IF(ISNUMBER($A96),HLNexus(D$3,D$4,D$2),"") -> 24 | E96: =IF(ISNUMBER($A96),HLNexus(E$3,E$4,E$2),"") -> 37 | F96: =IF(ISNUMBER($A96),HLNexus(F$3,F$4,F$2),"") -> 44 | G96: =IF(ISNUMBER($A96),HLNexus(G$3,G$4,G$2),"") -> 13
A97: 93 | B97: =IF(ISNUMBER($A97),HLNexus(B$3,B$4,B$2),"") -> 1 | C97: =IF(ISNUMBER($A97),HLNexus(C$3,C$4,C$2),"") -> 33 | D97: =IF(ISNUMBER($A97),HLNexus(D$3,D$4,D$2),"") -> 30 | E97: =IF(ISNUMBER($A97),HLNexus(E$3,E$4,E$2),"") -> 36 | F97: =IF(ISNUMBER($A97),HLNexus(F$3,F$4,F$2),"") -> 18 | G97: =IF(ISNUMBER($A97),HLNexus(G$3,G$4,G$2),"") -> 6
A98: 94 | B98: =IF(ISNUMBER($A98),HLNexus(B$3,B$4,B$2),"") -> 9 | C98: =IF(ISNUMBER($A98),HLNexus(C$3,C$4,C$2),"") -> 24 | D98: =IF(ISNUMBER($A98),HLNexus(D$3,D$4,D$2),"") -> 13 | E98: =IF(ISNUMBER($A98),HLNexus(E$3,E$4,E$2),"") -> 32 | F98: =IF(ISNUMBER($A98),HLNexus(F$3,F$4,F$2),"") -> 47 | G98: =IF(ISNUMBER($A98),HLNexus(G$3,G$4,G$2),"") -> 7
A99: 95 | B99: =IF(ISNUMBER($A99),HLNexus(B$3,B$4,B$2),"") -> 6 | C99: =IF(ISNUMBER($A99),HLNexus(C$3,C$4,C$2),"") -> 40 | D99: =IF(ISNUMBER($A99),HLNexus(D$3,D$4,D$2),"") -> 19 | E99: =IF(ISNUMBER($A99),HLNexus(E$3,E$4,E$2),"") -> 46 | F99: =IF(ISNUMBER($A99),HLNexus(F$3,F$4,F$2),"") -> 30 | G99: =IF(ISNUMBER($A99),HLNexus(G$3,G$4,G$2),"") -> 5
A100: 96 | B100: =IF(ISNUMBER($A100),HLNexus(B$3,B$4,B$2),"") -> 7 | C100: =IF(ISNUMBER($A100),HLNexus(C$3,C$4,C$2),"") -> 26 | D100: =IF(ISNUMBER($A100),HLNexus(D$3,D$4,D$2),"") -> 19 | E100: =IF(ISNUMBER($A100),HLNexus(E$3,E$4,E$2),"") -> 20 | F100: =IF(ISNUMBER($A100),HLNexus(F$3,F$4,F$2),"") -> 28 | G100: =IF(ISNUMBER($A100),HLNexus(G$3,G$4,G$2),"") -> 15
A101: 97 | B101: =IF(ISNUMBER($A101),HLNexus(B$3,B$4,B$2),"") -> 6 | C101: =IF(ISNUMBER($A101),HLNexus(C$3,C$4,C$2),"") -> 32 | D101: =IF(ISNUMBER($A101),HLNexus(D$3,D$4,D$2),"") -> 5 | E101: =IF(ISNUMBER($A101),HLNexus(E$3,E$4,E$2),"") -> 29 | F101: =IF(ISNUMBER($A101),HLNexus(F$3,F$4,F$2),"") -> 32 | G101: =IF(ISNUMBER($A101),HLNexus(G$3,G$4,G$2),"") -> 1
A102: 98 | B102: =IF(ISNUMBER($A102),HLNexus(B$3,B$4,B$2),"") -> 26 | C102: =IF(ISNUMBER($A102),HLNexus(C$3,C$4,C$2),"") -> 23 | D102: =IF(ISNUMBER($A102),HLNexus(D$3,D$4,D$2),"") -> 39 | E102: =IF(ISNUMBER($A102),HLNexus(E$3,E$4,E$2),"") -> 37 | F102: =IF(ISNUMBER($A102),HLNexus(F$3,F$4,F$2),"") -> 44 | G102: =IF(ISNUMBER($A102),HLNexus(G$3,G$4,G$2),"") -> 9
A103: 99 | B103: =IF(ISNUMBER($A103),HLNexus(B$3,B$4,B$2),"") -> 34 | C103: =IF(ISNUMBER($A103),HLNexus(C$3,C$4,C$2),"") -> 6 | D103: =IF(ISNUMBER($A103),HLNexus(D$3,D$4,D$2),"") -> 32 | E103: =IF(ISNUMBER($A103),HLNexus(E$3,E$4,E$2),"") -> 39 | F103: =IF(ISNUMBER($A103),HLNexus(F$3,F$4,F$2),"") -> 45 | G103: =IF(ISNUMBER($A103),HLNexus(G$3,G$4,G$2),"") -> 7
A104: 100 | B104: =IF(ISNUMBER($A104),HLNexus(B$3,B$4,B$2),"") -> 17 | C104: =IF(ISNUMBER($A104),HLNexus(C$3,C$4,C$2),"") -> 30 | D104: =IF(ISNUMBER($A104),HLNexus(D$3,D$4,D$2),"") -> 19 | E104: =IF(ISNUMBER($A104),HLNexus(E$3,E$4,E$2),"") -> 28 | F104: =IF(ISNUMBER($A104),HLNexus(F$3,F$4,F$2),"") -> 38 | G104: =IF(ISNUMBER($A104),HLNexus(G$3,G$4,G$2),"") -> 12
A105: 101 | B105: =IF(ISNUMBER($A105),HLNexus(B$3,B$4,B$2),"") -> 23 | C105: =IF(ISNUMBER($A105),HLNexus(C$3,C$4,C$2),"") -> 42 | D105: =IF(ISNUMBER($A105),HLNexus(D$3,D$4,D$2),"") -> 38 | E105: =IF(ISNUMBER($A105),HLNexus(E$3,E$4,E$2),"") -> 28 | F105: =IF(ISNUMBER($A105),HLNexus(F$3,F$4,F$2),"") -> 41 | G105: =IF(ISNUMBER($A105),HLNexus(G$3,G$4,G$2),"") -> 12
A106: 102 | B106: =IF(ISNUMBER($A106),HLNexus(B$3,B$4,B$2),"") -> 7 | C106: =IF(ISNUMBER($A106),HLNexus(C$3,C$4,C$2),"") -> 35 | D106: =IF(ISNUMBER($A106),HLNexus(D$3,D$4,D$2),"") -> 16 | E106: =IF(ISNUMBER($A106),HLNexus(E$3,E$4,E$2),"") -> 9 | F106: =IF(ISNUMBER($A106),HLNexus(F$3,F$4,F$2),"") -> 34 | G106: =IF(ISNUMBER($A106),HLNexus(G$3,G$4,G$2),"") -> 9
A107: 103 | B107: =IF(ISNUMBER($A107),HLNexus(B$3,B$4,B$2),"") -> 7 | C107: =IF(ISNUMBER($A107),HLNexus(C$3,C$4,C$2),"") -> 14 | D107: =IF(ISNUMBER($A107),HLNexus(D$3,D$4,D$2),"") -> 36 | E107: =IF(ISNUMBER($A107),HLNexus(E$3,E$4,E$2),"") -> 29 | F107: =IF(ISNUMBER($A107),HLNexus(F$3,F$4,F$2),"") -> 14 | G107: =IF(ISNUMBER($A107),HLNexus(G$3,G$4,G$2),"") -> 2
A108: 104 | B108: =IF(ISNUMBER($A108),HLNexus(B$3,B$4,B$2),"") -> 33 | C108: =IF(ISNUMBER($A108),HLNexus(C$3,C$4,C$2),"") -> 36 | D108: =IF(ISNUMBER($A108),HLNexus(D$3,D$4,D$2),"") -> 34 | E108: =IF(ISNUMBER($A108),HLNexus(E$3,E$4,E$2),"") -> 32 | F108: =IF(ISNUMBER($A108),HLNexus(F$3,F$4,F$2),"") -> 33 | G108: =IF(ISNUMBER($A108),HLNexus(G$3,G$4,G$2),"") -> 5
A109: 105 | B109: =IF(ISNUMBER($A109),HLNexus(B$3,B$4,B$2),"") -> 11 | C109: =IF(ISNUMBER($A109),HLNexus(C$3,C$4,C$2),"") -> 32 | D109: =IF(ISNUMBER($A109),HLNexus(D$3,D$4,D$2),"") -> 32 | E109: =IF(ISNUMBER($A109),HLNexus(E$3,E$4,E$2),"") -> 38 | F109: =IF(ISNUMBER($A109),HLNexus(F$3,F$4,F$2),"") -> 44 | G109: =IF(ISNUMBER($A109),HLNexus(G$3,G$4,G$2),"") -> 13
A110: 106 | B110: =IF(ISNUMBER($A110),HLNexus(B$3,B$4,B$2),"") -> 9 | C110: =IF(ISNUMBER($A110),HLNexus(C$3,C$4,C$2),"") -> 26 | D110: =IF(ISNUMBER($A110),HLNexus(D$3,D$4,D$2),"") -> 40 | E110: =IF(ISNUMBER($A110),HLNexus(E$3,E$4,E$2),"") -> 33 | F110: =IF(ISNUMBER($A110),HLNexus(F$3,F$4,F$2),"") -> 44 | G110: =IF(ISNUMBER($A110),HLNexus(G$3,G$4,G$2),"") -> 12
A111: 107 | B111: =IF(ISNUMBER($A111),HLNexus(B$3,B$4,B$2),"") -> 9 | C111: =IF(ISNUMBER($A111),HLNexus(C$3,C$4,C$2),"") -> 43 | D111: =IF(ISNUMBER($A111),HLNexus(D$3,D$4,D$2),"") -> 40 | E111: =IF(ISNUMBER($A111),HLNexus(E$3,E$4,E$2),"") -> 42 | F111: =IF(ISNUMBER($A111),HLNexus(F$3,F$4,F$2),"") -> 34 | G111: =IF(ISNUMBER($A111),HLNexus(G$3,G$4,G$2),"") -> 6
A112: 108 | B112: =IF(ISNUMBER($A112),HLNexus(B$3,B$4,B$2),"") -> 28 | C112: =IF(ISNUMBER($A112),HLNexus(C$3,C$4,C$2),"") -> 33 | D112: =IF(ISNUMBER($A112),HLNexus(D$3,D$4,D$2),"") -> 38 | E112: =IF(ISNUMBER($A112),HLNexus(E$3,E$4,E$2),"") -> 35 | F112: =IF(ISNUMBER($A112),HLNexus(F$3,F$4,F$2),"") -> 37 | G112: =IF(ISNUMBER($A112),HLNexus(G$3,G$4,G$2),"") -> 2
A113: 109 | B113: =IF(ISNUMBER($A113),HLNexus(B$3,B$4,B$2),"") -> 4 | C113: =IF(ISNUMBER($A113),HLNexus(C$3,C$4,C$2),"") -> 3 | D113: =IF(ISNUMBER($A113),HLNexus(D$3,D$4,D$2),"") -> 36 | E113: =IF(ISNUMBER($A113),HLNexus(E$3,E$4,E$2),"") -> 44 | F113: =IF(ISNUMBER($A113),HLNexus(F$3,F$4,F$2),"") -> 42 | G113: =IF(ISNUMBER($A113),HLNexus(G$3,G$4,G$2),"") -> 18
A114: 110 | B114: =IF(ISNUMBER($A114),HLNexus(B$3,B$4,B$2),"") -> 10 | C114: =IF(ISNUMBER($A114),HLNexus(C$3,C$4,C$2),"") -> 26 | D114: =IF(ISNUMBER($A114),HLNexus(D$3,D$4,D$2),"") -> 32 | E114: =IF(ISNUMBER($A114),HLNexus(E$3,E$4,E$2),"") -> 31 | F114: =IF(ISNUMBER($A114),HLNexus(F$3,F$4,F$2),"") -> 32 | G114: =IF(ISNUMBER($A114),HLNexus(G$3,G$4,G$2),"") -> 5
A115: 111 | B115: =IF(ISNUMBER($A115),HLNexus(B$3,B$4,B$2),"") -> 18 | C115: =IF(ISNUMBER($A115),HLNexus(C$3,C$4,C$2),"") -> 17 | D115: =IF(ISNUMBER($A115),HLNexus(D$3,D$4,D$2),"") -> 26 | E115: =IF(ISNUMBER($A115),HLNexus(E$3,E$4,E$2),"") -> 13 | F115: =IF(ISNUMBER($A115),HLNexus(F$3,F$4,F$2),"") -> 42 | G115: =IF(ISNUMBER($A115),HLNexus(G$3,G$4,G$2),"") -> 2
A116: 112 | B116: =IF(ISNUMBER($A116),HLNexus(B$3,B$4,B$2),"") -> 10 | C116: =IF(ISNUMBER($A116),HLNexus(C$3,C$4,C$2),"") -> 10 | D116: =IF(ISNUMBER($A116),HLNexus(D$3,D$4,D$2),"") -> 14 | E116: =IF(ISNUMBER($A116),HLNexus(E$3,E$4,E$2),"") -> 23 | F116: =IF(ISNUMBER($A116),HLNexus(F$3,F$4,F$2),"") -> 43 | G116: =IF(ISNUMBER($A116),HLNexus(G$3,G$4,G$2),"") -> 12
A117: 113 | B117: =IF(ISNUMBER($A117),HLNexus(B$3,B$4,B$2),"") -> 10 | C117: =IF(ISNUMBER($A117),HLNexus(C$3,C$4,C$2),"") -> 10 | D117: =IF(ISNUMBER($A117),HLNexus(D$3,D$4,D$2),"") -> 20 | E117: =IF(ISNUMBER($A117),HLNexus(E$3,E$4,E$2),"") -> 37 | F117: =IF(ISNUMBER($A117),HLNexus(F$3,F$4,F$2),"") -> 25 | G117: =IF(ISNUMBER($A117),HLNexus(G$3,G$4,G$2),"") -> 7
A118: 114 | B118: =IF(ISNUMBER($A118),HLNexus(B$3,B$4,B$2),"") -> 13 | C118: =IF(ISNUMBER($A118),HLNexus(C$3,C$4,C$2),"") -> 33 | D118: =IF(ISNUMBER($A118),HLNexus(D$3,D$4,D$2),"") -> 39 | E118: =IF(ISNUMBER($A118),HLNexus(E$3,E$4,E$2),"") -> 31 | F118: =IF(ISNUMBER($A118),HLNexus(F$3,F$4,F$2),"") -> 35 | G118: =IF(ISNUMBER($A118),HLNexus(G$3,G$4,G$2),"") -> 12
A119: 115 | B119: =IF(ISNUMBER($A119),HLNexus(B$3,B$4,B$2),"") -> 9 | C119: =IF(ISNUMBER($A119),HLNexus(C$3,C$4,C$2),"") -> 35 | D119: =IF(ISNUMBER($A119),HLNexus(D$3,D$4,D$2),"") -> 18 | E119: =IF(ISNUMBER($A119),HLNexus(E$3,E$4,E$2),"") -> 27 | F119: =IF(ISNUMBER($A119),HLNexus(F$3,F$4,F$2),"") -> 37 | G119: =IF(ISNUMBER($A119),HLNexus(G$3,G$4,G$2),"") -> 8
A120: 116 | B120: =IF(ISNUMBER($A120),HLNexus(B$3,B$4,B$2),"") -> 8 | C120: =IF(ISNUMBER($A120),HLNexus(C$3,C$4,C$2),"") -> 12 | D120: =IF(ISNUMBER($A120),HLNexus(D$3,D$4,D$2),"") -> 42 | E120: =IF(ISNUMBER($A120),HLNexus(E$3,E$4,E$2),"") -> 34 | F120: =IF(ISNUMBER($A120),HLNexus(F$3,F$4,F$2),"") -> 21 | G120: =IF(ISNUMBER($A120),HLNexus(G$3,G$4,G$2),"") -> 3
A121: 117 | B121: =IF(ISNUMBER($A121),HLNexus(B$3,B$4,B$2),"") -> 23 | C121: =IF(ISNUMBER($A121),HLNexus(C$3,C$4,C$2),"") -> 16 | D121: =IF(ISNUMBER($A121),HLNexus(D$3,D$4,D$2),"") -> 11 | E121: =IF(ISNUMBER($A121),HLNexus(E$3,E$4,E$2),"") -> 24 | F121: =IF(ISNUMBER($A121),HLNexus(F$3,F$4,F$2),"") -> 47 | G121: =IF(ISNUMBER($A121),HLNexus(G$3,G$4,G$2),"") -> 1
A122: 118 | B122: =IF(ISNUMBER($A122),HLNexus(B$3,B$4,B$2),"") -> 7 | C122: =IF(ISNUMBER($A122),HLNexus(C$3,C$4,C$2),"") -> 22 | D122: =IF(ISNUMBER($A122),HLNexus(D$3,D$4,D$2),"") -> 12 | E122: =IF(ISNUMBER($A122),HLNexus(E$3,E$4,E$2),"") -> 7 | F122: =IF(ISNUMBER($A122),HLNexus(F$3,F$4,F$2),"") -> 26 | G122: =IF(ISNUMBER($A122),HLNexus(G$3,G$4,G$2),"") -> 4
A123: 119 | B123: =IF(ISNUMBER($A123),HLNexus(B$3,B$4,B$2),"") -> 8 | C123: =IF(ISNUMBER($A123),HLNexus(C$3,C$4,C$2),"") -> 20 | D123: =IF(ISNUMBER($A123),HLNexus(D$3,D$4,D$2),"") -> 23 | E123: =IF(ISNUMBER($A123),HLNexus(E$3,E$4,E$2),"") -> 16 | F123: =IF(ISNUMBER($A123),HLNexus(F$3,F$4,F$2),"") -> 45 | G123: =IF(ISNUMBER($A123),HLNexus(G$3,G$4,G$2),"") -> 3
A124: 120 | B124: =IF(ISNUMBER($A124),HLNexus(B$3,B$4,B$2),"") -> 9 | C124: =IF(ISNUMBER($A124),HLNexus(C$3,C$4,C$2),"") -> 18 | D124: =IF(ISNUMBER($A124),HLNexus(D$3,D$4,D$2),"") -> 15 | E124: =IF(ISNUMBER($A124),HLNexus(E$3,E$4,E$2),"") -> 37 | F124: =IF(ISNUMBER($A124),HLNexus(F$3,F$4,F$2),"") -> 41 | G124: =IF(ISNUMBER($A124),HLNexus(G$3,G$4,G$2),"") -> 9
A125: 121 | B125: =IF(ISNUMBER($A125),HLNexus(B$3,B$4,B$2),"") -> 13 | C125: =IF(ISNUMBER($A125),HLNexus(C$3,C$4,C$2),"") -> 39 | D125: =IF(ISNUMBER($A125),HLNexus(D$3,D$4,D$2),"") -> 27 | E125: =IF(ISNUMBER($A125),HLNexus(E$3,E$4,E$2),"") -> 42 | F125: =IF(ISNUMBER($A125),HLNexus(F$3,F$4,F$2),"") -> 37 | G125: =IF(ISNUMBER($A125),HLNexus(G$3,G$4,G$2),"") -> 5
A126: 122 | B126: =IF(ISNUMBER($A126),HLNexus(B$3,B$4,B$2),"") -> 2 | C126: =IF(ISNUMBER($A126),HLNexus(C$3,C$4,C$2),"") -> 19 | D126: =IF(ISNUMBER($A126),HLNexus(D$3,D$4,D$2),"") -> 33 | E126: =IF(ISNUMBER($A126),HLNexus(E$3,E$4,E$2),"") -> 18 | F126: =IF(ISNUMBER($A126),HLNexus(F$3,F$4,F$2),"") -> 18 | G126: =IF(ISNUMBER($A126),HLNexus(G$3,G$4,G$2),"") -> 12
A127: 123 | B127: =IF(ISNUMBER($A127),HLNexus(B$3,B$4,B$2),"") -> 16 | C127: =IF(ISNUMBER($A127),HLNexus(C$3,C$4,C$2),"") -> 7 | D127: =IF(ISNUMBER($A127),HLNexus(D$3,D$4,D$2),"") -> 38 | E127: =IF(ISNUMBER($A127),HLNexus(E$3,E$4,E$2),"") -> 42 | F127: =IF(ISNUMBER($A127),HLNexus(F$3,F$4,F$2),"") -> 44 | G127: =IF(ISNUMBER($A127),HLNexus(G$3,G$4,G$2),"") -> 7
A128: 124 | B128: =IF(ISNUMBER($A128),HLNexus(B$3,B$4,B$2),"") -> 7 | C128: =IF(ISNUMBER($A128),HLNexus(C$3,C$4,C$2),"") -> 20 | D128: =IF(ISNUMBER($A128),HLNexus(D$3,D$4,D$2),"") -> 17 | E128: =IF(ISNUMBER($A128),HLNexus(E$3,E$4,E$2),"") -> 32 | F128: =IF(ISNUMBER($A128),HLNexus(F$3,F$4,F$2),"") -> 43 | G128: =IF(ISNUMBER($A128),HLNexus(G$3,G$4,G$2),"") -> 1
A129: 125 | B129: =IF(ISNUMBER($A129),HLNexus(B$3,B$4,B$2),"") -> 16 | C129: =IF(ISNUMBER($A129),HLNexus(C$3,C$4,C$2),"") -> 30 | D129: =IF(ISNUMBER($A129),HLNexus(D$3,D$4,D$2),"") -> 44 | E129: =IF(ISNUMBER($A129),HLNexus(E$3,E$4,E$2),"") -> 42 | F129: =IF(ISNUMBER($A129),HLNexus(F$3,F$4,F$2),"") -> 39 | G129: =IF(ISNUMBER($A129),HLNexus(G$3,G$4,G$2),"") -> 6
A130: 126 | B130: =IF(ISNUMBER($A130),HLNexus(B$3,B$4,B$2),"") -> 35 | C130: =IF(ISNUMBER($A130),HLNexus(C$3,C$4,C$2),"") -> 38 | D130: =IF(ISNUMBER($A130),HLNexus(D$3,D$4,D$2),"") -> 28 | E130: =IF(ISNUMBER($A130),HLNexus(E$3,E$4,E$2),"") -> 38 | F130: =IF(ISNUMBER($A130),HLNexus(F$3,F$4,F$2),"") -> 35 | G130: =IF(ISNUMBER($A130),HLNexus(G$3,G$4,G$2),"") -> 15
A131: 127 | B131: =IF(ISNUMBER($A131),HLNexus(B$3,B$4,B$2),"") -> 19 | C131: =IF(ISNUMBER($A131),HLNexus(C$3,C$4,C$2),"") -> 30 | D131: =IF(ISNUMBER($A131),HLNexus(D$3,D$4,D$2),"") -> 11 | E131: =IF(ISNUMBER($A131),HLNexus(E$3,E$4,E$2),"") -> 38 | F131: =IF(ISNUMBER($A131),HLNexus(F$3,F$4,F$2),"") -> 47 | G131: =IF(ISNUMBER($A131),HLNexus(G$3,G$4,G$2),"") -> 4
A132: 128 | B132: =IF(ISNUMBER($A132),HLNexus(B$3,B$4,B$2),"") -> 14 | C132: =IF(ISNUMBER($A132),HLNexus(C$3,C$4,C$2),"") -> 21 | D132: =IF(ISNUMBER($A132),HLNexus(D$3,D$4,D$2),"") -> 6 | E132: =IF(ISNUMBER($A132),HLNexus(E$3,E$4,E$2),"") -> 43 | F132: =IF(ISNUMBER($A132),HLNexus(F$3,F$4,F$2),"") -> 46 | G132: =IF(ISNUMBER($A132),HLNexus(G$3,G$4,G$2),"") -> 15
A133: 129 | B133: =IF(ISNUMBER($A133),HLNexus(B$3,B$4,B$2),"") -> 28 | C133: =IF(ISNUMBER($A133),HLNexus(C$3,C$4,C$2),"") -> 9 | D133: =IF(ISNUMBER($A133),HLNexus(D$3,D$4,D$2),"") -> 43 | E133: =IF(ISNUMBER($A133),HLNexus(E$3,E$4,E$2),"") -> 42 | F133: =IF(ISNUMBER($A133),HLNexus(F$3,F$4,F$2),"") -> 33 | G133: =IF(ISNUMBER($A133),HLNexus(G$3,G$4,G$2),"") -> 14
A134: 130 | B134: =IF(ISNUMBER($A134),HLNexus(B$3,B$4,B$2),"") -> 10 | C134: =IF(ISNUMBER($A134),HLNexus(C$3,C$4,C$2),"") -> 21 | D134: =IF(ISNUMBER($A134),HLNexus(D$3,D$4,D$2),"") -> 37 | E134: =IF(ISNUMBER($A134),HLNexus(E$3,E$4,E$2),"") -> 16 | F134: =IF(ISNUMBER($A134),HLNexus(F$3,F$4,F$2),"") -> 30 | G134: =IF(ISNUMBER($A134),HLNexus(G$3,G$4,G$2),"") -> 5
A135: =IF(ISNUMBER(A134),IF(A134+1<=M$4,A134+1,""),"") -> 131 | B135: =IF(ISNUMBER($A135),HLNexus(B$3,B$4,B$2),"") -> 27 | C135: =IF(ISNUMBER($A135),HLNexus(C$3,C$4,C$2),"") -> 43 | D135: =IF(ISNUMBER($A135),HLNexus(D$3,D$4,D$2),"") -> 40 | E135: =IF(ISNUMBER($A135),HLNexus(E$3,E$4,E$2),"") -> 40 | F135: =IF(ISNUMBER($A135),HLNexus(F$3,F$4,F$2),"") -> 43 | G135: =IF(ISNUMBER($A135),HLNexus(G$3,G$4,G$2),"") -> 11
A136: 132 | B136: =IF(ISNUMBER($A136),HLNexus(B$3,B$4,B$2),"") -> 11 | C136: =IF(ISNUMBER($A136),HLNexus(C$3,C$4,C$2),"") -> 39 | D136: =IF(ISNUMBER($A136),HLNexus(D$3,D$4,D$2),"") -> 22 | E136: =IF(ISNUMBER($A136),HLNexus(E$3,E$4,E$2),"") -> 43 | F136: =IF(ISNUMBER($A136),HLNexus(F$3,F$4,F$2),"") -> 37 | G136: =IF(ISNUMBER($A136),HLNexus(G$3,G$4,G$2),"") -> 2
A137: 133 | B137: =IF(ISNUMBER($A137),HLNexus(B$3,B$4,B$2),"") -> 24 | C137: =IF(ISNUMBER($A137),HLNexus(C$3,C$4,C$2),"") -> 5 | D137: =IF(ISNUMBER($A137),HLNexus(D$3,D$4,D$2),"") -> 14 | E137: =IF(ISNUMBER($A137),HLNexus(E$3,E$4,E$2),"") -> 38 | F137: =IF(ISNUMBER($A137),HLNexus(F$3,F$4,F$2),"") -> 42 | G137: =IF(ISNUMBER($A137),HLNexus(G$3,G$4,G$2),"") -> 1
A138: 134 | B138: =IF(ISNUMBER($A138),HLNexus(B$3,B$4,B$2),"") -> 8 | C138: =IF(ISNUMBER($A138),HLNexus(C$3,C$4,C$2),"") -> 14 | D138: =IF(ISNUMBER($A138),HLNexus(D$3,D$4,D$2),"") -> 37 | E138: =IF(ISNUMBER($A138),HLNexus(E$3,E$4,E$2),"") -> 38 | F138: =IF(ISNUMBER($A138),HLNexus(F$3,F$4,F$2),"") -> 41 | G138: =IF(ISNUMBER($A138),HLNexus(G$3,G$4,G$2),"") -> 7
A139: 135 | B139: =IF(ISNUMBER($A139),HLNexus(B$3,B$4,B$2),"") -> 27 | C139: =IF(ISNUMBER($A139),HLNexus(C$3,C$4,C$2),"") -> 16 | D139: =IF(ISNUMBER($A139),HLNexus(D$3,D$4,D$2),"") -> 25 | E139: =IF(ISNUMBER($A139),HLNexus(E$3,E$4,E$2),"") -> 15 | F139: =IF(ISNUMBER($A139),HLNexus(F$3,F$4,F$2),"") -> 37 | G139: =IF(ISNUMBER($A139),HLNexus(G$3,G$4,G$2),"") -> 1
A140: 136 | B140: =IF(ISNUMBER($A140),HLNexus(B$3,B$4,B$2),"") -> 26 | C140: =IF(ISNUMBER($A140),HLNexus(C$3,C$4,C$2),"") -> 29 | D140: =IF(ISNUMBER($A140),HLNexus(D$3,D$4,D$2),"") -> 45 | E140: =IF(ISNUMBER($A140),HLNexus(E$3,E$4,E$2),"") -> 33 | F140: =IF(ISNUMBER($A140),HLNexus(F$3,F$4,F$2),"") -> 36 | G140: =IF(ISNUMBER($A140),HLNexus(G$3,G$4,G$2),"") -> 15
A141: 137 | B141: =IF(ISNUMBER($A141),HLNexus(B$3,B$4,B$2),"") -> 19 | C141: =IF(ISNUMBER($A141),HLNexus(C$3,C$4,C$2),"") -> 23 | D141: =IF(ISNUMBER($A141),HLNexus(D$3,D$4,D$2),"") -> 19 | E141: =IF(ISNUMBER($A141),HLNexus(E$3,E$4,E$2),"") -> 38 | F141: =IF(ISNUMBER($A141),HLNexus(F$3,F$4,F$2),"") -> 41 | G141: =IF(ISNUMBER($A141),HLNexus(G$3,G$4,G$2),"") -> 3
A142: 138 | B142: =IF(ISNUMBER($A142),HLNexus(B$3,B$4,B$2),"") -> 4 | C142: =IF(ISNUMBER($A142),HLNexus(C$3,C$4,C$2),"") -> 38 | D142: =IF(ISNUMBER($A142),HLNexus(D$3,D$4,D$2),"") -> 32 | E142: =IF(ISNUMBER($A142),HLNexus(E$3,E$4,E$2),"") -> 44 | F142: =IF(ISNUMBER($A142),HLNexus(F$3,F$4,F$2),"") -> 46 | G142: =IF(ISNUMBER($A142),HLNexus(G$3,G$4,G$2),"") -> 12
A143: 139 | B143: =IF(ISNUMBER($A143),HLNexus(B$3,B$4,B$2),"") -> 11 | C143: =IF(ISNUMBER($A143),HLNexus(C$3,C$4,C$2),"") -> 24 | D143: =IF(ISNUMBER($A143),HLNexus(D$3,D$4,D$2),"") -> 28 | E143: =IF(ISNUMBER($A143),HLNexus(E$3,E$4,E$2),"") -> 36 | F143: =IF(ISNUMBER($A143),HLNexus(F$3,F$4,F$2),"") -> 46 | G143: =IF(ISNUMBER($A143),HLNexus(G$3,G$4,G$2),"") -> 19
A144: 140 | B144: =IF(ISNUMBER($A144),HLNexus(B$3,B$4,B$2),"") -> 20 | C144: =IF(ISNUMBER($A144),HLNexus(C$3,C$4,C$2),"") -> 27 | D144: =IF(ISNUMBER($A144),HLNexus(D$3,D$4,D$2),"") -> 39 | E144: =IF(ISNUMBER($A144),HLNexus(E$3,E$4,E$2),"") -> 31 | F144: =IF(ISNUMBER($A144),HLNexus(F$3,F$4,F$2),"") -> 42 | G144: =IF(ISNUMBER($A144),HLNexus(G$3,G$4,G$2),"") -> 8
A145: 141 | B145: =IF(ISNUMBER($A145),HLNexus(B$3,B$4,B$2),"") -> 1 | C145: =IF(ISNUMBER($A145),HLNexus(C$3,C$4,C$2),"") -> 9 | D145: =IF(ISNUMBER($A145),HLNexus(D$3,D$4,D$2),"") -> 42 | E145: =IF(ISNUMBER($A145),HLNexus(E$3,E$4,E$2),"") -> 34 | F145: =IF(ISNUMBER($A145),HLNexus(F$3,F$4,F$2),"") -> 30 | G145: =IF(ISNUMBER($A145),HLNexus(G$3,G$4,G$2),"") -> 10
A146: 142 | B146: =IF(ISNUMBER($A146),HLNexus(B$3,B$4,B$2),"") -> 8 | C146: =IF(ISNUMBER($A146),HLNexus(C$3,C$4,C$2),"") -> 34 | D146: =IF(ISNUMBER($A146),HLNexus(D$3,D$4,D$2),"") -> 40 | E146: =IF(ISNUMBER($A146),HLNexus(E$3,E$4,E$2),"") -> 36 | F146: =IF(ISNUMBER($A146),HLNexus(F$3,F$4,F$2),"") -> 41 | G146: =IF(ISNUMBER($A146),HLNexus(G$3,G$4,G$2),"") -> 6
A147: 143 | B147: =IF(ISNUMBER($A147),HLNexus(B$3,B$4,B$2),"") -> 20 | C147: =IF(ISNUMBER($A147),HLNexus(C$3,C$4,C$2),"") -> 26 | D147: =IF(ISNUMBER($A147),HLNexus(D$3,D$4,D$2),"") -> 45 | E147: =IF(ISNUMBER($A147),HLNexus(E$3,E$4,E$2),"") -> 31 | F147: =IF(ISNUMBER($A147),HLNexus(F$3,F$4,F$2),"") -> 25 | G147: =IF(ISNUMBER($A147),HLNexus(G$3,G$4,G$2),"") -> 5
A148: 144 | B148: =IF(ISNUMBER($A148),HLNexus(B$3,B$4,B$2),"") -> 26 | C148: =IF(ISNUMBER($A148),HLNexus(C$3,C$4,C$2),"") -> 32 | D148: =IF(ISNUMBER($A148),HLNexus(D$3,D$4,D$2),"") -> 33 | E148: =IF(ISNUMBER($A148),HLNexus(E$3,E$4,E$2),"") -> 23 | F148: =IF(ISNUMBER($A148),HLNexus(F$3,F$4,F$2),"") -> 44 | G148: =IF(ISNUMBER($A148),HLNexus(G$3,G$4,G$2),"") -> 2
A149: 145 | B149: =IF(ISNUMBER($A149),HLNexus(B$3,B$4,B$2),"") -> 16 | C149: =IF(ISNUMBER($A149),HLNexus(C$3,C$4,C$2),"") -> 20 | D149: =IF(ISNUMBER($A149),HLNexus(D$3,D$4,D$2),"") -> 24 | E149: =IF(ISNUMBER($A149),HLNexus(E$3,E$4,E$2),"") -> 9 | F149: =IF(ISNUMBER($A149),HLNexus(F$3,F$4,F$2),"") -> 26 | G149: =IF(ISNUMBER($A149),HLNexus(G$3,G$4,G$2),"") -> 10
A150: 146 | B150: =IF(ISNUMBER($A150),HLNexus(B$3,B$4,B$2),"") -> 33 | C150: =IF(ISNUMBER($A150),HLNexus(C$3,C$4,C$2),"") -> 37 | D150: =IF(ISNUMBER($A150),HLNexus(D$3,D$4,D$2),"") -> 20 | E150: =IF(ISNUMBER($A150),HLNexus(E$3,E$4,E$2),"") -> 42 | F150: =IF(ISNUMBER($A150),HLNexus(F$3,F$4,F$2),"") -> 10 | G150: =IF(ISNUMBER($A150),HLNexus(G$3,G$4,G$2),"") -> 12
A151: 147 | B151: =IF(ISNUMBER($A151),HLNexus(B$3,B$4,B$2),"") -> 9 | C151: =IF(ISNUMBER($A151),HLNexus(C$3,C$4,C$2),"") -> 19 | D151: =IF(ISNUMBER($A151),HLNexus(D$3,D$4,D$2),"") -> 41 | E151: =IF(ISNUMBER($A151),HLNexus(E$3,E$4,E$2),"") -> 29 | F151: =IF(ISNUMBER($A151),HLNexus(F$3,F$4,F$2),"") -> 31 | G151: =IF(ISNUMBER($A151),HLNexus(G$3,G$4,G$2),"") -> 12
A152: 148 | B152: =IF(ISNUMBER($A152),HLNexus(B$3,B$4,B$2),"") -> 20 | C152: =IF(ISNUMBER($A152),HLNexus(C$3,C$4,C$2),"") -> 19 | D152: =IF(ISNUMBER($A152),HLNexus(D$3,D$4,D$2),"") -> 36 | E152: =IF(ISNUMBER($A152),HLNexus(E$3,E$4,E$2),"") -> 27 | F152: =IF(ISNUMBER($A152),HLNexus(F$3,F$4,F$2),"") -> 33 | G152: =IF(ISNUMBER($A152),HLNexus(G$3,G$4,G$2),"") -> 1
A153: 149 | B153: =IF(ISNUMBER($A153),HLNexus(B$3,B$4,B$2),"") -> 15 | C153: =IF(ISNUMBER($A153),HLNexus(C$3,C$4,C$2),"") -> 9 | D153: =IF(ISNUMBER($A153),HLNexus(D$3,D$4,D$2),"") -> 23 | E153: =IF(ISNUMBER($A153),HLNexus(E$3,E$4,E$2),"") -> 28 | F153: =IF(ISNUMBER($A153),HLNexus(F$3,F$4,F$2),"") -> 40 | G153: =IF(ISNUMBER($A153),HLNexus(G$3,G$4,G$2),"") -> 7
A154: 150 | B154: =IF(ISNUMBER($A154),HLNexus(B$3,B$4,B$2),"") -> 10 | C154: =IF(ISNUMBER($A154),HLNexus(C$3,C$4,C$2),"") -> 40 | D154: =IF(ISNUMBER($A154),HLNexus(D$3,D$4,D$2),"") -> 27 | E154: =IF(ISNUMBER($A154),HLNexus(E$3,E$4,E$2),"") -> 39 | F154: =IF(ISNUMBER($A154),HLNexus(F$3,F$4,F$2),"") -> 23 | G154: =IF(ISNUMBER($A154),HLNexus(G$3,G$4,G$2),"") -> 8
A155: 151 | B155: =IF(ISNUMBER($A155),HLNexus(B$3,B$4,B$2),"") -> 20 | C155: =IF(ISNUMBER($A155),HLNexus(C$3,C$4,C$2),"") -> 16 | D155: =IF(ISNUMBER($A155),HLNexus(D$3,D$4,D$2),"") -> 17 | E155: =IF(ISNUMBER($A155),HLNexus(E$3,E$4,E$2),"") -> 25 | F155: =IF(ISNUMBER($A155),HLNexus(F$3,F$4,F$2),"") -> 29 | G155: =IF(ISNUMBER($A155),HLNexus(G$3,G$4,G$2),"") -> 15
A156: 152 | B156: =IF(ISNUMBER($A156),HLNexus(B$3,B$4,B$2),"") -> 5 | C156: =IF(ISNUMBER($A156),HLNexus(C$3,C$4,C$2),"") -> 36 | D156: =IF(ISNUMBER($A156),HLNexus(D$3,D$4,D$2),"") -> 32 | E156: =IF(ISNUMBER($A156),HLNexus(E$3,E$4,E$2),"") -> 31 | F156: =IF(ISNUMBER($A156),HLNexus(F$3,F$4,F$2),"") -> 28 | G156: =IF(ISNUMBER($A156),HLNexus(G$3,G$4,G$2),"") -> 8
A157: 153 | B157: =IF(ISNUMBER($A157),HLNexus(B$3,B$4,B$2),"") -> 6 | C157: =IF(ISNUMBER($A157),HLNexus(C$3,C$4,C$2),"") -> 30 | D157: =IF(ISNUMBER($A157),HLNexus(D$3,D$4,D$2),"") -> 41 | E157: =IF(ISNUMBER($A157),HLNexus(E$3,E$4,E$2),"") -> 36 | F157: =IF(ISNUMBER($A157),HLNexus(F$3,F$4,F$2),"") -> 20 | G157: =IF(ISNUMBER($A157),HLNexus(G$3,G$4,G$2),"") -> 2
A158: 154 | B158: =IF(ISNUMBER($A158),HLNexus(B$3,B$4,B$2),"") -> 15 | C158: =IF(ISNUMBER($A158),HLNexus(C$3,C$4,C$2),"") -> 21 | D158: =IF(ISNUMBER($A158),HLNexus(D$3,D$4,D$2),"") -> 30 | E158: =IF(ISNUMBER($A158),HLNexus(E$3,E$4,E$2),"") -> 20 | F158: =IF(ISNUMBER($A158),HLNexus(F$3,F$4,F$2),"") -> 45 | G158: =IF(ISNUMBER($A158),HLNexus(G$3,G$4,G$2),"") -> 4
A159: 155 | B159: =IF(ISNUMBER($A159),HLNexus(B$3,B$4,B$2),"") -> 19 | C159: =IF(ISNUMBER($A159),HLNexus(C$3,C$4,C$2),"") -> 11 | D159: =IF(ISNUMBER($A159),HLNexus(D$3,D$4,D$2),"") -> 22 | E159: =IF(ISNUMBER($A159),HLNexus(E$3,E$4,E$2),"") -> 36 | F159: =IF(ISNUMBER($A159),HLNexus(F$3,F$4,F$2),"") -> 32 | G159: =IF(ISNUMBER($A159),HLNexus(G$3,G$4,G$2),"") -> 13
A160: 156 | B160: =IF(ISNUMBER($A160),HLNexus(B$3,B$4,B$2),"") -> 7 | C160: =IF(ISNUMBER($A160),HLNexus(C$3,C$4,C$2),"") -> 20 | D160: =IF(ISNUMBER($A160),HLNexus(D$3,D$4,D$2),"") -> 8 | E160: =IF(ISNUMBER($A160),HLNexus(E$3,E$4,E$2),"") -> 36 | F160: =IF(ISNUMBER($A160),HLNexus(F$3,F$4,F$2),"") -> 23 | G160: =IF(ISNUMBER($A160),HLNexus(G$3,G$4,G$2),"") -> 1
A161: 157 | B161: =IF(ISNUMBER($A161),HLNexus(B$3,B$4,B$2),"") -> 1 | C161: =IF(ISNUMBER($A161),HLNexus(C$3,C$4,C$2),"") -> 38 | D161: =IF(ISNUMBER($A161),HLNexus(D$3,D$4,D$2),"") -> 42 | E161: =IF(ISNUMBER($A161),HLNexus(E$3,E$4,E$2),"") -> 43 | F161: =IF(ISNUMBER($A161),HLNexus(F$3,F$4,F$2),"") -> 23 | G161: =IF(ISNUMBER($A161),HLNexus(G$3,G$4,G$2),"") -> 4
A162: 158 | B162: =IF(ISNUMBER($A162),HLNexus(B$3,B$4,B$2),"") -> 17 | C162: =IF(ISNUMBER($A162),HLNexus(C$3,C$4,C$2),"") -> 33 | D162: =IF(ISNUMBER($A162),HLNexus(D$3,D$4,D$2),"") -> 35 | E162: =IF(ISNUMBER($A162),HLNexus(E$3,E$4,E$2),"") -> 41 | F162: =IF(ISNUMBER($A162),HLNexus(F$3,F$4,F$2),"") -> 27 | G162: =IF(ISNUMBER($A162),HLNexus(G$3,G$4,G$2),"") -> 3
A163: 159 | B163: =IF(ISNUMBER($A163),HLNexus(B$3,B$4,B$2),"") -> 25 | C163: =IF(ISNUMBER($A163),HLNexus(C$3,C$4,C$2),"") -> 15 | D163: =IF(ISNUMBER($A163),HLNexus(D$3,D$4,D$2),"") -> 32 | E163: =IF(ISNUMBER($A163),HLNexus(E$3,E$4,E$2),"") -> 26 | F163: =IF(ISNUMBER($A163),HLNexus(F$3,F$4,F$2),"") -> 23 | G163: =IF(ISNUMBER($A163),HLNexus(G$3,G$4,G$2),"") -> 8
A164: 160 | B164: =IF(ISNUMBER($A164),HLNexus(B$3,B$4,B$2),"") -> 6 | C164: =IF(ISNUMBER($A164),HLNexus(C$3,C$4,C$2),"") -> 38 | D164: =IF(ISNUMBER($A164),HLNexus(D$3,D$4,D$2),"") -> 23 | E164: =IF(ISNUMBER($A164),HLNexus(E$3,E$4,E$2),"") -> 28 | F164: =IF(ISNUMBER($A164),HLNexus(F$3,F$4,F$2),"") -> 35 | G164: =IF(ISNUMBER($A164),HLNexus(G$3,G$4,G$2),"") -> 2
A165: 161 | B165: =IF(ISNUMBER($A165),HLNexus(B$3,B$4,B$2),"") -> 39 | C165: =IF(ISNUMBER($A165),HLNexus(C$3,C$4,C$2),"") -> 35 | D165: =IF(ISNUMBER($A165),HLNexus(D$3,D$4,D$2),"") -> 12 | E165: =IF(ISNUMBER($A165),HLNexus(E$3,E$4,E$2),"") -> 38 | F165: =IF(ISNUMBER($A165),HLNexus(F$3,F$4,F$2),"") -> 40 | G165: =IF(ISNUMBER($A165),HLNexus(G$3,G$4,G$2),"") -> 1
A166: 162 | B166: =IF(ISNUMBER($A166),HLNexus(B$3,B$4,B$2),"") -> 11 | C166: =IF(ISNUMBER($A166),HLNexus(C$3,C$4,C$2),"") -> 11 | D166: =IF(ISNUMBER($A166),HLNexus(D$3,D$4,D$2),"") -> 38 | E166: =IF(ISNUMBER($A166),HLNexus(E$3,E$4,E$2),"") -> 46 | F166: =IF(ISNUMBER($A166),HLNexus(F$3,F$4,F$2),"") -> 21 | G166: =IF(ISNUMBER($A166),HLNexus(G$3,G$4,G$2),"") -> 12
A167: 163 | B167: =IF(ISNUMBER($A167),HLNexus(B$3,B$4,B$2),"") -> 22 | C167: =IF(ISNUMBER($A167),HLNexus(C$3,C$4,C$2),"") -> 10 | D167: =IF(ISNUMBER($A167),HLNexus(D$3,D$4,D$2),"") -> 15 | E167: =IF(ISNUMBER($A167),HLNexus(E$3,E$4,E$2),"") -> 46 | F167: =IF(ISNUMBER($A167),HLNexus(F$3,F$4,F$2),"") -> 37 | G167: =IF(ISNUMBER($A167),HLNexus(G$3,G$4,G$2),"") -> 8
A168: 164 | B168: =IF(ISNUMBER($A168),HLNexus(B$3,B$4,B$2),"") -> 16 | C168: =IF(ISNUMBER($A168),HLNexus(C$3,C$4,C$2),"") -> 21 | D168: =IF(ISNUMBER($A168),HLNexus(D$3,D$4,D$2),"") -> 37 | E168: =IF(ISNUMBER($A168),HLNexus(E$3,E$4,E$2),"") -> 41 | F168: =IF(ISNUMBER($A168),HLNexus(F$3,F$4,F$2),"") -> 43 | G168: =IF(ISNUMBER($A168),HLNexus(G$3,G$4,G$2),"") -> 5
A169: 165 | B169: =IF(ISNUMBER($A169),HLNexus(B$3,B$4,B$2),"") -> 14 | C169: =IF(ISNUMBER($A169),HLNexus(C$3,C$4,C$2),"") -> 8 | D169: =IF(ISNUMBER($A169),HLNexus(D$3,D$4,D$2),"") -> 41 | E169: =IF(ISNUMBER($A169),HLNexus(E$3,E$4,E$2),"") -> 45 | F169: =IF(ISNUMBER($A169),HLNexus(F$3,F$4,F$2),"") -> 36 | G169: =IF(ISNUMBER($A169),HLNexus(G$3,G$4,G$2),"") -> 13
A170: 166 | B170: =IF(ISNUMBER($A170),HLNexus(B$3,B$4,B$2),"") -> 6 | C170: =IF(ISNUMBER($A170),HLNexus(C$3,C$4,C$2),"") -> 36 | D170: =IF(ISNUMBER($A170),HLNexus(D$3,D$4,D$2),"") -> 38 | E170: =IF(ISNUMBER($A170),HLNexus(E$3,E$4,E$2),"") -> 38 | F170: =IF(ISNUMBER($A170),HLNexus(F$3,F$4,F$2),"") -> 28 | G170: =IF(ISNUMBER($A170),HLNexus(G$3,G$4,G$2),"") -> 8
A171: 167 | B171: =IF(ISNUMBER($A171),HLNexus(B$3,B$4,B$2),"") -> 7 | C171: =IF(ISNUMBER($A171),HLNexus(C$3,C$4,C$2),"") -> 27 | D171: =IF(ISNUMBER($A171),HLNexus(D$3,D$4,D$2),"") -> 44 | E171: =IF(ISNUMBER($A171),HLNexus(E$3,E$4,E$2),"") -> 42 | F171: =IF(ISNUMBER($A171),HLNexus(F$3,F$4,F$2),"") -> 37 | G171: =IF(ISNUMBER($A171),HLNexus(G$3,G$4,G$2),"") -> 13
A172: 168 | B172: =IF(ISNUMBER($A172),HLNexus(B$3,B$4,B$2),"") -> 32 | C172: =IF(ISNUMBER($A172),HLNexus(C$3,C$4,C$2),"") -> 28 | D172: =IF(ISNUMBER($A172),HLNexus(D$3,D$4,D$2),"") -> 14 | E172: =IF(ISNUMBER($A172),HLNexus(E$3,E$4,E$2),"") -> 33 | F172: =IF(ISNUMBER($A172),HLNexus(F$3,F$4,F$2),"") -> 42 | G172: =IF(ISNUMBER($A172),HLNexus(G$3,G$4,G$2),"") -> 14
A173: 169 | B173: =IF(ISNUMBER($A173),HLNexus(B$3,B$4,B$2),"") -> 41 | C173: =IF(ISNUMBER($A173),HLNexus(C$3,C$4,C$2),"") -> 4 | D173: =IF(ISNUMBER($A173),HLNexus(D$3,D$4,D$2),"") -> 36 | E173: =IF(ISNUMBER($A173),HLNexus(E$3,E$4,E$2),"") -> 37 | F173: =IF(ISNUMBER($A173),HLNexus(F$3,F$4,F$2),"") -> 24 | G173: =IF(ISNUMBER($A173),HLNexus(G$3,G$4,G$2),"") -> 1
A174: 170 | B174: =IF(ISNUMBER($A174),HLNexus(B$3,B$4,B$2),"") -> 42 | C174: =IF(ISNUMBER($A174),HLNexus(C$3,C$4,C$2),"") -> 14 | D174: =IF(ISNUMBER($A174),HLNexus(D$3,D$4,D$2),"") -> 32 | E174: =IF(ISNUMBER($A174),HLNexus(E$3,E$4,E$2),"") -> 36 | F174: =IF(ISNUMBER($A174),HLNexus(F$3,F$4,F$2),"") -> 39 | G174: =IF(ISNUMBER($A174),HLNexus(G$3,G$4,G$2),"") -> 2
A175: 171 | B175: =IF(ISNUMBER($A175),HLNexus(B$3,B$4,B$2),"") -> 8 | C175: =IF(ISNUMBER($A175),HLNexus(C$3,C$4,C$2),"") -> 29 | D175: =IF(ISNUMBER($A175),HLNexus(D$3,D$4,D$2),"") -> 39 | E175: =IF(ISNUMBER($A175),HLNexus(E$3,E$4,E$2),"") -> 34 | F175: =IF(ISNUMBER($A175),HLNexus(F$3,F$4,F$2),"") -> 36 | G175: =IF(ISNUMBER($A175),HLNexus(G$3,G$4,G$2),"") -> 6
A176: 172 | B176: =IF(ISNUMBER($A176),HLNexus(B$3,B$4,B$2),"") -> 6 | C176: =IF(ISNUMBER($A176),HLNexus(C$3,C$4,C$2),"") -> 25 | D176: =IF(ISNUMBER($A176),HLNexus(D$3,D$4,D$2),"") -> 17 | E176: =IF(ISNUMBER($A176),HLNexus(E$3,E$4,E$2),"") -> 24 | F176: =IF(ISNUMBER($A176),HLNexus(F$3,F$4,F$2),"") -> 36 | G176: =IF(ISNUMBER($A176),HLNexus(G$3,G$4,G$2),"") -> 14
A177: 173 | B177: =IF(ISNUMBER($A177),HLNexus(B$3,B$4,B$2),"") -> 4 | C177: =IF(ISNUMBER($A177),HLNexus(C$3,C$4,C$2),"") -> 29 | D177: =IF(ISNUMBER($A177),HLNexus(D$3,D$4,D$2),"") -> 38 | E177: =IF(ISNUMBER($A177),HLNexus(E$3,E$4,E$2),"") -> 32 | F177: =IF(ISNUMBER($A177),HLNexus(F$3,F$4,F$2),"") -> 31 | G177: =IF(ISNUMBER($A177),HLNexus(G$3,G$4,G$2),"") -> 14
A178: 174 | B178: =IF(ISNUMBER($A178),HLNexus(B$3,B$4,B$2),"") -> 28 | C178: =IF(ISNUMBER($A178),HLNexus(C$3,C$4,C$2),"") -> 12 | D178: =IF(ISNUMBER($A178),HLNexus(D$3,D$4,D$2),"") -> 25 | E178: =IF(ISNUMBER($A178),HLNexus(E$3,E$4,E$2),"") -> 33 | F178: =IF(ISNUMBER($A178),HLNexus(F$3,F$4,F$2),"") -> 38 | G178: =IF(ISNUMBER($A178),HLNexus(G$3,G$4,G$2),"") -> 4
A179: 175 | B179: =IF(ISNUMBER($A179),HLNexus(B$3,B$4,B$2),"") -> 1 | C179: =IF(ISNUMBER($A179),HLNexus(C$3,C$4,C$2),"") -> 22 | D179: =IF(ISNUMBER($A179),HLNexus(D$3,D$4,D$2),"") -> 33 | E179: =IF(ISNUMBER($A179),HLNexus(E$3,E$4,E$2),"") -> 29 | F179: =IF(ISNUMBER($A179),HLNexus(F$3,F$4,F$2),"") -> 27 | G179: =IF(ISNUMBER($A179),HLNexus(G$3,G$4,G$2),"") -> 13
A180: 176 | B180: =IF(ISNUMBER($A180),HLNexus(B$3,B$4,B$2),"") -> 10 | C180: =IF(ISNUMBER($A180),HLNexus(C$3,C$4,C$2),"") -> 42 | D180: =IF(ISNUMBER($A180),HLNexus(D$3,D$4,D$2),"") -> 15 | E180: =IF(ISNUMBER($A180),HLNexus(E$3,E$4,E$2),"") -> 16 | F180: =IF(ISNUMBER($A180),HLNexus(F$3,F$4,F$2),"") -> 46 | G180: =IF(ISNUMBER($A180),HLNexus(G$3,G$4,G$2),"") -> 3
A181: 177 | B181: =IF(ISNUMBER($A181),HLNexus(B$3,B$4,B$2),"") -> 21 | C181: =IF(ISNUMBER($A181),HLNexus(C$3,C$4,C$2),"") -> 25 | D181: =IF(ISNUMBER($A181),HLNexus(D$3,D$4,D$2),"") -> 28 | E181: =IF(ISNUMBER($A181),HLNexus(E$3,E$4,E$2),"") -> 38 | F181: =IF(ISNUMBER($A181),HLNexus(F$3,F$4,F$2),"") -> 47 | G181: =IF(ISNUMBER($A181),HLNexus(G$3,G$4,G$2),"") -> 17
A182: 178 | B182: =IF(ISNUMBER($A182),HLNexus(B$3,B$4,B$2),"") -> 29 | C182: =IF(ISNUMBER($A182),HLNexus(C$3,C$4,C$2),"") -> 11 | D182: =IF(ISNUMBER($A182),HLNexus(D$3,D$4,D$2),"") -> 35 | E182: =IF(ISNUMBER($A182),HLNexus(E$3,E$4,E$2),"") -> 25 | F182: =IF(ISNUMBER($A182),HLNexus(F$3,F$4,F$2),"") -> 22 | G182: =IF(ISNUMBER($A182),HLNexus(G$3,G$4,G$2),"") -> 13
A183: 179 | B183: =IF(ISNUMBER($A183),HLNexus(B$3,B$4,B$2),"") -> 12 | C183: =IF(ISNUMBER($A183),HLNexus(C$3,C$4,C$2),"") -> 23 | D183: =IF(ISNUMBER($A183),HLNexus(D$3,D$4,D$2),"") -> 3 | E183: =IF(ISNUMBER($A183),HLNexus(E$3,E$4,E$2),"") -> 28 | F183: =IF(ISNUMBER($A183),HLNexus(F$3,F$4,F$2),"") -> 43 | G183: =IF(ISNUMBER($A183),HLNexus(G$3,G$4,G$2),"") -> 8
A184: 180 | B184: =IF(ISNUMBER($A184),HLNexus(B$3,B$4,B$2),"") -> 8 | C184: =IF(ISNUMBER($A184),HLNexus(C$3,C$4,C$2),"") -> 28 | D184: =IF(ISNUMBER($A184),HLNexus(D$3,D$4,D$2),"") -> 37 | E184: =IF(ISNUMBER($A184),HLNexus(E$3,E$4,E$2),"") -> 24 | F184: =IF(ISNUMBER($A184),HLNexus(F$3,F$4,F$2),"") -> 35 | G184: =IF(ISNUMBER($A184),HLNexus(G$3,G$4,G$2),"") -> 3
A185: 181 | B185: =IF(ISNUMBER($A185),HLNexus(B$3,B$4,B$2),"") -> 7 | C185: =IF(ISNUMBER($A185),HLNexus(C$3,C$4,C$2),"") -> 8 | D185: =IF(ISNUMBER($A185),HLNexus(D$3,D$4,D$2),"") -> 11 | E185: =IF(ISNUMBER($A185),HLNexus(E$3,E$4,E$2),"") -> 18 | F185: =IF(ISNUMBER($A185),HLNexus(F$3,F$4,F$2),"") -> 40 | G185: =IF(ISNUMBER($A185),HLNexus(G$3,G$4,G$2),"") -> 2
A186: 182 | B186: =IF(ISNUMBER($A186),HLNexus(B$3,B$4,B$2),"") -> 33 | C186: =IF(ISNUMBER($A186),HLNexus(C$3,C$4,C$2),"") -> 16 | D186: =IF(ISNUMBER($A186),HLNexus(D$3,D$4,D$2),"") -> 35 | E186: =IF(ISNUMBER($A186),HLNexus(E$3,E$4,E$2),"") -> 44 | F186: =IF(ISNUMBER($A186),HLNexus(F$3,F$4,F$2),"") -> 37 | G186: =IF(ISNUMBER($A186),HLNexus(G$3,G$4,G$2),"") -> 15
A187: 183 | B187: =IF(ISNUMBER($A187),HLNexus(B$3,B$4,B$2),"") -> 14 | C187: =IF(ISNUMBER($A187),HLNexus(C$3,C$4,C$2),"") -> 21 | D187: =IF(ISNUMBER($A187),HLNexus(D$3,D$4,D$2),"") -> 42 | E187: =IF(ISNUMBER($A187),HLNexus(E$3,E$4,E$2),"") -> 24 | F187: =IF(ISNUMBER($A187),HLNexus(F$3,F$4,F$2),"") -> 32 | G187: =IF(ISNUMBER($A187),HLNexus(G$3,G$4,G$2),"") -> 8
A188: 184 | B188: =IF(ISNUMBER($A188),HLNexus(B$3,B$4,B$2),"") -> 5 | C188: =IF(ISNUMBER($A188),HLNexus(C$3,C$4,C$2),"") -> 20 | D188: =IF(ISNUMBER($A188),HLNexus(D$3,D$4,D$2),"") -> 35 | E188: =IF(ISNUMBER($A188),HLNexus(E$3,E$4,E$2),"") -> 28 | F188: =IF(ISNUMBER($A188),HLNexus(F$3,F$4,F$2),"") -> 39 | G188: =IF(ISNUMBER($A188),HLNexus(G$3,G$4,G$2),"") -> 15
A189: 185 | B189: =IF(ISNUMBER($A189),HLNexus(B$3,B$4,B$2),"") -> 23 | C189: =IF(ISNUMBER($A189),HLNexus(C$3,C$4,C$2),"") -> 24 | D189: =IF(ISNUMBER($A189),HLNexus(D$3,D$4,D$2),"") -> 34 | E189: =IF(ISNUMBER($A189),HLNexus(E$3,E$4,E$2),"") -> 31 | F189: =IF(ISNUMBER($A189),HLNexus(F$3,F$4,F$2),"") -> 41 | G189: =IF(ISNUMBER($A189),HLNexus(G$3,G$4,G$2),"") -> 16
A190: 186 | B190: =IF(ISNUMBER($A190),HLNexus(B$3,B$4,B$2),"") -> 9 | C190: =IF(ISNUMBER($A190),HLNexus(C$3,C$4,C$2),"") -> 17 | D190: =IF(ISNUMBER($A190),HLNexus(D$3,D$4,D$2),"") -> 33 | E190: =IF(ISNUMBER($A190),HLNexus(E$3,E$4,E$2),"") -> 36 | F190: =IF(ISNUMBER($A190),HLNexus(F$3,F$4,F$2),"") -> 37 | G190: =IF(ISNUMBER($A190),HLNexus(G$3,G$4,G$2),"") -> 15
A191: 187 | B191: =IF(ISNUMBER($A191),HLNexus(B$3,B$4,B$2),"") -> 8 | C191: =IF(ISNUMBER($A191),HLNexus(C$3,C$4,C$2),"") -> 20 | D191: =IF(ISNUMBER($A191),HLNexus(D$3,D$4,D$2),"") -> 33 | E191: =IF(ISNUMBER($A191),HLNexus(E$3,E$4,E$2),"") -> 35 | F191: =IF(ISNUMBER($A191),HLNexus(F$3,F$4,F$2),"") -> 45 | G191: =IF(ISNUMBER($A191),HLNexus(G$3,G$4,G$2),"") -> 2
A192: 188 | B192: =IF(ISNUMBER($A192),HLNexus(B$3,B$4,B$2),"") -> 35 | C192: =IF(ISNUMBER($A192),HLNexus(C$3,C$4,C$2),"") -> 10 | D192: =IF(ISNUMBER($A192),HLNexus(D$3,D$4,D$2),"") -> 33 | E192: =IF(ISNUMBER($A192),HLNexus(E$3,E$4,E$2),"") -> 21 | F192: =IF(ISNUMBER($A192),HLNexus(F$3,F$4,F$2),"") -> 43 | G192: =IF(ISNUMBER($A192),HLNexus(G$3,G$4,G$2),"") -> 2
A193: 189 | B193: =IF(ISNUMBER($A193),HLNexus(B$3,B$4,B$2),"") -> 17 | C193: =IF(ISNUMBER($A193),HLNexus(C$3,C$4,C$2),"") -> 24 | D193: =IF(ISNUMBER($A193),HLNexus(D$3,D$4,D$2),"") -> 25 | E193: =IF(ISNUMBER($A193),HLNexus(E$3,E$4,E$2),"") -> 30 | F193: =IF(ISNUMBER($A193),HLNexus(F$3,F$4,F$2),"") -> 38 | G193: =IF(ISNUMBER($A193),HLNexus(G$3,G$4,G$2),"") -> 10
A194: 190 | B194: =IF(ISNUMBER($A194),HLNexus(B$3,B$4,B$2),"") -> 20 | C194: =IF(ISNUMBER($A194),HLNexus(C$3,C$4,C$2),"") -> 30 | D194: =IF(ISNUMBER($A194),HLNexus(D$3,D$4,D$2),"") -> 12 | E194: =IF(ISNUMBER($A194),HLNexus(E$3,E$4,E$2),"") -> 30 | F194: =IF(ISNUMBER($A194),HLNexus(F$3,F$4,F$2),"") -> 38 | G194: =IF(ISNUMBER($A194),HLNexus(G$3,G$4,G$2),"") -> 6
A195: 191 | B195: =IF(ISNUMBER($A195),HLNexus(B$3,B$4,B$2),"") -> 14 | C195: =IF(ISNUMBER($A195),HLNexus(C$3,C$4,C$2),"") -> 25 | D195: =IF(ISNUMBER($A195),HLNexus(D$3,D$4,D$2),"") -> 13 | E195: =IF(ISNUMBER($A195),HLNexus(E$3,E$4,E$2),"") -> 42 | F195: =IF(ISNUMBER($A195),HLNexus(F$3,F$4,F$2),"") -> 17 | G195: =IF(ISNUMBER($A195),HLNexus(G$3,G$4,G$2),"") -> 3
A196: 192 | B196: =IF(ISNUMBER($A196),HLNexus(B$3,B$4,B$2),"") -> 5 | C196: =IF(ISNUMBER($A196),HLNexus(C$3,C$4,C$2),"") -> 8 | D196: =IF(ISNUMBER($A196),HLNexus(D$3,D$4,D$2),"") -> 30 | E196: =IF(ISNUMBER($A196),HLNexus(E$3,E$4,E$2),"") -> 41 | F196: =IF(ISNUMBER($A196),HLNexus(F$3,F$4,F$2),"") -> 42 | G196: =IF(ISNUMBER($A196),HLNexus(G$3,G$4,G$2),"") -> 14
A197: 193 | B197: =IF(ISNUMBER($A197),HLNexus(B$3,B$4,B$2),"") -> 38 | C197: =IF(ISNUMBER($A197),HLNexus(C$3,C$4,C$2),"") -> 19 | D197: =IF(ISNUMBER($A197),HLNexus(D$3,D$4,D$2),"") -> 35 | E197: =IF(ISNUMBER($A197),HLNexus(E$3,E$4,E$2),"") -> 46 | F197: =IF(ISNUMBER($A197),HLNexus(F$3,F$4,F$2),"") -> 42 | G197: =IF(ISNUMBER($A197),HLNexus(G$3,G$4,G$2),"") -> 7
A198: 194 | B198: =IF(ISNUMBER($A198),HLNexus(B$3,B$4,B$2),"") -> 10 | C198: =IF(ISNUMBER($A198),HLNexus(C$3,C$4,C$2),"") -> 31 | D198: =IF(ISNUMBER($A198),HLNexus(D$3,D$4,D$2),"") -> 34 | E198: =IF(ISNUMBER($A198),HLNexus(E$3,E$4,E$2),"") -> 37 | F198: =IF(ISNUMBER($A198),HLNexus(F$3,F$4,F$2),"") -> 27 | G198: =IF(ISNUMBER($A198),HLNexus(G$3,G$4,G$2),"") -> 4
A199: =IF(ISNUMBER(A198),IF(A198+1<=M$4,A198+1,""),"") -> 195 | B199: =IF(ISNUMBER($A199),HLNexus(B$3,B$4,B$2),"") -> 6 | C199: =IF(ISNUMBER($A199),HLNexus(C$3,C$4,C$2),"") -> 16 | D199: =IF(ISNUMBER($A199),HLNexus(D$3,D$4,D$2),"") -> 42 | E199: =IF(ISNUMBER($A199),HLNexus(E$3,E$4,E$2),"") -> 42 | F199: =IF(ISNUMBER($A199),HLNexus(F$3,F$4,F$2),"") -> 38 | G199: =IF(ISNUMBER($A199),HLNexus(G$3,G$4,G$2),"") -> 4
A200: 196 | B200: =IF(ISNUMBER($A200),HLNexus(B$3,B$4,B$2),"") -> 1 | C200: =IF(ISNUMBER($A200),HLNexus(C$3,C$4,C$2),"") -> 29 | D200: =IF(ISNUMBER($A200),HLNexus(D$3,D$4,D$2),"") -> 18 | E200: =IF(ISNUMBER($A200),HLNexus(E$3,E$4,E$2),"") -> 5 | F200: =IF(ISNUMBER($A200),HLNexus(F$3,F$4,F$2),"") -> 38 | G200: =IF(ISNUMBER($A200),HLNexus(G$3,G$4,G$2),"") -> 2
... 1304 more rows

Sheet Daily Games
A1: Index | B1: Pick 3 | F1: Pick 4 | K1: Pick 5
B2: A | C2: B | D2: C | F2: A | G2: B | H2: C | I2: D | K2: A | L2: B | M2: C | N2: D | O2: E
B3: 3 | C3: 6 | D3: 8 | F3: 4 | G3: 7 | H3: 2 | I3: 4 | K3: 6 | L3: 6 | M3: 9 | N3: 1 | O3: 1 | Q3: Enter Last Two Draws Here
B4: 1 | C4: 3 | D4: 4 | F4: 3 | G4: 8 | H4: 8 | I4: 6 | K4: 9 | L4: 4 | M4: 5 | N4: 2 | O4: 2 | Q4: Enter Number of Selections Here | U4: 1500 | V4: (1 to 1500)
A5: =IF(U4>0,1,"") -> 1 | B5: =IF(ISNUMBER($A5),DPNexus(B$3,B$4),"") -> 8 | C5: =IF(ISNUMBER($A5),DPNexus(C$3,C$4),"") -> 9 | D5: =IF(ISNUMBER($A5),DPNexus(D$3,D$4),"") -> 0 | F5: =IF(ISNUMBER($A5),DPNexus(F$3,F$4),"") -> 9 | G5: =IF(ISNUMBER($A5),DPNexus(G$3,G$4),"") -> 7 | H5: =IF(ISNUMBER($A5),DPNexus(H$3,H$4),"") -> 5 | I5: =IF(ISNUMBER($A5),DPNexus(I$3,I$4),"") -> 7 | K5: =IF(ISNUMBER($A5),DPNexus(K$3,K$4),"") -> 2 | L5: =IF(ISNUMBER($A5),DPNexus(L$3,L$4),"") -> 2 | M5: =IF(ISNUMBER($A5),DPNexus(M$3,M$4),"") -> 3 | N5: =IF(ISNUMBER($A5),DPNexus(N$3,N$4),"") -> 4 | O5: =IF(ISNUMBER($A5),DPNexus(O$3,O$4),"") -> 7
A6: =IF(ISNUMBER(A5),IF(A5+1<=U$4,A5+1,""),"") -> 2 | B6: =IF(ISNUMBER($A6),DPNexus(B$3,B$4),"") -> 2 | C6: =IF(ISNUMBER($A6),DPNexus(C$3,C$4),"") -> 9 | D6: =IF(ISNUMBER($A6),DPNexus(D$3,D$4),"") -> 0 | F6: =IF(ISNUMBER($A6),DPNexus(F$3,F$4),"") -> 9 | G6: =IF(ISNUMBER($A6),DPNexus(G$3,G$4),"") -> 2 | H6: =IF(ISNUMBER($A6),DPNexus(H$3,H$4),"") -> 7 | I6: =IF(ISNUMBER($A6),DPNexus(I$3,I$4),"") -> 4 | K6: =IF(ISNUMBER($A6),DPNexus(K$3,K$4),"") -> 7 | L6: =IF(ISNUMBER($A6),DPNexus(L$3,L$4),"") -> 7 | M6: =IF(ISNUMBER($A6),DPNexus(M$3,M$4),"") -> 4 | N6: =IF(ISNUMBER($A6),DPNexus(N$3,N$4),"") -> 8 | O6: =IF(ISNUMBER($A6),DPNexus(O$3,O$4),"") -> 8
A7: 3 | B7: =IF(ISNUMBER($A7),DPNexus(B$3,B$4),"") -> 4 | C7: =IF(ISNUMBER($A7),DPNexus(C$3,C$4),"") -> 4 | D7: =IF(ISNUMBER($A7),DPNexus(D$3,D$4),"") -> 2 | F7: =IF(ISNUMBER($A7),DPNexus(F$3,F$4),"") -> 5 | G7: =IF(ISNUMBER($A7),DPNexus(G$3,G$4),"") -> 7 | H7: =IF(ISNUMBER($A7),DPNexus(H$3,H$4),"") -> 3 | I7: =IF(ISNUMBER($A7),DPNexus(I$3,I$4),"") -> 6 | K7: =IF(ISNUMBER($A7),DPNexus(K$3,K$4),"") -> 1 | L7: =IF(ISNUMBER($A7),DPNexus(L$3,L$4),"") -> 9 | M7: =IF(ISNUMBER($A7),DPNexus(M$3,M$4),"") -> 9 | N7: =IF(ISNUMBER($A7),DPNexus(N$3,N$4),"") -> 2 | O7: =IF(ISNUMBER($A7),DPNexus(O$3,O$4),"") -> 5 | R7: Pick 3 | AB7: Pick 4 | AM7: Pick 5
A8: 4 | B8: =IF(ISNUMBER($A8),DPNexus(B$3,B$4),"") -> 9 | C8: =IF(ISNUMBER($A8),DPNexus(C$3,C$4),"") -> 5 | D8: =IF(ISNUMBER($A8),DPNexus(D$3,D$4),"") -> 2 | F8: =IF(ISNUMBER($A8),DPNexus(F$3,F$4),"") -> 6 | G8: =IF(ISNUMBER($A8),DPNexus(G$3,G$4),"") -> 1 | H8: =IF(ISNUMBER($A8),DPNexus(H$3,H$4),"") -> 1 | I8: =IF(ISNUMBER($A8),DPNexus(I$3,I$4),"") -> 1 | K8: =IF(ISNUMBER($A8),DPNexus(K$3,K$4),"") -> 0 | L8: =IF(ISNUMBER($A8),DPNexus(L$3,L$4),"") -> 1 | M8: =IF(ISNUMBER($A8),DPNexus(M$3,M$4),"") -> 3 | N8: =IF(ISNUMBER($A8),DPNexus(N$3,N$4),"") -> 4 | O8: =IF(ISNUMBER($A8),DPNexus(O$3,O$4),"") -> 3 | R8: A | S8: B | T8: C | AB8: A | AC8: B | AD8: C | AE8: D | AM8: A | AN8: B | AO8: C | AP8: D | AQ8: E
A9: 5 | B9: =IF(ISNUMBER($A9),DPNexus(B$3,B$4),"") -> 7 | C9: =IF(ISNUMBER($A9),DPNexus(C$3,C$4),"") -> 8 | D9: =IF(ISNUMBER($A9),DPNexus(D$3,D$4),"") -> 5 | F9: =IF(ISNUMBER($A9),DPNexus(F$3,F$4),"") -> 7 | G9: =IF(ISNUMBER($A9),DPNexus(G$3,G$4),"") -> 2 | H9: =IF(ISNUMBER($A9),DPNexus(H$3,H$4),"") -> 6 | I9: =IF(ISNUMBER($A9),DPNexus(I$3,I$4),"") -> 3 | K9: =IF(ISNUMBER($A9),DPNexus(K$3,K$4),"") -> 2 | L9: =IF(ISNUMBER($A9),DPNexus(L$3,L$4),"") -> 3 | M9: =IF(ISNUMBER($A9),DPNexus(M$3,M$4),"") -> 4 | N9: =IF(ISNUMBER($A9),DPNexus(N$3,N$4),"") -> 5 | O9: =IF(ISNUMBER($A9),DPNexus(O$3,O$4),"") -> 7 | Q9: 0 | R9: =FrequencyCount(B$5:B$1504,$Q9) -> 52 | S9: =FrequencyCount(C$5:C$1504,$Q9) -> 94 | T9: =FrequencyCount(D$5:D$1504,$Q9) -> 175 | AA9: 0 | AB9: =FrequencyCount(F$5:F$1504,$AA9) -> 90 | AC9: =FrequencyCount(G$5:G$1504,$AA9) -> 256 | AD9: =FrequencyCount(H$5:H$1504,$AA9) -> 133 | AE9: =FrequencyCount(I$5:I$1504,$AA9) -> 145 | AL9: 0 | AM9: =FrequencyCount(K$5:K$1504,$AL9) -> 259 | AN9: =FrequencyCount(L$5:L$1504,$AL9) -> 143 | AO9: =FrequencyCount(M$5:M$1504,$AL9) -> 248 | AP9: =FrequencyCount(N$5:N$1504,$AL9) -> 37 | AQ9: =FrequencyCount(O$5:O$1504,$AL9) -> 36
A10: 6 | B10: =IF(ISNUMBER($A10),DPNexus(B$3,B$4),"") -> 5 | C10: =IF(ISNUMBER($A10),DPNexus(C$3,C$4),"") -> 7 | D10: =IF(ISNUMBER($A10),DPNexus(D$3,D$4),"") -> 2 | F10: =IF(ISNUMBER($A10),DPNexus(F$3,F$4),"") -> 6 | G10: =IF(ISNUMBER($A10),DPNexus(G$3,G$4),"") -> 4 | H10: =IF(ISNUMBER($A10),DPNexus(H$3,H$4),"") -> 8 | I10: =IF(ISNUMBER($A10),DPNexus(I$3,I$4),"") -> 6 | K10: =IF(ISNUMBER($A10),DPNexus(K$3,K$4),"") -> 0 | L10: =IF(ISNUMBER($A10),DPNexus(L$3,L$4),"") -> 6 | M10: =IF(ISNUMBER($A10),DPNexus(M$3,M$4),"") -> 7 | N10: =IF(ISNUMBER($A10),DPNexus(N$3,N$4),"") -> 3 | O10: =IF(ISNUMBER($A10),DPNexus(O$3,O$4),"") -> 9 | Q10: 1 | R10: 76 | S10: 151 | T10: 189 | AA10: 1 | AB10: =FrequencyCount(F$5:F$1504,$AA10) -> 124 | AC10: 258 | AD10: 154 | AE10: 145 | AL10: 1 | AM10: =FrequencyCount(K$5:K$1504,$AL10) -> 243 | AN10: 152 | AO10: 209 | AP10: 48 | AQ10: 54
A11: 7 | B11: =IF(ISNUMBER($A11),DPNexus(B$3,B$4),"") -> 0 | C11: =IF(ISNUMBER($A11),DPNexus(C$3,C$4),"") -> 8 | D11: =IF(ISNUMBER($A11),DPNexus(D$3,D$4),"") -> 0 | F11: =IF(ISNUMBER($A11),DPNexus(F$3,F$4),"") -> 9 | G11: =IF(ISNUMBER($A11),DPNexus(G$3,G$4),"") -> 4 | H11: =IF(ISNUMBER($A11),DPNexus(H$3,H$4),"") -> 0 | I11: =IF(ISNUMBER($A11),DPNexus(I$3,I$4),"") -> 4 | K11: =IF(ISNUMBER($A11),DPNexus(K$3,K$4),"") -> 4 | L11: =IF(ISNUMBER($A11),DPNexus(L$3,L$4),"") -> 3 | M11: =IF(ISNUMBER($A11),DPNexus(M$3,M$4),"") -> 0 | N11: =IF(ISNUMBER($A11),DPNexus(N$3,N$4),"") -> 8 | O11: =IF(ISNUMBER($A11),DPNexus(O$3,O$4),"") -> 9 | Q11: 2 | R11: 66 | S11: 174 | T11: 189 | AA11: 2 | AB11: 148 | AC11: 256 | AD11: 140 | AE11: 190 | AL11: 2 | AM11: 254 | AN11: 163 | AO11: 222 | AP11: 80 | AQ11: 80
A12: 8 | B12: =IF(ISNUMBER($A12),DPNexus(B$3,B$4),"") -> 8 | C12: =IF(ISNUMBER($A12),DPNexus(C$3,C$4),"") -> 8 | D12: =IF(ISNUMBER($A12),DPNexus(D$3,D$4),"") -> 3 | F12: =IF(ISNUMBER($A12),DPNexus(F$3,F$4),"") -> 2 | G12: =IF(ISNUMBER($A12),DPNexus(G$3,G$4),"") -> 8 | H12: =IF(ISNUMBER($A12),DPNexus(H$3,H$4),"") -> 3 | I12: =IF(ISNUMBER($A12),DPNexus(I$3,I$4),"") -> 8 | K12: =IF(ISNUMBER($A12),DPNexus(K$3,K$4),"") -> 2 | L12: =IF(ISNUMBER($A12),DPNexus(L$3,L$4),"") -> 5 | M12: =IF(ISNUMBER($A12),DPNexus(M$3,M$4),"") -> 3 | N12: =IF(ISNUMBER($A12),DPNexus(N$3,N$4),"") -> 2 | O12: =IF(ISNUMBER($A12),DPNexus(O$3,O$4),"") -> 9 | Q12: 3 | R12: 109 | S12: 158 | T12: 179 | AA12: 3 | AB12: 140 | AC12: 175 | AD12: 172 | AE12: 163 | AL12: 3 | AM12: 180 | AN12: 165 | AO12: 199 | AP12: 113 | AQ12: 99
A13: 9 | B13: =IF(ISNUMBER($A13),DPNexus(B$3,B$4),"") -> 9 | C13: =IF(ISNUMBER($A13),DPNexus(C$3,C$4),"") -> 8 | D13: =IF(ISNUMBER($A13),DPNexus(D$3,D$4),"") -> 2 | F13: =IF(ISNUMBER($A13),DPNexus(F$3,F$4),"") -> 9 | G13: =IF(ISNUMBER($A13),DPNexus(G$3,G$4),"") -> 0 | H13: =IF(ISNUMBER($A13),DPNexus(H$3,H$4),"") -> 8 | I13: =IF(ISNUMBER($A13),DPNexus(I$3,I$4),"") -> 7 | K13: =IF(ISNUMBER($A13),DPNexus(K$3,K$4),"") -> 3 | L13: =IF(ISNUMBER($A13),DPNexus(L$3,L$4),"") -> 3 | M13: =IF(ISNUMBER($A13),DPNexus(M$3,M$4),"") -> 1 | N13: =IF(ISNUMBER($A13),DPNexus(N$3,N$4),"") -> 8 | O13: =IF(ISNUMBER($A13),DPNexus(O$3,O$4),"") -> 9 | Q13: 4 | R13: 134 | S13: 181 | T13: 201 | AA13: 4 | AB13: 170 | AC13: 151 | AD13: 184 | AE13: 166 | AL13: 4 | AM13: 160 | AN13: 160 | AO13: 194 | AP13: 137 | AQ13: 130
A14: 10 | B14: =IF(ISNUMBER($A14),DPNexus(B$3,B$4),"") -> 6 | C14: =IF(ISNUMBER($A14),DPNexus(C$3,C$4),"") -> 1 | D14: =IF(ISNUMBER($A14),DPNexus(D$3,D$4),"") -> 4 | F14: =IF(ISNUMBER($A14),DPNexus(F$3,F$4),"") -> 2 | G14: =IF(ISNUMBER($A14),DPNexus(G$3,G$4),"") -> 2 | H14: =IF(ISNUMBER($A14),DPNexus(H$3,H$4),"") -> 5 | I14: =IF(ISNUMBER($A14),DPNexus(I$3,I$4),"") -> 3 | K14: =IF(ISNUMBER($A14),DPNexus(K$3,K$4),"") -> 0 | L14: =IF(ISNUMBER($A14),DPNexus(L$3,L$4),"") -> 2 | M14: =IF(ISNUMBER($A14),DPNexus(M$3,M$4),"") -> 0 | N14: =IF(ISNUMBER($A14),DPNexus(N$3,N$4),"") -> 4 | O14: =IF(ISNUMBER($A14),DPNexus(O$3,O$4),"") -> 7 | Q14: 5 | R14: 178 | S14: 155 | T14: 170 | AA14: 5 | AB14: 157 | AC14: 140 | AD14: 160 | AE14: 156 | AL14: 5 | AM14: 140 | AN14: 173 | AO14: 148 | AP14: 155 | AQ14: 155
A15: 11 | B15: =IF(ISNUMBER($A15),DPNexus(B$3,B$4),"") -> 7 | C15: =IF(ISNUMBER($A15),DPNexus(C$3,C$4),"") -> 2 | D15: =IF(ISNUMBER($A15),DPNexus(D$3,D$4),"") -> 7 | F15: =IF(ISNUMBER($A15),DPNexus(F$3,F$4),"") -> 1 | G15: =IF(ISNUMBER($A15),DPNexus(G$3,G$4),"") -> 3 | H15: =IF(ISNUMBER($A15),DPNexus(H$3,H$4),"") -> 1 | I15: =IF(ISNUMBER($A15),DPNexus(I$3,I$4),"") -> 7 | K15: =IF(ISNUMBER($A15),DPNexus(K$3,K$4),"") -> 1 | L15: =IF(ISNUMBER($A15),DPNexus(L$3,L$4),"") -> 8 | M15: =IF(ISNUMBER($A15),DPNexus(M$3,M$4),"") -> 1 | N15: =IF(ISNUMBER($A15),DPNexus(N$3,N$4),"") -> 2 | O15: =IF(ISNUMBER($A15),DPNexus(O$3,O$4),"") -> 7 | Q15: 6 | R15: 189 | S15: 166 | T15: 133 | AA15: 6 | AB15: 156 | AC15: 97 | AD15: 171 | AE15: 163 | AL15: 6 | AM15: 94 | AN15: 160 | AO15: 97 | AP15: 186 | AQ15: 195
A16: 12 | B16: =IF(ISNUMBER($A16),DPNexus(B$3,B$4),"") -> 1 | C16: =IF(ISNUMBER($A16),DPNexus(C$3,C$4),"") -> 5 | D16: =IF(ISNUMBER($A16),DPNexus(D$3,D$4),"") -> 9 | F16: =IF(ISNUMBER($A16),DPNexus(F$3,F$4),"") -> 2 | G16: =IF(ISNUMBER($A16),DPNexus(G$3,G$4),"") -> 7 | H16: =IF(ISNUMBER($A16),DPNexus(H$3,H$4),"") -> 1 | I16: =IF(ISNUMBER($A16),DPNexus(I$3,I$4),"") -> 0 | K16: =IF(ISNUMBER($A16),DPNexus(K$3,K$4),"") -> 2 | L16: =IF(ISNUMBER($A16),DPNexus(L$3,L$4),"") -> 3 | M16: =IF(ISNUMBER($A16),DPNexus(M$3,M$4),"") -> 1 | N16: =IF(ISNUMBER($A16),DPNexus(N$3,N$4),"") -> 7 | O16: =IF(ISNUMBER($A16),DPNexus(O$3,O$4),"") -> 8 | Q16: 7 | R16: 241 | S16: 148 | T16: 93 | AA16: 7 | AB16: 160 | AC16: 82 | AD16: 172 | AE16: 141 | AL16: 7 | AM16: 75 | AN16: 143 | AO16: 81 | AP16: 244 | AQ16: 232
A17: 13 | B17: =IF(ISNUMBER($A17),DPNexus(B$3,B$4),"") -> 2 | C17: =IF(ISNUMBER($A17),DPNexus(C$3,C$4),"") -> 2 | D17: =IF(ISNUMBER($A17),DPNexus(D$3,D$4),"") -> 7 | F17: =IF(ISNUMBER($A17),DPNexus(F$3,F$4),"") -> 2 | G17: =IF(ISNUMBER($A17),DPNexus(G$3,G$4),"") -> 1 | H17: =IF(ISNUMBER($A17),DPNexus(H$3,H$4),"") -> 7 | I17: =IF(ISNUMBER($A17),DPNexus(I$3,I$4),"") -> 9 | K17: =IF(ISNUMBER($A17),DPNexus(K$3,K$4),"") -> 5 | L17: =IF(ISNUMBER($A17),DPNexus(L$3,L$4),"") -> 4 | M17: =IF(ISNUMBER($A17),DPNexus(M$3,M$4),"") -> 3 | N17: =IF(ISNUMBER($A17),DPNexus(N$3,N$4),"") -> 9 | O17: =IF(ISNUMBER($A17),DPNexus(O$3,O$4),"") -> 7 | Q17: 8 | R17: 234 | S17: 162 | T17: 94 | AA17: 8 | AB17: 183 | AC17: 50 | AD17: 119 | AE17: 125 | AL17: 8 | AM17: 56 | AN17: 125 | AO17: 64 | AP17: 272 | AQ17: 281
A18: 14 | B18: =IF(ISNUMBER($A18),DPNexus(B$3,B$4),"") -> 7 | C18: =IF(ISNUMBER($A18),DPNexus(C$3,C$4),"") -> 8 | D18: =IF(ISNUMBER($A18),DPNexus(D$3,D$4),"") -> 7 | F18: =IF(ISNUMBER($A18),DPNexus(F$3,F$4),"") -> 7 | G18: =IF(ISNUMBER($A18),DPNexus(G$3,G$4),"") -> 0 | H18: =IF(ISNUMBER($A18),DPNexus(H$3,H$4),"") -> 9 | I18: =IF(ISNUMBER($A18),DPNexus(I$3,I$4),"") -> 9 | K18: =IF(ISNUMBER($A18),DPNexus(K$3,K$4),"") -> 2 | L18: =IF(ISNUMBER($A18),DPNexus(L$3,L$4),"") -> 6 | M18: =IF(ISNUMBER($A18),DPNexus(M$3,M$4),"") -> 5 | N18: =IF(ISNUMBER($A18),DPNexus(N$3,N$4),"") -> 9 | O18: =IF(ISNUMBER($A18),DPNexus(O$3,O$4),"") -> 0 | Q18: 9 | R18: 221 | S18: 111 | T18: 77 | AA18: 9 | AB18: 172 | AC18: 35 | AD18: 95 | AE18: 106 | AL18: 9 | AM18: 39 | AN18: 116 | AO18: 38 | AP18: 228 | AQ18: 238
A19: 15 | B19: =IF(ISNUMBER($A19),DPNexus(B$3,B$4),"") -> 0 | C19: =IF(ISNUMBER($A19),DPNexus(C$3,C$4),"") -> 4 | D19: =IF(ISNUMBER($A19),DPNexus(D$3,D$4),"") -> 4 | F19: =IF(ISNUMBER($A19),DPNexus(F$3,F$4),"") -> 8 | G19: =IF(ISNUMBER($A19),DPNexus(G$3,G$4),"") -> 2 | H19: =IF(ISNUMBER($A19),DPNexus(H$3,H$4),"") -> 0 | I19: =IF(ISNUMBER($A19),DPNexus(I$3,I$4),"") -> 0 | K19: =IF(ISNUMBER($A19),DPNexus(K$3,K$4),"") -> 5 | L19: =IF(ISNUMBER($A19),DPNexus(L$3,L$4),"") -> 9 | M19: =IF(ISNUMBER($A19),DPNexus(M$3,M$4),"") -> 1 | N19: =IF(ISNUMBER($A19),DPNexus(N$3,N$4),"") -> 5 | O19: =IF(ISNUMBER($A19),DPNexus(O$3,O$4),"") -> 8 | Q19: Min | R19: =MIN(R9:R18) -> 52 | S19: =MIN(S9:S18) -> 94 | T19: =MIN(T9:T18) -> 77 | AA19: Min | AB19: =MIN(AB9:AB18) -> 90 | AC19: =MIN(AC9:AC18) -> 35 | AD19: =MIN(AD9:AD18) -> 95 | AE19: =MIN(AE9:AE18) -> 106 | AL19: Min | AM19: =MIN(AM9:AM18) -> 39 | AN19: =MIN(AN9:AN18) -> 116 | AO19: =MIN(AO9:AO18) -> 38 | AP19: =MIN(AP9:AP18) -> 37 | AQ19: =MIN(AQ9:AQ18) -> 36
A20: 16 | B20: =IF(ISNUMBER($A20),DPNexus(B$3,B$4),"") -> 4 | C20: =IF(ISNUMBER($A20),DPNexus(C$3,C$4),"") -> 7 | D20: =IF(ISNUMBER($A20),DPNexus(D$3,D$4),"") -> 2 | F20: =IF(ISNUMBER($A20),DPNexus(F$3,F$4),"") -> 7 | G20: =IF(ISNUMBER($A20),DPNexus(G$3,G$4),"") -> 3 | H20: =IF(ISNUMBER($A20),DPNexus(H$3,H$4),"") -> 6 | I20: =IF(ISNUMBER($A20),DPNexus(I$3,I$4),"") -> 2 | K20: =IF(ISNUMBER($A20),DPNexus(K$3,K$4),"") -> 8 | L20: =IF(ISNUMBER($A20),DPNexus(L$3,L$4),"") -> 5 | M20: =IF(ISNUMBER($A20),DPNexus(M$3,M$4),"") -> 1 | N20: =IF(ISNUMBER($A20),DPNexus(N$3,N$4),"") -> 3 | O20: =IF(ISNUMBER($A20),DPNexus(O$3,O$4),"") -> 9 | Q20: Max | R20: =MAX(R9:R18) -> 241 | S20: =MAX(S9:S18) -> 181 | T20: =MAX(T9:T18) -> 201 | AA20: Max | AB20: =MAX(AB9:AB18) -> 183 | AC20: =MAX(AC9:AC18) -> 258 | AD20: =MAX(AD9:AD18) -> 184 | AE20: =MAX(AE9:AE18) -> 190 | AL20: Max | AM20: =MAX(AM9:AM18) -> 259 | AN20: =MAX(AN9:AN18) -> 173 | AO20: =MAX(AO9:AO18) -> 248 | AP20: =MAX(AP9:AP18) -> 272 | AQ20: =MAX(AQ9:AQ18) -> 281
A21: 17 | B21: =IF(ISNUMBER($A21),DPNexus(B$3,B$4),"") -> 6 | C21: =IF(ISNUMBER($A21),DPNexus(C$3,C$4),"") -> 4 | D21: =IF(ISNUMBER($A21),DPNexus(D$3,D$4),"") -> 7 | F21: =IF(ISNUMBER($A21),DPNexus(F$3,F$4),"") -> 1 | G21: =IF(ISNUMBER($A21),DPNexus(G$3,G$4),"") -> 0 | H21: =IF(ISNUMBER($A21),DPNexus(H$3,H$4),"") -> 8 | I21: =IF(ISNUMBER($A21),DPNexus(I$3,I$4),"") -> 1 | K21: =IF(ISNUMBER($A21),DPNexus(K$3,K$4),"") -> 5 | L21: =IF(ISNUMBER($A21),DPNexus(L$3,L$4),"") -> 8 | M21: =IF(ISNUMBER($A21),DPNexus(M$3,M$4),"") -> 2 | N21: =IF(ISNUMBER($A21),DPNexus(N$3,N$4),"") -> 7 | O21: =IF(ISNUMBER($A21),DPNexus(O$3,O$4),"") -> 6 | R21: Normalized | AB21: Normalized | AM21: Normalized
A22: 18 | B22: =IF(ISNUMBER($A22),DPNexus(B$3,B$4),"") -> 9 | C22: =IF(ISNUMBER($A22),DPNexus(C$3,C$4),"") -> 7 | D22: =IF(ISNUMBER($A22),DPNexus(D$3,D$4),"") -> 5 | F22: =IF(ISNUMBER($A22),DPNexus(F$3,F$4),"") -> 8 | G22: =IF(ISNUMBER($A22),DPNexus(G$3,G$4),"") -> 1 | H22: =IF(ISNUMBER($A22),DPNexus(H$3,H$4),"") -> 6 | I22: =IF(ISNUMBER($A22),DPNexus(I$3,I$4),"") -> 6 | K22: =IF(ISNUMBER($A22),DPNexus(K$3,K$4),"") -> 1 | L22: =IF(ISNUMBER($A22),DPNexus(L$3,L$4),"") -> 0 | M22: =IF(ISNUMBER($A22),DPNexus(M$3,M$4),"") -> 6 | N22: =IF(ISNUMBER($A22),DPNexus(N$3,N$4),"") -> 6 | O22: =IF(ISNUMBER($A22),DPNexus(O$3,O$4),"") -> 8 | R22: A | S22: B | T22: C | AB22: A | AC22: B | AD22: C | AE22: D | AM22: A | AN22: B | AO22: C | AP22: D | AQ22: E
A23: 19 | B23: =IF(ISNUMBER($A23),DPNexus(B$3,B$4),"") -> 7 | C23: =IF(ISNUMBER($A23),DPNexus(C$3,C$4),"") -> 7 | D23: =IF(ISNUMBER($A23),DPNexus(D$3,D$4),"") -> 8 | F23: =IF(ISNUMBER($A23),DPNexus(F$3,F$4),"") -> 8 | G23: =IF(ISNUMBER($A23),DPNexus(G$3,G$4),"") -> 2 | H23: =IF(ISNUMBER($A23),DPNexus(H$3,H$4),"") -> 4 | I23: =IF(ISNUMBER($A23),DPNexus(I$3,I$4),"") -> 6 | K23: =IF(ISNUMBER($A23),DPNexus(K$3,K$4),"") -> 6 | L23: =IF(ISNUMBER($A23),DPNexus(L$3,L$4),"") -> 3 | M23: =IF(ISNUMBER($A23),DPNexus(M$3,M$4),"") -> 6 | N23: =IF(ISNUMBER($A23),DPNexus(N$3,N$4),"") -> 1 | O23: =IF(ISNUMBER($A23),DPNexus(O$3,O$4),"") -> 2 | Q23: 0 | R23: =(R9-R$19+1)/(R$20-R$19+2) -> 0.005235602094 | S23: 0.01123595506 | T23: 0.7857142857 | AA23: 0 | AB23: =(AB9-AB$19+1)/(AB$20-AB$19+2) -> 0.01052631579 | AC23: 0.9866666667 | AD23: 0.4285714286 | AE23: =(AE9-AE$19+1)/(AE$20-AE$19+2) -> 0.4651162791 | AL23: 0 | AM23: =(AM9-AM$19+1)/(AM$20-AM$19+2) -> 0.9954954955 | AN23: 0.4745762712 | AO23: 0.9952830189 | AP23: 0.004219409283 | AQ23: =(AQ9-AQ$19+1)/(AQ$20-AQ$19+2) -> 0.004048582996
A24: 20 | B24: =IF(ISNUMBER($A24),DPNexus(B$3,B$4),"") -> 4 | C24: =IF(ISNUMBER($A24),DPNexus(C$3,C$4),"") -> 1 | D24: =IF(ISNUMBER($A24),DPNexus(D$3,D$4),"") -> 5 | F24: =IF(ISNUMBER($A24),DPNexus(F$3,F$4),"") -> 8 | G24: =IF(ISNUMBER($A24),DPNexus(G$3,G$4),"") -> 2 | H24: =IF(ISNUMBER($A24),DPNexus(H$3,H$4),"") -> 1 | I24: =IF(ISNUMBER($A24),DPNexus(I$3,I$4),"") -> 5 | K24: =IF(ISNUMBER($A24),DPNexus(K$3,K$4),"") -> 5 | L24: =IF(ISNUMBER($A24),DPNexus(L$3,L$4),"") -> 9 | M24: =IF(ISNUMBER($A24),DPNexus(M$3,M$4),"") -> 2 | N24: =IF(ISNUMBER($A24),DPNexus(N$3,N$4),"") -> 5 | O24: =IF(ISNUMBER($A24),DPNexus(O$3,O$4),"") -> 4 | Q24: 1 | R24: 0.1308900524 | S24: 0.6516853933 | T24: 0.8968253968 | AA24: 1 | AB24: =(AB10-AB$19+1)/(AB$20-AB$19+2) -> 0.3684210526 | AC24: 0.9955555556 | AD24: 0.6593406593 | AE24: =(AE10-AE$19+1)/(AE$20-AE$19+2) -> 0.4651162791 | AL24: 1 | AM24: =(AM10-AM$19+1)/(AM$20-AM$19+2) -> 0.9234234234 | AN24: 0.6271186441 | AO24: 0.8113207547 | AP24: 0.05063291139 | AQ24: =(AQ10-AQ$19+1)/(AQ$20-AQ$19+2) -> 0.07692307692
A25: 21 | B25: =IF(ISNUMBER($A25),DPNexus(B$3,B$4),"") -> 5 | C25: =IF(ISNUMBER($A25),DPNexus(C$3,C$4),"") -> 3 | D25: =IF(ISNUMBER($A25),DPNexus(D$3,D$4),"") -> 3 | F25: =IF(ISNUMBER($A25),DPNexus(F$3,F$4),"") -> 9 | G25: =IF(ISNUMBER($A25),DPNexus(G$3,G$4),"") -> 6 | H25: =IF(ISNUMBER($A25),DPNexus(H$3,H$4),"") -> 1 | I25: =IF(ISNUMBER($A25),DPNexus(I$3,I$4),"") -> 6 | K25: =IF(ISNUMBER($A25),DPNexus(K$3,K$4),"") -> 0 | L25: =IF(ISNUMBER($A25),DPNexus(L$3,L$4),"") -> 2 | M25: =IF(ISNUMBER($A25),DPNexus(M$3,M$4),"") -> 3 | N25: =IF(ISNUMBER($A25),DPNexus(N$3,N$4),"") -> 1 | O25: =IF(ISNUMBER($A25),DPNexus(O$3,O$4),"") -> 3 | Q25: 2 | R25: 0.07853403141 | S25: 0.9101123596 | T25: 0.8968253968 | AA25: 2 | AB25: =(AB11-AB$19+1)/(AB$20-AB$19+2) -> 0.6210526316 | AC25: 0.9866666667 | AD25: 0.5054945055 | AE25: =(AE11-AE$19+1)/(AE$20-AE$19+2) -> 0.988372093 | AL25: 2 | AM25: =(AM11-AM$19+1)/(AM$20-AM$19+2) -> 0.972972973 | AN25: 0.813559322 | AO25: 0.8726415094 | AP25: 0.1856540084 | AQ25: =(AQ11-AQ$19+1)/(AQ$20-AQ$19+2) -> 0.1821862348
A26: 22 | B26: =IF(ISNUMBER($A26),DPNexus(B$3,B$4),"") -> 2 | C26: =IF(ISNUMBER($A26),DPNexus(C$3,C$4),"") -> 2 | D26: =IF(ISNUMBER($A26),DPNexus(D$3,D$4),"") -> 6 | F26: =IF(ISNUMBER($A26),DPNexus(F$3,F$4),"") -> 5 | G26: =IF(ISNUMBER($A26),DPNexus(G$3,G$4),"") -> 0 | H26: =IF(ISNUMBER($A26),DPNexus(H$3,H$4),"") -> 3 | I26: =IF(ISNUMBER($A26),DPNexus(I$3,I$4),"") -> 6 | K26: =IF(ISNUMBER($A26),DPNexus(K$3,K$4),"") -> 2 | L26: =IF(ISNUMBER($A26),DPNexus(L$3,L$4),"") -> 9 | M26: =IF(ISNUMBER($A26),DPNexus(M$3,M$4),"") -> 3 | N26: =IF(ISNUMBER($A26),DPNexus(N$3,N$4),"") -> 3 | O26: =IF(ISNUMBER($A26),DPNexus(O$3,O$4),"") -> 4 | Q26: 3 | R26: 0.3036649215 | S26: 0.7303370787 | T26: 0.8174603175 | AA26: 3 | AB26: =(AB12-AB$19+1)/(AB$20-AB$19+2) -> 0.5368421053 | AC26: 0.6266666667 | AD26: 0.8571428571 | AE26: =(AE12-AE$19+1)/(AE$20-AE$19+2) -> 0.6744186047 | AL26: 3 | AM26: =(AM12-AM$19+1)/(AM$20-AM$19+2) -> 0.6396396396 | AN26: 0.8474576271 | AO26: 0.7641509434 | AP26: 0.3248945148 | AQ26: =(AQ12-AQ$19+1)/(AQ$20-AQ$19+2) -> 0.2591093117
A27: 23 | B27: =IF(ISNUMBER($A27),DPNexus(B$3,B$4),"") -> 2 | C27: =IF(ISNUMBER($A27),DPNexus(C$3,C$4),"") -> 8 | D27: =IF(ISNUMBER($A27),DPNexus(D$3,D$4),"") -> 3 | F27: =IF(ISNUMBER($A27),DPNexus(F$3,F$4),"") -> 1 | G27: =IF(ISNUMBER($A27),DPNexus(G$3,G$4),"") -> 1 | H27: =IF(ISNUMBER($A27),DPNexus(H$3,H$4),"") -> 3 | I27: =IF(ISNUMBER($A27),DPNexus(I$3,I$4),"") -> 7 | K27: =IF(ISNUMBER($A27),DPNexus(K$3,K$4),"") -> 2 | L27: =IF(ISNUMBER($A27),DPNexus(L$3,L$4),"") -> 5 | M27: =IF(ISNUMBER($A27),DPNexus(M$3,M$4),"") -> 3 | N27: =IF(ISNUMBER($A27),DPNexus(N$3,N$4),"") -> 8 | O27: =IF(ISNUMBER($A27),DPNexus(O$3,O$4),"") -> 8 | Q27: 4 | R27: 0.4345549738 | S27: 0.9887640449 | T27: 0.9920634921 | AA27: 4 | AB27: =(AB13-AB$19+1)/(AB$20-AB$19+2) -> 0.8526315789 | AC27: 0.52 | AD27: 0.989010989 | AE27: =(AE13-AE$19+1)/(AE$20-AE$19+2) -> 0.7093023256 | AL27: 4 | AM27: =(AM13-AM$19+1)/(AM$20-AM$19+2) -> 0.5495495495 | AN27: 0.7627118644 | AO27: 0.7405660377 | AP27: 0.4261603376 | AQ27: =(AQ13-AQ$19+1)/(AQ$20-AQ$19+2) -> 0.3846153846
A28: 24 | B28: =IF(ISNUMBER($A28),DPNexus(B$3,B$4),"") -> 8 | C28: =IF(ISNUMBER($A28),DPNexus(C$3,C$4),"") -> 5 | D28: =IF(ISNUMBER($A28),DPNexus(D$3,D$4),"") -> 3 | F28: =IF(ISNUMBER($A28),DPNexus(F$3,F$4),"") -> 4 | G28: =IF(ISNUMBER($A28),DPNexus(G$3,G$4),"") -> 4 | H28: =IF(ISNUMBER($A28),DPNexus(H$3,H$4),"") -> 5 | I28: =IF(ISNUMBER($A28),DPNexus(I$3,I$4),"") -> 3 | K28: =IF(ISNUMBER($A28),DPNexus(K$3,K$4),"") -> 0 | L28: =IF(ISNUMBER($A28),DPNexus(L$3,L$4),"") -> 5 | M28: =IF(ISNUMBER($A28),DPNexus(M$3,M$4),"") -> 1 | N28: =IF(ISNUMBER($A28),DPNexus(N$3,N$4),"") -> 5 | O28: =IF(ISNUMBER($A28),DPNexus(O$3,O$4),"") -> 4 | Q28: 5 | R28: 0.664921466 | S28: 0.6966292135 | T28: 0.746031746 | AA28: 5 | AB28: =(AB14-AB$19+1)/(AB$20-AB$19+2) -> 0.7157894737 | AC28: 0.4711111111 | AD28: 0.7252747253 | AE28: =(AE14-AE$19+1)/(AE$20-AE$19+2) -> 0.5930232558 | AL28: 5 | AM28: =(AM14-AM$19+1)/(AM$20-AM$19+2) -> 0.4594594595 | AN28: 0.9830508475 | AO28: 0.5235849057 | AP28: 0.5021097046 | AQ28: =(AQ14-AQ$19+1)/(AQ$20-AQ$19+2) -> 0.4858299595
A29: 25 | B29: =IF(ISNUMBER($A29),DPNexus(B$3,B$4),"") -> 9 | C29: =IF(ISNUMBER($A29),DPNexus(C$3,C$4),"") -> 8 | D29: =IF(ISNUMBER($A29),DPNexus(D$3,D$4),"") -> 0 | F29: =IF(ISNUMBER($A29),DPNexus(F$3,F$4),"") -> 8 | G29: =IF(ISNUMBER($A29),DPNexus(G$3,G$4),"") -> 4 | H29: =IF(ISNUMBER($A29),DPNexus(H$3,H$4),"") -> 4 | I29: =IF(ISNUMBER($A29),DPNexus(I$3,I$4),"") -> 4 | K29: =IF(ISNUMBER($A29),DPNexus(K$3,K$4),"") -> 0 | L29: =IF(ISNUMBER($A29),DPNexus(L$3,L$4),"") -> 2 | M29: =IF(ISNUMBER($A29),DPNexus(M$3,M$4),"") -> 0 | N29: =IF(ISNUMBER($A29),DPNexus(N$3,N$4),"") -> 4 | O29: =IF(ISNUMBER($A29),DPNexus(O$3,O$4),"") -> 6 | Q29: 6 | R29: 0.722513089 | S29: 0.8202247191 | T29: 0.4523809524 | AA29: 6 | AB29: =(AB15-AB$19+1)/(AB$20-AB$19+2) -> 0.7052631579 | AC29: 0.28 | AD29: 0.8461538462 | AE29: =(AE15-AE$19+1)/(AE$20-AE$19+2) -> 0.6744186047 | AL29: 6 | AM29: =(AM15-AM$19+1)/(AM$20-AM$19+2) -> 0.2522522523 | AN29: 0.7627118644 | AO29: 0.2830188679 | AP29: 0.6329113924 | AQ29: =(AQ15-AQ$19+1)/(AQ$20-AQ$19+2) -> 0.6477732794
A30: 26 | B30: =IF(ISNUMBER($A30),DPNexus(B$3,B$4),"") -> 8 | C30: =IF(ISNUMBER($A30),DPNexus(C$3,C$4),"") -> 1 | D30: =IF(ISNUMBER($A30),DPNexus(D$3,D$4),"") -> 3 | F30: =IF(ISNUMBER($A30),DPNexus(F$3,F$4),"") -> 0 | G30: =IF(ISNUMBER($A30),DPNexus(G$3,G$4),"") -> 5 | H30: =IF(ISNUMBER($A30),DPNexus(H$3,H$4),"") -> 0 | I30: =IF(ISNUMBER($A30),DPNexus(I$3,I$4),"") -> 8 | K30: =IF(ISNUMBER($A30),DPNexus(K$3,K$4),"") -> 4 | L30: =IF(ISNUMBER($A30),DPNexus(L$3,L$4),"") -> 3 | M30: =IF(ISNUMBER($A30),DPNexus(M$3,M$4),"") -> 3 | N30: =IF(ISNUMBER($A30),DPNexus(N$3,N$4),"") -> 8 | O30: =IF(ISNUMBER($A30),DPNexus(O$3,O$4),"") -> 8 | Q30: 7 | R30: 0.9947643979 | S30: 0.6179775281 | T30: 0.1349206349 | AA30: 7 | AB30: =(AB16-AB$19+1)/(AB$20-AB$19+2) -> 0.7473684211 | AC30: 0.2133333333 | AD30: 0.8571428571 | AE30: =(AE16-AE$19+1)/(AE$20-AE$19+2) -> 0.4186046512 | AL30: 7 | AM30: =(AM16-AM$19+1)/(AM$20-AM$19+2) -> 0.1666666667 | AN30: 0.4745762712 | AO30: 0.2075471698 | AP30: 0.8776371308 | AQ30: =(AQ16-AQ$19+1)/(AQ$20-AQ$19+2) -> 0.7975708502
A31: 27 | B31: =IF(ISNUMBER($A31),DPNexus(B$3,B$4),"") -> 8 | C31: =IF(ISNUMBER($A31),DPNexus(C$3,C$4),"") -> 6 | D31: =IF(ISNUMBER($A31),DPNexus(D$3,D$4),"") -> 4 | F31: =IF(ISNUMBER($A31),DPNexus(F$3,F$4),"") -> 9 | G31: =IF(ISNUMBER($A31),DPNexus(G$3,G$4),"") -> 1 | H31: =IF(ISNUMBER($A31),DPNexus(H$3,H$4),"") -> 3 | I31: =IF(ISNUMBER($A31),DPNexus(I$3,I$4),"") -> 6 | K31: =IF(ISNUMBER($A31),DPNexus(K$3,K$4),"") -> 2 | L31: =IF(ISNUMBER($A31),DPNexus(L$3,L$4),"") -> 6 | M31: =IF(ISNUMBER($A31),DPNexus(M$3,M$4),"") -> 3 | N31: =IF(ISNUMBER($A31),DPNexus(N$3,N$4),"") -> 9 | O31: =IF(ISNUMBER($A31),DPNexus(O$3,O$4),"") -> 9 | Q31: 8 | R31: 0.9581151832 | S31: 0.7752808989 | T31: 0.1428571429 | AA31: 8 | AB31: =(AB17-AB$19+1)/(AB$20-AB$19+2) -> 0.9894736842 | AC31: 0.07111111111 | AD31: 0.2747252747 | AE31: =(AE17-AE$19+1)/(AE$20-AE$19+2) -> 0.2325581395 | AL31: 8 | AM31: =(AM17-AM$19+1)/(AM$20-AM$19+2) -> 0.08108108108 | AN31: 0.1694915254 | AO31: 0.1273584906 | AP31: 0.9957805907 | AQ31: =(AQ17-AQ$19+1)/(AQ$20-AQ$19+2) -> 0.995951417
A32: 28 | B32: =IF(ISNUMBER($A32),DPNexus(B$3,B$4),"") -> 8 | C32: =IF(ISNUMBER($A32),DPNexus(C$3,C$4),"") -> 4 | D32: =IF(ISNUMBER($A32),DPNexus(D$3,D$4),"") -> 4 | F32: =IF(ISNUMBER($A32),DPNexus(F$3,F$4),"") -> 5 | G32: =IF(ISNUMBER($A32),DPNexus(G$3,G$4),"") -> 6 | H32: =IF(ISNUMBER($A32),DPNexus(H$3,H$4),"") -> 8 | I32: =IF(ISNUMBER($A32),DPNexus(I$3,I$4),"") -> 2 | K32: =IF(ISNUMBER($A32),DPNexus(K$3,K$4),"") -> 1 | L32: =IF(ISNUMBER($A32),DPNexus(L$3,L$4),"") -> 1 | M32: =IF(ISNUMBER($A32),DPNexus(M$3,M$4),"") -> 5 | N32: =IF(ISNUMBER($A32),DPNexus(N$3,N$4),"") -> 4 | O32: =IF(ISNUMBER($A32),DPNexus(O$3,O$4),"") -> 4 | Q32: 9 | R32: 0.890052356 | S32: 0.202247191 | T32: 0.007936507937 | AA32: 9 | AB32: =(AB18-AB$19+1)/(AB$20-AB$19+2) -> 0.8736842105 | AC32: 0.004444444444 | AD32: 0.01098901099 | AE32: =(AE18-AE$19+1)/(AE$20-AE$19+2) -> 0.01162790698 | AL32: 9 | AM32: =(AM18-AM$19+1)/(AM$20-AM$19+2) -> 0.004504504505 | AN32: 0.01694915254 | AO32: 0.004716981132 | AP32: 0.8101265823 | AQ32: =(AQ18-AQ$19+1)/(AQ$20-AQ$19+2) -> 0.8218623482
A33: 29 | B33: =IF(ISNUMBER($A33),DPNexus(B$3,B$4),"") -> 3 | C33: =IF(ISNUMBER($A33),DPNexus(C$3,C$4),"") -> 6 | D33: =IF(ISNUMBER($A33),DPNexus(D$3,D$4),"") -> 3 | F33: =IF(ISNUMBER($A33),DPNexus(F$3,F$4),"") -> 0 | G33: =IF(ISNUMBER($A33),DPNexus(G$3,G$4),"") -> 2 | H33: =IF(ISNUMBER($A33),DPNexus(H$3,H$4),"") -> 8 | I33: =IF(ISNUMBER($A33),DPNexus(I$3,I$4),"") -> 7 | K33: =IF(ISNUMBER($A33),DPNexus(K$3,K$4),"") -> 0 | L33: =IF(ISNUMBER($A33),DPNexus(L$3,L$4),"") -> 4 | M33: =IF(ISNUMBER($A33),DPNexus(M$3,M$4),"") -> 2 | N33: =IF(ISNUMBER($A33),DPNexus(N$3,N$4),"") -> 5 | O33: =IF(ISNUMBER($A33),DPNexus(O$3,O$4),"") -> 1 | R33: Inverted | AB33: Inverted | AM33: Inverted
A34: 30 | B34: =IF(ISNUMBER($A34),DPNexus(B$3,B$4),"") -> 6 | C34: =IF(ISNUMBER($A34),DPNexus(C$3,C$4),"") -> 8 | D34: =IF(ISNUMBER($A34),DPNexus(D$3,D$4),"") -> 5 | F34: =IF(ISNUMBER($A34),DPNexus(F$3,F$4),"") -> 8 | G34: =IF(ISNUMBER($A34),DPNexus(G$3,G$4),"") -> 1 | H34: =IF(ISNUMBER($A34),DPNexus(H$3,H$4),"") -> 8 | I34: =IF(ISNUMBER($A34),DPNexus(I$3,I$4),"") -> 6 | K34: =IF(ISNUMBER($A34),DPNexus(K$3,K$4),"") -> 1 | L34: =IF(ISNUMBER($A34),DPNexus(L$3,L$4),"") -> 5 | M34: =IF(ISNUMBER($A34),DPNexus(M$3,M$4),"") -> 0 | N34: =IF(ISNUMBER($A34),DPNexus(N$3,N$4),"") -> 8 | O34: =IF(ISNUMBER($A34),DPNexus(O$3,O$4),"") -> 2 | R34: A | S34: B | T34: C | AB34: A | AC34: B | AD34: C | AE34: D | AM34: A | AN34: B | AO34: C | AP34: D | AQ34: E
A35: 31 | B35: =IF(ISNUMBER($A35),DPNexus(B$3,B$4),"") -> 7 | C35: =IF(ISNUMBER($A35),DPNexus(C$3,C$4),"") -> 2 | D35: =IF(ISNUMBER($A35),DPNexus(D$3,D$4),"") -> 1 | F35: =IF(ISNUMBER($A35),DPNexus(F$3,F$4),"") -> 5 | G35: =IF(ISNUMBER($A35),DPNexus(G$3,G$4),"") -> 3 | H35: =IF(ISNUMBER($A35),DPNexus(H$3,H$4),"") -> 0 | I35: =IF(ISNUMBER($A35),DPNexus(I$3,I$4),"") -> 8 | K35: =IF(ISNUMBER($A35),DPNexus(K$3,K$4),"") -> 8 | L35: =IF(ISNUMBER($A35),DPNexus(L$3,L$4),"") -> 6 | M35: =IF(ISNUMBER($A35),DPNexus(M$3,M$4),"") -> 0 | N35: =IF(ISNUMBER($A35),DPNexus(N$3,N$4),"") -> 3 | O35: =IF(ISNUMBER($A35),DPNexus(O$3,O$4),"") -> 5 | Q35: 0 | R35: =1-R23 -> 0.9947643979 | S35: =1-S23 -> 0.9887640449 | T35: 0.2142857143 | AA35: 0 | AB35: =1-AB23 -> 0.9894736842 | AC35: =1-AC23 -> 0.01333333333 | AD35: 0.5714285714 | AE35: =1-AE23 -> 0.5348837209 | AL35: 0 | AM35: =1-AM23 -> 0.004504504505 | AN35: =1-AN23 -> 0.5254237288 | AO35: 0.004716981132 | AP35: 0.9957805907 | AQ35: =1-AQ23 -> 0.995951417
A36: 32 | B36: =IF(ISNUMBER($A36),DPNexus(B$3,B$4),"") -> 8 | C36: =IF(ISNUMBER($A36),DPNexus(C$3,C$4),"") -> 2 | D36: =IF(ISNUMBER($A36),DPNexus(D$3,D$4),"") -> 0 | F36: =IF(ISNUMBER($A36),DPNexus(F$3,F$4),"") -> 4 | G36: =IF(ISNUMBER($A36),DPNexus(G$3,G$4),"") -> 2 | H36: =IF(ISNUMBER($A36),DPNexus(H$3,H$4),"") -> 7 | I36: =IF(ISNUMBER($A36),DPNexus(I$3,I$4),"") -> 0 | K36: =IF(ISNUMBER($A36),DPNexus(K$3,K$4),"") -> 5 | L36: =IF(ISNUMBER($A36),DPNexus(L$3,L$4),"") -> 4 | M36: =IF(ISNUMBER($A36),DPNexus(M$3,M$4),"") -> 4 | N36: =IF(ISNUMBER($A36),DPNexus(N$3,N$4),"") -> 8 | O36: =IF(ISNUMBER($A36),DPNexus(O$3,O$4),"") -> 7 | Q36: 1 | R36: =1-R24 -> 0.8691099476 | S36: 0.3483146067 | T36: 0.1031746032 | AA36: 1 | AB36: =1-AB24 -> 0.6315789474 | AC36: 0.004444444444 | AD36: 0.3406593407 | AE36: =1-AE24 -> 0.5348837209 | AL36: 1 | AM36: =1-AM24 -> 0.07657657658 | AN36: 0.3728813559 | AO36: 0.1886792453 | AP36: 0.9493670886 | AQ36: =1-AQ24 -> 0.9230769231
A37: 33 | B37: =IF(ISNUMBER($A37),DPNexus(B$3,B$4),"") -> 9 | C37: =IF(ISNUMBER($A37),DPNexus(C$3,C$4),"") -> 7 | D37: =IF(ISNUMBER($A37),DPNexus(D$3,D$4),"") -> 4 | F37: =IF(ISNUMBER($A37),DPNexus(F$3,F$4),"") -> 9 | G37: =IF(ISNUMBER($A37),DPNexus(G$3,G$4),"") -> 7 | H37: =IF(ISNUMBER($A37),DPNexus(H$3,H$4),"") -> 3 | I37: =IF(ISNUMBER($A37),DPNexus(I$3,I$4),"") -> 0 | K37: =IF(ISNUMBER($A37),DPNexus(K$3,K$4),"") -> 3 | L37: =IF(ISNUMBER($A37),DPNexus(L$3,L$4),"") -> 4 | M37: =IF(ISNUMBER($A37),DPNexus(M$3,M$4),"") -> 1 | N37: =IF(ISNUMBER($A37),DPNexus(N$3,N$4),"") -> 2 | O37: =IF(ISNUMBER($A37),DPNexus(O$3,O$4),"") -> 7 | Q37: 2 | R37: =1-R25 -> 0.9214659686 | S37: 0.08988764045 | T37: 0.1031746032 | AA37: 2 | AB37: =1-AB25 -> 0.3789473684 | AC37: 0.01333333333 | AD37: 0.4945054945 | AE37: =1-AE25 -> 0.01162790698 | AL37: 2 | AM37: =1-AM25 -> 0.02702702703 | AN37: 0.186440678 | AO37: 0.1273584906 | AP37: 0.8143459916 | AQ37: =1-AQ25 -> 0.8178137652
A38: 34 | B38: =IF(ISNUMBER($A38),DPNexus(B$3,B$4),"") -> 6 | C38: =IF(ISNUMBER($A38),DPNexus(C$3,C$4),"") -> 6 | D38: =IF(ISNUMBER($A38),DPNexus(D$3,D$4),"") -> 3 | F38: =IF(ISNUMBER($A38),DPNexus(F$3,F$4),"") -> 1 | G38: =IF(ISNUMBER($A38),DPNexus(G$3,G$4),"") -> 3 | H38: =IF(ISNUMBER($A38),DPNexus(H$3,H$4),"") -> 8 | I38: =IF(ISNUMBER($A38),DPNexus(I$3,I$4),"") -> 2 | K38: =IF(ISNUMBER($A38),DPNexus(K$3,K$4),"") -> 2 | L38: =IF(ISNUMBER($A38),DPNexus(L$3,L$4),"") -> 8 | M38: =IF(ISNUMBER($A38),DPNexus(M$3,M$4),"") -> 2 | N38: =IF(ISNUMBER($A38),DPNexus(N$3,N$4),"") -> 8 | O38: =IF(ISNUMBER($A38),DPNexus(O$3,O$4),"") -> 9 | Q38: 3 | R38: =1-R26 -> 0.6963350785 | S38: 0.2696629213 | T38: 0.1825396825 | AA38: 3 | AB38: =1-AB26 -> 0.4631578947 | AC38: 0.3733333333 | AD38: 0.1428571429 | AE38: =1-AE26 -> 0.3255813953 | AL38: 3 | AM38: =1-AM26 -> 0.3603603604 | AN38: 0.1525423729 | AO38: 0.2358490566 | AP38: 0.6751054852 | AQ38: =1-AQ26 -> 0.7408906883
A39: 35 | B39: =IF(ISNUMBER($A39),DPNexus(B$3,B$4),"") -> 9 | C39: =IF(ISNUMBER($A39),DPNexus(C$3,C$4),"") -> 9 | D39: =IF(ISNUMBER($A39),DPNexus(D$3,D$4),"") -> 9 | F39: =IF(ISNUMBER($A39),DPNexus(F$3,F$4),"") -> 7 | G39: =IF(ISNUMBER($A39),DPNexus(G$3,G$4),"") -> 1 | H39: =IF(ISNUMBER($A39),DPNexus(H$3,H$4),"") -> 3 | I39: =IF(ISNUMBER($A39),DPNexus(I$3,I$4),"") -> 1 | K39: =IF(ISNUMBER($A39),DPNexus(K$3,K$4),"") -> 1 | L39: =IF(ISNUMBER($A39),DPNexus(L$3,L$4),"") -> 2 | M39: =IF(ISNUMBER($A39),DPNexus(M$3,M$4),"") -> 9 | N39: =IF(ISNUMBER($A39),DPNexus(N$3,N$4),"") -> 0 | O39: =IF(ISNUMBER($A39),DPNexus(O$3,O$4),"") -> 2 | Q39: 4 | R39: =1-R27 -> 0.5654450262 | S39: 0.01123595506 | T39: 0.007936507937 | AA39: 4 | AB39: =1-AB27 -> 0.1473684211 | AC39: 0.48 | AD39: 0.01098901099 | AE39: =1-AE27 -> 0.2906976744 | AL39: 4 | AM39: =1-AM27 -> 0.4504504505 | AN39: 0.2372881356 | AO39: 0.2594339623 | AP39: 0.5738396624 | AQ39: =1-AQ27 -> 0.6153846154
A40: 36 | B40: =IF(ISNUMBER($A40),DPNexus(B$3,B$4),"") -> 9 | C40: =IF(ISNUMBER($A40),DPNexus(C$3,C$4),"") -> 2 | D40: =IF(ISNUMBER($A40),DPNexus(D$3,D$4),"") -> 7 | F40: =IF(ISNUMBER($A40),DPNexus(F$3,F$4),"") -> 8 | G40: =IF(ISNUMBER($A40),DPNexus(G$3,G$4),"") -> 0 | H40: =IF(ISNUMBER($A40),DPNexus(H$3,H$4),"") -> 1 | I40: =IF(ISNUMBER($A40),DPNexus(I$3,I$4),"") -> 3 | K40: =IF(ISNUMBER($A40),DPNexus(K$3,K$4),"") -> 6 | L40: =IF(ISNUMBER($A40),DPNexus(L$3,L$4),"") -> 1 | M40: =IF(ISNUMBER($A40),DPNexus(M$3,M$4),"") -> 1 | N40: =IF(ISNUMBER($A40),DPNexus(N$3,N$4),"") -> 8 | O40: =IF(ISNUMBER($A40),DPNexus(O$3,O$4),"") -> 3 | Q40: 5 | R40: =1-R28 -> 0.335078534 | S40: 0.3033707865 | T40: 0.253968254 | AA40: 5 | AB40: =1-AB28 -> 0.2842105263 | AC40: 0.5288888889 | AD40: 0.2747252747 | AE40: =1-AE28 -> 0.4069767442 | AL40: 5 | AM40: =1-AM28 -> 0.5405405405 | AN40: 0.01694915254 | AO40: 0.4764150943 | AP40: 0.4978902954 | AQ40: =1-AQ28 -> 0.5141700405
A41: 37 | B41: =IF(ISNUMBER($A41),DPNexus(B$3,B$4),"") -> 8 | C41: =IF(ISNUMBER($A41),DPNexus(C$3,C$4),"") -> 5 | D41: =IF(ISNUMBER($A41),DPNexus(D$3,D$4),"") -> 4 | F41: =IF(ISNUMBER($A41),DPNexus(F$3,F$4),"") -> 5 | G41: =IF(ISNUMBER($A41),DPNexus(G$3,G$4),"") -> 0 | H41: =IF(ISNUMBER($A41),DPNexus(H$3,H$4),"") -> 8 | I41: =IF(ISNUMBER($A41),DPNexus(I$3,I$4),"") -> 2 | K41: =IF(ISNUMBER($A41),DPNexus(K$3,K$4),"") -> 0 | L41: =IF(ISNUMBER($A41),DPNexus(L$3,L$4),"") -> 3 | M41: =IF(ISNUMBER($A41),DPNexus(M$3,M$4),"") -> 0 | N41: =IF(ISNUMBER($A41),DPNexus(N$3,N$4),"") -> 5 | O41: =IF(ISNUMBER($A41),DPNexus(O$3,O$4),"") -> 8 | Q41: 6 | R41: =1-R29 -> 0.277486911 | S41: 0.1797752809 | T41: 0.5476190476 | AA41: 6 | AB41: =1-AB29 -> 0.2947368421 | AC41: 0.72 | AD41: 0.1538461538 | AE41: =1-AE29 -> 0.3255813953 | AL41: 6 | AM41: =1-AM29 -> 0.7477477477 | AN41: 0.2372881356 | AO41: 0.7169811321 | AP41: 0.3670886076 | AQ41: =1-AQ29 -> 0.3522267206
A42: 38 | B42: =IF(ISNUMBER($A42),DPNexus(B$3,B$4),"") -> 6 | C42: =IF(ISNUMBER($A42),DPNexus(C$3,C$4),"") -> 0 | D42: =IF(ISNUMBER($A42),DPNexus(D$3,D$4),"") -> 3 | F42: =IF(ISNUMBER($A42),DPNexus(F$3,F$4),"") -> 4 | G42: =IF(ISNUMBER($A42),DPNexus(G$3,G$4),"") -> 4 | H42: =IF(ISNUMBER($A42),DPNexus(H$3,H$4),"") -> 5 | I42: =IF(ISNUMBER($A42),DPNexus(I$3,I$4),"") -> 3 | K42: =IF(ISNUMBER($A42),DPNexus(K$3,K$4),"") -> 6 | L42: =IF(ISNUMBER($A42),DPNexus(L$3,L$4),"") -> 4 | M42: =IF(ISNUMBER($A42),DPNexus(M$3,M$4),"") -> 9 | N42: =IF(ISNUMBER($A42),DPNexus(N$3,N$4),"") -> 2 | O42: =IF(ISNUMBER($A42),DPNexus(O$3,O$4),"") -> 6 | Q42: 7 | R42: =1-R30 -> 0.005235602094 | S42: 0.3820224719 | T42: 0.8650793651 | AA42: 7 | AB42: =1-AB30 -> 0.2526315789 | AC42: 0.7866666667 | AD42: 0.1428571429 | AE42: =1-AE30 -> 0.5813953488 | AL42: 7 | AM42: =1-AM30 -> 0.8333333333 | AN42: 0.5254237288 | AO42: 0.7924528302 | AP42: 0.1223628692 | AQ42: =1-AQ30 -> 0.2024291498
A43: 39 | B43: =IF(ISNUMBER($A43),DPNexus(B$3,B$4),"") -> 5 | C43: =IF(ISNUMBER($A43),DPNexus(C$3,C$4),"") -> 7 | D43: =IF(ISNUMBER($A43),DPNexus(D$3,D$4),"") -> 0 | F43: =IF(ISNUMBER($A43),DPNexus(F$3,F$4),"") -> 3 | G43: =IF(ISNUMBER($A43),DPNexus(G$3,G$4),"") -> 1 | H43: =IF(ISNUMBER($A43),DPNexus(H$3,H$4),"") -> 6 | I43: =IF(ISNUMBER($A43),DPNexus(I$3,I$4),"") -> 7 | K43: =IF(ISNUMBER($A43),DPNexus(K$3,K$4),"") -> 6 | L43: =IF(ISNUMBER($A43),DPNexus(L$3,L$4),"") -> 1 | M43: =IF(ISNUMBER($A43),DPNexus(M$3,M$4),"") -> 0 | N43: =IF(ISNUMBER($A43),DPNexus(N$3,N$4),"") -> 5 | O43: =IF(ISNUMBER($A43),DPNexus(O$3,O$4),"") -> 7 | Q43: 8 | R43: =1-R31 -> 0.04188481675 | S43: 0.2247191011 | T43: 0.8571428571 | AA43: 8 | AB43: =1-AB31 -> 0.01052631579 | AC43: 0.9288888889 | AD43: 0.7252747253 | AE43: =1-AE31 -> 0.7674418605 | AL43: 8 | AM43: =1-AM31 -> 0.9189189189 | AN43: 0.8305084746 | AO43: 0.8726415094 | AP43: 0.004219409283 | AQ43: =1-AQ31 -> 0.004048582996
A44: 40 | B44: =IF(ISNUMBER($A44),DPNexus(B$3,B$4),"") -> 8 | C44: =IF(ISNUMBER($A44),DPNexus(C$3,C$4),"") -> 7 | D44: =IF(ISNUMBER($A44),DPNexus(D$3,D$4),"") -> 5 | F44: =IF(ISNUMBER($A44),DPNexus(F$3,F$4),"") -> 4 | G44: =IF(ISNUMBER($A44),DPNexus(G$3,G$4),"") -> 9 | H44: =IF(ISNUMBER($A44),DPNexus(H$3,H$4),"") -> 0 | I44: =IF(ISNUMBER($A44),DPNexus(I$3,I$4),"") -> 4 | K44: =IF(ISNUMBER($A44),DPNexus(K$3,K$4),"") -> 7 | L44: =IF(ISNUMBER($A44),DPNexus(L$3,L$4),"") -> 8 | M44: =IF(ISNUMBER($A44),DPNexus(M$3,M$4),"") -> 4 | N44: =IF(ISNUMBER($A44),DPNexus(N$3,N$4),"") -> 7 | O44: =IF(ISNUMBER($A44),DPNexus(O$3,O$4),"") -> 7 | Q44: 9 | R44: =1-R32 -> 0.109947644 | S44: 0.797752809 | T44: 0.9920634921 | AA44: 9 | AB44: =1-AB32 -> 0.1263157895 | AC44: 0.9955555556 | AD44: 0.989010989 | AE44: =1-AE32 -> 0.988372093 | AL44: 9 | AM44: =1-AM32 -> 0.9954954955 | AN44: 0.9830508475 | AO44: 0.9952830189 | AP44: 0.1898734177 | AQ44: =1-AQ32 -> 0.1781376518
A45: 41 | B45: =IF(ISNUMBER($A45),DPNexus(B$3,B$4),"") -> 8 | C45: =IF(ISNUMBER($A45),DPNexus(C$3,C$4),"") -> 0 | D45: =IF(ISNUMBER($A45),DPNexus(D$3,D$4),"") -> 5 | F45: =IF(ISNUMBER($A45),DPNexus(F$3,F$4),"") -> 2 | G45: =IF(ISNUMBER($A45),DPNexus(G$3,G$4),"") -> 4 | H45: =IF(ISNUMBER($A45),DPNexus(H$3,H$4),"") -> 7 | I45: =IF(ISNUMBER($A45),DPNexus(I$3,I$4),"") -> 4 | K45: =IF(ISNUMBER($A45),DPNexus(K$3,K$4),"") -> 8 | L45: =IF(ISNUMBER($A45),DPNexus(L$3,L$4),"") -> 3 | M45: =IF(ISNUMBER($A45),DPNexus(M$3,M$4),"") -> 1 | N45: =IF(ISNUMBER($A45),DPNexus(N$3,N$4),"") -> 6 | O45: =IF(ISNUMBER($A45),DPNexus(O$3,O$4),"") -> 9
A46: 42 | B46: =IF(ISNUMBER($A46),DPNexus(B$3,B$4),"") -> 4 | C46: =IF(ISNUMBER($A46),DPNexus(C$3,C$4),"") -> 4 | D46: =IF(ISNUMBER($A46),DPNexus(D$3,D$4),"") -> 3 | F46: =IF(ISNUMBER($A46),DPNexus(F$3,F$4),"") -> 6 | G46: =IF(ISNUMBER($A46),DPNexus(G$3,G$4),"") -> 2 | H46: =IF(ISNUMBER($A46),DPNexus(H$3,H$4),"") -> 5 | I46: =IF(ISNUMBER($A46),DPNexus(I$3,I$4),"") -> 4 | K46: =IF(ISNUMBER($A46),DPNexus(K$3,K$4),"") -> 1 | L46: =IF(ISNUMBER($A46),DPNexus(L$3,L$4),"") -> 4 | M46: =IF(ISNUMBER($A46),DPNexus(M$3,M$4),"") -> 5 | N46: =IF(ISNUMBER($A46),DPNexus(N$3,N$4),"") -> 8 | O46: =IF(ISNUMBER($A46),DPNexus(O$3,O$4),"") -> 9
A47: 43 | B47: =IF(ISNUMBER($A47),DPNexus(B$3,B$4),"") -> 1 | C47: =IF(ISNUMBER($A47),DPNexus(C$3,C$4),"") -> 1 | D47: =IF(ISNUMBER($A47),DPNexus(D$3,D$4),"") -> 2 | F47: =IF(ISNUMBER($A47),DPNexus(F$3,F$4),"") -> 4 | G47: =IF(ISNUMBER($A47),DPNexus(G$3,G$4),"") -> 8 | H47: =IF(ISNUMBER($A47),DPNexus(H$3,H$4),"") -> 4 | I47: =IF(ISNUMBER($A47),DPNexus(I$3,I$4),"") -> 6 | K47: =IF(ISNUMBER($A47),DPNexus(K$3,K$4),"") -> 0 | L47: =IF(ISNUMBER($A47),DPNexus(L$3,L$4),"") -> 3 | M47: =IF(ISNUMBER($A47),DPNexus(M$3,M$4),"") -> 4 | N47: =IF(ISNUMBER($A47),DPNexus(N$3,N$4),"") -> 3 | O47: =IF(ISNUMBER($A47),DPNexus(O$3,O$4),"") -> 9
A48: 44 | B48: =IF(ISNUMBER($A48),DPNexus(B$3,B$4),"") -> 3 | C48: =IF(ISNUMBER($A48),DPNexus(C$3,C$4),"") -> 4 | D48: =IF(ISNUMBER($A48),DPNexus(D$3,D$4),"") -> 4 | F48: =IF(ISNUMBER($A48),DPNexus(F$3,F$4),"") -> 9 | G48: =IF(ISNUMBER($A48),DPNexus(G$3,G$4),"") -> 4 | H48: =IF(ISNUMBER($A48),DPNexus(H$3,H$4),"") -> 0 | I48: =IF(ISNUMBER($A48),DPNexus(I$3,I$4),"") -> 1 | K48: =IF(ISNUMBER($A48),DPNexus(K$3,K$4),"") -> 4 | L48: =IF(ISNUMBER($A48),DPNexus(L$3,L$4),"") -> 1 | M48: =IF(ISNUMBER($A48),DPNexus(M$3,M$4),"") -> 5 | N48: =IF(ISNUMBER($A48),DPNexus(N$3,N$4),"") -> 6 | O48: =IF(ISNUMBER($A48),DPNexus(O$3,O$4),"") -> 6
A49: 45 | B49: =IF(ISNUMBER($A49),DPNexus(B$3,B$4),"") -> 5 | C49: =IF(ISNUMBER($A49),DPNexus(C$3,C$4),"") -> 8 | D49: =IF(ISNUMBER($A49),DPNexus(D$3,D$4),"") -> 6 | F49: =IF(ISNUMBER($A49),DPNexus(F$3,F$4),"") -> 1 | G49: =IF(ISNUMBER($A49),DPNexus(G$3,G$4),"") -> 4 | H49: =IF(ISNUMBER($A49),DPNexus(H$3,H$4),"") -> 9 | I49: =IF(ISNUMBER($A49),DPNexus(I$3,I$4),"") -> 7 | K49: =IF(ISNUMBER($A49),DPNexus(K$3,K$4),"") -> 9 | L49: =IF(ISNUMBER($A49),DPNexus(L$3,L$4),"") -> 7 | M49: =IF(ISNUMBER($A49),DPNexus(M$3,M$4),"") -> 6 | N49: =IF(ISNUMBER($A49),DPNexus(N$3,N$4),"") -> 7 | O49: =IF(ISNUMBER($A49),DPNexus(O$3,O$4),"") -> 6
A50: 46 | B50: =IF(ISNUMBER($A50),DPNexus(B$3,B$4),"") -> 6 | C50: =IF(ISNUMBER($A50),DPNexus(C$3,C$4),"") -> 3 | D50: =IF(ISNUMBER($A50),DPNexus(D$3,D$4),"") -> 8 | F50: =IF(ISNUMBER($A50),DPNexus(F$3,F$4),"") -> 4 | G50: =IF(ISNUMBER($A50),DPNexus(G$3,G$4),"") -> 3 | H50: =IF(ISNUMBER($A50),DPNexus(H$3,H$4),"") -> 3 | I50: =IF(ISNUMBER($A50),DPNexus(I$3,I$4),"") -> 6 | K50: =IF(ISNUMBER($A50),DPNexus(K$3,K$4),"") -> 0 | L50: =IF(ISNUMBER($A50),DPNexus(L$3,L$4),"") -> 4 | M50: =IF(ISNUMBER($A50),DPNexus(M$3,M$4),"") -> 0 | N50: =IF(ISNUMBER($A50),DPNexus(N$3,N$4),"") -> 6 | O50: =IF(ISNUMBER($A50),DPNexus(O$3,O$4),"") -> 6
A51: 47 | B51: =IF(ISNUMBER($A51),DPNexus(B$3,B$4),"") -> 8 | C51: =IF(ISNUMBER($A51),DPNexus(C$3,C$4),"") -> 2 | D51: =IF(ISNUMBER($A51),DPNexus(D$3,D$4),"") -> 7 | F51: =IF(ISNUMBER($A51),DPNexus(F$3,F$4),"") -> 3 | G51: =IF(ISNUMBER($A51),DPNexus(G$3,G$4),"") -> 0 | H51: =IF(ISNUMBER($A51),DPNexus(H$3,H$4),"") -> 3 | I51: =IF(ISNUMBER($A51),DPNexus(I$3,I$4),"") -> 4 | K51: =IF(ISNUMBER($A51),DPNexus(K$3,K$4),"") -> 2 | L51: =IF(ISNUMBER($A51),DPNexus(L$3,L$4),"") -> 1 | M51: =IF(ISNUMBER($A51),DPNexus(M$3,M$4),"") -> 2 | N51: =IF(ISNUMBER($A51),DPNexus(N$3,N$4),"") -> 6 | O51: =IF(ISNUMBER($A51),DPNexus(O$3,O$4),"") -> 4
A52: 48 | B52: =IF(ISNUMBER($A52),DPNexus(B$3,B$4),"") -> 6 | C52: =IF(ISNUMBER($A52),DPNexus(C$3,C$4),"") -> 1 | D52: =IF(ISNUMBER($A52),DPNexus(D$3,D$4),"") -> 9 | F52: =IF(ISNUMBER($A52),DPNexus(F$3,F$4),"") -> 1 | G52: =IF(ISNUMBER($A52),DPNexus(G$3,G$4),"") -> 0 | H52: =IF(ISNUMBER($A52),DPNexus(H$3,H$4),"") -> 3 | I52: =IF(ISNUMBER($A52),DPNexus(I$3,I$4),"") -> 5 | K52: =IF(ISNUMBER($A52),DPNexus(K$3,K$4),"") -> 3 | L52: =IF(ISNUMBER($A52),DPNexus(L$3,L$4),"") -> 2 | M52: =IF(ISNUMBER($A52),DPNexus(M$3,M$4),"") -> 3 | N52: =IF(ISNUMBER($A52),DPNexus(N$3,N$4),"") -> 7 | O52: =IF(ISNUMBER($A52),DPNexus(O$3,O$4),"") -> 7
A53: 49 | B53: =IF(ISNUMBER($A53),DPNexus(B$3,B$4),"") -> 9 | C53: =IF(ISNUMBER($A53),DPNexus(C$3,C$4),"") -> 9 | D53: =IF(ISNUMBER($A53),DPNexus(D$3,D$4),"") -> 2 | F53: =IF(ISNUMBER($A53),DPNexus(F$3,F$4),"") -> 5 | G53: =IF(ISNUMBER($A53),DPNexus(G$3,G$4),"") -> 4 | H53: =IF(ISNUMBER($A53),DPNexus(H$3,H$4),"") -> 2 | I53: =IF(ISNUMBER($A53),DPNexus(I$3,I$4),"") -> 8 | K53: =IF(ISNUMBER($A53),DPNexus(K$3,K$4),"") -> 0 | L53: =IF(ISNUMBER($A53),DPNexus(L$3,L$4),"") -> 9 | M53: =IF(ISNUMBER($A53),DPNexus(M$3,M$4),"") -> 0 | N53: =IF(ISNUMBER($A53),DPNexus(N$3,N$4),"") -> 0 | O53: =IF(ISNUMBER($A53),DPNexus(O$3,O$4),"") -> 7
A54: 50 | B54: =IF(ISNUMBER($A54),DPNexus(B$3,B$4),"") -> 7 | C54: =IF(ISNUMBER($A54),DPNexus(C$3,C$4),"") -> 4 | D54: =IF(ISNUMBER($A54),DPNexus(D$3,D$4),"") -> 5 | F54: =IF(ISNUMBER($A54),DPNexus(F$3,F$4),"") -> 4 | G54: =IF(ISNUMBER($A54),DPNexus(G$3,G$4),"") -> 2 | H54: =IF(ISNUMBER($A54),DPNexus(H$3,H$4),"") -> 2 | I54: =IF(ISNUMBER($A54),DPNexus(I$3,I$4),"") -> 7 | K54: =IF(ISNUMBER($A54),DPNexus(K$3,K$4),"") -> 7 | L54: =IF(ISNUMBER($A54),DPNexus(L$3,L$4),"") -> 2 | M54: =IF(ISNUMBER($A54),DPNexus(M$3,M$4),"") -> 1 | N54: =IF(ISNUMBER($A54),DPNexus(N$3,N$4),"") -> 9 | O54: =IF(ISNUMBER($A54),DPNexus(O$3,O$4),"") -> 9
A55: 51 | B55: =IF(ISNUMBER($A55),DPNexus(B$3,B$4),"") -> 0 | C55: =IF(ISNUMBER($A55),DPNexus(C$3,C$4),"") -> 4 | D55: =IF(ISNUMBER($A55),DPNexus(D$3,D$4),"") -> 3 | F55: =IF(ISNUMBER($A55),DPNexus(F$3,F$4),"") -> 6 | G55: =IF(ISNUMBER($A55),DPNexus(G$3,G$4),"") -> 1 | H55: =IF(ISNUMBER($A55),DPNexus(H$3,H$4),"") -> 2 | I55: =IF(ISNUMBER($A55),DPNexus(I$3,I$4),"") -> 7 | K55: =IF(ISNUMBER($A55),DPNexus(K$3,K$4),"") -> 8 | L55: =IF(ISNUMBER($A55),DPNexus(L$3,L$4),"") -> 8 | M55: =IF(ISNUMBER($A55),DPNexus(M$3,M$4),"") -> 5 | N55: =IF(ISNUMBER($A55),DPNexus(N$3,N$4),"") -> 6 | O55: =IF(ISNUMBER($A55),DPNexus(O$3,O$4),"") -> 5
A56: 52 | B56: =IF(ISNUMBER($A56),DPNexus(B$3,B$4),"") -> 5 | C56: =IF(ISNUMBER($A56),DPNexus(C$3,C$4),"") -> 4 | D56: =IF(ISNUMBER($A56),DPNexus(D$3,D$4),"") -> 3 | F56: =IF(ISNUMBER($A56),DPNexus(F$3,F$4),"") -> 5 | G56: =IF(ISNUMBER($A56),DPNexus(G$3,G$4),"") -> 1 | H56: =IF(ISNUMBER($A56),DPNexus(H$3,H$4),"") -> 1 | I56: =IF(ISNUMBER($A56),DPNexus(I$3,I$4),"") -> 3 | K56: =IF(ISNUMBER($A56),DPNexus(K$3,K$4),"") -> 7 | L56: =IF(ISNUMBER($A56),DPNexus(L$3,L$4),"") -> 3 | M56: =IF(ISNUMBER($A56),DPNexus(M$3,M$4),"") -> 6 | N56: =IF(ISNUMBER($A56),DPNexus(N$3,N$4),"") -> 9 | O56: =IF(ISNUMBER($A56),DPNexus(O$3,O$4),"") -> 7
A57: 53 | B57: =IF(ISNUMBER($A57),DPNexus(B$3,B$4),"") -> 5 | C57: =IF(ISNUMBER($A57),DPNexus(C$3,C$4),"") -> 8 | D57: =IF(ISNUMBER($A57),DPNexus(D$3,D$4),"") -> 0 | F57: =IF(ISNUMBER($A57),DPNexus(F$3,F$4),"") -> 5 | G57: =IF(ISNUMBER($A57),DPNexus(G$3,G$4),"") -> 0 | H57: =IF(ISNUMBER($A57),DPNexus(H$3,H$4),"") -> 5 | I57: =IF(ISNUMBER($A57),DPNexus(I$3,I$4),"") -> 2 | K57: =IF(ISNUMBER($A57),DPNexus(K$3,K$4),"") -> 3 | L57: =IF(ISNUMBER($A57),DPNexus(L$3,L$4),"") -> 9 | M57: =IF(ISNUMBER($A57),DPNexus(M$3,M$4),"") -> 3 | N57: =IF(ISNUMBER($A57),DPNexus(N$3,N$4),"") -> 6 | O57: =IF(ISNUMBER($A57),DPNexus(O$3,O$4),"") -> 8
A58: 54 | B58: =IF(ISNUMBER($A58),DPNexus(B$3,B$4),"") -> 9 | C58: =IF(ISNUMBER($A58),DPNexus(C$3,C$4),"") -> 8 | D58: =IF(ISNUMBER($A58),DPNexus(D$3,D$4),"") -> 0 | F58: =IF(ISNUMBER($A58),DPNexus(F$3,F$4),"") -> 1 | G58: =IF(ISNUMBER($A58),DPNexus(G$3,G$4),"") -> 1 | H58: =IF(ISNUMBER($A58),DPNexus(H$3,H$4),"") -> 0 | I58: =IF(ISNUMBER($A58),DPNexus(I$3,I$4),"") -> 6 | K58: =IF(ISNUMBER($A58),DPNexus(K$3,K$4),"") -> 0 | L58: =IF(ISNUMBER($A58),DPNexus(L$3,L$4),"") -> 2 | M58: =IF(ISNUMBER($A58),DPNexus(M$3,M$4),"") -> 2 | N58: =IF(ISNUMBER($A58),DPNexus(N$3,N$4),"") -> 2 | O58: =IF(ISNUMBER($A58),DPNexus(O$3,O$4),"") -> 7
A59: 55 | B59: =IF(ISNUMBER($A59),DPNexus(B$3,B$4),"") -> 2 | C59: =IF(ISNUMBER($A59),DPNexus(C$3,C$4),"") -> 3 | D59: =IF(ISNUMBER($A59),DPNexus(D$3,D$4),"") -> 1 | F59: =IF(ISNUMBER($A59),DPNexus(F$3,F$4),"") -> 3 | G59: =IF(ISNUMBER($A59),DPNexus(G$3,G$4),"") -> 7 | H59: =IF(ISNUMBER($A59),DPNexus(H$3,H$4),"") -> 5 | I59: =IF(ISNUMBER($A59),DPNexus(I$3,I$4),"") -> 9 | K59: =IF(ISNUMBER($A59),DPNexus(K$3,K$4),"") -> 6 | L59: =IF(ISNUMBER($A59),DPNexus(L$3,L$4),"") -> 5 | M59: =IF(ISNUMBER($A59),DPNexus(M$3,M$4),"") -> 1 | N59: =IF(ISNUMBER($A59),DPNexus(N$3,N$4),"") -> 9 | O59: =IF(ISNUMBER($A59),DPNexus(O$3,O$4),"") -> 9
A60: 56 | B60: =IF(ISNUMBER($A60),DPNexus(B$3,B$4),"") -> 3 | C60: =IF(ISNUMBER($A60),DPNexus(C$3,C$4),"") -> 3 | D60: =IF(ISNUMBER($A60),DPNexus(D$3,D$4),"") -> 5 | F60: =IF(ISNUMBER($A60),DPNexus(F$3,F$4),"") -> 0 | G60: =IF(ISNUMBER($A60),DPNexus(G$3,G$4),"") -> 2 | H60: =IF(ISNUMBER($A60),DPNexus(H$3,H$4),"") -> 5 | I60: =IF(ISNUMBER($A60),DPNexus(I$3,I$4),"") -> 6 | K60: =IF(ISNUMBER($A60),DPNexus(K$3,K$4),"") -> 0 | L60: =IF(ISNUMBER($A60),DPNexus(L$3,L$4),"") -> 4 | M60: =IF(ISNUMBER($A60),DPNexus(M$3,M$4),"") -> 1 | N60: =IF(ISNUMBER($A60),DPNexus(N$3,N$4),"") -> 7 | O60: =IF(ISNUMBER($A60),DPNexus(O$3,O$4),"") -> 2
A61: 57 | B61: =IF(ISNUMBER($A61),DPNexus(B$3,B$4),"") -> 0 | C61: =IF(ISNUMBER($A61),DPNexus(C$3,C$4),"") -> 1 | D61: =IF(ISNUMBER($A61),DPNexus(D$3,D$4),"") -> 3 | F61: =IF(ISNUMBER($A61),DPNexus(F$3,F$4),"") -> 2 | G61: =IF(ISNUMBER($A61),DPNexus(G$3,G$4),"") -> 4 | H61: =IF(ISNUMBER($A61),DPNexus(H$3,H$4),"") -> 4 | I61: =IF(ISNUMBER($A61),DPNexus(I$3,I$4),"") -> 1 | K61: =IF(ISNUMBER($A61),DPNexus(K$3,K$4),"") -> 7 | L61: =IF(ISNUMBER($A61),DPNexus(L$3,L$4),"") -> 4 | M61: =IF(ISNUMBER($A61),DPNexus(M$3,M$4),"") -> 7 | N61: =IF(ISNUMBER($A61),DPNexus(N$3,N$4),"") -> 3 | O61: =IF(ISNUMBER($A61),DPNexus(O$3,O$4),"") -> 9
A62: 58 | B62: =IF(ISNUMBER($A62),DPNexus(B$3,B$4),"") -> 3 | C62: =IF(ISNUMBER($A62),DPNexus(C$3,C$4),"") -> 6 | D62: =IF(ISNUMBER($A62),DPNexus(D$3,D$4),"") -> 6 | F62: =IF(ISNUMBER($A62),DPNexus(F$3,F$4),"") -> 1 | G62: =IF(ISNUMBER($A62),DPNexus(G$3,G$4),"") -> 3 | H62: =IF(ISNUMBER($A62),DPNexus(H$3,H$4),"") -> 4 | I62: =IF(ISNUMBER($A62),DPNexus(I$3,I$4),"") -> 2 | K62: =IF(ISNUMBER($A62),DPNexus(K$3,K$4),"") -> 0 | L62: =IF(ISNUMBER($A62),DPNexus(L$3,L$4),"") -> 5 | M62: =IF(ISNUMBER($A62),DPNexus(M$3,M$4),"") -> 4 | N62: =IF(ISNUMBER($A62),DPNexus(N$3,N$4),"") -> 9 | O62: =IF(ISNUMBER($A62),DPNexus(O$3,O$4),"") -> 5
A63: 59 | B63: =IF(ISNUMBER($A63),DPNexus(B$3,B$4),"") -> 4 | C63: =IF(ISNUMBER($A63),DPNexus(C$3,C$4),"") -> 1 | D63: =IF(ISNUMBER($A63),DPNexus(D$3,D$4),"") -> 4 | F63: =IF(ISNUMBER($A63),DPNexus(F$3,F$4),"") -> 2 | G63: =IF(ISNUMBER($A63),DPNexus(G$3,G$4),"") -> 0 | H63: =IF(ISNUMBER($A63),DPNexus(H$3,H$4),"") -> 8 | I63: =IF(ISNUMBER($A63),DPNexus(I$3,I$4),"") -> 0 | K63: =IF(ISNUMBER($A63),DPNexus(K$3,K$4),"") -> 3 | L63: =IF(ISNUMBER($A63),DPNexus(L$3,L$4),"") -> 2 | M63: =IF(ISNUMBER($A63),DPNexus(M$3,M$4),"") -> 3 | N63: =IF(ISNUMBER($A63),DPNexus(N$3,N$4),"") -> 3 | O63: =IF(ISNUMBER($A63),DPNexus(O$3,O$4),"") -> 8
A64: 60 | B64: =IF(ISNUMBER($A64),DPNexus(B$3,B$4),"") -> 2 | C64: =IF(ISNUMBER($A64),DPNexus(C$3,C$4),"") -> 9 | D64: =IF(ISNUMBER($A64),DPNexus(D$3,D$4),"") -> 4 | F64: =IF(ISNUMBER($A64),DPNexus(F$3,F$4),"") -> 5 | G64: =IF(ISNUMBER($A64),DPNexus(G$3,G$4),"") -> 4 | H64: =IF(ISNUMBER($A64),DPNexus(H$3,H$4),"") -> 1 | I64: =IF(ISNUMBER($A64),DPNexus(I$3,I$4),"") -> 7 | K64: =IF(ISNUMBER($A64),DPNexus(K$3,K$4),"") -> 9 | L64: =IF(ISNUMBER($A64),DPNexus(L$3,L$4),"") -> 7 | M64: =IF(ISNUMBER($A64),DPNexus(M$3,M$4),"") -> 8 | N64: =IF(ISNUMBER($A64),DPNexus(N$3,N$4),"") -> 8 | O64: =IF(ISNUMBER($A64),DPNexus(O$3,O$4),"") -> 8
A65: 61 | B65: =IF(ISNUMBER($A65),DPNexus(B$3,B$4),"") -> 9 | C65: =IF(ISNUMBER($A65),DPNexus(C$3,C$4),"") -> 7 | D65: =IF(ISNUMBER($A65),DPNexus(D$3,D$4),"") -> 4 | F65: =IF(ISNUMBER($A65),DPNexus(F$3,F$4),"") -> 8 | G65: =IF(ISNUMBER($A65),DPNexus(G$3,G$4),"") -> 0 | H65: =IF(ISNUMBER($A65),DPNexus(H$3,H$4),"") -> 1 | I65: =IF(ISNUMBER($A65),DPNexus(I$3,I$4),"") -> 1 | K65: =IF(ISNUMBER($A65),DPNexus(K$3,K$4),"") -> 9 | L65: =IF(ISNUMBER($A65),DPNexus(L$3,L$4),"") -> 5 | M65: =IF(ISNUMBER($A65),DPNexus(M$3,M$4),"") -> 2 | N65: =IF(ISNUMBER($A65),DPNexus(N$3,N$4),"") -> 6 | O65: =IF(ISNUMBER($A65),DPNexus(O$3,O$4),"") -> 3
A66: 62 | B66: =IF(ISNUMBER($A66),DPNexus(B$3,B$4),"") -> 5 | C66: =IF(ISNUMBER($A66),DPNexus(C$3,C$4),"") -> 5 | D66: =IF(ISNUMBER($A66),DPNexus(D$3,D$4),"") -> 4 | F66: =IF(ISNUMBER($A66),DPNexus(F$3,F$4),"") -> 8 | G66: =IF(ISNUMBER($A66),DPNexus(G$3,G$4),"") -> 5 | H66: =IF(ISNUMBER($A66),DPNexus(H$3,H$4),"") -> 4 | I66: =IF(ISNUMBER($A66),DPNexus(I$3,I$4),"") -> 9 | K66: =IF(ISNUMBER($A66),DPNexus(K$3,K$4),"") -> 4 | L66: =IF(ISNUMBER($A66),DPNexus(L$3,L$4),"") -> 8 | M66: =IF(ISNUMBER($A66),DPNexus(M$3,M$4),"") -> 1 | N66: =IF(ISNUMBER($A66),DPNexus(N$3,N$4),"") -> 6 | O66: =IF(ISNUMBER($A66),DPNexus(O$3,O$4),"") -> 6
A67: 63 | B67: =IF(ISNUMBER($A67),DPNexus(B$3,B$4),"") -> 1 | C67: =IF(ISNUMBER($A67),DPNexus(C$3,C$4),"") -> 7 | D67: =IF(ISNUMBER($A67),DPNexus(D$3,D$4),"") -> 4 | F67: =IF(ISNUMBER($A67),DPNexus(F$3,F$4),"") -> 4 | G67: =IF(ISNUMBER($A67),DPNexus(G$3,G$4),"") -> 0 | H67: =IF(ISNUMBER($A67),DPNexus(H$3,H$4),"") -> 0 | I67: =IF(ISNUMBER($A67),DPNexus(I$3,I$4),"") -> 2 | K67: =IF(ISNUMBER($A67),DPNexus(K$3,K$4),"") -> 1 | L67: =IF(ISNUMBER($A67),DPNexus(L$3,L$4),"") -> 2 | M67: =IF(ISNUMBER($A67),DPNexus(M$3,M$4),"") -> 2 | N67: =IF(ISNUMBER($A67),DPNexus(N$3,N$4),"") -> 7 | O67: =IF(ISNUMBER($A67),DPNexus(O$3,O$4),"") -> 8
A68: 64 | B68: =IF(ISNUMBER($A68),DPNexus(B$3,B$4),"") -> 1 | C68: =IF(ISNUMBER($A68),DPNexus(C$3,C$4),"") -> 2 | D68: =IF(ISNUMBER($A68),DPNexus(D$3,D$4),"") -> 6 | F68: =IF(ISNUMBER($A68),DPNexus(F$3,F$4),"") -> 7 | G68: =IF(ISNUMBER($A68),DPNexus(G$3,G$4),"") -> 2 | H68: =IF(ISNUMBER($A68),DPNexus(H$3,H$4),"") -> 8 | I68: =IF(ISNUMBER($A68),DPNexus(I$3,I$4),"") -> 0 | K68: =IF(ISNUMBER($A68),DPNexus(K$3,K$4),"") -> 6 | L68: =IF(ISNUMBER($A68),DPNexus(L$3,L$4),"") -> 6 | M68: =IF(ISNUMBER($A68),DPNexus(M$3,M$4),"") -> 2 | N68: =IF(ISNUMBER($A68),DPNexus(N$3,N$4),"") -> 8 | O68: =IF(ISNUMBER($A68),DPNexus(O$3,O$4),"") -> 8
A69: 65 | B69: =IF(ISNUMBER($A69),DPNexus(B$3,B$4),"") -> 3 | C69: =IF(ISNUMBER($A69),DPNexus(C$3,C$4),"") -> 7 | D69: =IF(ISNUMBER($A69),DPNexus(D$3,D$4),"") -> 5 | F69: =IF(ISNUMBER($A69),DPNexus(F$3,F$4),"") -> 7 | G69: =IF(ISNUMBER($A69),DPNexus(G$3,G$4),"") -> 0 | H69: =IF(ISNUMBER($A69),DPNexus(H$3,H$4),"") -> 6 | I69: =IF(ISNUMBER($A69),DPNexus(I$3,I$4),"") -> 4 | K69: =IF(ISNUMBER($A69),DPNexus(K$3,K$4),"") -> 2 | L69: =IF(ISNUMBER($A69),DPNexus(L$3,L$4),"") -> 2 | M69: =IF(ISNUMBER($A69),DPNexus(M$3,M$4),"") -> 4 | N69: =IF(ISNUMBER($A69),DPNexus(N$3,N$4),"") -> 8 | O69: =IF(ISNUMBER($A69),DPNexus(O$3,O$4),"") -> 7
A70: =IF(ISNUMBER(A69),IF(A69+1<=U$4,A69+1,""),"") -> 66 | B70: =IF(ISNUMBER($A70),DPNexus(B$3,B$4),"") -> 3 | C70: =IF(ISNUMBER($A70),DPNexus(C$3,C$4),"") -> 3 | D70: =IF(ISNUMBER($A70),DPNexus(D$3,D$4),"") -> 6 | F70: =IF(ISNUMBER($A70),DPNexus(F$3,F$4),"") -> 4 | G70: =IF(ISNUMBER($A70),DPNexus(G$3,G$4),"") -> 2 | H70: =IF(ISNUMBER($A70),DPNexus(H$3,H$4),"") -> 4 | I70: =IF(ISNUMBER($A70),DPNexus(I$3,I$4),"") -> 4 | K70: =IF(ISNUMBER($A70),DPNexus(K$3,K$4),"") -> 5 | L70: =IF(ISNUMBER($A70),DPNexus(L$3,L$4),"") -> 2 | M70: =IF(ISNUMBER($A70),DPNexus(M$3,M$4),"") -> 1 | N70: =IF(ISNUMBER($A70),DPNexus(N$3,N$4),"") -> 9 | O70: =IF(ISNUMBER($A70),DPNexus(O$3,O$4),"") -> 6
A71: 67 | B71: =IF(ISNUMBER($A71),DPNexus(B$3,B$4),"") -> 6 | C71: =IF(ISNUMBER($A71),DPNexus(C$3,C$4),"") -> 3 | D71: =IF(ISNUMBER($A71),DPNexus(D$3,D$4),"") -> 4 | F71: =IF(ISNUMBER($A71),DPNexus(F$3,F$4),"") -> 9 | G71: =IF(ISNUMBER($A71),DPNexus(G$3,G$4),"") -> 1 | H71: =IF(ISNUMBER($A71),DPNexus(H$3,H$4),"") -> 1 | I71: =IF(ISNUMBER($A71),DPNexus(I$3,I$4),"") -> 1 | K71: =IF(ISNUMBER($A71),DPNexus(K$3,K$4),"") -> 1 | L71: =IF(ISNUMBER($A71),DPNexus(L$3,L$4),"") -> 4 | M71: =IF(ISNUMBER($A71),DPNexus(M$3,M$4),"") -> 1 | N71: =IF(ISNUMBER($A71),DPNexus(N$3,N$4),"") -> 3 | O71: =IF(ISNUMBER($A71),DPNexus(O$3,O$4),"") -> 4
A72: 68 | B72: =IF(ISNUMBER($A72),DPNexus(B$3,B$4),"") -> 9 | C72: =IF(ISNUMBER($A72),DPNexus(C$3,C$4),"") -> 1 | D72: =IF(ISNUMBER($A72),DPNexus(D$3,D$4),"") -> 0 | F72: =IF(ISNUMBER($A72),DPNexus(F$3,F$4),"") -> 8 | G72: =IF(ISNUMBER($A72),DPNexus(G$3,G$4),"") -> 2 | H72: =IF(ISNUMBER($A72),DPNexus(H$3,H$4),"") -> 0 | I72: =IF(ISNUMBER($A72),DPNexus(I$3,I$4),"") -> 0 | K72: =IF(ISNUMBER($A72),DPNexus(K$3,K$4),"") -> 2 | L72: =IF(ISNUMBER($A72),DPNexus(L$3,L$4),"") -> 5 | M72: =IF(ISNUMBER($A72),DPNexus(M$3,M$4),"") -> 0 | N72: =IF(ISNUMBER($A72),DPNexus(N$3,N$4),"") -> 6 | O72: =IF(ISNUMBER($A72),DPNexus(O$3,O$4),"") -> 8
A73: 69 | B73: =IF(ISNUMBER($A73),DPNexus(B$3,B$4),"") -> 9 | C73: =IF(ISNUMBER($A73),DPNexus(C$3,C$4),"") -> 4 | D73: =IF(ISNUMBER($A73),DPNexus(D$3,D$4),"") -> 1 | F73: =IF(ISNUMBER($A73),DPNexus(F$3,F$4),"") -> 1 | G73: =IF(ISNUMBER($A73),DPNexus(G$3,G$4),"") -> 0 | H73: =IF(ISNUMBER($A73),DPNexus(H$3,H$4),"") -> 6 | I73: =IF(ISNUMBER($A73),DPNexus(I$3,I$4),"") -> 8 | K73: =IF(ISNUMBER($A73),DPNexus(K$3,K$4),"") -> 9 | L73: =IF(ISNUMBER($A73),DPNexus(L$3,L$4),"") -> 0 | M73: =IF(ISNUMBER($A73),DPNexus(M$3,M$4),"") -> 0 | N73: =IF(ISNUMBER($A73),DPNexus(N$3,N$4),"") -> 9 | O73: =IF(ISNUMBER($A73),DPNexus(O$3,O$4),"") -> 7
A74: 70 | B74: =IF(ISNUMBER($A74),DPNexus(B$3,B$4),"") -> 6 | C74: =IF(ISNUMBER($A74),DPNexus(C$3,C$4),"") -> 7 | D74: =IF(ISNUMBER($A74),DPNexus(D$3,D$4),"") -> 3 | F74: =IF(ISNUMBER($A74),DPNexus(F$3,F$4),"") -> 5 | G74: =IF(ISNUMBER($A74),DPNexus(G$3,G$4),"") -> 9 | H74: =IF(ISNUMBER($A74),DPNexus(H$3,H$4),"") -> 6 | I74: =IF(ISNUMBER($A74),DPNexus(I$3,I$4),"") -> 6 | K74: =IF(ISNUMBER($A74),DPNexus(K$3,K$4),"") -> 0 | L74: =IF(ISNUMBER($A74),DPNexus(L$3,L$4),"") -> 3 | M74: =IF(ISNUMBER($A74),DPNexus(M$3,M$4),"") -> 7 | N74: =IF(ISNUMBER($A74),DPNexus(N$3,N$4),"") -> 2 | O74: =IF(ISNUMBER($A74),DPNexus(O$3,O$4),"") -> 6
A75: 71 | B75: =IF(ISNUMBER($A75),DPNexus(B$3,B$4),"") -> 2 | C75: =IF(ISNUMBER($A75),DPNexus(C$3,C$4),"") -> 2 | D75: =IF(ISNUMBER($A75),DPNexus(D$3,D$4),"") -> 2 | F75: =IF(ISNUMBER($A75),DPNexus(F$3,F$4),"") -> 0 | G75: =IF(ISNUMBER($A75),DPNexus(G$3,G$4),"") -> 5 | H75: =IF(ISNUMBER($A75),DPNexus(H$3,H$4),"") -> 2 | I75: =IF(ISNUMBER($A75),DPNexus(I$3,I$4),"") -> 2 | K75: =IF(ISNUMBER($A75),DPNexus(K$3,K$4),"") -> 8 | L75: =IF(ISNUMBER($A75),DPNexus(L$3,L$4),"") -> 2 | M75: =IF(ISNUMBER($A75),DPNexus(M$3,M$4),"") -> 6 | N75: =IF(ISNUMBER($A75),DPNexus(N$3,N$4),"") -> 1 | O75: =IF(ISNUMBER($A75),DPNexus(O$3,O$4),"") -> 9
A76: 72 | B76: =IF(ISNUMBER($A76),DPNexus(B$3,B$4),"") -> 6 | C76: =IF(ISNUMBER($A76),DPNexus(C$3,C$4),"") -> 2 | D76: =IF(ISNUMBER($A76),DPNexus(D$3,D$4),"") -> 3 | F76: =IF(ISNUMBER($A76),DPNexus(F$3,F$4),"") -> 8 | G76: =IF(ISNUMBER($A76),DPNexus(G$3,G$4),"") -> 1 | H76: =IF(ISNUMBER($A76),DPNexus(H$3,H$4),"") -> 7 | I76: =IF(ISNUMBER($A76),DPNexus(I$3,I$4),"") -> 1 | K76: =IF(ISNUMBER($A76),DPNexus(K$3,K$4),"") -> 3 | L76: =IF(ISNUMBER($A76),DPNexus(L$3,L$4),"") -> 3 | M76: =IF(ISNUMBER($A76),DPNexus(M$3,M$4),"") -> 2 | N76: =IF(ISNUMBER($A76),DPNexus(N$3,N$4),"") -> 8 | O76: =IF(ISNUMBER($A76),DPNexus(O$3,O$4),"") -> 5
A77: 73 | B77: =IF(ISNUMBER($A77),DPNexus(B$3,B$4),"") -> 5 | C77: =IF(ISNUMBER($A77),DPNexus(C$3,C$4),"") -> 3 | D77: =IF(ISNUMBER($A77),DPNexus(D$3,D$4),"") -> 3 | F77: =IF(ISNUMBER($A77),DPNexus(F$3,F$4),"") -> 9 | G77: =IF(ISNUMBER($A77),DPNexus(G$3,G$4),"") -> 2 | H77: =IF(ISNUMBER($A77),DPNexus(H$3,H$4),"") -> 8 | I77: =IF(ISNUMBER($A77),DPNexus(I$3,I$4),"") -> 0 | K77: =IF(ISNUMBER($A77),DPNexus(K$3,K$4),"") -> 2 | L77: =IF(ISNUMBER($A77),DPNexus(L$3,L$4),"") -> 7 | M77: =IF(ISNUMBER($A77),DPNexus(M$3,M$4),"") -> 1 | N77: =IF(ISNUMBER($A77),DPNexus(N$3,N$4),"") -> 3 | O77: =IF(ISNUMBER($A77),DPNexus(O$3,O$4),"") -> 3
A78: 74 | B78: =IF(ISNUMBER($A78),DPNexus(B$3,B$4),"") -> 7 | C78: =IF(ISNUMBER($A78),DPNexus(C$3,C$4),"") -> 7 | D78: =IF(ISNUMBER($A78),DPNexus(D$3,D$4),"") -> 9 | F78: =IF(ISNUMBER($A78),DPNexus(F$3,F$4),"") -> 1 | G78: =IF(ISNUMBER($A78),DPNexus(G$3,G$4),"") -> 7 | H78: =IF(ISNUMBER($A78),DPNexus(H$3,H$4),"") -> 6 | I78: =IF(ISNUMBER($A78),DPNexus(I$3,I$4),"") -> 9 | K78: =IF(ISNUMBER($A78),DPNexus(K$3,K$4),"") -> 8 | L78: =IF(ISNUMBER($A78),DPNexus(L$3,L$4),"") -> 4 | M78: =IF(ISNUMBER($A78),DPNexus(M$3,M$4),"") -> 1 | N78: =IF(ISNUMBER($A78),DPNexus(N$3,N$4),"") -> 0 | O78: =IF(ISNUMBER($A78),DPNexus(O$3,O$4),"") -> 0
A79: 75 | B79: =IF(ISNUMBER($A79),DPNexus(B$3,B$4),"") -> 8 | C79: =IF(ISNUMBER($A79),DPNexus(C$3,C$4),"") -> 2 | D79: =IF(ISNUMBER($A79),DPNexus(D$3,D$4),"") -> 5 | F79: =IF(ISNUMBER($A79),DPNexus(F$3,F$4),"") -> 9 | G79: =IF(ISNUMBER($A79),DPNexus(G$3,G$4),"") -> 2 | H79: =IF(ISNUMBER($A79),DPNexus(H$3,H$4),"") -> 7 | I79: =IF(ISNUMBER($A79),DPNexus(I$3,I$4),"") -> 6 | K79: =IF(ISNUMBER($A79),DPNexus(K$3,K$4),"") -> 6 | L79: =IF(ISNUMBER($A79),DPNexus(L$3,L$4),"") -> 2 | M79: =IF(ISNUMBER($A79),DPNexus(M$3,M$4),"") -> 1 | N79: =IF(ISNUMBER($A79),DPNexus(N$3,N$4),"") -> 8 | O79: =IF(ISNUMBER($A79),DPNexus(O$3,O$4),"") -> 4
A80: 76 | B80: =IF(ISNUMBER($A80),DPNexus(B$3,B$4),"") -> 6 | C80: =IF(ISNUMBER($A80),DPNexus(C$3,C$4),"") -> 2 | D80: =IF(ISNUMBER($A80),DPNexus(D$3,D$4),"") -> 1 | F80: =IF(ISNUMBER($A80),DPNexus(F$3,F$4),"") -> 2 | G80: =IF(ISNUMBER($A80),DPNexus(G$3,G$4),"") -> 0 | H80: =IF(ISNUMBER($A80),DPNexus(H$3,H$4),"") -> 4 | I80: =IF(ISNUMBER($A80),DPNexus(I$3,I$4),"") -> 2 | K80: =IF(ISNUMBER($A80),DPNexus(K$3,K$4),"") -> 2 | L80: =IF(ISNUMBER($A80),DPNexus(L$3,L$4),"") -> 4 | M80: =IF(ISNUMBER($A80),DPNexus(M$3,M$4),"") -> 0 | N80: =IF(ISNUMBER($A80),DPNexus(N$3,N$4),"") -> 4 | O80: =IF(ISNUMBER($A80),DPNexus(O$3,O$4),"") -> 4
A81: 77 | B81: =IF(ISNUMBER($A81),DPNexus(B$3,B$4),"") -> 6 | C81: =IF(ISNUMBER($A81),DPNexus(C$3,C$4),"") -> 6 | D81: =IF(ISNUMBER($A81),DPNexus(D$3,D$4),"") -> 0 | F81: =IF(ISNUMBER($A81),DPNexus(F$3,F$4),"") -> 3 | G81: =IF(ISNUMBER($A81),DPNexus(G$3,G$4),"") -> 7 | H81: =IF(ISNUMBER($A81),DPNexus(H$3,H$4),"") -> 6 | I81: =IF(ISNUMBER($A81),DPNexus(I$3,I$4),"") -> 2 | K81: =IF(ISNUMBER($A81),DPNexus(K$3,K$4),"") -> 2 | L81: =IF(ISNUMBER($A81),DPNexus(L$3,L$4),"") -> 6 | M81: =IF(ISNUMBER($A81),DPNexus(M$3,M$4),"") -> 3 | N81: =IF(ISNUMBER($A81),DPNexus(N$3,N$4),"") -> 0 | O81: =IF(ISNUMBER($A81),DPNexus(O$3,O$4),"") -> 6
A82: 78 | B82: =IF(ISNUMBER($A82),DPNexus(B$3,B$4),"") -> 8 | C82: =IF(ISNUMBER($A82),DPNexus(C$3,C$4),"") -> 2 | D82: =IF(ISNUMBER($A82),DPNexus(D$3,D$4),"") -> 9 | F82: =IF(ISNUMBER($A82),DPNexus(F$3,F$4),"") -> 4 | G82: =IF(ISNUMBER($A82),DPNexus(G$3,G$4),"") -> 6 | H82: =IF(ISNUMBER($A82),DPNexus(H$3,H$4),"") -> 9 | I82: =IF(ISNUMBER($A82),DPNexus(I$3,I$4),"") -> 5 | K82: =IF(ISNUMBER($A82),DPNexus(K$3,K$4),"") -> 5 | L82: =IF(ISNUMBER($A82),DPNexus(L$3,L$4),"") -> 9 | M82: =IF(ISNUMBER($A82),DPNexus(M$3,M$4),"") -> 4 | N82: =IF(ISNUMBER($A82),DPNexus(N$3,N$4),"") -> 2 | O82: =IF(ISNUMBER($A82),DPNexus(O$3,O$4),"") -> 1
A83: 79 | B83: =IF(ISNUMBER($A83),DPNexus(B$3,B$4),"") -> 3 | C83: =IF(ISNUMBER($A83),DPNexus(C$3,C$4),"") -> 2 | D83: =IF(ISNUMBER($A83),DPNexus(D$3,D$4),"") -> 1 | F83: =IF(ISNUMBER($A83),DPNexus(F$3,F$4),"") -> 9 | G83: =IF(ISNUMBER($A83),DPNexus(G$3,G$4),"") -> 2 | H83: =IF(ISNUMBER($A83),DPNexus(H$3,H$4),"") -> 5 | I83: =IF(ISNUMBER($A83),DPNexus(I$3,I$4),"") -> 6 | K83: =IF(ISNUMBER($A83),DPNexus(K$3,K$4),"") -> 6 | L83: =IF(ISNUMBER($A83),DPNexus(L$3,L$4),"") -> 3 | M83: =IF(ISNUMBER($A83),DPNexus(M$3,M$4),"") -> 0 | N83: =IF(ISNUMBER($A83),DPNexus(N$3,N$4),"") -> 3 | O83: =IF(ISNUMBER($A83),DPNexus(O$3,O$4),"") -> 5
A84: 80 | B84: =IF(ISNUMBER($A84),DPNexus(B$3,B$4),"") -> 0 | C84: =IF(ISNUMBER($A84),DPNexus(C$3,C$4),"") -> 5 | D84: =IF(ISNUMBER($A84),DPNexus(D$3,D$4),"") -> 0 | F84: =IF(ISNUMBER($A84),DPNexus(F$3,F$4),"") -> 4 | G84: =IF(ISNUMBER($A84),DPNexus(G$3,G$4),"") -> 0 | H84: =IF(ISNUMBER($A84),DPNexus(H$3,H$4),"") -> 6 | I84: =IF(ISNUMBER($A84),DPNexus(I$3,I$4),"") -> 7 | K84: =IF(ISNUMBER($A84),DPNexus(K$3,K$4),"") -> 6 | L84: =IF(ISNUMBER($A84),DPNexus(L$3,L$4),"") -> 3 | M84: =IF(ISNUMBER($A84),DPNexus(M$3,M$4),"") -> 4 | N84: =IF(ISNUMBER($A84),DPNexus(N$3,N$4),"") -> 4 | O84: =IF(ISNUMBER($A84),DPNexus(O$3,O$4),"") -> 5
A85: 81 | B85: =IF(ISNUMBER($A85),DPNexus(B$3,B$4),"") -> 3 | C85: =IF(ISNUMBER($A85),DPNexus(C$3,C$4),"") -> 3 | D85: =IF(ISNUMBER($A85),DPNexus(D$3,D$4),"") -> 7 | F85: =IF(ISNUMBER($A85),DPNexus(F$3,F$4),"") -> 2 | G85: =IF(ISNUMBER($A85),DPNexus(G$3,G$4),"") -> 7 | H85: =IF(ISNUMBER($A85),DPNexus(H$3,H$4),"") -> 0 | I85: =IF(ISNUMBER($A85),DPNexus(I$3,I$4),"") -> 9 | K85: =IF(ISNUMBER($A85),DPNexus(K$3,K$4),"") -> 3 | L85: =IF(ISNUMBER($A85),DPNexus(L$3,L$4),"") -> 5 | M85: =IF(ISNUMBER($A85),DPNexus(M$3,M$4),"") -> 3 | N85: =IF(ISNUMBER($A85),DPNexus(N$3,N$4),"") -> 8 | O85: =IF(ISNUMBER($A85),DPNexus(O$3,O$4),"") -> 6
A86: 82 | B86: =IF(ISNUMBER($A86),DPNexus(B$3,B$4),"") -> 5 | C86: =IF(ISNUMBER($A86),DPNexus(C$3,C$4),"") -> 3 | D86: =IF(ISNUMBER($A86),DPNexus(D$3,D$4),"") -> 8 | F86: =IF(ISNUMBER($A86),DPNexus(F$3,F$4),"") -> 0 | G86: =IF(ISNUMBER($A86),DPNexus(G$3,G$4),"") -> 2 | H86: =IF(ISNUMBER($A86),DPNexus(H$3,H$4),"") -> 3 | I86: =IF(ISNUMBER($A86),DPNexus(I$3,I$4),"") -> 7 | K86: =IF(ISNUMBER($A86),DPNexus(K$3,K$4),"") -> 3 | L86: =IF(ISNUMBER($A86),DPNexus(L$3,L$4),"") -> 2 | M86: =IF(ISNUMBER($A86),DPNexus(M$3,M$4),"") -> 1 | N86: =IF(ISNUMBER($A86),DPNexus(N$3,N$4),"") -> 7 | O86: =IF(ISNUMBER($A86),DPNexus(O$3,O$4),"") -> 8
A87: 83 | B87: =IF(ISNUMBER($A87),DPNexus(B$3,B$4),"") -> 8 | C87: =IF(ISNUMBER($A87),DPNexus(C$3,C$4),"") -> 1 | D87: =IF(ISNUMBER($A87),DPNexus(D$3,D$4),"") -> 4 | F87: =IF(ISNUMBER($A87),DPNexus(F$3,F$4),"") -> 4 | G87: =IF(ISNUMBER($A87),DPNexus(G$3,G$4),"") -> 5 | H87: =IF(ISNUMBER($A87),DPNexus(H$3,H$4),"") -> 0 | I87: =IF(ISNUMBER($A87),DPNexus(I$3,I$4),"") -> 7 | K87: =IF(ISNUMBER($A87),DPNexus(K$3,K$4),"") -> 1 | L87: =IF(ISNUMBER($A87),DPNexus(L$3,L$4),"") -> 7 | M87: =IF(ISNUMBER($A87),DPNexus(M$3,M$4),"") -> 9 | N87: =IF(ISNUMBER($A87),DPNexus(N$3,N$4),"") -> 7 | O87: =IF(ISNUMBER($A87),DPNexus(O$3,O$4),"") -> 1
A88: 84 | B88: =IF(ISNUMBER($A88),DPNexus(B$3,B$4),"") -> 2 | C88: =IF(ISNUMBER($A88),DPNexus(C$3,C$4),"") -> 3 | D88: =IF(ISNUMBER($A88),DPNexus(D$3,D$4),"") -> 4 | F88: =IF(ISNUMBER($A88),DPNexus(F$3,F$4),"") -> 1 | G88: =IF(ISNUMBER($A88),DPNexus(G$3,G$4),"") -> 4 | H88: =IF(ISNUMBER($A88),DPNexus(H$3,H$4),"") -> 4 | I88: =IF(ISNUMBER($A88),DPNexus(I$3,I$4),"") -> 5 | K88: =IF(ISNUMBER($A88),DPNexus(K$3,K$4),"") -> 0 | L88: =IF(ISNUMBER($A88),DPNexus(L$3,L$4),"") -> 5 | M88: =IF(ISNUMBER($A88),DPNexus(M$3,M$4),"") -> 1 | N88: =IF(ISNUMBER($A88),DPNexus(N$3,N$4),"") -> 2 | O88: =IF(ISNUMBER($A88),DPNexus(O$3,O$4),"") -> 7
A89: 85 | B89: =IF(ISNUMBER($A89),DPNexus(B$3,B$4),"") -> 7 | C89: =IF(ISNUMBER($A89),DPNexus(C$3,C$4),"") -> 5 | D89: =IF(ISNUMBER($A89),DPNexus(D$3,D$4),"") -> 9 | F89: =IF(ISNUMBER($A89),DPNexus(F$3,F$4),"") -> 8 | G89: =IF(ISNUMBER($A89),DPNexus(G$3,G$4),"") -> 3 | H89: =IF(ISNUMBER($A89),DPNexus(H$3,H$4),"") -> 9 | I89: =IF(ISNUMBER($A89),DPNexus(I$3,I$4),"") -> 3 | K89: =IF(ISNUMBER($A89),DPNexus(K$3,K$4),"") -> 2 | L89: =IF(ISNUMBER($A89),DPNexus(L$3,L$4),"") -> 1 | M89: =IF(ISNUMBER($A89),DPNexus(M$3,M$4),"") -> 6 | N89: =IF(ISNUMBER($A89),DPNexus(N$3,N$4),"") -> 9 | O89: =IF(ISNUMBER($A89),DPNexus(O$3,O$4),"") -> 8
A90: 86 | B90: =IF(ISNUMBER($A90),DPNexus(B$3,B$4),"") -> 8 | C90: =IF(ISNUMBER($A90),DPNexus(C$3,C$4),"") -> 8 | D90: =IF(ISNUMBER($A90),DPNexus(D$3,D$4),"") -> 2 | F90: =IF(ISNUMBER($A90),DPNexus(F$3,F$4),"") -> 3 | G90: =IF(ISNUMBER($A90),DPNexus(G$3,G$4),"") -> 7 | H90: =IF(ISNUMBER($A90),DPNexus(H$3,H$4),"") -> 8 | I90: =IF(ISNUMBER($A90),DPNexus(I$3,I$4),"") -> 3 | K90: =IF(ISNUMBER($A90),DPNexus(K$3,K$4),"") -> 1 | L90: =IF(ISNUMBER($A90),DPNexus(L$3,L$4),"") -> 7 | M90: =IF(ISNUMBER($A90),DPNexus(M$3,M$4),"") -> 2 | N90: =IF(ISNUMBER($A90),DPNexus(N$3,N$4),"") -> 6 | O90: =IF(ISNUMBER($A90),DPNexus(O$3,O$4),"") -> 8
A91: 87 | B91: =IF(ISNUMBER($A91),DPNexus(B$3,B$4),"") -> 8 | C91: =IF(ISNUMBER($A91),DPNexus(C$3,C$4),"") -> 1 | D91: =IF(ISNUMBER($A91),DPNexus(D$3,D$4),"") -> 2 | F91: =IF(ISNUMBER($A91),DPNexus(F$3,F$4),"") -> 6 | G91: =IF(ISNUMBER($A91),DPNexus(G$3,G$4),"") -> 4 | H91: =IF(ISNUMBER($A91),DPNexus(H$3,H$4),"") -> 6 | I91: =IF(ISNUMBER($A91),DPNexus(I$3,I$4),"") -> 2 | K91: =IF(ISNUMBER($A91),DPNexus(K$3,K$4),"") -> 1 | L91: =IF(ISNUMBER($A91),DPNexus(L$3,L$4),"") -> 3 | M91: =IF(ISNUMBER($A91),DPNexus(M$3,M$4),"") -> 1 | N91: =IF(ISNUMBER($A91),DPNexus(N$3,N$4),"") -> 7 | O91: =IF(ISNUMBER($A91),DPNexus(O$3,O$4),"") -> 3
A92: 88 | B92: =IF(ISNUMBER($A92),DPNexus(B$3,B$4),"") -> 7 | C92: =IF(ISNUMBER($A92),DPNexus(C$3,C$4),"") -> 8 | D92: =IF(ISNUMBER($A92),DPNexus(D$3,D$4),"") -> 1 | F92: =IF(ISNUMBER($A92),DPNexus(F$3,F$4),"") -> 6 | G92: =IF(ISNUMBER($A92),DPNexus(G$3,G$4),"") -> 0 | H92: =IF(ISNUMBER($A92),DPNexus(H$3,H$4),"") -> 3 | I92: =IF(ISNUMBER($A92),DPNexus(I$3,I$4),"") -> 3 | K92: =IF(ISNUMBER($A92),DPNexus(K$3,K$4),"") -> 4 | L92: =IF(ISNUMBER($A92),DPNexus(L$3,L$4),"") -> 4 | M92: =IF(ISNUMBER($A92),DPNexus(M$3,M$4),"") -> 8 | N92: =IF(ISNUMBER($A92),DPNexus(N$3,N$4),"") -> 8 | O92: =IF(ISNUMBER($A92),DPNexus(O$3,O$4),"") -> 6
A93: 89 | B93: =IF(ISNUMBER($A93),DPNexus(B$3,B$4),"") -> 8 | C93: =IF(ISNUMBER($A93),DPNexus(C$3,C$4),"") -> 6 | D93: =IF(ISNUMBER($A93),DPNexus(D$3,D$4),"") -> 0 | F93: =IF(ISNUMBER($A93),DPNexus(F$3,F$4),"") -> 7 | G93: =IF(ISNUMBER($A93),DPNexus(G$3,G$4),"") -> 1 | H93: =IF(ISNUMBER($A93),DPNexus(H$3,H$4),"") -> 9 | I93: =IF(ISNUMBER($A93),DPNexus(I$3,I$4),"") -> 0 | K93: =IF(ISNUMBER($A93),DPNexus(K$3,K$4),"") -> 1 | L93: =IF(ISNUMBER($A93),DPNexus(L$3,L$4),"") -> 6 | M93: =IF(ISNUMBER($A93),DPNexus(M$3,M$4),"") -> 1 | N93: =IF(ISNUMBER($A93),DPNexus(N$3,N$4),"") -> 3 | O93: =IF(ISNUMBER($A93),DPNexus(O$3,O$4),"") -> 2
A94: 90 | B94: =IF(ISNUMBER($A94),DPNexus(B$3,B$4),"") -> 4 | C94: =IF(ISNUMBER($A94),DPNexus(C$3,C$4),"") -> 9 | D94: =IF(ISNUMBER($A94),DPNexus(D$3,D$4),"") -> 2 | F94: =IF(ISNUMBER($A94),DPNexus(F$3,F$4),"") -> 9 | G94: =IF(ISNUMBER($A94),DPNexus(G$3,G$4),"") -> 1 | H94: =IF(ISNUMBER($A94),DPNexus(H$3,H$4),"") -> 5 | I94: =IF(ISNUMBER($A94),DPNexus(I$3,I$4),"") -> 0 | K94: =IF(ISNUMBER($A94),DPNexus(K$3,K$4),"") -> 3 | L94: =IF(ISNUMBER($A94),DPNexus(L$3,L$4),"") -> 9 | M94: =IF(ISNUMBER($A94),DPNexus(M$3,M$4),"") -> 2 | N94: =IF(ISNUMBER($A94),DPNexus(N$3,N$4),"") -> 9 | O94: =IF(ISNUMBER($A94),DPNexus(O$3,O$4),"") -> 2
A95: 91 | B95: =IF(ISNUMBER($A95),DPNexus(B$3,B$4),"") -> 1 | C95: =IF(ISNUMBER($A95),DPNexus(C$3,C$4),"") -> 4 | D95: =IF(ISNUMBER($A95),DPNexus(D$3,D$4),"") -> 2 | F95: =IF(ISNUMBER($A95),DPNexus(F$3,F$4),"") -> 9 | G95: =IF(ISNUMBER($A95),DPNexus(G$3,G$4),"") -> 6 | H95: =IF(ISNUMBER($A95),DPNexus(H$3,H$4),"") -> 4 | I95: =IF(ISNUMBER($A95),DPNexus(I$3,I$4),"") -> 0 | K95: =IF(ISNUMBER($A95),DPNexus(K$3,K$4),"") -> 2 | L95: =IF(ISNUMBER($A95),DPNexus(L$3,L$4),"") -> 2 | M95: =IF(ISNUMBER($A95),DPNexus(M$3,M$4),"") -> 1 | N95: =IF(ISNUMBER($A95),DPNexus(N$3,N$4),"") -> 5 | O95: =IF(ISNUMBER($A95),DPNexus(O$3,O$4),"") -> 4
A96: 92 | B96: =IF(ISNUMBER($A96),DPNexus(B$3,B$4),"") -> 6 | C96: =IF(ISNUMBER($A96),DPNexus(C$3,C$4),"") -> 8 | D96: =IF(ISNUMBER($A96),DPNexus(D$3,D$4),"") -> 6 | F96: =IF(ISNUMBER($A96),DPNexus(F$3,F$4),"") -> 1 | G96: =IF(ISNUMBER($A96),DPNexus(G$3,G$4),"") -> 2 | H96: =IF(ISNUMBER($A96),DPNexus(H$3,H$4),"") -> 7 | I96: =IF(ISNUMBER($A96),DPNexus(I$3,I$4),"") -> 0 | K96: =IF(ISNUMBER($A96),DPNexus(K$3,K$4),"") -> 1 | L96: =IF(ISNUMBER($A96),DPNexus(L$3,L$4),"") -> 7 | M96: =IF(ISNUMBER($A96),DPNexus(M$3,M$4),"") -> 4 | N96: =IF(ISNUMBER($A96),DPNexus(N$3,N$4),"") -> 8 | O96: =IF(ISNUMBER($A96),DPNexus(O$3,O$4),"") -> 2
A97: 93 | B97: =IF(ISNUMBER($A97),DPNexus(B$3,B$4),"") -> 7 | C97: =IF(ISNUMBER($A97),DPNexus(C$3,C$4),"") -> 8 | D97: =IF(ISNUMBER($A97),DPNexus(D$3,D$4),"") -> 0 | F97: =IF(ISNUMBER($A97),DPNexus(F$3,F$4),"") -> 5 | G97: =IF(ISNUMBER($A97),DPNexus(G$3,G$4),"") -> 1 | H97: =IF(ISNUMBER($A97),DPNexus(H$3,H$4),"") -> 4 | I97: =IF(ISNUMBER($A97),DPNexus(I$3,I$4),"") -> 0 | K97: =IF(ISNUMBER($A97),DPNexus(K$3,K$4),"") -> 7 | L97: =IF(ISNUMBER($A97),DPNexus(L$3,L$4),"") -> 6 | M97: =IF(ISNUMBER($A97),DPNexus(M$3,M$4),"") -> 1 | N97: =IF(ISNUMBER($A97),DPNexus(N$3,N$4),"") -> 7 | O97: =IF(ISNUMBER($A97),DPNexus(O$3,O$4),"") -> 7
A98: 94 | B98: =IF(ISNUMBER($A98),DPNexus(B$3,B$4),"") -> 7 | C98: =IF(ISNUMBER($A98),DPNexus(C$3,C$4),"") -> 0 | D98: =IF(ISNUMBER($A98),DPNexus(D$3,D$4),"") -> 3 | F98: =IF(ISNUMBER($A98),DPNexus(F$3,F$4),"") -> 1 | G98: =IF(ISNUMBER($A98),DPNexus(G$3,G$4),"") -> 2 | H98: =IF(ISNUMBER($A98),DPNexus(H$3,H$4),"") -> 9 | I98: =IF(ISNUMBER($A98),DPNexus(I$3,I$4),"") -> 9 | K98: =IF(ISNUMBER($A98),DPNexus(K$3,K$4),"") -> 3 | L98: =IF(ISNUMBER($A98),DPNexus(L$3,L$4),"") -> 2 | M98: =IF(ISNUMBER($A98),DPNexus(M$3,M$4),"") -> 0 | N98: =IF(ISNUMBER($A98),DPNexus(N$3,N$4),"") -> 4 | O98: =IF(ISNUMBER($A98),DPNexus(O$3,O$4),"") -> 6
A99: 95 | B99: =IF(ISNUMBER($A99),DPNexus(B$3,B$4),"") -> 8 | C99: =IF(ISNUMBER($A99),DPNexus(C$3,C$4),"") -> 7 | D99: =IF(ISNUMBER($A99),DPNexus(D$3,D$4),"") -> 1 | F99: =IF(ISNUMBER($A99),DPNexus(F$3,F$4),"") -> 7 | G99: =IF(ISNUMBER($A99),DPNexus(G$3,G$4),"") -> 2 | H99: =IF(ISNUMBER($A99),DPNexus(H$3,H$4),"") -> 6 | I99: =IF(ISNUMBER($A99),DPNexus(I$3,I$4),"") -> 6 | K99: =IF(ISNUMBER($A99),DPNexus(K$3,K$4),"") -> 1 | L99: =IF(ISNUMBER($A99),DPNexus(L$3,L$4),"") -> 4 | M99: =IF(ISNUMBER($A99),DPNexus(M$3,M$4),"") -> 8 | N99: =IF(ISNUMBER($A99),DPNexus(N$3,N$4),"") -> 4 | O99: =IF(ISNUMBER($A99),DPNexus(O$3,O$4),"") -> 8
A100: 96 | B100: =IF(ISNUMBER($A100),DPNexus(B$3,B$4),"") -> 7 | C100: =IF(ISNUMBER($A100),DPNexus(C$3,C$4),"") -> 5 | D100: =IF(ISNUMBER($A100),DPNexus(D$3,D$4),"") -> 1 | F100: =IF(ISNUMBER($A100),DPNexus(F$3,F$4),"") -> 8 | G100: =IF(ISNUMBER($A100),DPNexus(G$3,G$4),"") -> 1 | H100: =IF(ISNUMBER($A100),DPNexus(H$3,H$4),"") -> 6 | I100: =IF(ISNUMBER($A100),DPNexus(I$3,I$4),"") -> 1 | K100: =IF(ISNUMBER($A100),DPNexus(K$3,K$4),"") -> 0 | L100: =IF(ISNUMBER($A100),DPNexus(L$3,L$4),"") -> 4 | M100: =IF(ISNUMBER($A100),DPNexus(M$3,M$4),"") -> 4 | N100: =IF(ISNUMBER($A100),DPNexus(N$3,N$4),"") -> 6 | O100: =IF(ISNUMBER($A100),DPNexus(O$3,O$4),"") -> 9
A101: 97 | B101: =IF(ISNUMBER($A101),DPNexus(B$3,B$4),"") -> 2 | C101: =IF(ISNUMBER($A101),DPNexus(C$3,C$4),"") -> 4 | D101: =IF(ISNUMBER($A101),DPNexus(D$3,D$4),"") -> 7 | F101: =IF(ISNUMBER($A101),DPNexus(F$3,F$4),"") -> 9 | G101: =IF(ISNUMBER($A101),DPNexus(G$3,G$4),"") -> 0 | H101: =IF(ISNUMBER($A101),DPNexus(H$3,H$4),"") -> 5 | I101: =IF(ISNUMBER($A101),DPNexus(I$3,I$4),"") -> 6 | K101: =IF(ISNUMBER($A101),DPNexus(K$3,K$4),"") -> 5 | L101: =IF(ISNUMBER($A101),DPNexus(L$3,L$4),"") -> 0 | M101: =IF(ISNUMBER($A101),DPNexus(M$3,M$4),"") -> 6 | N101: =IF(ISNUMBER($A101),DPNexus(N$3,N$4),"") -> 5 | O101: =IF(ISNUMBER($A101),DPNexus(O$3,O$4),"") -> 5
A102: 98 | B102: =IF(ISNUMBER($A102),DPNexus(B$3,B$4),"") -> 9 | C102: =IF(ISNUMBER($A102),DPNexus(C$3,C$4),"") -> 7 | D102: =IF(ISNUMBER($A102),DPNexus(D$3,D$4),"") -> 2 | F102: =IF(ISNUMBER($A102),DPNexus(F$3,F$4),"") -> 2 | G102: =IF(ISNUMBER($A102),DPNexus(G$3,G$4),"") -> 2 | H102: =IF(ISNUMBER($A102),DPNexus(H$3,H$4),"") -> 7 | I102: =IF(ISNUMBER($A102),DPNexus(I$3,I$4),"") -> 5 | K102: =IF(ISNUMBER($A102),DPNexus(K$3,K$4),"") -> 4 | L102: =IF(ISNUMBER($A102),DPNexus(L$3,L$4),"") -> 6 | M102: =IF(ISNUMBER($A102),DPNexus(M$3,M$4),"") -> 1 | N102: =IF(ISNUMBER($A102),DPNexus(N$3,N$4),"") -> 3 | O102: =IF(ISNUMBER($A102),DPNexus(O$3,O$4),"") -> 9
A103: 99 | B103: =IF(ISNUMBER($A103),DPNexus(B$3,B$4),"") -> 4 | C103: =IF(ISNUMBER($A103),DPNexus(C$3,C$4),"") -> 6 | D103: =IF(ISNUMBER($A103),DPNexus(D$3,D$4),"") -> 3 | F103: =IF(ISNUMBER($A103),DPNexus(F$3,F$4),"") -> 5 | G103: =IF(ISNUMBER($A103),DPNexus(G$3,G$4),"") -> 3 | H103: =IF(ISNUMBER($A103),DPNexus(H$3,H$4),"") -> 4 | I103: =IF(ISNUMBER($A103),DPNexus(I$3,I$4),"") -> 5 | K103: =IF(ISNUMBER($A103),DPNexus(K$3,K$4),"") -> 2 | L103: =IF(ISNUMBER($A103),DPNexus(L$3,L$4),"") -> 4 | M103: =IF(ISNUMBER($A103),DPNexus(M$3,M$4),"") -> 2 | N103: =IF(ISNUMBER($A103),DPNexus(N$3,N$4),"") -> 7 | O103: =IF(ISNUMBER($A103),DPNexus(O$3,O$4),"") -> 6
A104: 100 | B104: =IF(ISNUMBER($A104),DPNexus(B$3,B$4),"") -> 3 | C104: =IF(ISNUMBER($A104),DPNexus(C$3,C$4),"") -> 1 | D104: =IF(ISNUMBER($A104),DPNexus(D$3,D$4),"") -> 5 | F104: =IF(ISNUMBER($A104),DPNexus(F$3,F$4),"") -> 7 | G104: =IF(ISNUMBER($A104),DPNexus(G$3,G$4),"") -> 6 | H104: =IF(ISNUMBER($A104),DPNexus(H$3,H$4),"") -> 7 | I104: =IF(ISNUMBER($A104),DPNexus(I$3,I$4),"") -> 2 | K104: =IF(ISNUMBER($A104),DPNexus(K$3,K$4),"") -> 3 | L104: =IF(ISNUMBER($A104),DPNexus(L$3,L$4),"") -> 3 | M104: =IF(ISNUMBER($A104),DPNexus(M$3,M$4),"") -> 2 | N104: =IF(ISNUMBER($A104),DPNexus(N$3,N$4),"") -> 9 | O104: =IF(ISNUMBER($A104),DPNexus(O$3,O$4),"") -> 5
A105: 101 | B105: =IF(ISNUMBER($A105),DPNexus(B$3,B$4),"") -> 9 | C105: =IF(ISNUMBER($A105),DPNexus(C$3,C$4),"") -> 1 | D105: =IF(ISNUMBER($A105),DPNexus(D$3,D$4),"") -> 2 | F105: =IF(ISNUMBER($A105),DPNexus(F$3,F$4),"") -> 2 | G105: =IF(ISNUMBER($A105),DPNexus(G$3,G$4),"") -> 1 | H105: =IF(ISNUMBER($A105),DPNexus(H$3,H$4),"") -> 5 | I105: =IF(ISNUMBER($A105),DPNexus(I$3,I$4),"") -> 9 | K105: =IF(ISNUMBER($A105),DPNexus(K$3,K$4),"") -> 1 | L105: =IF(ISNUMBER($A105),DPNexus(L$3,L$4),"") -> 3 | M105: =IF(ISNUMBER($A105),DPNexus(M$3,M$4),"") -> 3 | N105: =IF(ISNUMBER($A105),DPNexus(N$3,N$4),"") -> 3 | O105: =IF(ISNUMBER($A105),DPNexus(O$3,O$4),"") -> 7
